Workbook

Sheet Title
B9: BFI FINANCIAL MODEL
B10: [Project's Name]
B13: Any queries in respect of these guidelines can be addressed to infrastructure@treasury.gov.za.

Sheet Input Sponsor
A1: SPONSOR INPUT SHEET
A2: Cells in BLUE can be modified
A3: Selected Case | B3: 1 | E3: Sponsor Case | F3: Base Case | G3: Worst Case
A5: Timing | B5: Unit
A6: Base Date | B6: Date (Month, Day, Year) | C6: =D6 -> 2013-07-01 | D6: =INDEX(E6:Y6,1,$B$3) -> 2013-07-01 | E6: 2013-07-01 | F6: 2013-07-01 | G6: 2013-07-01
A7: Date Start of Construction | B7: Date (Month, Day, Year) | C7: =D7 -> 2020-07-01 | D7: =INDEX(E7:Y7,1,$B$3) -> 2020-07-01 | E7: 2020-07-01 | F7: 2019-07-01 | G7: 2019-07-01
A8: Construction Period | B8: Months | C8: 50 | D8: =INDEX(E8:Y8,1,$B$3) -> 50 | E8: 50 | F8: 60 | G8: 80
A9: Project Life | B9: Years | C9: 40 | D9: =INDEX(E9:Y9,1,$B$3) -> 40 | E9: 40 | F9: 30 | G9: 30
A11: A. REVENUE AND EXPENDITURE STATEMENT FIGURES AS OF BASE DATE
A13: 1. Revenues
A14: [Source Revenue 1] | B14: Unit
A15: Total Capacity | B15: Annual Volume | C15: =INDEX(E15:Y15,1,$B$3) -> 200000 | D15: =INDEX(E15:Z15,1,$B$3) -> 200000 | E15: 200000 | F15: 3000 | G15: 10000
A16: Unused Capacity Rate (% of production) | B16: % | C16: =INDEX(E16:Y16,1,$B$3) -> 0.2 | D16: =INDEX(E16:Z16,1,$B$3) -> 0.2 | E16: 0.2 | F16: 0.05 | G16: 0.2
A17: Unit Price | B17: Rand / Unit of Annual Volume | C17: =IF(Work!$C$90=1,INDEX(E17:Y17,1,$B$3),INDEX(E17:Y17,1,$B$3)/1000000) -> 0.0055 | D17: 5500 | E17: =5.5*1000 -> 5500 | F17: 10 | G17: 5500
A18: [Source Revenue 2]
A19: Total Capacity | B19: Annual Volume | C19: =INDEX(E19:Y19,1,$B$3) -> 4000 | D19: 4000 | E19: 4000 | F19: 30 | G19: 10000
A20: Unused Capacity Rate (% of production) | B20: % | C20: =INDEX(E20:Y20,1,$B$3) -> 0.05 | D20: 0.05 | E20: 0.05 | F20: 0.05 | G20: 0.2
A21: Unit Price | B21: Rand / Unit of Annual Volume | C21: =IF(Work!$C$90=1,INDEX(E21:Y21,1,$B$3),INDEX(E21:Y21,1,$B$3)/1000000) -> 1e-05 | D21: 10 | E21: 10 | F21: 10 | G21: 5500
A22: [Source Revenue 3]
A23: Total Capacity | B23: Annual Volume | C23: =INDEX(E23:Y23,1,$B$3) -> 10000 | D23: 10000 | E23: 10000 | F23: 100
A24: Unused Capacity Rate (% of production) | B24: % | C24: =INDEX(E24:Y24,1,$B$3) -> 0.05 | D24: 0.05 | E24: 0.05 | F24: 0.05 | G24: 0.2
A25: Unit Price | B25: Rand / Unit of Annual Volume | C25: =IF(Work!$C$90=1,INDEX(E25:Y25,1,$B$3),INDEX(E25:Y25,1,$B$3)/1000000) -> 5e-06 | D25: 5 | E25: 5 | F25: 5 | G25: 5500
A27: 2. OPEX p.a.
A28: Variable Costs
A29: Operation & Maintenance | B29: Rand | C29: =IF(Work!$C$90=1,INDEX(E29:Y29,1,$B$3),INDEX(E29:Y29,1,$B$3)/1000000) -> 990 | D29: 990000000 | E29: 990000000 | F29: 100000000 | G29: 330000000
A30: Machinery & Equipment | B30: Rand | C30: =IF(Work!$C$90=1,INDEX(E30:Y30,1,$B$3),INDEX(E30:Y30,1,$B$3)/1000000) -> 3 | D30: 3000000 | E30: 3000000 | F30: 5000 | G30: 330000000
A31: Utilities | B31: Rand | C31: =IF(Work!$C$90=1,INDEX(E31:Y31,1,$B$3),INDEX(E31:Y31,1,$B$3)/1000000) -> 10 | D31: 10000000 | E31: 10000000 | F31: 1000 | G31: 330000000
A33: Fixed Costs
A34: Fixed Cost | B34: Rand | C34: =IF(Work!$C$90=1,INDEX(E34:Y34,1,$B$3),INDEX(E34:Y34,1,$B$3)/1000000) -> 1 | D34: 1000000 | E34: 1000000 | F34: 20 | G34: 100000000
A35: Insurance Cost | B35: Rand | C35: =IF(Work!$C$90=1,INDEX(E35:Y35,1,$B$3),INDEX(E35:Y35,1,$B$3)/1000000) -> 1 | D35: 1000000 | E35: 1000000 | F35: 5 | G35: 100000000
A37: 3. CAPEX - Total
A38: Fixed Construction Price (not inflated)
A39: Capital Expenditure | B39: Rand | C39: =IF(Work!$C$90=1,INDEX(E39:Y39,1,$B$3),INDEX(E39:Y39,1,$B$3)/1000000) -> 6660 | D39: 6660000000 | E39: 6660000000 | F39: 6000000 | G39: 6000000000
A40: Other Capex | B40: Rand | C40: =IF(Work!$C$90=1,INDEX(E40:Y40,1,$B$3),INDEX(E40:Y40,1,$B$3)/1000000) -> 1000 | D40: 1000000000 | E40: 1000000000 | F40: 900000 | G40: 660000000
A42: Scheduled Maintenance
A43: Frequency (every X year) | B43: Year | C43: =INDEX(E43:Y43,1,$B$3) -> 7 | D43: 7 | E43: 7 | F43: 5 | G43: 7
A44: Cost in % of Capex | B44: % | C44: =INDEX(E44:Y44,1,$B$3) -> 0.05 | D44: 0.05 | E44: 0.05 | F44: 0.05 | G44: 0.05
A46: B. FUNDING STATEMENT FIGURES AS OF DATE OF CONSTRUCTION
A48: Contributions covering Capex | E48: Average Annual Contributions
A49: Department Baseline | B49: Rand | C49: =IF(Work!$C$90=1,INDEX(E49:Y49,1,$B$3),INDEX(E49:Y49,1,$B$3)/1000000) -> 2000 | D49: 2000000000 | E49: 2000000000 | F49: 1000000 | G49: 500000000
A50: External Organisation Grant | B50: Rand | C50: =IF(Work!$C$90=1,INDEX(E50:Y50,1,$B$3),INDEX(E50:Y50,1,$B$3)/1000000) -> 1 | D50: 1000000 | E50: 1000000 | F50: 1000000 | G50: 500000000
A51: Capex Grant | B51: Rand | C51: =IF(Work!$C$90=1,INDEX(E51:Y51,1,$B$3),INDEX(E51:Y51,1,$B$3)/1000000) -> 5 | D51: 5000000 | E51: 5000000 | F51: 1000000 | G51: 500000000
A52: Provincial Treasury Instruction | B52: Rand | C52: =IF(Work!$C$90=1,INDEX(E52:Y52,1,$B$3),INDEX(E52:Y52,1,$B$3)/1000000) -> 1 | D52: 1000000 | E52: 1000000 | F52: 1000000 | G52: 500000000
A54: Debt
A55: Total Amount | B55: Rand | C55: =IF(Work!$C$90=1,INDEX(E55:Y55,1,$B$3),INDEX(E55:Y55,1,$B$3)/1000000) -> 10000 | D55: 10000000000 | E55: 10000000000 | F55: 8000000 | G55: 2000000000
A56: % Guaranteed by NT | B56: % | C56: =INDEX(E56:Y56,1,$B$3) -> 0.5 | D56: 0.5 | E56: 0.5 | F56: 0.5 | G56: 0.5
A57: Grace Period | B57: Year | C57: 2 | D57: 2 | E57: 2 | F57: 1 | G57: 1
A58: Repayment Period | B58: Year | C58: 20 | D58: 20 | E58: 20 | F58: 20 | G58: 20
A59: Interest rate % p.a. | B59: % | C59: 0.07 | D59: 0.07 | E59: 0.07 | F59: 0.07 | G59: 0.07
A60: Arranging Fee | B60: % | C60: 0.02 | D60: 0.02 | E60: 0.02 | F60: 0 | G60: 0.02
A61: Commitment Fee p.a. | B61: % | C61: 0.02 | D61: 0.02 | E61: 0.02 | F61: 0.01 | G61: 0.05
A62: Repayment Period =< Project Life | B62: =D58<=D9 -> TRUE
A64: Contributions covering Opex | E64: Average Annual Contributions
A65: Department Baseline | B65: Rand | C65: =IF(Work!$C$90=1,INDEX(E65:Y65,1,$B$3),INDEX(E65:Y65,1,$B$3)/1000000) -> 663.3 | D65: 663300000 | E65: 663300000 | F65: 1000 | G65: 150000000
A66: Provincial Grant | B66: Rand | C66: =IF(Work!$C$90=1,INDEX(E66:Y66,1,$B$3),INDEX(E66:Y66,1,$B$3)/1000000) -> 1 | D66: 1000000 | E66: 1000000 | F66: 1000 | G66: =150000000+63300000 -> 213300000
A67: Provincial Treasury Instruction | B67: Rand | C67: =IF(Work!$C$90=1,INDEX(E67:Y67,1,$B$3),INDEX(E67:Y67,1,$B$3)/1000000) -> 1 | D67: 1000000 | E67: 1000000 | F67: 1000 | G67: 150000000
A68: Municipal Grant | B68: Rand | C68: =IF(Work!$C$90=1,INDEX(E68:Y68,1,$B$3),INDEX(E68:Y68,1,$B$3)/1000000) -> 1 | D68: 1000000 | E68: 1000000 | F68: 1000 | G68: 50000000
A69: Municipal Council Funds | B69: Rand | C69: =IF(Work!$C$90=1,INDEX(E69:Y69,1,$B$3),INDEX(E69:Y69,1,$B$3)/1000000) -> 1 | D69: 1000000 | E69: 1000000 | F69: 1000 | G69: 50000000
A70: Levy | B70: Rand | C70: =IF(Work!$C$90=1,INDEX(E70:Y70,1,$B$3),INDEX(E70:Y70,1,$B$3)/1000000) -> 1 | D70: 1000000 | E70: 1000000 | F70: 1000 | G70: 50000000
A72: Tax and Accounting Data
A73: Corporate Tax Rate | B73: % | C73: =INDEX(E73:Y73,1,$B$3) -> 0.15 | D73: 0.15 | E73: 0.15 | F73: 0.15 | G73: 0
A74: Depreciation Period =< Project Life | B74: =C74<=D9 -> TRUE | C74: =INDEX(E74:Y74,1,$B$3) -> 20 | D74: 20 | E74: 20 | F74: 20 | G74: 20
A77: END

Sheet Input NT (hidden)
A1: NT INPUT SHEET
A2: Cells in BLUE can be modified.
A3: =INDEX(E3:Y3,1,'Input Sponsor'!B3) -> Sponsor Case | E3: ='Input Sponsor'!E3 -> Sponsor Case | F3: ='Input Sponsor'!F3 -> Base Case | G3: ='Input Sponsor'!G3 -> Worst Case
A5: Macroeconomic Data | B5: UNIT
A6: CPI Inflation p.a. | B6: % | C6: =INDEX(E6:Y6,1,'Input Sponsor'!$B$3) -> 0.05 | E6: 0.05 | F6: 0.05 | G6: 0.05
A7: Capex Inflation p.a. | B7: % | C7: =INDEX(E7:Y7,1,'Input Sponsor'!$B$3) -> 0.1 | E7: 0.1 | F7: 0.06 | G7: 0.04
A8: Discount Rate (nominal) | B8: % | C8: =INDEX(E8:Y8,1,'Input Sponsor'!$B$3) -> 0.1 | E8: 0.1 | F8: 0.1 | G8: 0.1
A10: BFI
A11: Concessional loan interest rate p.a. | B11: % | C11: =INDEX(E11:Y11,1,'Input Sponsor'!$B$3) -> 0.05 | E11: 0.05 | F11: 0.05 | G11: 0.05
A12: Domestic interest rate p.a. | B12: % | C12: =INDEX(E12:Y12,1,'Input Sponsor'!$B$3) -> 0.05 | E12: 0.05 | F12: 0.05 | G12: 0.05
A13: Domestic fund / Concessional Loan | B13: % | C13: =INDEX(E13:Y13,1,'Input Sponsor'!$B$3) -> 0.5 | E13: 0.5 | F13: 0.5 | G13: 0.5
A16: Exchange Rate: Rand /$ | E16: 14.5 | F16: 14.5 | G16: 14.5
A18: END
E19: Year 1 | F19: Year 2 | G19: Year 3 | H19: Year 4 | I19: Year 5 | J19: Year 6 | K19: Year 7 | L19: Year 8 | M19: Year 9 | N19: Year 10 | O19: Year 11 | P19: Year 12 | Q19: Year 13 | R19: Year 14 | S19: Year 15 | T19: Year 16 | U19: Year 17 | V19: Year 18 | W19: Year 19 | X19: Year 20 | Y19: Year 21 | Z19: Year 22 | AA19: Year 23 | AB19: Year 24 | AC19: Year 25 | AD19: Year 26 | AE19: Year 27 | AF19: Year 28 | AG19: Year 29 | AH19: Year 30 | AI19: Year 31 | AJ19: Year 32 | AK19: Year 33 | AL19: Year 34 | AM19: Year 35 | AN19: Year 36 | AO19: Year 37 | AP19: Year 38 | AQ19: Year 39 | AR19: Year 40 | AS19: Year 41 | AT19: Year 42 | AU19: Year 43 | AV19: Year 44 | AW19: Year 45 | AX19: Year 46 | AY19: Year 47 | AZ19: Year 48 | BA19: Year 49 | BB19: Year 50
A20: Exchange Rate: Rand /$ | E20: =E16 -> 14.5 | F20: =F16 -> 14.5 | G20: =G16 -> 14.5 | H20: 12 | I20: 12 | J20: 12 | K20: 12 | L20: 12 | M20: 12 | N20: 12 | O20: 12 | P20: 12 | Q20: 12 | R20: 12 | S20: 12 | T20: 12 | U20: 12 | V20: 12 | W20: 12 | X20: 12 | Y20: 12 | Z20: 12 | AA20: 12 | AB20: 12 | AC20: 12 | AD20: 12 | AE20: 12 | AF20: 12 | AG20: 12 | AH20: 12 | AI20: 12 | AJ20: 12 | AK20: 12 | AL20: 12 | AM20: 12 | AN20: 12 | AO20: 12 | AP20: 12 | AQ20: 12 | AR20: 12 | AS20: 12 | AT20: 12 | AU20: 12 | AV20: 12 | AW20: 12 | AX20: 12 | AY20: 12 | AZ20: 12 | BA20: 12 | BB20: 12
A21: Accuracy | C21: 0.0001
E22: .

Sheet Work (hidden)
A1: Work Sheet
C2: Year | F2: =YEAR('Input Sponsor'!D7) -> 2020 | G2: =F2+1 -> 2021 | H2: =G2+1 -> 2022 | I2: 2023 | J2: 2024 | K2: 2025 | L2: 2026 | M2: 2027 | N2: 2028 | O2: 2029 | P2: 2030 | Q2: 2031 | R2: 2032 | S2: 2033 | T2: 2034 | U2: 2035 | V2: 2036 | W2: 2037 | X2: 2038 | Y2: 2039 | Z2: 2040 | AA2: 2041 | AB2: 2042 | AC2: 2043 | AD2: 2044 | AE2: 2045 | AF2: 2046 | AG2: 2047 | AH2: 2048 | AI2: 2049 | AJ2: 2050 | AK2: 2051 | AL2: 2052 | AM2: 2053 | AN2: 2054 | AO2: 2055 | AP2: 2056 | AQ2: 2057 | AR2: 2058 | AS2: 2059 | AT2: 2060 | AU2: 2061 | AV2: 2062 | AW2: 2063 | AX2: 2064 | AY2: 2065 | AZ2: 2066 | BA2: 2067 | BB2: 2068 | BC2: 2069 | BD2: 2070 | BE2: 2071 | BF2: 2072 | BG2: 2073 | BH2: 2074 | BI2: 2075 | BJ2: 2076 | BK2: 2077 | BL2: 2078 | BM2: 2079 | BN2: 2080 | BO2: 2081 | BP2: 2082 | BQ2: 2083
F3: =F7 -> 2020-07-01 | G3: =G7 -> 2021-01-01 | H3: 2022-01-01 | I3: 2023-01-01 | J3: 2024-01-01 | K3: 2025-01-01 | L3: 2026-01-01 | M3: 2027-01-01 | N3: 2028-01-01 | O3: 2029-01-01 | P3: 2030-01-01 | Q3: 2031-01-01 | R3: 2032-01-01 | S3: 2033-01-01 | T3: 2034-01-01 | U3: 2035-01-01 | V3: 2036-01-01 | W3: 2037-01-01 | X3: 2038-01-01 | Y3: 2039-01-01 | Z3: 2040-01-01 | AA3: 2041-01-01 | AB3: 2042-01-01 | AC3: 2043-01-01 | AD3: 2044-01-01 | AE3: 2045-01-01 | AF3: 2046-01-01 | AG3: 2047-01-01 | AH3: 2048-01-01 | AI3: 2049-01-01 | AJ3: 2050-01-01 | AK3: 2051-01-01 | AL3: 2052-01-01 | AM3: 2053-01-01 | AN3: 2054-01-01 | AO3: 2055-01-01 | AP3: 2056-01-01 | AQ3: 2057-01-01 | AR3: 2058-01-01 | AS3: 2059-01-01 | AT3: 2060-01-01 | AU3: 2061-01-01 | AV3: 2062-01-01 | AW3: 2063-01-01 | AX3: 2064-01-01 | AY3: 2065-01-01 | AZ3: 2066-01-01 | BA3: 2067-01-01 | BB3: 2068-01-01 | BC3: 2069-01-01 | BD3: 2070-01-01 | BE3: 2071-01-01 | BF3: 2072-01-01 | BG3: 2073-01-01 | BH3: 2074-01-01 | BI3: 2075-01-01 | BJ3: 2076-01-01 | BK3: 2077-01-01 | BL3: 2078-01-01 | BM3: 2079-01-01 | BN3: 2080-01-01 | BO3: 2081-01-01 | BP3: 2082-01-01 | BQ3: 2083-01-01
E4: Pre Period | F4: to | G4: to | H4: to | I4: to | J4: to | K4: to | L4: to | M4: to | N4: to | O4: to | P4: to | Q4: to | R4: to | S4: to | T4: to | U4: to | V4: to | W4: to | X4: to | Y4: to | Z4: to | AA4: to | AB4: to | AC4: to | AD4: to | AE4: to | AF4: to | AG4: to | AH4: to | AI4: to | AJ4: to | AK4: to | AL4: to | AM4: to | AN4: to | AO4: to | AP4: to | AQ4: to | AR4: to | AS4: to | AT4: to | AU4: to | AV4: to | AW4: to | AX4: to | AY4: to | AZ4: to | BA4: to | BB4: to | BC4: to | BD4: to | BE4: to | BF4: to | BG4: to | BH4: to | BI4: to | BJ4: to | BK4: to | BL4: to | BM4: to | BN4: to | BO4: to | BP4: to | BQ4: to
F5: =F8 -> 2020-12-31 | G5: =G8 -> 2021-12-31 | H5: 2022-12-31 | I5: 2023-12-31 | J5: 2024-12-31 | K5: 2025-12-31 | L5: 2026-12-31 | M5: 2027-12-31 | N5: 2028-12-31 | O5: 2029-12-31 | P5: 2030-12-31 | Q5: 2031-12-31 | R5: 2032-12-31 | S5: 2033-12-31 | T5: 2034-12-31 | U5: 2035-12-31 | V5: 2036-12-31 | W5: 2037-12-31 | X5: 2038-12-31 | Y5: 2039-12-31 | Z5: 2040-12-31 | AA5: 2041-12-31 | AB5: 2042-12-31 | AC5: 2043-12-31 | AD5: 2044-12-31 | AE5: 2045-12-31 | AF5: 2046-12-31 | AG5: 2047-12-31 | AH5: 2048-12-31 | AI5: 2049-12-31 | AJ5: 2050-12-31 | AK5: 2051-12-31 | AL5: 2052-12-31 | AM5: 2053-12-31 | AN5: 2054-12-31 | AO5: 2055-12-31 | AP5: 2056-12-31 | AQ5: 2057-12-31 | AR5: 2058-12-31 | AS5: 2059-12-31 | AT5: 2060-12-31 | AU5: 2061-12-31 | AV5: 2062-12-31 | AW5: 2063-12-31 | AX5: 2064-12-31 | AY5: 2065-12-31 | AZ5: 2066-12-31 | BA5: 2067-12-31 | BB5: 2068-12-31 | BC5: 2069-12-31 | BD5: 2070-12-31 | BE5: 2071-12-31 | BF5: 2072-12-31 | BG5: 2073-12-31 | BH5: 2074-12-31 | BI5: 2075-12-31 | BJ5: 2076-12-31 | BK5: 2077-12-31 | BL5: 2078-12-31 | BM5: 2079-12-31 | BN5: 2080-12-31 | BO5: 2081-12-31 | BP5: 2082-12-31 | BQ5: 2083-12-31
A6: Yearly Counter | E6: 1 | F6: 1 | G6: =F6+1 -> 2 | H6: =G6+1 -> 3 | I6: 4 | J6: 5 | K6: 6 | L6: 7 | M6: 8 | N6: 9 | O6: 10 | P6: 11 | Q6: 12 | R6: 13 | S6: 14 | T6: 15 | U6: 16 | V6: 17 | W6: 18 | X6: 19 | Y6: 20 | Z6: 21 | AA6: 22 | AB6: 23 | AC6: 24 | AD6: 25 | AE6: 26 | AF6: 27 | AG6: 28 | AH6: 29 | AI6: 30 | AJ6: 31 | AK6: 32 | AL6: 33 | AM6: 34 | AN6: 35 | AO6: 36 | AP6: 37 | AQ6: 38 | AR6: 39 | AS6: 40 | AT6: 41 | AU6: 42 | AV6: 43 | AW6: 44 | AX6: 45 | AY6: 46 | AZ6: 47 | BA6: 48 | BB6: 49 | BC6: 50 | BD6: 51 | BE6: 52 | BF6: 53 | BG6: 54 | BH6: 55 | BI6: 56 | BJ6: 57 | BK6: 58 | BL6: 59 | BM6: 60 | BN6: 61 | BO6: 62 | BP6: 63 | BQ6: 64
A7: Start of Period | F7: ='Input Sponsor'!D7 -> 2020-07-01 | G7: =DATE(G2,1,1) -> 2021-01-01 | H7: 2022-01-01 | I7: 2023-01-01 | J7: 2024-01-01 | K7: 2025-01-01 | L7: 2026-01-01 | M7: 2027-01-01 | N7: 2028-01-01 | O7: 2029-01-01 | P7: 2030-01-01 | Q7: 2031-01-01 | R7: 2032-01-01 | S7: 2033-01-01 | T7: 2034-01-01 | U7: 2035-01-01 | V7: 2036-01-01 | W7: 2037-01-01 | X7: 2038-01-01 | Y7: 2039-01-01 | Z7: 2040-01-01 | AA7: 2041-01-01 | AB7: 2042-01-01 | AC7: 2043-01-01 | AD7: 2044-01-01 | AE7: 2045-01-01 | AF7: 2046-01-01 | AG7: 2047-01-01 | AH7: 2048-01-01 | AI7: 2049-01-01 | AJ7: 2050-01-01 | AK7: 2051-01-01 | AL7: 2052-01-01 | AM7: =DATE(AM2,1,1) -> 2053-01-01 | AN7: 2054-01-01 | AO7: 2055-01-01 | AP7: 2056-01-01 | AQ7: 2057-01-01 | AR7: 2058-01-01 | AS7: 2059-01-01 | AT7: 2060-01-01 | AU7: 2061-01-01 | AV7: 2062-01-01 | AW7: 2063-01-01 | AX7: 2064-01-01 | AY7: 2065-01-01 | AZ7: 2066-01-01 | BA7: 2067-01-01 | BB7: 2068-01-01 | BC7: 2069-01-01 | BD7: 2070-01-01 | BE7: 2071-01-01 | BF7: 2072-01-01 | BG7: 2073-01-01 | BH7: 2074-01-01 | BI7: 2075-01-01 | BJ7: 2076-01-01 | BK7: 2077-01-01 | BL7: 2078-01-01 | BM7: 2079-01-01 | BN7: 2080-01-01 | BO7: 2081-01-01 | BP7: 2082-01-01 | BQ7: 2083-01-01
A8: End of Period | F8: =DATE(F2,12,31) -> 2020-12-31 | G8: 2021-12-31 | H8: 2022-12-31 | I8: 2023-12-31 | J8: 2024-12-31 | K8: 2025-12-31 | L8: 2026-12-31 | M8: 2027-12-31 | N8: 2028-12-31 | O8: 2029-12-31 | P8: 2030-12-31 | Q8: 2031-12-31 | R8: 2032-12-31 | S8: 2033-12-31 | T8: 2034-12-31 | U8: 2035-12-31 | V8: 2036-12-31 | W8: 2037-12-31 | X8: 2038-12-31 | Y8: 2039-12-31 | Z8: 2040-12-31 | AA8: 2041-12-31 | AB8: 2042-12-31 | AC8: 2043-12-31 | AD8: 2044-12-31 | AE8: 2045-12-31 | AF8: 2046-12-31 | AG8: 2047-12-31 | AH8: 2048-12-31 | AI8: 2049-12-31 | AJ8: 2050-12-31 | AK8: 2051-12-31 | AL8: =DATE(AL2,12,31) -> 2052-12-31 | AM8: 2053-12-31 | AN8: 2054-12-31 | AO8: 2055-12-31 | AP8: 2056-12-31 | AQ8: 2057-12-31 | AR8: 2058-12-31 | AS8: 2059-12-31 | AT8: 2060-12-31 | AU8: 2061-12-31 | AV8: 2062-12-31 | AW8: 2063-12-31 | AX8: 2064-12-31 | AY8: 2065-12-31 | AZ8: 2066-12-31 | BA8: 2067-12-31 | BB8: 2068-12-31 | BC8: 2069-12-31 | BD8: 2070-12-31 | BE8: 2071-12-31 | BF8: 2072-12-31 | BG8: 2073-12-31 | BH8: 2074-12-31 | BI8: 2075-12-31 | BJ8: 2076-12-31 | BK8: 2077-12-31 | BL8: 2078-12-31 | BM8: 2079-12-31 | BN8: 2080-12-31 | BO8: 2081-12-31 | BP8: 2082-12-31 | BQ8: 2083-12-31
A9: Single Counter | E9: 0 | F9: =E9+1 -> 1 | G9: 2 | H9: 3 | I9: 4 | J9: 5 | K9: 6 | L9: 7 | M9: 8 | N9: 9 | O9: 10 | P9: 11 | Q9: 12 | R9: 13 | S9: 14 | T9: 15 | U9: 16 | V9: 17 | W9: 18 | X9: 19 | Y9: 20 | Z9: 21 | AA9: 22 | AB9: 23 | AC9: 24 | AD9: 25 | AE9: 26 | AF9: 27 | AG9: 28 | AH9: 29 | AI9: 30 | AJ9: 31 | AK9: 32 | AL9: =AK9+1 -> 33 | AM9: 34 | AN9: 35 | AO9: 36 | AP9: 37 | AQ9: 38 | AR9: 39 | AS9: 40 | AT9: 41 | AU9: 42 | AV9: 43 | AW9: 44 | AX9: 45 | AY9: 46 | AZ9: 47 | BA9: 48 | BB9: 49 | BC9: 50 | BD9: 51 | BE9: 52 | BF9: 53 | BG9: 54 | BH9: 55 | BI9: 56 | BJ9: 57 | BK9: 58 | BL9: 59 | BM9: 60 | BN9: 61 | BO9: 62 | BP9: 63 | BQ9: 64
A10: Year Fraction | F10: =(F8-F7)/365 -> 0.501369863 | G10: =G6-F6 -> 1 | H10: 1 | I10: 1 | J10: 1 | K10: 1 | L10: 1 | M10: 1 | N10: 1 | O10: 1 | P10: 1 | Q10: 1 | R10: 1 | S10: 1 | T10: 1 | U10: 1 | V10: 1 | W10: 1 | X10: 1 | Y10: 1 | Z10: 1 | AA10: 1 | AB10: 1 | AC10: 1 | AD10: 1 | AE10: 1 | AF10: 1 | AG10: 1 | AH10: 1 | AI10: 1 | AJ10: 1 | AK10: 1 | AL10: 1 | AM10: =AM6-AL6 -> 1 | AN10: 1 | AO10: 1 | AP10: 1 | AQ10: 1 | AR10: 1 | AS10: 1 | AT10: 1 | AU10: 1 | AV10: 1 | AW10: 1 | AX10: 1 | AY10: 1 | AZ10: 1 | BA10: 1 | BB10: 1 | BC10: 1 | BD10: 1 | BE10: 1 | BF10: 1 | BG10: 1 | BH10: 1 | BI10: 1 | BJ10: 1 | BK10: 1 | BL10: 1 | BM10: 1 | BN10: 1 | BO10: 1 | BP10: 1 | BQ10: 1
A11: Yearly Counter for PV | F11: =F10 -> 0.501369863 | G11: =G10+F11 -> 1.501369863 | H11: =H10+G11 -> 2.501369863 | I11: 3.501369863 | J11: 4.501369863 | K11: 5.501369863 | L11: 6.501369863 | M11: 7.501369863 | N11: 8.501369863 | O11: 9.501369863 | P11: 10.50136986 | Q11: 11.50136986 | R11: 12.50136986 | S11: 13.50136986 | T11: 14.50136986 | U11: 15.50136986 | V11: 16.50136986 | W11: 17.50136986 | X11: 18.50136986 | Y11: 19.50136986 | Z11: 20.50136986 | AA11: 21.50136986 | AB11: 22.50136986 | AC11: 23.50136986 | AD11: 24.50136986 | AE11: 25.50136986 | AF11: 26.50136986 | AG11: 27.50136986 | AH11: 28.50136986 | AI11: 29.50136986 | AJ11: 30.50136986 | AK11: 31.50136986 | AL11: 32.50136986 | AM11: 33.50136986 | AN11: 34.50136986 | AO11: 35.50136986 | AP11: 36.50136986 | AQ11: 37.50136986 | AR11: 38.50136986 | AS11: 39.50136986 | AT11: 40.50136986 | AU11: 41.50136986 | AV11: 42.50136986 | AW11: 43.50136986 | AX11: 44.50136986 | AY11: 45.50136986 | AZ11: 46.50136986 | BA11: 47.50136986 | BB11: 48.50136986 | BC11: 49.50136986 | BD11: 50.50136986 | BE11: 51.50136986 | BF11: 52.50136986 | BG11: 53.50136986 | BH11: 54.50136986 | BI11: 55.50136986 | BJ11: 56.50136986 | BK11: 57.50136986 | BL11: 58.50136986 | BM11: 59.50136986 | BN11: 60.50136986 | BO11: 61.50136986 | BP11: 62.50136986 | BQ11: 63.50136986
A13: Standard Masks
A15: Signing/Fin. Close (=FC) | C15: ='Input Sponsor'!$D$7 -> 2020-07-01
A16: FC Mask | C16: =SUM(F16:BQ16) -> 1 | F16: =IF(AND(F$7<=$C15,F$8>=$C15),1,0) -> 1 | G16: 0 | H16: 0 | I16: 0 | J16: 0 | K16: 0 | L16: 0 | M16: 0 | N16: 0 | O16: 0 | P16: 0 | Q16: 0 | R16: 0 | S16: 0 | T16: 0 | U16: 0 | V16: 0 | W16: 0 | X16: 0 | Y16: 0 | Z16: 0 | AA16: 0 | AB16: 0 | AC16: 0 | AD16: 0 | AE16: 0 | AF16: 0 | AG16: 0 | AH16: 0 | AI16: 0 | AJ16: 0 | AK16: 0 | AL16: =IF(AND(AL$7<=$C15,AL$8>=$C15),1,0) -> 0 | AM16: 0 | AN16: 0 | AO16: 0 | AP16: 0 | AQ16: 0 | AR16: 0 | AS16: 0 | AT16: 0 | AU16: 0 | AV16: 0 | AW16: 0 | AX16: 0 | AY16: 0 | AZ16: 0 | BA16: 0 | BB16: 0 | BC16: 0 | BD16: 0 | BE16: 0 | BF16: 0 | BG16: 0 | BH16: 0 | BI16: 0 | BJ16: 0 | BK16: 0 | BL16: 0 | BM16: 0 | BN16: 0 | BO16: 0 | BP16: 0 | BQ16: 0
A17: Mask from FC | C17: =SUM(F17:BQ17) -> 64 | F17: =SUM($E16:F16) -> 1 | G17: =SUM($E16:G16) -> 1 | H17: =SUM($E16:H16) -> 1 | I17: =SUM($E16:I16) -> 1 | J17: =SUM($E16:J16) -> 1 | K17: =SUM($E16:K16) -> 1 | L17: =SUM($E16:L16) -> 1 | M17: =SUM($E16:M16) -> 1 | N17: =SUM($E16:N16) -> 1 | O17: =SUM($E16:O16) -> 1 | P17: =SUM($E16:P16) -> 1 | Q17: =SUM($E16:Q16) -> 1 | R17: =SUM($E16:R16) -> 1 | S17: =SUM($E16:S16) -> 1 | T17: =SUM($E16:T16) -> 1 | U17: =SUM($E16:U16) -> 1 | V17: =SUM($E16:V16) -> 1 | W17: =SUM($E16:W16) -> 1 | X17: =SUM($E16:X16) -> 1 | Y17: =SUM($E16:Y16) -> 1 | Z17: =SUM($E16:Z16) -> 1 | AA17: =SUM($E16:AA16) -> 1 | AB17: =SUM($E16:AB16) -> 1 | AC17: =SUM($E16:AC16) -> 1 | AD17: =SUM($E16:AD16) -> 1 | AE17: =SUM($E16:AE16) -> 1 | AF17: =SUM($E16:AF16) -> 1 | AG17: =SUM($E16:AG16) -> 1 | AH17: =SUM($E16:AH16) -> 1 | AI17: =SUM($E16:AI16) -> 1 | AJ17: =SUM($E16:AJ16) -> 1 | AK17: =SUM($E16:AK16) -> 1 | AL17: =SUM($E16:AL16) -> 1 | AM17: =SUM($E16:AM16) -> 1 | AN17: =SUM($E16:AN16) -> 1 | AO17: =SUM($E16:AO16) -> 1 | AP17: =SUM($E16:AP16) -> 1 | AQ17: =SUM($E16:AQ16) -> 1 | AR17: =SUM($E16:AR16) -> 1 | AS17: =SUM($E16:AS16) -> 1 | AT17: =SUM($E16:AT16) -> 1 | AU17: =SUM($E16:AU16) -> 1 | AV17: =SUM($E16:AV16) -> 1 | AW17: =SUM($E16:AW16) -> 1 | AX17: =SUM($E16:AX16) -> 1 | AY17: =SUM($E16:AY16) -> 1 | AZ17: =SUM($E16:AZ16) -> 1 | BA17: =SUM($E16:BA16) -> 1 | BB17: =SUM($E16:BB16) -> 1 | BC17: =SUM($E16:BC16) -> 1 | BD17: =SUM($E16:BD16) -> 1 | BE17: =SUM($E16:BE16) -> 1 | BF17: =SUM($E16:BF16) -> 1 | BG17: =SUM($E16:BG16) -> 1 | BH17: =SUM($E16:BH16) -> 1 | BI17: =SUM($E16:BI16) -> 1 | BJ17: =SUM($E16:BJ16) -> 1 | BK17: =SUM($E16:BK16) -> 1 | BL17: =SUM($E16:BL16) -> 1 | BM17: =SUM($E16:BM16) -> 1 | BN17: =SUM($E16:BN16) -> 1 | BO17: =SUM($E16:BO16) -> 1 | BP17: =SUM($E16:BP16) -> 1 | BQ17: =SUM($E16:BQ16) -> 1
A18: Counter from FC | C18: =SUM(F18:BQ18) -> 2080 | F18: =E18+F17 -> 1 | G18: 2 | H18: 3 | I18: 4 | J18: 5 | K18: 6 | L18: 7 | M18: 8 | N18: 9 | O18: 10 | P18: 11 | Q18: 12 | R18: 13 | S18: 14 | T18: 15 | U18: 16 | V18: 17 | W18: 18 | X18: 19 | Y18: 20 | Z18: 21 | AA18: 22 | AB18: 23 | AC18: 24 | AD18: 25 | AE18: 26 | AF18: 27 | AG18: 28 | AH18: 29 | AI18: 30 | AJ18: 31 | AK18: 32 | AL18: =AK18+AL17 -> 33 | AM18: 34 | AN18: 35 | AO18: 36 | AP18: 37 | AQ18: 38 | AR18: 39 | AS18: 40 | AT18: 41 | AU18: 42 | AV18: 43 | AW18: 44 | AX18: 45 | AY18: 46 | AZ18: 47 | BA18: 48 | BB18: 49 | BC18: 50 | BD18: 51 | BE18: 52 | BF18: 53 | BG18: 54 | BH18: 55 | BI18: 56 | BJ18: 57 | BK18: 58 | BL18: 59 | BM18: 60 | BN18: 61 | BO18: 62 | BP18: 63 | BQ18: 64
A20: Start of Construction | C20: ='Input Sponsor'!$D$7 -> 2020-07-01
A21: Start of Construction Mask | C21: =SUM(F21:BQ21) -> 1 | F21: =IF(AND(F$7<=$C20,F$8>=$C20),1,0) -> 1 | G21: 0 | H21: 0 | I21: 0 | J21: 0 | K21: 0 | L21: 0 | M21: 0 | N21: 0 | O21: 0 | P21: 0 | Q21: 0 | R21: 0 | S21: 0 | T21: 0 | U21: 0 | V21: 0 | W21: 0 | X21: 0 | Y21: 0 | Z21: 0 | AA21: 0 | AB21: 0 | AC21: 0 | AD21: 0 | AE21: 0 | AF21: 0 | AG21: 0 | AH21: 0 | AI21: 0 | AJ21: 0 | AK21: 0 | AL21: =IF(AND(AL$7<=$C20,AL$8>=$C20),1,0) -> 0 | AM21: 0 | AN21: 0 | AO21: 0 | AP21: 0 | AQ21: 0 | AR21: 0 | AS21: 0 | AT21: 0 | AU21: 0 | AV21: 0 | AW21: 0 | AX21: 0 | AY21: 0 | AZ21: 0 | BA21: 0 | BB21: 0 | BC21: 0 | BD21: 0 | BE21: 0 | BF21: 0 | BG21: 0 | BH21: 0 | BI21: 0 | BJ21: 0 | BK21: 0 | BL21: 0 | BM21: 0 | BN21: 0 | BO21: 0 | BP21: 0 | BQ21: 0
A22: Mask from Start of Construction | C22: =SUM(F22:BQ22) -> 64 | F22: =SUM($E21:F21) -> 1 | G22: =SUM($E21:G21) -> 1 | H22: =SUM($E21:H21) -> 1 | I22: =SUM($E21:I21) -> 1 | J22: =SUM($E21:J21) -> 1 | K22: =SUM($E21:K21) -> 1 | L22: =SUM($E21:L21) -> 1 | M22: =SUM($E21:M21) -> 1 | N22: =SUM($E21:N21) -> 1 | O22: =SUM($E21:O21) -> 1 | P22: =SUM($E21:P21) -> 1 | Q22: =SUM($E21:Q21) -> 1 | R22: =SUM($E21:R21) -> 1 | S22: =SUM($E21:S21) -> 1 | T22: =SUM($E21:T21) -> 1 | U22: =SUM($E21:U21) -> 1 | V22: =SUM($E21:V21) -> 1 | W22: =SUM($E21:W21) -> 1 | X22: =SUM($E21:X21) -> 1 | Y22: =SUM($E21:Y21) -> 1 | Z22: =SUM($E21:Z21) -> 1 | AA22: =SUM($E21:AA21) -> 1 | AB22: =SUM($E21:AB21) -> 1 | AC22: =SUM($E21:AC21) -> 1 | AD22: =SUM($E21:AD21) -> 1 | AE22: =SUM($E21:AE21) -> 1 | AF22: =SUM($E21:AF21) -> 1 | AG22: =SUM($E21:AG21) -> 1 | AH22: =SUM($E21:AH21) -> 1 | AI22: =SUM($E21:AI21) -> 1 | AJ22: =SUM($E21:AJ21) -> 1 | AK22: =SUM($E21:AK21) -> 1 | AL22: =SUM($E21:AL21) -> 1 | AM22: =SUM($E21:AM21) -> 1 | AN22: =SUM($E21:AN21) -> 1 | AO22: =SUM($E21:AO21) -> 1 | AP22: =SUM($E21:AP21) -> 1 | AQ22: =SUM($E21:AQ21) -> 1 | AR22: =SUM($E21:AR21) -> 1 | AS22: =SUM($E21:AS21) -> 1 | AT22: =SUM($E21:AT21) -> 1 | AU22: =SUM($E21:AU21) -> 1 | AV22: =SUM($E21:AV21) -> 1 | AW22: =SUM($E21:AW21) -> 1 | AX22: =SUM($E21:AX21) -> 1 | AY22: =SUM($E21:AY21) -> 1 | AZ22: =SUM($E21:AZ21) -> 1 | BA22: =SUM($E21:BA21) -> 1 | BB22: =SUM($E21:BB21) -> 1 | BC22: =SUM($E21:BC21) -> 1 | BD22: =SUM($E21:BD21) -> 1 | BE22: =SUM($E21:BE21) -> 1 | BF22: =SUM($E21:BF21) -> 1 | BG22: =SUM($E21:BG21) -> 1 | BH22: =SUM($E21:BH21) -> 1 | BI22: =SUM($E21:BI21) -> 1 | BJ22: =SUM($E21:BJ21) -> 1 | BK22: =SUM($E21:BK21) -> 1 | BL22: =SUM($E21:BL21) -> 1 | BM22: =SUM($E21:BM21) -> 1 | BN22: =SUM($E21:BN21) -> 1 | BO22: =SUM($E21:BO21) -> 1 | BP22: =SUM($E21:BP21) -> 1 | BQ22: =SUM($E21:BQ21) -> 1
A23: Counter from Start of Construction | C23: =SUM(F23:BQ23) -> 2080 | F23: =E23+F22 -> 1 | G23: 2 | H23: 3 | I23: 4 | J23: 5 | K23: 6 | L23: 7 | M23: 8 | N23: 9 | O23: 10 | P23: 11 | Q23: 12 | R23: 13 | S23: 14 | T23: 15 | U23: 16 | V23: 17 | W23: 18 | X23: 19 | Y23: 20 | Z23: 21 | AA23: 22 | AB23: 23 | AC23: 24 | AD23: 25 | AE23: 26 | AF23: 27 | AG23: 28 | AH23: 29 | AI23: 30 | AJ23: 31 | AK23: 32 | AL23: =AK23+AL22 -> 33 | AM23: 34 | AN23: 35 | AO23: 36 | AP23: 37 | AQ23: 38 | AR23: 39 | AS23: 40 | AT23: 41 | AU23: 42 | AV23: 43 | AW23: 44 | AX23: 45 | AY23: 46 | AZ23: 47 | BA23: 48 | BB23: 49 | BC23: 50 | BD23: 51 | BE23: 52 | BF23: 53 | BG23: 54 | BH23: 55 | BI23: 56 | BJ23: 57 | BK23: 58 | BL23: 59 | BM23: 60 | BN23: 61 | BO23: 62 | BP23: 63 | BQ23: 64
A25: Completion | C25: =EDATE('Input Sponsor'!$D$7,'Input Sponsor'!$D$8) -> 2024-09-01 | E25: =DATE(YEAR(C25),12,31) -> 2024-12-31
A26: Completion Mask | C26: =SUM(F26:BQ26) -> 1 | F26: =IF(AND(EDATE($C$25,12)>=F7,$C$25<=F7),1,0) -> 0 | G26: =IF(AND(EDATE($C$25,12)>=G7,$C$25<=G7),1,0) -> 0 | H26: 0 | I26: 0 | J26: 0 | K26: 1 | L26: 0 | M26: 0 | N26: 0 | O26: 0 | P26: 0 | Q26: 0 | R26: 0 | S26: 0 | T26: 0 | U26: 0 | V26: 0 | W26: 0 | X26: 0 | Y26: 0 | Z26: 0 | AA26: 0 | AB26: 0 | AC26: 0 | AD26: 0 | AE26: 0 | AF26: 0 | AG26: 0 | AH26: 0 | AI26: 0 | AJ26: 0 | AK26: 0 | AL26: 0 | AM26: 0 | AN26: 0 | AO26: 0 | AP26: 0 | AQ26: 0 | AR26: 0 | AS26: 0 | AT26: 0 | AU26: 0 | AV26: 0 | AW26: 0 | AX26: 0 | AY26: 0 | AZ26: 0 | BA26: 0 | BB26: 0 | BC26: 0 | BD26: 0 | BE26: 0 | BF26: 0 | BG26: 0 | BH26: 0 | BI26: 0 | BJ26: 0 | BK26: 0 | BL26: 0 | BM26: 0 | BN26: 0 | BO26: 0 | BP26: 0 | BQ26: 0
A27: Mask starting at Completion | C27: =SUM(F27:BQ27) -> 59 | F27: =SUM($E26:F26) -> 0 | G27: =SUM($E26:G26) -> 0 | H27: =SUM($E26:H26) -> 0 | I27: =SUM($E26:I26) -> 0 | J27: =SUM($E26:J26) -> 0 | K27: =SUM($E26:K26) -> 1 | L27: =SUM($E26:L26) -> 1 | M27: =SUM($E26:M26) -> 1 | N27: =SUM($E26:N26) -> 1 | O27: =SUM($E26:O26) -> 1 | P27: =SUM($E26:P26) -> 1 | Q27: =SUM($E26:Q26) -> 1 | R27: =SUM($E26:R26) -> 1 | S27: =SUM($E26:S26) -> 1 | T27: =SUM($E26:T26) -> 1 | U27: =SUM($E26:U26) -> 1 | V27: =SUM($E26:V26) -> 1 | W27: =SUM($E26:W26) -> 1 | X27: =SUM($E26:X26) -> 1 | Y27: =SUM($E26:Y26) -> 1 | Z27: =SUM($E26:Z26) -> 1 | AA27: =SUM($E26:AA26) -> 1 | AB27: =SUM($E26:AB26) -> 1 | AC27: =SUM($E26:AC26) -> 1 | AD27: =SUM($E26:AD26) -> 1 | AE27: =SUM($E26:AE26) -> 1 | AF27: =SUM($E26:AF26) -> 1 | AG27: =SUM($E26:AG26) -> 1 | AH27: =SUM($E26:AH26) -> 1 | AI27: =SUM($E26:AI26) -> 1 | AJ27: =SUM($E26:AJ26) -> 1 | AK27: =SUM($E26:AK26) -> 1 | AL27: =SUM($E26:AL26) -> 1 | AM27: =SUM($E26:AM26) -> 1 | AN27: =SUM($E26:AN26) -> 1 | AO27: =SUM($E26:AO26) -> 1 | AP27: =SUM($E26:AP26) -> 1 | AQ27: =SUM($E26:AQ26) -> 1 | AR27: =SUM($E26:AR26) -> 1 | AS27: =SUM($E26:AS26) -> 1 | AT27: =SUM($E26:AT26) -> 1 | AU27: =SUM($E26:AU26) -> 1 | AV27: =SUM($E26:AV26) -> 1 | AW27: =SUM($E26:AW26) -> 1 | AX27: =SUM($E26:AX26) -> 1 | AY27: =SUM($E26:AY26) -> 1 | AZ27: =SUM($E26:AZ26) -> 1 | BA27: =SUM($E26:BA26) -> 1 | BB27: =SUM($E26:BB26) -> 1 | BC27: =SUM($E26:BC26) -> 1 | BD27: =SUM($E26:BD26) -> 1 | BE27: =SUM($E26:BE26) -> 1 | BF27: =SUM($E26:BF26) -> 1 | BG27: =SUM($E26:BG26) -> 1 | BH27: =SUM($E26:BH26) -> 1 | BI27: =SUM($E26:BI26) -> 1 | BJ27: =SUM($E26:BJ26) -> 1 | BK27: =SUM($E26:BK26) -> 1 | BL27: =SUM($E26:BL26) -> 1 | BM27: =SUM($E26:BM26) -> 1 | BN27: =SUM($E26:BN26) -> 1 | BO27: =SUM($E26:BO26) -> 1 | BP27: =SUM($E26:BP26) -> 1 | BQ27: =SUM($E26:BQ26) -> 1
A28: Counter starting at Completion | C28: =SUM(F28:BQ28) -> 1770 | F28: =E28+F27 -> 0 | G28: 0 | H28: 0 | I28: 0 | J28: 0 | K28: 1 | L28: 2 | M28: 3 | N28: 4 | O28: 5 | P28: 6 | Q28: 7 | R28: 8 | S28: 9 | T28: 10 | U28: 11 | V28: 12 | W28: 13 | X28: 14 | Y28: 15 | Z28: 16 | AA28: 17 | AB28: 18 | AC28: 19 | AD28: 20 | AE28: 21 | AF28: 22 | AG28: 23 | AH28: 24 | AI28: 25 | AJ28: 26 | AK28: 27 | AL28: =AK28+AL27 -> 28 | AM28: 29 | AN28: 30 | AO28: 31 | AP28: 32 | AQ28: 33 | AR28: 34 | AS28: 35 | AT28: 36 | AU28: 37 | AV28: 38 | AW28: 39 | AX28: 40 | AY28: 41 | AZ28: 42 | BA28: 43 | BB28: 44 | BC28: 45 | BD28: 46 | BE28: 47 | BF28: 48 | BG28: 49 | BH28: 50 | BI28: 51 | BJ28: 52 | BK28: 53 | BL28: 54 | BM28: 55 | BN28: 56 | BO28: 57 | BP28: 58 | BQ28: 59
A30: End of Availability Period | C30: =C25 -> 2024-09-01
A31: End of Availability Mask | C31: =SUM(F31:BQ31) -> 1 | F31: =IF(AND(EDATE($C$30,12)>=F7,$C$30<=F7),1,0) -> 0 | G31: =IF(AND(EDATE($C$30,12)>=G7,$C$30<=G7),1,0) -> 0 | H31: 0 | I31: 0 | J31: 0 | K31: 1 | L31: 0 | M31: 0 | N31: 0 | O31: 0 | P31: 0 | Q31: 0 | R31: 0 | S31: 0 | T31: 0 | U31: 0 | V31: 0 | W31: 0 | X31: 0 | Y31: 0 | Z31: 0 | AA31: 0 | AB31: 0 | AC31: 0 | AD31: 0 | AE31: 0 | AF31: 0 | AG31: 0 | AH31: 0 | AI31: 0 | AJ31: 0 | AK31: 0 | AL31: 0 | AM31: 0 | AN31: 0 | AO31: 0 | AP31: 0 | AQ31: 0 | AR31: 0 | AS31: 0 | AT31: 0 | AU31: 0 | AV31: 0 | AW31: 0 | AX31: 0 | AY31: 0 | AZ31: 0 | BA31: 0 | BB31: 0 | BC31: 0 | BD31: 0 | BE31: 0 | BF31: 0 | BG31: 0 | BH31: 0 | BI31: 0 | BJ31: 0 | BK31: 0 | BL31: 0 | BM31: 0 | BN31: 0 | BO31: 0 | BP31: 0 | BQ31: 0
A32: Mask starting at End of Availability Period | C32: =SUM(F32:BQ32) -> 59 | F32: =SUM($E31:F31) -> 0 | G32: =SUM($E31:G31) -> 0 | H32: =SUM($E31:H31) -> 0 | I32: =SUM($E31:I31) -> 0 | J32: =SUM($E31:J31) -> 0 | K32: =SUM($E31:K31) -> 1 | L32: =SUM($E31:L31) -> 1 | M32: =SUM($E31:M31) -> 1 | N32: =SUM($E31:N31) -> 1 | O32: =SUM($E31:O31) -> 1 | P32: =SUM($E31:P31) -> 1 | Q32: =SUM($E31:Q31) -> 1 | R32: =SUM($E31:R31) -> 1 | S32: =SUM($E31:S31) -> 1 | T32: =SUM($E31:T31) -> 1 | U32: =SUM($E31:U31) -> 1 | V32: =SUM($E31:V31) -> 1 | W32: =SUM($E31:W31) -> 1 | X32: =SUM($E31:X31) -> 1 | Y32: =SUM($E31:Y31) -> 1 | Z32: =SUM($E31:Z31) -> 1 | AA32: =SUM($E31:AA31) -> 1 | AB32: =SUM($E31:AB31) -> 1 | AC32: =SUM($E31:AC31) -> 1 | AD32: =SUM($E31:AD31) -> 1 | AE32: =SUM($E31:AE31) -> 1 | AF32: =SUM($E31:AF31) -> 1 | AG32: =SUM($E31:AG31) -> 1 | AH32: =SUM($E31:AH31) -> 1 | AI32: =SUM($E31:AI31) -> 1 | AJ32: =SUM($E31:AJ31) -> 1 | AK32: =SUM($E31:AK31) -> 1 | AL32: =SUM($E31:AL31) -> 1 | AM32: =SUM($E31:AM31) -> 1 | AN32: =SUM($E31:AN31) -> 1 | AO32: =SUM($E31:AO31) -> 1 | AP32: =SUM($E31:AP31) -> 1 | AQ32: =SUM($E31:AQ31) -> 1 | AR32: =SUM($E31:AR31) -> 1 | AS32: =SUM($E31:AS31) -> 1 | AT32: =SUM($E31:AT31) -> 1 | AU32: =SUM($E31:AU31) -> 1 | AV32: =SUM($E31:AV31) -> 1 | AW32: =SUM($E31:AW31) -> 1 | AX32: =SUM($E31:AX31) -> 1 | AY32: =SUM($E31:AY31) -> 1 | AZ32: =SUM($E31:AZ31) -> 1 | BA32: =SUM($E31:BA31) -> 1 | BB32: =SUM($E31:BB31) -> 1 | BC32: =SUM($E31:BC31) -> 1 | BD32: =SUM($E31:BD31) -> 1 | BE32: =SUM($E31:BE31) -> 1 | BF32: =SUM($E31:BF31) -> 1 | BG32: =SUM($E31:BG31) -> 1 | BH32: =SUM($E31:BH31) -> 1 | BI32: =SUM($E31:BI31) -> 1 | BJ32: =SUM($E31:BJ31) -> 1 | BK32: =SUM($E31:BK31) -> 1 | BL32: =SUM($E31:BL31) -> 1 | BM32: =SUM($E31:BM31) -> 1 | BN32: =SUM($E31:BN31) -> 1 | BO32: =SUM($E31:BO31) -> 1 | BP32: =SUM($E31:BP31) -> 1 | BQ32: =SUM($E31:BQ31) -> 1
A33: Counter starting at End of Availability Period | C33: =SUM(F33:BQ33) -> 1770 | F33: =E33+F32 -> 0 | G33: 0 | H33: 0 | I33: 0 | J33: 0 | K33: 1 | L33: 2 | M33: 3 | N33: 4 | O33: 5 | P33: 6 | Q33: 7 | R33: 8 | S33: 9 | T33: 10 | U33: 11 | V33: 12 | W33: 13 | X33: 14 | Y33: 15 | Z33: 16 | AA33: 17 | AB33: 18 | AC33: 19 | AD33: 20 | AE33: 21 | AF33: 22 | AG33: 23 | AH33: 24 | AI33: 25 | AJ33: 26 | AK33: 27 | AL33: =AK33+AL32 -> 28 | AM33: 29 | AN33: 30 | AO33: 31 | AP33: 32 | AQ33: 33 | AR33: 34 | AS33: 35 | AT33: 36 | AU33: 37 | AV33: 38 | AW33: 39 | AX33: 40 | AY33: 41 | AZ33: 42 | BA33: 43 | BB33: 44 | BC33: 45 | BD33: 46 | BE33: 47 | BF33: 48 | BG33: 49 | BH33: 50 | BI33: 51 | BJ33: 52 | BK33: 53 | BL33: 54 | BM33: 55 | BN33: 56 | BO33: 57 | BP33: 58 | BQ33: 59
A34: Start of Amorization | C34: =EDATE(C30,12*'Input Sponsor'!C57) -> 2026-09-01 | F34: =IF(AND(EDATE($C$34,12)>=F7,$C$34<=F7),1,0) -> 0 | G34: =IF(AND(EDATE($C$34,12)>=G7,$C$34<=G7),1,0) -> 0 | H34: 0 | I34: 0 | J34: 0 | K34: 0 | L34: 0 | M34: 1 | N34: 0 | O34: 0 | P34: 0 | Q34: 0 | R34: 0 | S34: 0 | T34: 0 | U34: 0 | V34: 0 | W34: 0 | X34: 0 | Y34: 0 | Z34: 0 | AA34: 0 | AB34: 0 | AC34: 0 | AD34: 0 | AE34: 0 | AF34: 0 | AG34: 0 | AH34: 0 | AI34: 0 | AJ34: 0 | AK34: 0 | AL34: 0 | AM34: 0 | AN34: 0 | AO34: 0 | AP34: 0 | AQ34: 0 | AR34: 0 | AS34: 0 | AT34: 0 | AU34: 0 | AV34: 0 | AW34: 0 | AX34: 0 | AY34: 0 | AZ34: 0 | BA34: 0 | BB34: 0 | BC34: 0 | BD34: 0 | BE34: 0 | BF34: 0 | BG34: 0 | BH34: 0 | BI34: 0 | BJ34: 0 | BK34: 0 | BL34: 0 | BM34: 0 | BN34: 0 | BO34: 0 | BP34: 0 | BQ34: 0
A35: Mask starting at start of amortization | C35: =SUM(F35:BQ35) -> 57 | F35: =F34 -> 0 | G35: =G34+F35 -> 0 | H35: =H34+G35 -> 0 | I35: 0 | J35: 0 | K35: 0 | L35: 0 | M35: 1 | N35: 1 | O35: 1 | P35: 1 | Q35: 1 | R35: 1 | S35: 1 | T35: 1 | U35: 1 | V35: 1 | W35: 1 | X35: 1 | Y35: 1 | Z35: 1 | AA35: 1 | AB35: 1 | AC35: 1 | AD35: 1 | AE35: 1 | AF35: 1 | AG35: 1 | AH35: 1 | AI35: 1 | AJ35: 1 | AK35: 1 | AL35: 1 | AM35: 1 | AN35: 1 | AO35: 1 | AP35: 1 | AQ35: 1 | AR35: 1 | AS35: 1 | AT35: 1 | AU35: 1 | AV35: 1 | AW35: 1 | AX35: 1 | AY35: 1 | AZ35: 1 | BA35: 1 | BB35: 1 | BC35: 1 | BD35: 1 | BE35: 1 | BF35: 1 | BG35: 1 | BH35: 1 | BI35: 1 | BJ35: 1 | BK35: 1 | BL35: 1 | BM35: 1 | BN35: 1 | BO35: 1 | BP35: 1 | BQ35: 1
A37: Final Maturity | C37: =EDATE($C$30,'Input Sponsor'!$C$58*12) -> 2044-09-01
A38: =TEXT(A37&" Mask",) -> Final Maturity Mask | C38: =SUM(F38:BQ38) -> 1 | F38: =IF(AND(EDATE($C$37,12)>=F7,$C$37<=F7),1,0) -> 0 | G38: =IF(AND(EDATE($C$37,12)>=G7,$C$37<=G7),1,0) -> 0 | H38: 0 | I38: 0 | J38: 0 | K38: 0 | L38: 0 | M38: 0 | N38: 0 | O38: 0 | P38: 0 | Q38: 0 | R38: 0 | S38: 0 | T38: 0 | U38: 0 | V38: 0 | W38: 0 | X38: 0 | Y38: 0 | Z38: 0 | AA38: 0 | AB38: 0 | AC38: 0 | AD38: 0 | AE38: 1 | AF38: 0 | AG38: 0 | AH38: 0 | AI38: 0 | AJ38: 0 | AK38: 0 | AL38: 0 | AM38: 0 | AN38: 0 | AO38: 0 | AP38: 0 | AQ38: 0 | AR38: 0 | AS38: 0 | AT38: 0 | AU38: 0 | AV38: 0 | AW38: 0 | AX38: 0 | AY38: 0 | AZ38: 0 | BA38: 0 | BB38: 0 | BC38: 0 | BD38: 0 | BE38: 0 | BF38: 0 | BG38: 0 | BH38: 0 | BI38: 0 | BJ38: 0 | BK38: 0 | BL38: 0 | BM38: 0 | BN38: 0 | BO38: 0 | BP38: 0 | BQ38: 0
A39: =TEXT("Mask starting at "&A37,) -> Mask starting at Final Maturity | C39: =SUM(F39:BQ39) -> 39 | F39: =SUM($E38:F38) -> 0 | G39: =SUM($E38:G38) -> 0 | H39: =SUM($E38:H38) -> 0 | I39: =SUM($E38:I38) -> 0 | J39: =SUM($E38:J38) -> 0 | K39: =SUM($E38:K38) -> 0 | L39: =SUM($E38:L38) -> 0 | M39: =SUM($E38:M38) -> 0 | N39: =SUM($E38:N38) -> 0 | O39: =SUM($E38:O38) -> 0 | P39: =SUM($E38:P38) -> 0 | Q39: =SUM($E38:Q38) -> 0 | R39: =SUM($E38:R38) -> 0 | S39: =SUM($E38:S38) -> 0 | T39: =SUM($E38:T38) -> 0 | U39: =SUM($E38:U38) -> 0 | V39: =SUM($E38:V38) -> 0 | W39: =SUM($E38:W38) -> 0 | X39: =SUM($E38:X38) -> 0 | Y39: =SUM($E38:Y38) -> 0 | Z39: =SUM($E38:Z38) -> 0 | AA39: =SUM($E38:AA38) -> 0 | AB39: =SUM($E38:AB38) -> 0 | AC39: =SUM($E38:AC38) -> 0 | AD39: =SUM($E38:AD38) -> 0 | AE39: =SUM($E38:AE38) -> 1 | AF39: =SUM($E38:AF38) -> 1 | AG39: =SUM($E38:AG38) -> 1 | AH39: =SUM($E38:AH38) -> 1 | AI39: =SUM($E38:AI38) -> 1 | AJ39: =SUM($E38:AJ38) -> 1 | AK39: =SUM($E38:AK38) -> 1 | AL39: =SUM($E38:AL38) -> 1 | AM39: =SUM($E38:AM38) -> 1 | AN39: =SUM($E38:AN38) -> 1 | AO39: =SUM($E38:AO38) -> 1 | AP39: =SUM($E38:AP38) -> 1 | AQ39: =SUM($E38:AQ38) -> 1 | AR39: =SUM($E38:AR38) -> 1 | AS39: =SUM($E38:AS38) -> 1 | AT39: =SUM($E38:AT38) -> 1 | AU39: =SUM($E38:AU38) -> 1 | AV39: =SUM($E38:AV38) -> 1 | AW39: =SUM($E38:AW38) -> 1 | AX39: =SUM($E38:AX38) -> 1 | AY39: =SUM($E38:AY38) -> 1 | AZ39: =SUM($E38:AZ38) -> 1 | BA39: =SUM($E38:BA38) -> 1 | BB39: =SUM($E38:BB38) -> 1 | BC39: =SUM($E38:BC38) -> 1 | BD39: =SUM($E38:BD38) -> 1 | BE39: =SUM($E38:BE38) -> 1 | BF39: =SUM($E38:BF38) -> 1 | BG39: =SUM($E38:BG38) -> 1 | BH39: =SUM($E38:BH38) -> 1 | BI39: =SUM($E38:BI38) -> 1 | BJ39: =SUM($E38:BJ38) -> 1 | BK39: =SUM($E38:BK38) -> 1 | BL39: =SUM($E38:BL38) -> 1 | BM39: =SUM($E38:BM38) -> 1 | BN39: =SUM($E38:BN38) -> 1 | BO39: =SUM($E38:BO38) -> 1 | BP39: =SUM($E38:BP38) -> 1 | BQ39: =SUM($E38:BQ38) -> 1
A40: =TEXT("Counter starting at "&A37,) -> Counter starting at Final Maturity | C40: =SUM(F40:BQ40) -> 780 | F40: =E40+F39 -> 0 | G40: 0 | H40: 0 | I40: 0 | J40: 0 | K40: 0 | L40: 0 | M40: 0 | N40: 0 | O40: 0 | P40: 0 | Q40: 0 | R40: 0 | S40: 0 | T40: 0 | U40: 0 | V40: 0 | W40: 0 | X40: 0 | Y40: 0 | Z40: 0 | AA40: 0 | AB40: 0 | AC40: 0 | AD40: 0 | AE40: 1 | AF40: 2 | AG40: 3 | AH40: 4 | AI40: 5 | AJ40: 6 | AK40: 7 | AL40: =AK40+AL39 -> 8 | AM40: 9 | AN40: 10 | AO40: 11 | AP40: 12 | AQ40: 13 | AR40: 14 | AS40: 15 | AT40: 16 | AU40: 17 | AV40: 18 | AW40: 19 | AX40: 20 | AY40: 21 | AZ40: 22 | BA40: 23 | BB40: 24 | BC40: 25 | BD40: 26 | BE40: 27 | BF40: 28 | BG40: 29 | BH40: 30 | BI40: 31 | BJ40: 32 | BK40: 33 | BL40: 34 | BM40: 35 | BN40: 36 | BO40: 37 | BP40: 38 | BQ40: 39
A42: End of Project Life | C42: =EDATE($C$25,'Input Sponsor'!$C$9*12) -> 2064-09-01
A43: =TEXT(A42&" Mask",) -> End of Project Life Mask | C43: =SUM(F43:BQ43) -> 1 | F43: =IF(AND(EDATE($C$42,12)>=F7,$C$42<=F7),1,0) -> 0 | G43: =IF(AND(EDATE($C$42,12)>=G7,$C$42<=G7),1,0) -> 0 | H43: 0 | I43: 0 | J43: 0 | K43: 0 | L43: 0 | M43: 0 | N43: 0 | O43: 0 | P43: 0 | Q43: 0 | R43: 0 | S43: 0 | T43: 0 | U43: 0 | V43: 0 | W43: 0 | X43: 0 | Y43: 0 | Z43: 0 | AA43: 0 | AB43: 0 | AC43: 0 | AD43: 0 | AE43: 0 | AF43: 0 | AG43: 0 | AH43: 0 | AI43: 0 | AJ43: 0 | AK43: 0 | AL43: 0 | AM43: 0 | AN43: 0 | AO43: 0 | AP43: 0 | AQ43: 0 | AR43: 0 | AS43: 0 | AT43: 0 | AU43: 0 | AV43: 0 | AW43: 0 | AX43: 0 | AY43: 1 | AZ43: 0 | BA43: 0 | BB43: 0 | BC43: 0 | BD43: 0 | BE43: 0 | BF43: 0 | BG43: 0 | BH43: 0 | BI43: 0 | BJ43: 0 | BK43: 0 | BL43: 0 | BM43: 0 | BN43: 0 | BO43: 0 | BP43: 0 | BQ43: 0
A44: =TEXT("Mask starting at "&A42,) -> Mask starting at End of Project Life | C44: =SUM(F44:BQ44) -> 19 | F44: =SUM($E43:F43) -> 0 | G44: =SUM($E43:G43) -> 0 | H44: =SUM($E43:H43) -> 0 | I44: =SUM($E43:I43) -> 0 | J44: =SUM($E43:J43) -> 0 | K44: =SUM($E43:K43) -> 0 | L44: =SUM($E43:L43) -> 0 | M44: =SUM($E43:M43) -> 0 | N44: =SUM($E43:N43) -> 0 | O44: =SUM($E43:O43) -> 0 | P44: =SUM($E43:P43) -> 0 | Q44: =SUM($E43:Q43) -> 0 | R44: =SUM($E43:R43) -> 0 | S44: =SUM($E43:S43) -> 0 | T44: =SUM($E43:T43) -> 0 | U44: =SUM($E43:U43) -> 0 | V44: =SUM($E43:V43) -> 0 | W44: =SUM($E43:W43) -> 0 | X44: =SUM($E43:X43) -> 0 | Y44: =SUM($E43:Y43) -> 0 | Z44: =SUM($E43:Z43) -> 0 | AA44: =SUM($E43:AA43) -> 0 | AB44: =SUM($E43:AB43) -> 0 | AC44: =SUM($E43:AC43) -> 0 | AD44: =SUM($E43:AD43) -> 0 | AE44: =SUM($E43:AE43) -> 0 | AF44: =SUM($E43:AF43) -> 0 | AG44: =SUM($E43:AG43) -> 0 | AH44: =SUM($E43:AH43) -> 0 | AI44: =SUM($E43:AI43) -> 0 | AJ44: =SUM($E43:AJ43) -> 0 | AK44: =SUM($E43:AK43) -> 0 | AL44: =SUM($E43:AL43) -> 0 | AM44: =SUM($E43:AM43) -> 0 | AN44: =SUM($E43:AN43) -> 0 | AO44: =SUM($E43:AO43) -> 0 | AP44: =SUM($E43:AP43) -> 0 | AQ44: =SUM($E43:AQ43) -> 0 | AR44: =SUM($E43:AR43) -> 0 | AS44: =SUM($E43:AS43) -> 0 | AT44: =SUM($E43:AT43) -> 0 | AU44: =SUM($E43:AU43) -> 0 | AV44: =SUM($E43:AV43) -> 0 | AW44: =SUM($E43:AW43) -> 0 | AX44: =SUM($E43:AX43) -> 0 | AY44: =SUM($E43:AY43) -> 1 | AZ44: =SUM($E43:AZ43) -> 1 | BA44: =SUM($E43:BA43) -> 1 | BB44: =SUM($E43:BB43) -> 1 | BC44: =SUM($E43:BC43) -> 1 | BD44: =SUM($E43:BD43) -> 1 | BE44: =SUM($E43:BE43) -> 1 | BF44: =SUM($E43:BF43) -> 1 | BG44: =SUM($E43:BG43) -> 1 | BH44: =SUM($E43:BH43) -> 1 | BI44: =SUM($E43:BI43) -> 1 | BJ44: =SUM($E43:BJ43) -> 1 | BK44: =SUM($E43:BK43) -> 1 | BL44: =SUM($E43:BL43) -> 1 | BM44: =SUM($E43:BM43) -> 1 | BN44: =SUM($E43:BN43) -> 1 | BO44: =SUM($E43:BO43) -> 1 | BP44: =SUM($E43:BP43) -> 1 | BQ44: =SUM($E43:BQ43) -> 1
A45: =TEXT("Counter starting at "&A42,) -> Counter starting at End of Project Life | C45: =SUM(F45:BQ45) -> 190 | F45: =E45+F44 -> 0 | G45: 0 | H45: 0 | I45: 0 | J45: 0 | K45: 0 | L45: 0 | M45: 0 | N45: 0 | O45: 0 | P45: 0 | Q45: 0 | R45: 0 | S45: 0 | T45: 0 | U45: 0 | V45: 0 | W45: 0 | X45: 0 | Y45: 0 | Z45: 0 | AA45: 0 | AB45: 0 | AC45: 0 | AD45: 0 | AE45: 0 | AF45: 0 | AG45: 0 | AH45: 0 | AI45: 0 | AJ45: 0 | AK45: 0 | AL45: =AK45+AL44 -> 0 | AM45: 0 | AN45: 0 | AO45: 0 | AP45: 0 | AQ45: 0 | AR45: 0 | AS45: 0 | AT45: 0 | AU45: 0 | AV45: 0 | AW45: 0 | AX45: 0 | AY45: 1 | AZ45: 2 | BA45: 3 | BB45: 4 | BC45: 5 | BD45: 6 | BE45: 7 | BF45: 8 | BG45: 9 | BH45: 10 | BI45: 11 | BJ45: 12 | BK45: 13 | BL45: 14 | BM45: 15 | BN45: 16 | BO45: 17 | BP45: 18 | BQ45: 19
A47: Start of Inflation | C47: =C20 -> 2020-07-01
A48: =TEXT(A47&" Mask",) -> Start of Inflation Mask | C48: =SUM(F48:BQ48) -> 1 | F48: =IF(AND(F$7<=$C47,F$8>=$C47),1,0) -> 1 | G48: 0 | H48: 0 | I48: 0 | J48: 0 | K48: 0 | L48: 0 | M48: 0 | N48: 0 | O48: 0 | P48: 0 | Q48: 0 | R48: 0 | S48: 0 | T48: 0 | U48: 0 | V48: 0 | W48: 0 | X48: 0 | Y48: 0 | Z48: 0 | AA48: 0 | AB48: 0 | AC48: 0 | AD48: 0 | AE48: 0 | AF48: 0 | AG48: 0 | AH48: 0 | AI48: 0 | AJ48: 0 | AK48: 0 | AL48: =IF(AND(AL$7<=$C47,AL$8>=$C47),1,0) -> 0 | AM48: 0 | AN48: 0 | AO48: 0 | AP48: 0 | AQ48: 0 | AR48: 0 | AS48: 0 | AT48: 0 | AU48: 0 | AV48: 0 | AW48: 0 | AX48: 0 | AY48: 0 | AZ48: 0 | BA48: 0 | BB48: 0 | BC48: 0 | BD48: 0 | BE48: 0 | BF48: 0 | BG48: 0 | BH48: 0 | BI48: 0 | BJ48: 0 | BK48: 0 | BL48: 0 | BM48: 0 | BN48: 0 | BO48: 0 | BP48: 0 | BQ48: 0
A49: =TEXT("Mask starting at "&A47,) -> Mask starting at Start of Inflation | C49: =SUM(F49:BQ49) -> 64 | F49: =SUM($E48:F48) -> 1 | G49: =SUM($E48:G48) -> 1 | H49: =SUM($E48:H48) -> 1 | I49: =SUM($E48:I48) -> 1 | J49: =SUM($E48:J48) -> 1 | K49: =SUM($E48:K48) -> 1 | L49: =SUM($E48:L48) -> 1 | M49: =SUM($E48:M48) -> 1 | N49: =SUM($E48:N48) -> 1 | O49: =SUM($E48:O48) -> 1 | P49: =SUM($E48:P48) -> 1 | Q49: =SUM($E48:Q48) -> 1 | R49: =SUM($E48:R48) -> 1 | S49: =SUM($E48:S48) -> 1 | T49: =SUM($E48:T48) -> 1 | U49: =SUM($E48:U48) -> 1 | V49: =SUM($E48:V48) -> 1 | W49: =SUM($E48:W48) -> 1 | X49: =SUM($E48:X48) -> 1 | Y49: =SUM($E48:Y48) -> 1 | Z49: =SUM($E48:Z48) -> 1 | AA49: =SUM($E48:AA48) -> 1 | AB49: =SUM($E48:AB48) -> 1 | AC49: =SUM($E48:AC48) -> 1 | AD49: =SUM($E48:AD48) -> 1 | AE49: =SUM($E48:AE48) -> 1 | AF49: =SUM($E48:AF48) -> 1 | AG49: =SUM($E48:AG48) -> 1 | AH49: =SUM($E48:AH48) -> 1 | AI49: =SUM($E48:AI48) -> 1 | AJ49: =SUM($E48:AJ48) -> 1 | AK49: =SUM($E48:AK48) -> 1 | AL49: =SUM($E48:AL48) -> 1 | AM49: =SUM($E48:AM48) -> 1 | AN49: =SUM($E48:AN48) -> 1 | AO49: =SUM($E48:AO48) -> 1 | AP49: =SUM($E48:AP48) -> 1 | AQ49: =SUM($E48:AQ48) -> 1 | AR49: =SUM($E48:AR48) -> 1 | AS49: =SUM($E48:AS48) -> 1 | AT49: =SUM($E48:AT48) -> 1 | AU49: =SUM($E48:AU48) -> 1 | AV49: =SUM($E48:AV48) -> 1 | AW49: =SUM($E48:AW48) -> 1 | AX49: =SUM($E48:AX48) -> 1 | AY49: =SUM($E48:AY48) -> 1 | AZ49: =SUM($E48:AZ48) -> 1 | BA49: =SUM($E48:BA48) -> 1 | BB49: =SUM($E48:BB48) -> 1 | BC49: =SUM($E48:BC48) -> 1 | BD49: =SUM($E48:BD48) -> 1 | BE49: =SUM($E48:BE48) -> 1 | BF49: =SUM($E48:BF48) -> 1 | BG49: =SUM($E48:BG48) -> 1 | BH49: =SUM($E48:BH48) -> 1 | BI49: =SUM($E48:BI48) -> 1 | BJ49: =SUM($E48:BJ48) -> 1 | BK49: =SUM($E48:BK48) -> 1 | BL49: =SUM($E48:BL48) -> 1 | BM49: =SUM($E48:BM48) -> 1 | BN49: =SUM($E48:BN48) -> 1 | BO49: =SUM($E48:BO48) -> 1 | BP49: =SUM($E48:BP48) -> 1 | BQ49: =SUM($E48:BQ48) -> 1
A50: =TEXT("Counter starting at "&A47,) -> Counter starting at Start of Inflation | C50: =SUM(F50:BQ50) -> 2080 | F50: =E50+F49 -> 1 | G50: 2 | H50: 3 | I50: 4 | J50: 5 | K50: 6 | L50: 7 | M50: 8 | N50: 9 | O50: 10 | P50: 11 | Q50: 12 | R50: 13 | S50: 14 | T50: 15 | U50: 16 | V50: 17 | W50: 18 | X50: 19 | Y50: 20 | Z50: 21 | AA50: 22 | AB50: 23 | AC50: 24 | AD50: 25 | AE50: 26 | AF50: 27 | AG50: 28 | AH50: 29 | AI50: 30 | AJ50: 31 | AK50: 32 | AL50: =AK50+AL49 -> 33 | AM50: 34 | AN50: 35 | AO50: 36 | AP50: 37 | AQ50: 38 | AR50: 39 | AS50: 40 | AT50: 41 | AU50: 42 | AV50: 43 | AW50: 44 | AX50: 45 | AY50: 46 | AZ50: 47 | BA50: 48 | BB50: 49 | BC50: 50 | BD50: 51 | BE50: 52 | BF50: 53 | BG50: 54 | BH50: 55 | BI50: 56 | BJ50: 57 | BK50: 58 | BL50: 59 | BM50: 60 | BN50: 61 | BO50: 62 | BP50: 63 | BQ50: 64
A52: Debt Masks
A53: Loan Availability Mask | C53: =SUM(F53:BQ53) -> 5 | F53: =F17*(1-F32) -> 1 | G53: 1 | H53: 1 | I53: 1 | J53: 1 | K53: 0 | L53: 0 | M53: 0 | N53: 0 | O53: 0 | P53: 0 | Q53: 0 | R53: 0 | S53: 0 | T53: 0 | U53: 0 | V53: 0 | W53: 0 | X53: 0 | Y53: 0 | Z53: 0 | AA53: 0 | AB53: 0 | AC53: 0 | AD53: 0 | AE53: 0 | AF53: 0 | AG53: 0 | AH53: 0 | AI53: 0 | AJ53: 0 | AK53: 0 | AL53: =AL17*(1-AL32) -> 0 | AM53: 0 | AN53: 0 | AO53: 0 | AP53: 0 | AQ53: 0 | AR53: 0 | AS53: 0 | AT53: 0 | AU53: 0 | AV53: 0 | AW53: 0 | AX53: 0 | AY53: 0 | AZ53: 0 | BA53: 0 | BB53: 0 | BC53: 0 | BD53: 0 | BE53: 0 | BF53: 0 | BG53: 0 | BH53: 0 | BI53: 0 | BJ53: 0 | BK53: 0 | BL53: 0 | BM53: 0 | BN53: 0 | BO53: 0 | BP53: 0 | BQ53: 0
A54: Mask until End of Project Life | C54: =SUM(F54:BQ54) -> 45 | E54: 1 | F54: =1-F44 -> 1 | G54: 1 | H54: 1 | I54: 1 | J54: 1 | K54: 1 | L54: 1 | M54: 1 | N54: 1 | O54: 1 | P54: 1 | Q54: 1 | R54: 1 | S54: 1 | T54: 1 | U54: 1 | V54: 1 | W54: 1 | X54: 1 | Y54: 1 | Z54: 1 | AA54: 1 | AB54: 1 | AC54: 1 | AD54: 1 | AE54: 1 | AF54: 1 | AG54: 1 | AH54: 1 | AI54: 1 | AJ54: 1 | AK54: 1 | AL54: =1-AL44 -> 1 | AM54: 1 | AN54: 1 | AO54: 1 | AP54: 1 | AQ54: 1 | AR54: 1 | AS54: 1 | AT54: 1 | AU54: 1 | AV54: 1 | AW54: 1 | AX54: 1 | AY54: 0 | AZ54: 0 | BA54: 0 | BB54: 0 | BC54: 0 | BD54: 0 | BE54: 0 | BF54: 0 | BG54: 0 | BH54: 0 | BI54: 0 | BJ54: 0 | BK54: 0 | BL54: 0 | BM54: 0 | BN54: 0 | BO54: 0 | BP54: 0 | BQ54: 0
A55: Mask until End of Project Life - 1 year | C55: =SUM(F55:BQ55) -> 44 | F55: =G54 -> 1 | G55: =H54 -> 1 | H55: 1 | I55: 1 | J55: 1 | K55: 1 | L55: 1 | M55: 1 | N55: 1 | O55: 1 | P55: 1 | Q55: 1 | R55: 1 | S55: 1 | T55: 1 | U55: 1 | V55: 1 | W55: 1 | X55: 1 | Y55: 1 | Z55: 1 | AA55: 1 | AB55: 1 | AC55: 1 | AD55: 1 | AE55: 1 | AF55: 1 | AG55: 1 | AH55: 1 | AI55: 1 | AJ55: 1 | AK55: 1 | AL55: 1 | AM55: 1 | AN55: 1 | AO55: 1 | AP55: 1 | AQ55: 1 | AR55: 1 | AS55: 1 | AT55: 1 | AU55: 1 | AV55: 1 | AW55: 1 | AX55: 0 | AY55: 0 | AZ55: 0 | BA55: 0 | BB55: 0 | BC55: 0 | BD55: 0 | BE55: 0 | BF55: 0 | BG55: 0 | BH55: 0 | BI55: 0 | BJ55: 0 | BK55: 0 | BL55: 0 | BM55: 0 | BN55: 0 | BO55: 0 | BP55: 0 | BQ55: 0
A56: Mask of Project Life | C56: =SUM(F56:BQ56) -> 40 | F56: =F54*F27 -> 0 | G56: 0 | H56: 0 | I56: 0 | J56: 0 | K56: 1 | L56: 1 | M56: 1 | N56: 1 | O56: 1 | P56: 1 | Q56: 1 | R56: 1 | S56: 1 | T56: 1 | U56: 1 | V56: 1 | W56: 1 | X56: 1 | Y56: 1 | Z56: 1 | AA56: 1 | AB56: 1 | AC56: 1 | AD56: 1 | AE56: 1 | AF56: 1 | AG56: 1 | AH56: 1 | AI56: 1 | AJ56: 1 | AK56: 1 | AL56: =AL54*AL27 -> 1 | AM56: 1 | AN56: 1 | AO56: 1 | AP56: 1 | AQ56: 1 | AR56: 1 | AS56: 1 | AT56: 1 | AU56: 1 | AV56: 1 | AW56: 1 | AX56: 1 | AY56: 0 | AZ56: 0 | BA56: 0 | BB56: 0 | BC56: 0 | BD56: 0 | BE56: 0 | BF56: 0 | BG56: 0 | BH56: 0 | BI56: 0 | BJ56: 0 | BK56: 0 | BL56: 0 | BM56: 0 | BN56: 0 | BO56: 0 | BP56: 0 | BQ56: 0
A57: Counter of Project Life | F57: =F56+E57 -> 0 | G57: 0 | H57: 0 | I57: 0 | J57: 0 | K57: 1 | L57: 2 | M57: 3 | N57: 4 | O57: 5 | P57: 6 | Q57: 7 | R57: 8 | S57: 9 | T57: 10 | U57: 11 | V57: 12 | W57: 13 | X57: 14 | Y57: 15 | Z57: 16 | AA57: 17 | AB57: 18 | AC57: 19 | AD57: 20 | AE57: 21 | AF57: 22 | AG57: 23 | AH57: 24 | AI57: 25 | AJ57: 26 | AK57: 27 | AL57: =AL56+AK57 -> 28 | AM57: 29 | AN57: 30 | AO57: 31 | AP57: 32 | AQ57: 33 | AR57: 34 | AS57: 35 | AT57: 36 | AU57: 37 | AV57: 38 | AW57: 39 | AX57: 40 | AY57: 40 | AZ57: 40 | BA57: 40 | BB57: 40 | BC57: 40 | BD57: 40 | BE57: 40 | BF57: 40 | BG57: 40 | BH57: 40 | BI57: 40 | BJ57: 40 | BK57: 40 | BL57: 40 | BM57: 40 | BN57: 40 | BO57: 40 | BP57: 40 | BQ57: 40
A58: Mask of Debt Repayment | C58: =SUM(F58:BQ58) -> 18 | F58: =(1-F39)*F35 -> 0 | G58: 0 | H58: 0 | I58: 0 | J58: 0 | K58: 0 | L58: 0 | M58: 1 | N58: 1 | O58: 1 | P58: 1 | Q58: 1 | R58: 1 | S58: 1 | T58: 1 | U58: 1 | V58: 1 | W58: 1 | X58: 1 | Y58: 1 | Z58: 1 | AA58: 1 | AB58: 1 | AC58: 1 | AD58: 1 | AE58: 0 | AF58: 0 | AG58: 0 | AH58: 0 | AI58: 0 | AJ58: 0 | AK58: 0 | AL58: =(1-AL39)*AL35 -> 0 | AM58: 0 | AN58: 0 | AO58: 0 | AP58: 0 | AQ58: 0 | AR58: 0 | AS58: 0 | AT58: 0 | AU58: 0 | AV58: 0 | AW58: 0 | AX58: 0 | AY58: 0 | AZ58: 0 | BA58: 0 | BB58: 0 | BC58: 0 | BD58: 0 | BE58: 0 | BF58: 0 | BG58: 0 | BH58: 0 | BI58: 0 | BJ58: 0 | BK58: 0 | BL58: 0 | BM58: 0 | BN58: 0 | BO58: 0 | BP58: 0 | BQ58: 0
A60: Scheduled Maintenance Dates | F60: =IF(OR(F28/'Input Sponsor'!$C$43=1,F28/'Input Sponsor'!$C$43=2,F28/'Input Sponsor'!$C$43=3,F28/'Input Sponsor'!$C$43=4,F28/'Input Sponsor'!$C$43=5,F28/'Input Sponsor'!$C$43=6,F28/'Input Sponsor'!$C$43=7,F28/'Input Sponsor'!$C$43=8),1,0)*(F39-1) -> 0 | G60: =IF(OR(G28/'Input Sponsor'!$C$43=1,G28/'Input Sponsor'!$C$43=2,G28/'Input Sponsor'!$C$43=3,G28/'Input Sponsor'!$C$43=4,G28/'Input Sponsor'!$C$43=5,G28/'Input Sponsor'!$C$43=6,G28/'Input Sponsor'!$C$43=7,G28/'Input Sponsor'!$C$43=8),1,0)*G61 -> 0 | H60: =IF(OR(H28/'Input Sponsor'!$C$43=1,H28/'Input Sponsor'!$C$43=2,H28/'Input Sponsor'!$C$43=3,H28/'Input Sponsor'!$C$43=4,H28/'Input Sponsor'!$C$43=5,H28/'Input Sponsor'!$C$43=6,H28/'Input Sponsor'!$C$43=7,H28/'Input Sponsor'!$C$43=8),1,0)*H61 -> 0 | I60: =IF(OR(I28/'Input Sponsor'!$C$43=1,I28/'Input Sponsor'!$C$43=2,I28/'Input Sponsor'!$C$43=3,I28/'Input Sponsor'!$C$43=4,I28/'Input Sponsor'!$C$43=5,I28/'Input Sponsor'!$C$43=6,I28/'Input Sponsor'!$C$43=7,I28/'Input Sponsor'!$C$43=8),1,0)*I61 -> 0 | J60: =IF(OR(J28/'Input Sponsor'!$C$43=1,J28/'Input Sponsor'!$C$43=2,J28/'Input Sponsor'!$C$43=3,J28/'Input Sponsor'!$C$43=4,J28/'Input Sponsor'!$C$43=5,J28/'Input Sponsor'!$C$43=6,J28/'Input Sponsor'!$C$43=7,J28/'Input Sponsor'!$C$43=8),1,0)*J61 -> 0 | K60: =IF(OR(K28/'Input Sponsor'!$C$43=1,K28/'Input Sponsor'!$C$43=2,K28/'Input Sponsor'!$C$43=3,K28/'Input Sponsor'!$C$43=4,K28/'Input Sponsor'!$C$43=5,K28/'Input Sponsor'!$C$43=6,K28/'Input Sponsor'!$C$43=7,K28/'Input Sponsor'!$C$43=8),1,0)*K61 -> 0 | L60: =IF(OR(L28/'Input Sponsor'!$C$43=1,L28/'Input Sponsor'!$C$43=2,L28/'Input Sponsor'!$C$43=3,L28/'Input Sponsor'!$C$43=4,L28/'Input Sponsor'!$C$43=5,L28/'Input Sponsor'!$C$43=6,L28/'Input Sponsor'!$C$43=7,L28/'Input Sponsor'!$C$43=8),1,0)*L61 -> 0 | M60: =IF(OR(M28/'Input Sponsor'!$C$43=1,M28/'Input Sponsor'!$C$43=2,M28/'Input Sponsor'!$C$43=3,M28/'Input Sponsor'!$C$43=4,M28/'Input Sponsor'!$C$43=5,M28/'Input Sponsor'!$C$43=6,M28/'Input Sponsor'!$C$43=7,M28/'Input Sponsor'!$C$43=8),1,0)*M61 -> 0 | N60: =IF(OR(N28/'Input Sponsor'!$C$43=1,N28/'Input Sponsor'!$C$43=2,N28/'Input Sponsor'!$C$43=3,N28/'Input Sponsor'!$C$43=4,N28/'Input Sponsor'!$C$43=5,N28/'Input Sponsor'!$C$43=6,N28/'Input Sponsor'!$C$43=7,N28/'Input Sponsor'!$C$43=8),1,0)*N61 -> 0 | O60: =IF(OR(O28/'Input Sponsor'!$C$43=1,O28/'Input Sponsor'!$C$43=2,O28/'Input Sponsor'!$C$43=3,O28/'Input Sponsor'!$C$43=4,O28/'Input Sponsor'!$C$43=5,O28/'Input Sponsor'!$C$43=6,O28/'Input Sponsor'!$C$43=7,O28/'Input Sponsor'!$C$43=8),1,0)*O61 -> 0 | P60: =IF(OR(P28/'Input Sponsor'!$C$43=1,P28/'Input Sponsor'!$C$43=2,P28/'Input Sponsor'!$C$43=3,P28/'Input Sponsor'!$C$43=4,P28/'Input Sponsor'!$C$43=5,P28/'Input Sponsor'!$C$43=6,P28/'Input Sponsor'!$C$43=7,P28/'Input Sponsor'!$C$43=8),1,0)*P61 -> 0 | Q60: =IF(OR(Q28/'Input Sponsor'!$C$43=1,Q28/'Input Sponsor'!$C$43=2,Q28/'Input Sponsor'!$C$43=3,Q28/'Input Sponsor'!$C$43=4,Q28/'Input Sponsor'!$C$43=5,Q28/'Input Sponsor'!$C$43=6,Q28/'Input Sponsor'!$C$43=7,Q28/'Input Sponsor'!$C$43=8),1,0)*Q61 -> 1 | R60: =IF(OR(R28/'Input Sponsor'!$C$43=1,R28/'Input Sponsor'!$C$43=2,R28/'Input Sponsor'!$C$43=3,R28/'Input Sponsor'!$C$43=4,R28/'Input Sponsor'!$C$43=5,R28/'Input Sponsor'!$C$43=6,R28/'Input Sponsor'!$C$43=7,R28/'Input Sponsor'!$C$43=8),1,0)*R61 -> 0 | S60: =IF(OR(S28/'Input Sponsor'!$C$43=1,S28/'Input Sponsor'!$C$43=2,S28/'Input Sponsor'!$C$43=3,S28/'Input Sponsor'!$C$43=4,S28/'Input Sponsor'!$C$43=5,S28/'Input Sponsor'!$C$43=6,S28/'Input Sponsor'!$C$43=7,S28/'Input Sponsor'!$C$43=8),1,0)*S61 -> 0 | T60: =IF(OR(T28/'Input Sponsor'!$C$43=1,T28/'Input Sponsor'!$C$43=2,T28/'Input Sponsor'!$C$43=3,T28/'Input Sponsor'!$C$43=4,T28/'Input Sponsor'!$C$43=5,T28/'Input Sponsor'!$C$43=6,T28/'Input Sponsor'!$C$43=7,T28/'Input Sponsor'!$C$43=8),1,0)*T61 -> 0 | U60: =IF(OR(U28/'Input Sponsor'!$C$43=1,U28/'Input Sponsor'!$C$43=2,U28/'Input Sponsor'!$C$43=3,U28/'Input Sponsor'!$C$43=4,U28/'Input Sponsor'!$C$43=5,U28/'Input Sponsor'!$C$43=6,U28/'Input Sponsor'!$C$43=7,U28/'Input Sponsor'!$C$43=8),1,0)*U61 -> 0 | V60: =IF(OR(V28/'Input Sponsor'!$C$43=1,V28/'Input Sponsor'!$C$43=2,V28/'Input Sponsor'!$C$43=3,V28/'Input Sponsor'!$C$43=4,V28/'Input Sponsor'!$C$43=5,V28/'Input Sponsor'!$C$43=6,V28/'Input Sponsor'!$C$43=7,V28/'Input Sponsor'!$C$43=8),1,0)*V61 -> 0 | W60: =IF(OR(W28/'Input Sponsor'!$C$43=1,W28/'Input Sponsor'!$C$43=2,W28/'Input Sponsor'!$C$43=3,W28/'Input Sponsor'!$C$43=4,W28/'Input Sponsor'!$C$43=5,W28/'Input Sponsor'!$C$43=6,W28/'Input Sponsor'!$C$43=7,W28/'Input Sponsor'!$C$43=8),1,0)*W61 -> 0 | X60: =IF(OR(X28/'Input Sponsor'!$C$43=1,X28/'Input Sponsor'!$C$43=2,X28/'Input Sponsor'!$C$43=3,X28/'Input Sponsor'!$C$43=4,X28/'Input Sponsor'!$C$43=5,X28/'Input Sponsor'!$C$43=6,X28/'Input Sponsor'!$C$43=7,X28/'Input Sponsor'!$C$43=8),1,0)*X61 -> 1 | Y60: =IF(OR(Y28/'Input Sponsor'!$C$43=1,Y28/'Input Sponsor'!$C$43=2,Y28/'Input Sponsor'!$C$43=3,Y28/'Input Sponsor'!$C$43=4,Y28/'Input Sponsor'!$C$43=5,Y28/'Input Sponsor'!$C$43=6,Y28/'Input Sponsor'!$C$43=7,Y28/'Input Sponsor'!$C$43=8),1,0)*Y61 -> 0 | Z60: =IF(OR(Z28/'Input Sponsor'!$C$43=1,Z28/'Input Sponsor'!$C$43=2,Z28/'Input Sponsor'!$C$43=3,Z28/'Input Sponsor'!$C$43=4,Z28/'Input Sponsor'!$C$43=5,Z28/'Input Sponsor'!$C$43=6,Z28/'Input Sponsor'!$C$43=7,Z28/'Input Sponsor'!$C$43=8),1,0)*Z61 -> 0 | AA60: =IF(OR(AA28/'Input Sponsor'!$C$43=1,AA28/'Input Sponsor'!$C$43=2,AA28/'Input Sponsor'!$C$43=3,AA28/'Input Sponsor'!$C$43=4,AA28/'Input Sponsor'!$C$43=5,AA28/'Input Sponsor'!$C$43=6,AA28/'Input Sponsor'!$C$43=7,AA28/'Input Sponsor'!$C$43=8),1,0)*AA61 -> 0 | AB60: =IF(OR(AB28/'Input Sponsor'!$C$43=1,AB28/'Input Sponsor'!$C$43=2,AB28/'Input Sponsor'!$C$43=3,AB28/'Input Sponsor'!$C$43=4,AB28/'Input Sponsor'!$C$43=5,AB28/'Input Sponsor'!$C$43=6,AB28/'Input Sponsor'!$C$43=7,AB28/'Input Sponsor'!$C$43=8),1,0)*AB61 -> 0 | AC60: =IF(OR(AC28/'Input Sponsor'!$C$43=1,AC28/'Input Sponsor'!$C$43=2,AC28/'Input Sponsor'!$C$43=3,AC28/'Input Sponsor'!$C$43=4,AC28/'Input Sponsor'!$C$43=5,AC28/'Input Sponsor'!$C$43=6,AC28/'Input Sponsor'!$C$43=7,AC28/'Input Sponsor'!$C$43=8),1,0)*AC61 -> 0 | AD60: =IF(OR(AD28/'Input Sponsor'!$C$43=1,AD28/'Input Sponsor'!$C$43=2,AD28/'Input Sponsor'!$C$43=3,AD28/'Input Sponsor'!$C$43=4,AD28/'Input Sponsor'!$C$43=5,AD28/'Input Sponsor'!$C$43=6,AD28/'Input Sponsor'!$C$43=7,AD28/'Input Sponsor'!$C$43=8),1,0)*AD61 -> 0 | AE60: =IF(OR(AE28/'Input Sponsor'!$C$43=1,AE28/'Input Sponsor'!$C$43=2,AE28/'Input Sponsor'!$C$43=3,AE28/'Input Sponsor'!$C$43=4,AE28/'Input Sponsor'!$C$43=5,AE28/'Input Sponsor'!$C$43=6,AE28/'Input Sponsor'!$C$43=7,AE28/'Input Sponsor'!$C$43=8),1,0)*AE61 -> 1 | AF60: =IF(OR(AF28/'Input Sponsor'!$C$43=1,AF28/'Input Sponsor'!$C$43=2,AF28/'Input Sponsor'!$C$43=3,AF28/'Input Sponsor'!$C$43=4,AF28/'Input Sponsor'!$C$43=5,AF28/'Input Sponsor'!$C$43=6,AF28/'Input Sponsor'!$C$43=7,AF28/'Input Sponsor'!$C$43=8),1,0)*AF61 -> 0 | AG60: =IF(OR(AG28/'Input Sponsor'!$C$43=1,AG28/'Input Sponsor'!$C$43=2,AG28/'Input Sponsor'!$C$43=3,AG28/'Input Sponsor'!$C$43=4,AG28/'Input Sponsor'!$C$43=5,AG28/'Input Sponsor'!$C$43=6,AG28/'Input Sponsor'!$C$43=7,AG28/'Input Sponsor'!$C$43=8),1,0)*AG61 -> 0 | AH60: =IF(OR(AH28/'Input Sponsor'!$C$43=1,AH28/'Input Sponsor'!$C$43=2,AH28/'Input Sponsor'!$C$43=3,AH28/'Input Sponsor'!$C$43=4,AH28/'Input Sponsor'!$C$43=5,AH28/'Input Sponsor'!$C$43=6,AH28/'Input Sponsor'!$C$43=7,AH28/'Input Sponsor'!$C$43=8),1,0)*AH61 -> 0 | AI60: =IF(OR(AI28/'Input Sponsor'!$C$43=1,AI28/'Input Sponsor'!$C$43=2,AI28/'Input Sponsor'!$C$43=3,AI28/'Input Sponsor'!$C$43=4,AI28/'Input Sponsor'!$C$43=5,AI28/'Input Sponsor'!$C$43=6,AI28/'Input Sponsor'!$C$43=7,AI28/'Input Sponsor'!$C$43=8),1,0)*AI61 -> 0 | AJ60: =IF(OR(AJ28/'Input Sponsor'!$C$43=1,AJ28/'Input Sponsor'!$C$43=2,AJ28/'Input Sponsor'!$C$43=3,AJ28/'Input Sponsor'!$C$43=4,AJ28/'Input Sponsor'!$C$43=5,AJ28/'Input Sponsor'!$C$43=6,AJ28/'Input Sponsor'!$C$43=7,AJ28/'Input Sponsor'!$C$43=8),1,0)*AJ61 -> 0 | AK60: =IF(OR(AK28/'Input Sponsor'!$C$43=1,AK28/'Input Sponsor'!$C$43=2,AK28/'Input Sponsor'!$C$43=3,AK28/'Input Sponsor'!$C$43=4,AK28/'Input Sponsor'!$C$43=5,AK28/'Input Sponsor'!$C$43=6,AK28/'Input Sponsor'!$C$43=7,AK28/'Input Sponsor'!$C$43=8),1,0)*AK61 -> 0 | AL60: =IF(OR(AL28/'Input Sponsor'!$C$43=1,AL28/'Input Sponsor'!$C$43=2,AL28/'Input Sponsor'!$C$43=3,AL28/'Input Sponsor'!$C$43=4,AL28/'Input Sponsor'!$C$43=5,AL28/'Input Sponsor'!$C$43=6,AL28/'Input Sponsor'!$C$43=7,AL28/'Input Sponsor'!$C$43=8),1,0)*AL61 -> 1 | AM60: =IF(OR(AM28/'Input Sponsor'!$C$43=1,AM28/'Input Sponsor'!$C$43=2,AM28/'Input Sponsor'!$C$43=3,AM28/'Input Sponsor'!$C$43=4,AM28/'Input Sponsor'!$C$43=5,AM28/'Input Sponsor'!$C$43=6,AM28/'Input Sponsor'!$C$43=7,AM28/'Input Sponsor'!$C$43=8),1,0)*AM61 -> 0 | AN60: =IF(OR(AN28/'Input Sponsor'!$C$43=1,AN28/'Input Sponsor'!$C$43=2,AN28/'Input Sponsor'!$C$43=3,AN28/'Input Sponsor'!$C$43=4,AN28/'Input Sponsor'!$C$43=5,AN28/'Input Sponsor'!$C$43=6,AN28/'Input Sponsor'!$C$43=7,AN28/'Input Sponsor'!$C$43=8),1,0)*AN61 -> 0 | AO60: =IF(OR(AO28/'Input Sponsor'!$C$43=1,AO28/'Input Sponsor'!$C$43=2,AO28/'Input Sponsor'!$C$43=3,AO28/'Input Sponsor'!$C$43=4,AO28/'Input Sponsor'!$C$43=5,AO28/'Input Sponsor'!$C$43=6,AO28/'Input Sponsor'!$C$43=7,AO28/'Input Sponsor'!$C$43=8),1,0)*AO61 -> 0 | AP60: =IF(OR(AP28/'Input Sponsor'!$C$43=1,AP28/'Input Sponsor'!$C$43=2,AP28/'Input Sponsor'!$C$43=3,AP28/'Input Sponsor'!$C$43=4,AP28/'Input Sponsor'!$C$43=5,AP28/'Input Sponsor'!$C$43=6,AP28/'Input Sponsor'!$C$43=7,AP28/'Input Sponsor'!$C$43=8),1,0)*AP61 -> 0 | AQ60: =IF(OR(AQ28/'Input Sponsor'!$C$43=1,AQ28/'Input Sponsor'!$C$43=2,AQ28/'Input Sponsor'!$C$43=3,AQ28/'Input Sponsor'!$C$43=4,AQ28/'Input Sponsor'!$C$43=5,AQ28/'Input Sponsor'!$C$43=6,AQ28/'Input Sponsor'!$C$43=7,AQ28/'Input Sponsor'!$C$43=8),1,0)*AQ61 -> 0 | AR60: =IF(OR(AR28/'Input Sponsor'!$C$43=1,AR28/'Input Sponsor'!$C$43=2,AR28/'Input Sponsor'!$C$43=3,AR28/'Input Sponsor'!$C$43=4,AR28/'Input Sponsor'!$C$43=5,AR28/'Input Sponsor'!$C$43=6,AR28/'Input Sponsor'!$C$43=7,AR28/'Input Sponsor'!$C$43=8),1,0)*AR61 -> 0 | AS60: =IF(OR(AS28/'Input Sponsor'!$C$43=1,AS28/'Input Sponsor'!$C$43=2,AS28/'Input Sponsor'!$C$43=3,AS28/'Input Sponsor'!$C$43=4,AS28/'Input Sponsor'!$C$43=5,AS28/'Input Sponsor'!$C$43=6,AS28/'Input Sponsor'!$C$43=7,AS28/'Input Sponsor'!$C$43=8),1,0)*AS61 -> 0 | AT60: =IF(OR(AT28/'Input Sponsor'!$C$43=1,AT28/'Input Sponsor'!$C$43=2,AT28/'Input Sponsor'!$C$43=3,AT28/'Input Sponsor'!$C$43=4,AT28/'Input Sponsor'!$C$43=5,AT28/'Input Sponsor'!$C$43=6,AT28/'Input Sponsor'!$C$43=7,AT28/'Input Sponsor'!$C$43=8),1,0)*AT61 -> 0 | AU60: =IF(OR(AU28/'Input Sponsor'!$C$43=1,AU28/'Input Sponsor'!$C$43=2,AU28/'Input Sponsor'!$C$43=3,AU28/'Input Sponsor'!$C$43=4,AU28/'Input Sponsor'!$C$43=5,AU28/'Input Sponsor'!$C$43=6,AU28/'Input Sponsor'!$C$43=7,AU28/'Input Sponsor'!$C$43=8),1,0)*AU61 -> 0 | AV60: =IF(OR(AV28/'Input Sponsor'!$C$43=1,AV28/'Input Sponsor'!$C$43=2,AV28/'Input Sponsor'!$C$43=3,AV28/'Input Sponsor'!$C$43=4,AV28/'Input Sponsor'!$C$43=5,AV28/'Input Sponsor'!$C$43=6,AV28/'Input Sponsor'!$C$43=7,AV28/'Input Sponsor'!$C$43=8),1,0)*AV61 -> 0 | AW60: =IF(OR(AW28/'Input Sponsor'!$C$43=1,AW28/'Input Sponsor'!$C$43=2,AW28/'Input Sponsor'!$C$43=3,AW28/'Input Sponsor'!$C$43=4,AW28/'Input Sponsor'!$C$43=5,AW28/'Input Sponsor'!$C$43=6,AW28/'Input Sponsor'!$C$43=7,AW28/'Input Sponsor'!$C$43=8),1,0)*AW61 -> 0 | AX60: =IF(OR(AX28/'Input Sponsor'!$C$43=1,AX28/'Input Sponsor'!$C$43=2,AX28/'Input Sponsor'!$C$43=3,AX28/'Input Sponsor'!$C$43=4,AX28/'Input Sponsor'!$C$43=5,AX28/'Input Sponsor'!$C$43=6,AX28/'Input Sponsor'!$C$43=7,AX28/'Input Sponsor'!$C$43=8),1,0)*AX61 -> 0 | AY60: =IF(OR(AY28/'Input Sponsor'!$C$43=1,AY28/'Input Sponsor'!$C$43=2,AY28/'Input Sponsor'!$C$43=3,AY28/'Input Sponsor'!$C$43=4,AY28/'Input Sponsor'!$C$43=5,AY28/'Input Sponsor'!$C$43=6,AY28/'Input Sponsor'!$C$43=7,AY28/'Input Sponsor'!$C$43=8),1,0)*AY61 -> 0 | AZ60: =IF(OR(AZ28/'Input Sponsor'!$C$43=1,AZ28/'Input Sponsor'!$C$43=2,AZ28/'Input Sponsor'!$C$43=3,AZ28/'Input Sponsor'!$C$43=4,AZ28/'Input Sponsor'!$C$43=5,AZ28/'Input Sponsor'!$C$43=6,AZ28/'Input Sponsor'!$C$43=7,AZ28/'Input Sponsor'!$C$43=8),1,0)*AZ61 -> 0 | BA60: =IF(OR(BA28/'Input Sponsor'!$C$43=1,BA28/'Input Sponsor'!$C$43=2,BA28/'Input Sponsor'!$C$43=3,BA28/'Input Sponsor'!$C$43=4,BA28/'Input Sponsor'!$C$43=5,BA28/'Input Sponsor'!$C$43=6,BA28/'Input Sponsor'!$C$43=7,BA28/'Input Sponsor'!$C$43=8),1,0)*BA61 -> 0 | BB60: =IF(OR(BB28/'Input Sponsor'!$C$43=1,BB28/'Input Sponsor'!$C$43=2,BB28/'Input Sponsor'!$C$43=3,BB28/'Input Sponsor'!$C$43=4,BB28/'Input Sponsor'!$C$43=5,BB28/'Input Sponsor'!$C$43=6,BB28/'Input Sponsor'!$C$43=7,BB28/'Input Sponsor'!$C$43=8),1,0)*BB61 -> 0 | BC60: =IF(OR(BC28/'Input Sponsor'!$C$43=1,BC28/'Input Sponsor'!$C$43=2,BC28/'Input Sponsor'!$C$43=3,BC28/'Input Sponsor'!$C$43=4,BC28/'Input Sponsor'!$C$43=5,BC28/'Input Sponsor'!$C$43=6,BC28/'Input Sponsor'!$C$43=7,BC28/'Input Sponsor'!$C$43=8),1,0)*BC61 -> 0 | BD60: =IF(OR(BD28/'Input Sponsor'!$C$43=1,BD28/'Input Sponsor'!$C$43=2,BD28/'Input Sponsor'!$C$43=3,BD28/'Input Sponsor'!$C$43=4,BD28/'Input Sponsor'!$C$43=5,BD28/'Input Sponsor'!$C$43=6,BD28/'Input Sponsor'!$C$43=7,BD28/'Input Sponsor'!$C$43=8),1,0)*BD61 -> 0 | BE60: =IF(OR(BE28/'Input Sponsor'!$C$43=1,BE28/'Input Sponsor'!$C$43=2,BE28/'Input Sponsor'!$C$43=3,BE28/'Input Sponsor'!$C$43=4,BE28/'Input Sponsor'!$C$43=5,BE28/'Input Sponsor'!$C$43=6,BE28/'Input Sponsor'!$C$43=7,BE28/'Input Sponsor'!$C$43=8),1,0)*BE61 -> 0 | BF60: =IF(OR(BF28/'Input Sponsor'!$C$43=1,BF28/'Input Sponsor'!$C$43=2,BF28/'Input Sponsor'!$C$43=3,BF28/'Input Sponsor'!$C$43=4,BF28/'Input Sponsor'!$C$43=5,BF28/'Input Sponsor'!$C$43=6,BF28/'Input Sponsor'!$C$43=7,BF28/'Input Sponsor'!$C$43=8),1,0)*BF61 -> 0 | BG60: =IF(OR(BG28/'Input Sponsor'!$C$43=1,BG28/'Input Sponsor'!$C$43=2,BG28/'Input Sponsor'!$C$43=3,BG28/'Input Sponsor'!$C$43=4,BG28/'Input Sponsor'!$C$43=5,BG28/'Input Sponsor'!$C$43=6,BG28/'Input Sponsor'!$C$43=7,BG28/'Input Sponsor'!$C$43=8),1,0)*BG61 -> 0 | BH60: =IF(OR(BH28/'Input Sponsor'!$C$43=1,BH28/'Input Sponsor'!$C$43=2,BH28/'Input Sponsor'!$C$43=3,BH28/'Input Sponsor'!$C$43=4,BH28/'Input Sponsor'!$C$43=5,BH28/'Input Sponsor'!$C$43=6,BH28/'Input Sponsor'!$C$43=7,BH28/'Input Sponsor'!$C$43=8),1,0)*BH61 -> 0 | BI60: =IF(OR(BI28/'Input Sponsor'!$C$43=1,BI28/'Input Sponsor'!$C$43=2,BI28/'Input Sponsor'!$C$43=3,BI28/'Input Sponsor'!$C$43=4,BI28/'Input Sponsor'!$C$43=5,BI28/'Input Sponsor'!$C$43=6,BI28/'Input Sponsor'!$C$43=7,BI28/'Input Sponsor'!$C$43=8),1,0)*BI61 -> 0 | BJ60: =IF(OR(BJ28/'Input Sponsor'!$C$43=1,BJ28/'Input Sponsor'!$C$43=2,BJ28/'Input Sponsor'!$C$43=3,BJ28/'Input Sponsor'!$C$43=4,BJ28/'Input Sponsor'!$C$43=5,BJ28/'Input Sponsor'!$C$43=6,BJ28/'Input Sponsor'!$C$43=7,BJ28/'Input Sponsor'!$C$43=8),1,0)*BJ61 -> 0 | BK60: =IF(OR(BK28/'Input Sponsor'!$C$43=1,BK28/'Input Sponsor'!$C$43=2,BK28/'Input Sponsor'!$C$43=3,BK28/'Input Sponsor'!$C$43=4,BK28/'Input Sponsor'!$C$43=5,BK28/'Input Sponsor'!$C$43=6,BK28/'Input Sponsor'!$C$43=7,BK28/'Input Sponsor'!$C$43=8),1,0)*BK61 -> 0 | BL60: =IF(OR(BL28/'Input Sponsor'!$C$43=1,BL28/'Input Sponsor'!$C$43=2,BL28/'Input Sponsor'!$C$43=3,BL28/'Input Sponsor'!$C$43=4,BL28/'Input Sponsor'!$C$43=5,BL28/'Input Sponsor'!$C$43=6,BL28/'Input Sponsor'!$C$43=7,BL28/'Input Sponsor'!$C$43=8),1,0)*BL61 -> 0 | BM60: =IF(OR(BM28/'Input Sponsor'!$C$43=1,BM28/'Input Sponsor'!$C$43=2,BM28/'Input Sponsor'!$C$43=3,BM28/'Input Sponsor'!$C$43=4,BM28/'Input Sponsor'!$C$43=5,BM28/'Input Sponsor'!$C$43=6,BM28/'Input Sponsor'!$C$43=7,BM28/'Input Sponsor'!$C$43=8),1,0)*BM61 -> 0 | BN60: =IF(OR(BN28/'Input Sponsor'!$C$43=1,BN28/'Input Sponsor'!$C$43=2,BN28/'Input Sponsor'!$C$43=3,BN28/'Input Sponsor'!$C$43=4,BN28/'Input Sponsor'!$C$43=5,BN28/'Input Sponsor'!$C$43=6,BN28/'Input Sponsor'!$C$43=7,BN28/'Input Sponsor'!$C$43=8),1,0)*BN61 -> 0 | BO60: =IF(OR(BO28/'Input Sponsor'!$C$43=1,BO28/'Input Sponsor'!$C$43=2,BO28/'Input Sponsor'!$C$43=3,BO28/'Input Sponsor'!$C$43=4,BO28/'Input Sponsor'!$C$43=5,BO28/'Input Sponsor'!$C$43=6,BO28/'Input Sponsor'!$C$43=7,BO28/'Input Sponsor'!$C$43=8),1,0)*BO61 -> 0 | BP60: =IF(OR(BP28/'Input Sponsor'!$C$43=1,BP28/'Input Sponsor'!$C$43=2,BP28/'Input Sponsor'!$C$43=3,BP28/'Input Sponsor'!$C$43=4,BP28/'Input Sponsor'!$C$43=5,BP28/'Input Sponsor'!$C$43=6,BP28/'Input Sponsor'!$C$43=7,BP28/'Input Sponsor'!$C$43=8),1,0)*BP61 -> 0 | BQ60: =IF(OR(BQ28/'Input Sponsor'!$C$43=1,BQ28/'Input Sponsor'!$C$43=2,BQ28/'Input Sponsor'!$C$43=3,BQ28/'Input Sponsor'!$C$43=4,BQ28/'Input Sponsor'!$C$43=5,BQ28/'Input Sponsor'!$C$43=6,BQ28/'Input Sponsor'!$C$43=7,BQ28/'Input Sponsor'!$C$43=8),1,0)*BQ61 -> 0
A61: Last Renovation Date + Frequency =< Project End | F61: =IF(($C$56-F57-1)>'Input Sponsor'!$C$43,1,0) -> 1 | G61: =IF(($C$56-G57-1)>'Input Sponsor'!$C$43,1,0) -> 1 | H61: =IF(($C$56-H57-1)>'Input Sponsor'!$C$43,1,0) -> 1 | I61: =IF(($C$56-I57-1)>'Input Sponsor'!$C$43,1,0) -> 1 | J61: =IF(($C$56-J57-1)>'Input Sponsor'!$C$43,1,0) -> 1 | K61: =IF(($C$56-K57-1)>'Input Sponsor'!$C$43,1,0) -> 1 | L61: =IF(($C$56-L57-1)>'Input Sponsor'!$C$43,1,0) -> 1 | M61: =IF(($C$56-M57-1)>'Input Sponsor'!$C$43,1,0) -> 1 | N61: =IF(($C$56-N57-1)>'Input Sponsor'!$C$43,1,0) -> 1 | O61: =IF(($C$56-O57-1)>'Input Sponsor'!$C$43,1,0) -> 1 | P61: =IF(($C$56-P57-1)>'Input Sponsor'!$C$43,1,0) -> 1 | Q61: =IF(($C$56-Q57-1)>'Input Sponsor'!$C$43,1,0) -> 1 | R61: =IF(($C$56-R57-1)>'Input Sponsor'!$C$43,1,0) -> 1 | S61: =IF(($C$56-S57-1)>'Input Sponsor'!$C$43,1,0) -> 1 | T61: =IF(($C$56-T57-1)>'Input Sponsor'!$C$43,1,0) -> 1 | U61: =IF(($C$56-U57-1)>'Input Sponsor'!$C$43,1,0) -> 1 | V61: =IF(($C$56-V57-1)>'Input Sponsor'!$C$43,1,0) -> 1 | W61: =IF(($C$56-W57-1)>'Input Sponsor'!$C$43,1,0) -> 1 | X61: =IF(($C$56-X57-1)>'Input Sponsor'!$C$43,1,0) -> 1 | Y61: =IF(($C$56-Y57-1)>'Input Sponsor'!$C$43,1,0) -> 1 | Z61: =IF(($C$56-Z57-1)>'Input Sponsor'!$C$43,1,0) -> 1 | AA61: =IF(($C$56-AA57-1)>'Input Sponsor'!$C$43,1,0) -> 1 | AB61: =IF(($C$56-AB57-1)>'Input Sponsor'!$C$43,1,0) -> 1 | AC61: =IF(($C$56-AC57-1)>'Input Sponsor'!$C$43,1,0) -> 1 | AD61: =IF(($C$56-AD57-1)>'Input Sponsor'!$C$43,1,0) -> 1 | AE61: =IF(($C$56-AE57-1)>'Input Sponsor'!$C$43,1,0) -> 1 | AF61: =IF(($C$56-AF57-1)>'Input Sponsor'!$C$43,1,0) -> 1 | AG61: =IF(($C$56-AG57-1)>'Input Sponsor'!$C$43,1,0) -> 1 | AH61: =IF(($C$56-AH57-1)>'Input Sponsor'!$C$43,1,0) -> 1 | AI61: =IF(($C$56-AI57-1)>'Input Sponsor'!$C$43,1,0) -> 1 | AJ61: =IF(($C$56-AJ57-1)>'Input Sponsor'!$C$43,1,0) -> 1 | AK61: =IF(($C$56-AK57-1)>'Input Sponsor'!$C$43,1,0) -> 1 | AL61: =IF(($C$56-AL57-1)>'Input Sponsor'!$C$43,1,0) -> 1 | AM61: =IF(($C$56-AM57-1)>'Input Sponsor'!$C$43,1,0) -> 1 | AN61: =IF(($C$56-AN57-1)>'Input Sponsor'!$C$43,1,0) -> 1 | AO61: =IF(($C$56-AO57-1)>'Input Sponsor'!$C$43,1,0) -> 1 | AP61: =IF(($C$56-AP57-1)>'Input Sponsor'!$C$43,1,0) -> 0 | AQ61: =IF(($C$56-AQ57-1)>'Input Sponsor'!$C$43,1,0) -> 0 | AR61: =IF(($C$56-AR57-1)>'Input Sponsor'!$C$43,1,0) -> 0 | AS61: =IF(($C$56-AS57-1)>'Input Sponsor'!$C$43,1,0) -> 0 | AT61: =IF(($C$56-AT57-1)>'Input Sponsor'!$C$43,1,0) -> 0 | AU61: =IF(($C$56-AU57-1)>'Input Sponsor'!$C$43,1,0) -> 0 | AV61: =IF(($C$56-AV57-1)>'Input Sponsor'!$C$43,1,0) -> 0 | AW61: =IF(($C$56-AW57-1)>'Input Sponsor'!$C$43,1,0) -> 0 | AX61: =IF(($C$56-AX57-1)>'Input Sponsor'!$C$43,1,0) -> 0 | AY61: =IF(($C$56-AY57-1)>'Input Sponsor'!$C$43,1,0) -> 0 | AZ61: =IF(($C$56-AZ57-1)>'Input Sponsor'!$C$43,1,0) -> 0 | BA61: =IF(($C$56-BA57-1)>'Input Sponsor'!$C$43,1,0) -> 0 | BB61: =IF(($C$56-BB57-1)>'Input Sponsor'!$C$43,1,0) -> 0 | BC61: =IF(($C$56-BC57-1)>'Input Sponsor'!$C$43,1,0) -> 0 | BD61: =IF(($C$56-BD57-1)>'Input Sponsor'!$C$43,1,0) -> 0 | BE61: =IF(($C$56-BE57-1)>'Input Sponsor'!$C$43,1,0) -> 0 | BF61: =IF(($C$56-BF57-1)>'Input Sponsor'!$C$43,1,0) -> 0 | BG61: =IF(($C$56-BG57-1)>'Input Sponsor'!$C$43,1,0) -> 0 | BH61: =IF(($C$56-BH57-1)>'Input Sponsor'!$C$43,1,0) -> 0 | BI61: =IF(($C$56-BI57-1)>'Input Sponsor'!$C$43,1,0) -> 0 | BJ61: =IF(($C$56-BJ57-1)>'Input Sponsor'!$C$43,1,0) -> 0 | BK61: =IF(($C$56-BK57-1)>'Input Sponsor'!$C$43,1,0) -> 0 | BL61: =IF(($C$56-BL57-1)>'Input Sponsor'!$C$43,1,0) -> 0 | BM61: =IF(($C$56-BM57-1)>'Input Sponsor'!$C$43,1,0) -> 0 | BN61: =IF(($C$56-BN57-1)>'Input Sponsor'!$C$43,1,0) -> 0 | BO61: =IF(($C$56-BO57-1)>'Input Sponsor'!$C$43,1,0) -> 0 | BP61: =IF(($C$56-BP57-1)>'Input Sponsor'!$C$43,1,0) -> 0 | BQ61: =IF(($C$56-BQ57-1)>'Input Sponsor'!$C$43,1,0) -> 0
A63: Inflation Factors
A64: ='Input NT'!A6 -> CPI Inflation p.a. | F64: ='Input NT'!$C$6*F49 -> 0.05 | G64: ='Input NT'!$C$6*G49 -> 0.05 | H64: ='Input NT'!$C$6*H49 -> 0.05 | I64: ='Input NT'!$C$6*I49 -> 0.05 | J64: ='Input NT'!$C$6*J49 -> 0.05 | K64: ='Input NT'!$C$6*K49 -> 0.05 | L64: ='Input NT'!$C$6*L49 -> 0.05 | M64: ='Input NT'!$C$6*M49 -> 0.05 | N64: ='Input NT'!$C$6*N49 -> 0.05 | O64: ='Input NT'!$C$6*O49 -> 0.05 | P64: ='Input NT'!$C$6*P49 -> 0.05 | Q64: ='Input NT'!$C$6*Q49 -> 0.05 | R64: ='Input NT'!$C$6*R49 -> 0.05 | S64: ='Input NT'!$C$6*S49 -> 0.05 | T64: ='Input NT'!$C$6*T49 -> 0.05 | U64: ='Input NT'!$C$6*U49 -> 0.05 | V64: ='Input NT'!$C$6*V49 -> 0.05 | W64: ='Input NT'!$C$6*W49 -> 0.05 | X64: ='Input NT'!$C$6*X49 -> 0.05 | Y64: ='Input NT'!$C$6*Y49 -> 0.05 | Z64: ='Input NT'!$C$6*Z49 -> 0.05 | AA64: ='Input NT'!$C$6*AA49 -> 0.05 | AB64: ='Input NT'!$C$6*AB49 -> 0.05 | AC64: ='Input NT'!$C$6*AC49 -> 0.05 | AD64: ='Input NT'!$C$6*AD49 -> 0.05 | AE64: ='Input NT'!$C$6*AE49 -> 0.05 | AF64: ='Input NT'!$C$6*AF49 -> 0.05 | AG64: ='Input NT'!$C$6*AG49 -> 0.05 | AH64: ='Input NT'!$C$6*AH49 -> 0.05 | AI64: ='Input NT'!$C$6*AI49 -> 0.05 | AJ64: ='Input NT'!$C$6*AJ49 -> 0.05 | AK64: ='Input NT'!$C$6*AK49 -> 0.05 | AL64: ='Input NT'!$C$6*AL49 -> 0.05 | AM64: ='Input NT'!$C$6*AM49 -> 0.05 | AN64: ='Input NT'!$C$6*AN49 -> 0.05 | AO64: ='Input NT'!$C$6*AO49 -> 0.05 | AP64: ='Input NT'!$C$6*AP49 -> 0.05 | AQ64: ='Input NT'!$C$6*AQ49 -> 0.05 | AR64: ='Input NT'!$C$6*AR49 -> 0.05 | AS64: ='Input NT'!$C$6*AS49 -> 0.05 | AT64: ='Input NT'!$C$6*AT49 -> 0.05 | AU64: ='Input NT'!$C$6*AU49 -> 0.05 | AV64: ='Input NT'!$C$6*AV49 -> 0.05 | AW64: ='Input NT'!$C$6*AW49 -> 0.05 | AX64: ='Input NT'!$C$6*AX49 -> 0.05 | AY64: ='Input NT'!$C$6*AY49 -> 0.05 | AZ64: ='Input NT'!$C$6*AZ49 -> 0.05 | BA64: ='Input NT'!$C$6*BA49 -> 0.05 | BB64: ='Input NT'!$C$6*BB49 -> 0.05 | BC64: ='Input NT'!$C$6*BC49 -> 0.05 | BD64: ='Input NT'!$C$6*BD49 -> 0.05 | BE64: ='Input NT'!$C$6*BE49 -> 0.05 | BF64: ='Input NT'!$C$6*BF49 -> 0.05 | BG64: ='Input NT'!$C$6*BG49 -> 0.05 | BH64: ='Input NT'!$C$6*BH49 -> 0.05 | BI64: ='Input NT'!$C$6*BI49 -> 0.05 | BJ64: ='Input NT'!$C$6*BJ49 -> 0.05 | BK64: ='Input NT'!$C$6*BK49 -> 0.05 | BL64: ='Input NT'!$C$6*BL49 -> 0.05 | BM64: ='Input NT'!$C$6*BM49 -> 0.05 | BN64: ='Input NT'!$C$6*BN49 -> 0.05 | BO64: ='Input NT'!$C$6*BO49 -> 0.05 | BP64: ='Input NT'!$C$6*BP49 -> 0.05 | BQ64: ='Input NT'!$C$6*BQ49 -> 0.05
A65: Inflation until Mid-Period | E65: =(1+F64)^(('Input Sponsor'!D7-'Input Sponsor'!D6)/365) -> 1.407476652 | F65: =(E66+F66)/2 -> 1.425118311 | G65: =(F66+G66)/2 -> 1.47882897 | H65: =(G66+H66)/2 -> 1.552770418 | I65: 1.630408939 | J65: 1.711929386 | K65: 1.797525856 | L65: 1.887402148 | M65: 1.981772256 | N65: 2.080860869 | O65: 2.184903912 | P65: 2.294149108 | Q65: 2.408856563 | R65: 2.529299391 | S65: 2.655764361 | T65: 2.788552579 | U65: 2.927980208 | V65: 3.074379218 | W65: 3.228098179 | X65: 3.389503088 | Y65: 3.558978243 | Z65: 3.736927155 | AA65: 3.923773512 | AB65: 4.119962188 | AC65: 4.325960297 | AD65: 4.542258312 | AE65: 4.769371228 | AF65: 5.007839789 | AG65: 5.258231779 | AH65: 5.521143368 | AI65: 5.797200536 | AJ65: 6.087060563 | AK65: 6.391413591 | AL65: 6.710984271 | AM65: 7.046533484 | AN65: 7.398860158 | AO65: 7.768803166 | AP65: 8.157243324 | AQ65: 8.565105491 | AR65: 8.993360765 | AS65: 9.443028803 | AT65: 9.915180244 | AU65: 10.41093926 | AV65: 10.93148622 | AW65: 11.47806053 | AX65: 12.05196356 | AY65: 12.65456173 | AZ65: 13.28728982 | BA65: 13.95165431 | BB65: 14.64923703 | BC65: 15.38169888 | BD65: 16.15078382 | BE65: 16.95832301 | BF65: 17.80623916 | BG65: 18.69655112 | BH65: 19.63137868 | BI65: 20.61294761 | BJ65: 21.64359499 | BK65: 22.72577474 | BL65: 23.86206348 | BM65: 25.05516665 | BN65: 26.30792499 | BO65: 27.62332124 | BP65: 29.0044873 | BQ65: 30.45471166
A66: Inflation until End of Period | E66: =E65 -> 1.407476652 | F66: =E66*(1+F64*F10) -> 1.442759971 | G66: =F66*(1+G64) -> 1.514897969 | H66: =G66*(1+H64) -> 1.590642868 | I66: 1.670175011 | J66: 1.753683762 | K66: 1.84136795 | L66: 1.933436347 | M66: 2.030108165 | N66: 2.131613573 | O66: 2.238194251 | P66: 2.350103964 | Q66: 2.467609162 | R66: 2.59098962 | S66: 2.720539101 | T66: 2.856566056 | U66: 2.999394359 | V66: 3.149364077 | W66: 3.306832281 | X66: 3.472173895 | Y66: 3.64578259 | Z66: 3.828071719 | AA66: 4.019475305 | AB66: 4.220449071 | AC66: 4.431471524 | AD66: 4.6530451 | AE66: 4.885697355 | AF66: 5.129982223 | AG66: 5.386481334 | AH66: 5.655805401 | AI66: 5.938595671 | AJ66: 6.235525455 | AK66: 6.547301727 | AL66: 6.874666814 | AM66: 7.218400154 | AN66: 7.579320162 | AO66: 7.95828617 | AP66: 8.356200479 | AQ66: 8.774010503 | AR66: 9.212711028 | AS66: 9.673346579 | AT66: 10.15701391 | AU66: 10.6648646 | AV66: 11.19810783 | AW66: 11.75801323 | AX66: 12.34591389 | AY66: 12.96320958 | AZ66: 13.61137006 | BA66: 14.29193856 | BB66: 15.00653549 | BC66: 15.75686227 | BD66: 16.54470538 | BE66: 17.37194065 | BF66: 18.24053768 | BG66: 19.15256456 | BH66: 20.11019279 | BI66: 21.11570243 | BJ66: 22.17148755 | BK66: 23.28006193 | BL66: 24.44406503 | BM66: 25.66626828 | BN66: 26.94958169 | BO66: 28.29706078 | BP66: 29.71191382 | BQ66: 31.19750951
A68: ='Input NT'!A7 -> Capex Inflation p.a. | F68: ='Input NT'!$C$7*F49 -> 0.1 | G68: ='Input NT'!$C$7*G49 -> 0.1 | H68: ='Input NT'!$C$7*H49 -> 0.1 | I68: ='Input NT'!$C$7*I49 -> 0.1 | J68: ='Input NT'!$C$7*J49 -> 0.1 | K68: ='Input NT'!$C$7*K49 -> 0.1 | L68: ='Input NT'!$C$7*L49 -> 0.1 | M68: ='Input NT'!$C$7*M49 -> 0.1 | N68: ='Input NT'!$C$7*N49 -> 0.1 | O68: ='Input NT'!$C$7*O49 -> 0.1 | P68: ='Input NT'!$C$7*P49 -> 0.1 | Q68: ='Input NT'!$C$7*Q49 -> 0.1 | R68: ='Input NT'!$C$7*R49 -> 0.1 | S68: ='Input NT'!$C$7*S49 -> 0.1 | T68: ='Input NT'!$C$7*T49 -> 0.1 | U68: ='Input NT'!$C$7*U49 -> 0.1 | V68: ='Input NT'!$C$7*V49 -> 0.1 | W68: ='Input NT'!$C$7*W49 -> 0.1 | X68: ='Input NT'!$C$7*X49 -> 0.1 | Y68: ='Input NT'!$C$7*Y49 -> 0.1 | Z68: ='Input NT'!$C$7*Z49 -> 0.1 | AA68: ='Input NT'!$C$7*AA49 -> 0.1 | AB68: ='Input NT'!$C$7*AB49 -> 0.1 | AC68: ='Input NT'!$C$7*AC49 -> 0.1 | AD68: ='Input NT'!$C$7*AD49 -> 0.1 | AE68: ='Input NT'!$C$7*AE49 -> 0.1 | AF68: ='Input NT'!$C$7*AF49 -> 0.1 | AG68: ='Input NT'!$C$7*AG49 -> 0.1 | AH68: ='Input NT'!$C$7*AH49 -> 0.1 | AI68: ='Input NT'!$C$7*AI49 -> 0.1 | AJ68: ='Input NT'!$C$7*AJ49 -> 0.1 | AK68: ='Input NT'!$C$7*AK49 -> 0.1 | AL68: ='Input NT'!$C$7*AL49 -> 0.1 | AM68: ='Input NT'!$C$7*AM49 -> 0.1 | AN68: ='Input NT'!$C$7*AN49 -> 0.1 | AO68: ='Input NT'!$C$7*AO49 -> 0.1 | AP68: ='Input NT'!$C$7*AP49 -> 0.1 | AQ68: ='Input NT'!$C$7*AQ49 -> 0.1 | AR68: ='Input NT'!$C$7*AR49 -> 0.1 | AS68: ='Input NT'!$C$7*AS49 -> 0.1 | AT68: ='Input NT'!$C$7*AT49 -> 0.1 | AU68: ='Input NT'!$C$7*AU49 -> 0.1 | AV68: ='Input NT'!$C$7*AV49 -> 0.1 | AW68: ='Input NT'!$C$7*AW49 -> 0.1 | AX68: ='Input NT'!$C$7*AX49 -> 0.1 | AY68: ='Input NT'!$C$7*AY49 -> 0.1 | AZ68: ='Input NT'!$C$7*AZ49 -> 0.1 | BA68: ='Input NT'!$C$7*BA49 -> 0.1 | BB68: ='Input NT'!$C$7*BB49 -> 0.1 | BC68: ='Input NT'!$C$7*BC49 -> 0.1 | BD68: ='Input NT'!$C$7*BD49 -> 0.1 | BE68: ='Input NT'!$C$7*BE49 -> 0.1 | BF68: ='Input NT'!$C$7*BF49 -> 0.1 | BG68: ='Input NT'!$C$7*BG49 -> 0.1 | BH68: ='Input NT'!$C$7*BH49 -> 0.1 | BI68: ='Input NT'!$C$7*BI49 -> 0.1 | BJ68: ='Input NT'!$C$7*BJ49 -> 0.1 | BK68: ='Input NT'!$C$7*BK49 -> 0.1 | BL68: ='Input NT'!$C$7*BL49 -> 0.1 | BM68: ='Input NT'!$C$7*BM49 -> 0.1 | BN68: ='Input NT'!$C$7*BN49 -> 0.1 | BO68: ='Input NT'!$C$7*BO49 -> 0.1 | BP68: ='Input NT'!$C$7*BP49 -> 0.1 | BQ68: ='Input NT'!$C$7*BQ49 -> 0.1
A69: Inflation until End of Period | E69: =(1+F68)^(('Input Sponsor'!D7-'Input Sponsor'!D6)/365) -> 1.949735079 | F69: =E69*(1+F68*F10) -> 2.047488919 | G69: 2.252237811 | H69: 2.477461593 | I69: 2.725207752 | J69: 2.997728527 | K69: 3.29750138 | L69: 3.627251518 | M69: 3.989976669 | N69: 4.388974336 | O69: 4.82787177 | P69: 5.310658947 | Q69: 5.841724842 | R69: 6.425897326 | S69: 7.068487058 | T69: 7.775335764 | U69: 8.552869341 | V69: 9.408156275 | W69: 10.3489719 | X69: 11.38386909 | Y69: 12.522256 | Z69: 13.7744816 | AA69: 15.15192976 | AB69: 16.66712274 | AC69: 18.33383501 | AD69: 20.16721851 | AE69: 22.18394036 | AF69: 24.4023344 | AG69: 26.84256784 | AH69: 29.52682463 | AI69: 32.47950709 | AJ69: 35.7274578 | AK69: 39.30020358 | AL69: =AK69*(1+AL68*AL10) -> 43.23022393 | AM69: 47.55324633 | AN69: 52.30857096 | AO69: 57.53942806 | AP69: 63.29337086 | AQ69: 69.62270795 | AR69: 76.58497874 | AS69: 84.24347662 | AT69: 92.66782428 | AU69: 101.9346067 | AV69: 112.1280674 | AW69: 123.3408741 | AX69: 135.6749615 | AY69: 149.2424577 | AZ69: 164.1667034 | BA69: 180.5833738 | BB69: 198.6417112 | BC69: 218.5058823 | BD69: 240.3564705 | BE69: 264.3921176 | BF69: 290.8313293 | BG69: 319.9144623 | BH69: 351.9059085 | BI69: 387.0964993 | BJ69: 425.8061493 | BK69: 468.3867642 | BL69: 515.2254406 | BM69: 566.7479847 | BN69: 623.4227831 | BO69: 685.7650615 | BP69: 754.3415676 | BQ69: 829.7757244
A70: No inflation | F70: =E71 -> 1.949735079 | G70: =F70 -> 1.949735079 | H70: =G70 -> 1.949735079 | I70: 1.949735079 | J70: 1.949735079 | K70: 1.949735079 | L70: 1.949735079 | M70: 1.949735079 | N70: 1.949735079 | O70: 1.949735079 | P70: 1.949735079 | Q70: 1.949735079 | R70: 1.949735079 | S70: 1.949735079 | T70: 1.949735079 | U70: 1.949735079 | V70: 1.949735079 | W70: 1.949735079 | X70: 1.949735079 | Y70: 1.949735079 | Z70: 1.949735079 | AA70: 1.949735079 | AB70: 1.949735079 | AC70: 1.949735079 | AD70: 1.949735079 | AE70: 1.949735079 | AF70: 1.949735079 | AG70: 1.949735079 | AH70: 1.949735079 | AI70: 1.949735079 | AJ70: 1.949735079 | AK70: 1.949735079 | AL70: 1.949735079 | AM70: 1.949735079 | AN70: 1.949735079 | AO70: 1.949735079 | AP70: 1.949735079 | AQ70: 1.949735079 | AR70: 1.949735079 | AS70: 1.949735079 | AT70: 1.949735079 | AU70: 1.949735079 | AV70: 1.949735079 | AW70: 1.949735079 | AX70: 1.949735079 | AY70: 1.949735079 | AZ70: 1.949735079 | BA70: 1.949735079 | BB70: 1.949735079 | BC70: 1.949735079 | BD70: 1.949735079 | BE70: 1.949735079 | BF70: 1.949735079 | BG70: 1.949735079 | BH70: 1.949735079 | BI70: 1.949735079 | BJ70: 1.949735079 | BK70: 1.949735079 | BL70: 1.949735079 | BM70: 1.949735079 | BN70: 1.949735079 | BO70: 1.949735079 | BP70: 1.949735079 | BQ70: 1.949735079
A71: Inflation until Mid Period | E71: =E69 -> 1.949735079 | F71: =(F69+E69)/2 -> 1.998611999 | G71: =(G69+F69)/2 -> 2.149863365 | H71: 2.364849702 | I71: 2.601334672 | J71: 2.861468139 | K71: 3.147614953 | L71: 3.462376449 | M71: 3.808614094 | N71: 4.189475503 | O71: 4.608423053 | P71: 5.069265359 | Q71: 5.576191894 | R71: 6.133811084 | S71: 6.747192192 | T71: 7.421911411 | U71: 8.164102553 | V71: 8.980512808 | W71: 9.878564089 | X71: 10.8664205 | Y71: 11.95306255 | Z71: 13.1483688 | AA71: 14.46320568 | AB71: 15.90952625 | AC71: 17.50047888 | AD71: 19.25052676 | AE71: 21.17557944 | AF71: 23.29313738 | AG71: 25.62245112 | AH71: 28.18469623 | AI71: 31.00316586 | AJ71: 34.10348244 | AK71: 37.51383069 | AL71: 41.26521376 | AM71: 45.39173513 | AN71: 49.93090864 | AO71: 54.92399951 | AP71: 60.41639946 | AQ71: 66.45803941 | AR71: 73.10384335 | AS71: 80.41422768 | AT71: 88.45565045 | AU71: 97.30121549 | AV71: 107.031337 | AW71: 117.7344707 | AX71: 129.5079178 | AY71: 142.4587096 | AZ71: 156.7045806 | BA71: 172.3750386 | BB71: 189.6125425 | BC71: 208.5737967 | BD71: 229.4311764 | BE71: 252.374294 | BF71: 277.6117234 | BG71: 305.3728958 | BH71: 335.9101854 | BI71: 369.5012039 | BJ71: 406.4513243 | BK71: 447.0964567 | BL71: 491.8061024 | BM71: 540.9867126 | BN71: 595.0853839 | BO71: 654.5939223 | BP71: 720.0533145 | BQ71: 792.058646
A72: Discount Factor
A73: Discount index real (for volume) | C73: =(1+'Input NT'!C8)/(1+'Input NT'!C6)-1 -> 0.04761904762
A74: capitalized end of period | F74: =1/((1+'Input NT'!$C$8)^(F23)) -> 0.9090909091 | G74: =1/((1+'Input NT'!$C$8)^(G23)) -> 0.826446281 | H74: =1/((1+'Input NT'!$C$8)^(H23)) -> 0.7513148009 | I74: =1/((1+'Input NT'!$C$8)^(I23)) -> 0.6830134554 | J74: =1/((1+'Input NT'!$C$8)^(J23)) -> 0.6209213231 | K74: =1/((1+'Input NT'!$C$8)^(K23)) -> 0.5644739301 | L74: =1/((1+'Input NT'!$C$8)^(L23)) -> 0.5131581182 | M74: =1/((1+'Input NT'!$C$8)^(M23)) -> 0.4665073802 | N74: =1/((1+'Input NT'!$C$8)^(N23)) -> 0.4240976184 | O74: =1/((1+'Input NT'!$C$8)^(O23)) -> 0.3855432894 | P74: =1/((1+'Input NT'!$C$8)^(P23)) -> 0.3504938995 | Q74: =1/((1+'Input NT'!$C$8)^(Q23)) -> 0.3186308177 | R74: =1/((1+'Input NT'!$C$8)^(R23)) -> 0.2896643797 | S74: =1/((1+'Input NT'!$C$8)^(S23)) -> 0.2633312543 | T74: =1/((1+'Input NT'!$C$8)^(T23)) -> 0.2393920494 | U74: =1/((1+'Input NT'!$C$8)^(U23)) -> 0.2176291358 | V74: =1/((1+'Input NT'!$C$8)^(V23)) -> 0.1978446689 | W74: =1/((1+'Input NT'!$C$8)^(W23)) -> 0.1798587899 | X74: =1/((1+'Input NT'!$C$8)^(X23)) -> 0.1635079908 | Y74: =1/((1+'Input NT'!$C$8)^(Y23)) -> 0.148643628 | Z74: =1/((1+'Input NT'!$C$8)^(Z23)) -> 0.1351305709 | AA74: =1/((1+'Input NT'!$C$8)^(AA23)) -> 0.1228459736 | AB74: =1/((1+'Input NT'!$C$8)^(AB23)) -> 0.1116781578 | AC74: =1/((1+'Input NT'!$C$8)^(AC23)) -> 0.101525598 | AD74: =1/((1+'Input NT'!$C$8)^(AD23)) -> 0.09229599818 | AE74: =1/((1+'Input NT'!$C$8)^(AE23)) -> 0.08390545289 | AF74: =1/((1+'Input NT'!$C$8)^(AF23)) -> 0.07627768444 | AG74: =1/((1+'Input NT'!$C$8)^(AG23)) -> 0.06934334949 | AH74: =1/((1+'Input NT'!$C$8)^(AH23)) -> 0.06303940863 | AI74: =1/((1+'Input NT'!$C$8)^(AI23)) -> 0.0573085533 | AJ74: =1/((1+'Input NT'!$C$8)^(AJ23)) -> 0.05209868482 | AK74: =1/((1+'Input NT'!$C$8)^(AK23)) -> 0.04736244074 | AL74: =1/((1+'Input NT'!$C$8)^(AL23)) -> 0.04305676431 | AM74: =1/((1+'Input NT'!$C$8)^(AM23)) -> 0.03914251301 | AN74: =1/((1+'Input NT'!$C$8)^(AN23)) -> 0.03558410274 | AO74: =1/((1+'Input NT'!$C$8)^(AO23)) -> 0.03234918431 | AP74: =1/((1+'Input NT'!$C$8)^(AP23)) -> 0.02940834937 | AQ74: =1/((1+'Input NT'!$C$8)^(AQ23)) -> 0.02673486306 | AR74: =1/((1+'Input NT'!$C$8)^(AR23)) -> 0.02430442097 | AS74: =1/((1+'Input NT'!$C$8)^(AS23)) -> 0.02209492815 | AT74: =1/((1+'Input NT'!$C$8)^(AT23)) -> 0.02008629832 | AU74: =1/((1+'Input NT'!$C$8)^(AU23)) -> 0.0182602712 | AV74: =1/((1+'Input NT'!$C$8)^(AV23)) -> 0.01660024655 | AW74: =1/((1+'Input NT'!$C$8)^(AW23)) -> 0.01509113322 | AX74: =1/((1+'Input NT'!$C$8)^(AX23)) -> 0.01371921202 | AY74: =1/((1+'Input NT'!$C$8)^(AY23)) -> 0.01247201093 | AZ74: =1/((1+'Input NT'!$C$8)^(AZ23)) -> 0.01133819175 | BA74: =1/((1+'Input NT'!$C$8)^(BA23)) -> 0.01030744705 | BB74: =1/((1+'Input NT'!$C$8)^(BB23)) -> 0.009370406407 | BC74: =1/((1+'Input NT'!$C$8)^(BC23)) -> 0.00851855128 | BD74: =1/((1+'Input NT'!$C$8)^(BD23)) -> 0.007744137527 | BE74: =1/((1+'Input NT'!$C$8)^(BE23)) -> 0.007040125024 | BF74: =1/((1+'Input NT'!$C$8)^(BF23)) -> 0.006400113659 | BG74: =1/((1+'Input NT'!$C$8)^(BG23)) -> 0.005818285144 | BH74: =1/((1+'Input NT'!$C$8)^(BH23)) -> 0.005289350131 | BI74: =1/((1+'Input NT'!$C$8)^(BI23)) -> 0.004808500119 | BJ74: =1/((1+'Input NT'!$C$8)^(BJ23)) -> 0.004371363745 | BK74: =1/((1+'Input NT'!$C$8)^(BK23)) -> 0.003973967041 | BL74: =1/((1+'Input NT'!$C$8)^(BL23)) -> 0.00361269731 | BM74: =1/((1+'Input NT'!$C$8)^(BM23)) -> 0.003284270281 | BN74: =1/((1+'Input NT'!$C$8)^(BN23)) -> 0.002985700256 | BO74: =1/((1+'Input NT'!$C$8)^(BO23)) -> 0.00271427296 | BP74: =1/((1+'Input NT'!$C$8)^(BP23)) -> 0.002467520873 | BQ74: =1/((1+'Input NT'!$C$8)^(BQ23)) -> 0.002243200793
A76: Timing Profile | F76: Timing Profile for Construction
A77: No revenu & opex during construction | C77: 2 | E77: =IF(E78<1,0, IF((E8-$C$25)/365<1,(E8-$C$25)/365,1)) -> 0 | F77: 0 | G77: 0 | H77: 0 | I77: =IF(I78<1,0, IF((I8-$C$25)/365<1,(I8-$C$25)/365,1)) -> 0 | J77: =IF(J78<1,0, IF((J8-$C$25)/365<1,(J8-$C$25)/365,1)) -> 0.3315068493 | K77: =IF(K78<1,0, IF((K8-$C$25)/365<1,(K8-$C$25)/365,1)) -> 1 | L77: 1 | M77: 1 | N77: 1 | O77: 1 | P77: 1 | Q77: 1 | R77: =IF(R78<1,0, IF((R8-$C$25)/365<1,(R8-$C$25)/365,1)) -> 1 | S77: =IF(S78<1,0, IF((S8-$C$25)/365<1,(S8-$C$25)/365,1)) -> 1 | T77: =IF(T78<1,0, IF((T8-$C$25)/365<1,(T8-$C$25)/365,1)) -> 1 | U77: =IF(U78<1,0, IF((U8-$C$25)/365<1,(U8-$C$25)/365,1)) -> 1 | V77: =IF(V78<1,0, IF((V8-$C$25)/365<1,(V8-$C$25)/365,1)) -> 1 | W77: 1 | X77: 1 | Y77: =IF(Y78<1,0, IF((Y8-$C$25)/365<1,(Y8-$C$25)/365,1)) -> 1 | Z77: =IF(Z78<1,0, IF((Z8-$C$25)/365<1,(Z8-$C$25)/365,1)) -> 1 | AA77: =IF(AA78<1,0, IF((AA8-$C$25)/365<1,(AA8-$C$25)/365,1)) -> 1 | AB77: =IF(AB78<1,0, IF((AB8-$C$25)/365<1,(AB8-$C$25)/365,1)) -> 1 | AC77: =IF(AC78<1,0, IF((AC8-$C$25)/365<1,(AC8-$C$25)/365,1)) -> 1 | AD77: 1 | AE77: 1 | AF77: =IF(AF78<1,0, IF((AF8-$C$25)/365<1,(AF8-$C$25)/365,1)) -> 1 | AG77: =IF(AG78<1,0, IF((AG8-$C$25)/365<1,(AG8-$C$25)/365,1)) -> 1 | AH77: =IF(AH78<1,0, IF((AH8-$C$25)/365<1,(AH8-$C$25)/365,1)) -> 1 | AI77: =IF(AI78<1,0, IF((AI8-$C$25)/365<1,(AI8-$C$25)/365,1)) -> 1 | AJ77: =IF(AJ78<1,0, IF((AJ8-$C$25)/365<1,(AJ8-$C$25)/365,1)) -> 1 | AK77: 1 | AL77: 1 | AM77: =IF(AM78<1,0, IF((AM8-$C$25)/365<1,(AM8-$C$25)/365,1)) -> 1 | AN77: =IF(AN78<1,0, IF((AN8-$C$25)/365<1,(AN8-$C$25)/365,1)) -> 1 | AO77: =IF(AO78<1,0, IF((AO8-$C$25)/365<1,(AO8-$C$25)/365,1)) -> 1 | AP77: =IF(AP78<1,0, IF((AP8-$C$25)/365<1,(AP8-$C$25)/365,1)) -> 1 | AQ77: =IF(AQ78<1,0, IF((AQ8-$C$25)/365<1,(AQ8-$C$25)/365,1)) -> 1 | AR77: 1 | AS77: 1 | AT77: =IF(AT78<1,0, IF((AT8-$C$25)/365<1,(AT8-$C$25)/365,1)) -> 1 | AU77: =IF(AU78<1,0, IF((AU8-$C$25)/365<1,(AU8-$C$25)/365,1)) -> 1 | AV77: =IF(AV78<1,0, IF((AV8-$C$25)/365<1,(AV8-$C$25)/365,1)) -> 1 | AW77: =IF(AW78<1,0, IF((AW8-$C$25)/365<1,(AW8-$C$25)/365,1)) -> 1 | AX77: =IF(AX78<1,0, IF((AX8-$C$25)/365<1,(AX8-$C$25)/365,1)) -> 1 | AY77: 1 | AZ77: 1 | BA77: =IF(BA78<1,0, IF((BA8-$C$25)/365<1,(BA8-$C$25)/365,1)) -> 1 | BB77: =IF(BB78<1,0, IF((BB8-$C$25)/365<1,(BB8-$C$25)/365,1)) -> 1 | BC77: =IF(BC78<1,0, IF((BC8-$C$25)/365<1,(BC8-$C$25)/365,1)) -> 1 | BD77: =IF(BD78<1,0, IF((BD8-$C$25)/365<1,(BD8-$C$25)/365,1)) -> 1 | BE77: =IF(BE78<1,0, IF((BE8-$C$25)/365<1,(BE8-$C$25)/365,1)) -> 1 | BF77: 1 | BG77: 1 | BH77: =IF(BH78<1,0, IF((BH8-$C$25)/365<1,(BH8-$C$25)/365,1)) -> 1 | BI77: =IF(BI78<1,0, IF((BI8-$C$25)/365<1,(BI8-$C$25)/365,1)) -> 1 | BJ77: =IF(BJ78<1,0, IF((BJ8-$C$25)/365<1,(BJ8-$C$25)/365,1)) -> 1 | BK77: =IF(BK78<1,0, IF((BK8-$C$25)/365<1,(BK8-$C$25)/365,1)) -> 1 | BL77: =IF(BL78<1,0, IF((BL8-$C$25)/365<1,(BL8-$C$25)/365,1)) -> 1 | BM77: 1 | BN77: 1 | BO77: =IF(BO78<1,0, IF((BO8-$C$25)/365<1,(BO8-$C$25)/365,1)) -> 1 | BP77: =IF(BP78<1,0, IF((BP8-$C$25)/365<1,(BP8-$C$25)/365,1)) -> 1 | BQ77: =IF(BQ78<1,0, IF((BQ8-$C$25)/365<1,(BQ8-$C$25)/365,1)) -> 1
A78: Cumulated Completion Rate | E78: 0 | F78: =E78+F79 -> 0.1203287671 | G78: =F78+G79 -> 0.3603287671 | H78: 0.6003287671 | I78: 0.8403287671 | J78: 1 | K78: 1 | L78: 1 | M78: 1 | N78: 1 | O78: 1 | P78: 1 | Q78: 1 | R78: 1 | S78: 1 | T78: 1 | U78: 1 | V78: 1 | W78: 1 | X78: 1 | Y78: 1 | Z78: 1 | AA78: 1 | AB78: 1 | AC78: 1 | AD78: 1 | AE78: 1 | AF78: 1 | AG78: 1 | AH78: 1 | AI78: 1 | AJ78: 1 | AK78: 1 | AL78: 1 | AM78: 1 | AN78: 1 | AO78: 1 | AP78: 1 | AQ78: 1 | AR78: 1 | AS78: 1 | AT78: 1 | AU78: 1 | AV78: 1 | AW78: 1 | AX78: 1 | AY78: 1 | AZ78: 1 | BA78: 1 | BB78: 1 | BC78: 1 | BD78: 1 | BE78: 1 | BF78: 1 | BG78: 1 | BH78: 1 | BI78: 1 | BJ78: 1 | BK78: 1 | BL78: 1 | BM78: 1 | BN78: 1 | BO78: 1 | BP78: 1 | BQ78: 1
A79: ='Input Sponsor'!A39 -> Capital Expenditure | C79: =SUM(F79:CF79) -> 1 | E79: 0 | F79: =IF(G27<1,MIN(1,F10*12/'Input Sponsor'!$D$8),MAX(0,1-SUM($E$79:E79))) -> 0.1203287671 | G79: =IF(H27<1,MIN(1,G10*12/'Input Sponsor'!$D$8),MAX(0,1-SUM($E$79:F79))) -> 0.24 | H79: =IF(I27<1,MIN(1,H10*12/'Input Sponsor'!$D$8),MAX(0,1-SUM($E$79:G79))) -> 0.24 | I79: =IF(J27<1,MIN(1,I10*12/'Input Sponsor'!$D$8),MAX(0,1-SUM($E$79:H79))) -> 0.24 | J79: =IF(K27<1,MIN(1,J10*12/'Input Sponsor'!$D$8),MAX(0,1-SUM($E$79:I79))) -> 0.1596712329 | K79: =IF(L27<1,MIN(1,K10*12/'Input Sponsor'!$D$8),MAX(0,1-SUM($E$79:J79))) -> 0 | L79: =IF(M27<1,MIN(1,L10*12/'Input Sponsor'!$D$8),MAX(0,1-SUM($E$79:K79))) -> 0 | M79: =IF(N27<1,MIN(1,M10*12/'Input Sponsor'!$D$8),MAX(0,1-SUM($E$79:L79))) -> 0 | N79: =IF(O27<1,MIN(1,N10*12/'Input Sponsor'!$D$8),MAX(0,1-SUM($E$79:M79))) -> 0 | O79: =IF(P27<1,MIN(1,O10*12/'Input Sponsor'!$D$8),MAX(0,1-SUM($E$79:N79))) -> 0 | P79: =IF(Q27<1,MIN(1,P10*12/'Input Sponsor'!$D$8),MAX(0,1-SUM($E$79:O79))) -> 0 | Q79: =IF(R27<1,MIN(1,Q10*12/'Input Sponsor'!$D$8),MAX(0,1-SUM($E$79:P79))) -> 0 | R79: =IF(S27<1,MIN(1,R10*12/'Input Sponsor'!$D$8),MAX(0,1-SUM($E$79:Q79))) -> 0 | S79: =IF(T27<1,MIN(1,S10*12/'Input Sponsor'!$D$8),MAX(0,1-SUM($E$79:R79))) -> 0 | T79: =IF(U27<1,MIN(1,T10*12/'Input Sponsor'!$D$8),MAX(0,1-SUM($E$79:S79))) -> 0 | U79: =IF(V27<1,MIN(1,U10*12/'Input Sponsor'!$D$8),MAX(0,1-SUM($E$79:T79))) -> 0 | V79: =IF(W27<1,MIN(1,V10*12/'Input Sponsor'!$D$8),MAX(0,1-SUM($E$79:U79))) -> 0 | W79: =IF(X27<1,MIN(1,W10*12/'Input Sponsor'!$D$8),MAX(0,1-SUM($E$79:V79))) -> 0 | X79: =IF(Y27<1,MIN(1,X10*12/'Input Sponsor'!$D$8),MAX(0,1-SUM($E$79:W79))) -> 0 | Y79: =IF(Z27<1,MIN(1,Y10*12/'Input Sponsor'!$D$8),MAX(0,1-SUM($E$79:X79))) -> 0 | Z79: =IF(AA27<1,MIN(1,Z10*12/'Input Sponsor'!$D$8),MAX(0,1-SUM($E$79:Y79))) -> 0 | AA79: =IF(AB27<1,MIN(1,AA10*12/'Input Sponsor'!$D$8),MAX(0,1-SUM($E$79:Z79))) -> 0 | AB79: =IF(AC27<1,MIN(1,AB10*12/'Input Sponsor'!$D$8),MAX(0,1-SUM($E$79:AA79))) -> 0 | AC79: =IF(AD27<1,MIN(1,AC10*12/'Input Sponsor'!$D$8),MAX(0,1-SUM($E$79:AB79))) -> 0 | AD79: =IF(AE27<1,MIN(1,AD10*12/'Input Sponsor'!$D$8),MAX(0,1-SUM($E$79:AC79))) -> 0 | AE79: =IF(AF27<1,MIN(1,AE10*12/'Input Sponsor'!$D$8),MAX(0,1-SUM($E$79:AD79))) -> 0 | AF79: =IF(AG27<1,MIN(1,AF10*12/'Input Sponsor'!$D$8),MAX(0,1-SUM($E$79:AE79))) -> 0 | AG79: =IF(AH27<1,MIN(1,AG10*12/'Input Sponsor'!$D$8),MAX(0,1-SUM($E$79:AF79))) -> 0 | AH79: =IF(AI27<1,MIN(1,AH10*12/'Input Sponsor'!$D$8),MAX(0,1-SUM($E$79:AG79))) -> 0 | AI79: =IF(AJ27<1,MIN(1,AI10*12/'Input Sponsor'!$D$8),MAX(0,1-SUM($E$79:AH79))) -> 0 | AJ79: =IF(AK27<1,MIN(1,AJ10*12/'Input Sponsor'!$D$8),MAX(0,1-SUM($E$79:AI79))) -> 0 | AK79: =IF(AL27<1,MIN(1,AK10*12/'Input Sponsor'!$D$8),MAX(0,1-SUM($E$79:AJ79))) -> 0 | AL79: =IF(AM27<1,MIN(1,AL10*12/'Input Sponsor'!$D$8),MAX(0,1-SUM($E$79:AK79))) -> 0 | AM79: =IF(AN27<1,MIN(1,AM10*12/'Input Sponsor'!$D$8),MAX(0,1-SUM($E$79:AL79))) -> 0 | AN79: =IF(AO27<1,MIN(1,AN10*12/'Input Sponsor'!$D$8),MAX(0,1-SUM($E$79:AM79))) -> 0 | AO79: =IF(AP27<1,MIN(1,AO10*12/'Input Sponsor'!$D$8),MAX(0,1-SUM($E$79:AN79))) -> 0 | AP79: =IF(AQ27<1,MIN(1,AP10*12/'Input Sponsor'!$D$8),MAX(0,1-SUM($E$79:AO79))) -> 0 | AQ79: =IF(AR27<1,MIN(1,AQ10*12/'Input Sponsor'!$D$8),MAX(0,1-SUM($E$79:AP79))) -> 0 | AR79: =IF(AS27<1,MIN(1,AR10*12/'Input Sponsor'!$D$8),MAX(0,1-SUM($E$79:AQ79))) -> 0 | AS79: =IF(AT27<1,MIN(1,AS10*12/'Input Sponsor'!$D$8),MAX(0,1-SUM($E$79:AR79))) -> 0 | AT79: =IF(AU27<1,MIN(1,AT10*12/'Input Sponsor'!$D$8),MAX(0,1-SUM($E$79:AS79))) -> 0 | AU79: =IF(AV27<1,MIN(1,AU10*12/'Input Sponsor'!$D$8),MAX(0,1-SUM($E$79:AT79))) -> 0 | AV79: =IF(AW27<1,MIN(1,AV10*12/'Input Sponsor'!$D$8),MAX(0,1-SUM($E$79:AU79))) -> 0 | AW79: =IF(AX27<1,MIN(1,AW10*12/'Input Sponsor'!$D$8),MAX(0,1-SUM($E$79:AV79))) -> 0 | AX79: =IF(AY27<1,MIN(1,AX10*12/'Input Sponsor'!$D$8),MAX(0,1-SUM($E$79:AW79))) -> 0 | AY79: =IF(AZ27<1,MIN(1,AY10*12/'Input Sponsor'!$D$8),MAX(0,1-SUM($E$79:AX79))) -> 0 | AZ79: =IF(BA27<1,MIN(1,AZ10*12/'Input Sponsor'!$D$8),MAX(0,1-SUM($E$79:AY79))) -> 0 | BA79: =IF(BB27<1,MIN(1,BA10*12/'Input Sponsor'!$D$8),MAX(0,1-SUM($E$79:AZ79))) -> 0 | BB79: =IF(BC27<1,MIN(1,BB10*12/'Input Sponsor'!$D$8),MAX(0,1-SUM($E$79:BA79))) -> 0 | BC79: =IF(BD27<1,MIN(1,BC10*12/'Input Sponsor'!$D$8),MAX(0,1-SUM($E$79:BB79))) -> 0 | BD79: =IF(BE27<1,MIN(1,BD10*12/'Input Sponsor'!$D$8),MAX(0,1-SUM($E$79:BC79))) -> 0 | BE79: =IF(BF27<1,MIN(1,BE10*12/'Input Sponsor'!$D$8),MAX(0,1-SUM($E$79:BD79))) -> 0 | BF79: =IF(BG27<1,MIN(1,BF10*12/'Input Sponsor'!$D$8),MAX(0,1-SUM($E$79:BE79))) -> 0 | BG79: =IF(BH27<1,MIN(1,BG10*12/'Input Sponsor'!$D$8),MAX(0,1-SUM($E$79:BF79))) -> 0 | BH79: =IF(BI27<1,MIN(1,BH10*12/'Input Sponsor'!$D$8),MAX(0,1-SUM($E$79:BG79))) -> 0 | BI79: =IF(BJ27<1,MIN(1,BI10*12/'Input Sponsor'!$D$8),MAX(0,1-SUM($E$79:BH79))) -> 0 | BJ79: =IF(BK27<1,MIN(1,BJ10*12/'Input Sponsor'!$D$8),MAX(0,1-SUM($E$79:BI79))) -> 0 | BK79: =IF(BL27<1,MIN(1,BK10*12/'Input Sponsor'!$D$8),MAX(0,1-SUM($E$79:BJ79))) -> 0 | BL79: =IF(BM27<1,MIN(1,BL10*12/'Input Sponsor'!$D$8),MAX(0,1-SUM($E$79:BK79))) -> 0 | BM79: =IF(BN27<1,MIN(1,BM10*12/'Input Sponsor'!$D$8),MAX(0,1-SUM($E$79:BL79))) -> 0 | BN79: =IF(BO27<1,MIN(1,BN10*12/'Input Sponsor'!$D$8),MAX(0,1-SUM($E$79:BM79))) -> 0 | BO79: =IF(BP27<1,MIN(1,BO10*12/'Input Sponsor'!$D$8),MAX(0,1-SUM($E$79:BN79))) -> 0 | BP79: =IF(BQ27<1,MIN(1,BP10*12/'Input Sponsor'!$D$8),MAX(0,1-SUM($E$79:BO79))) -> 0
A80: ='Input Sponsor'!A40 -> Other Capex | C80: =SUM(F80:CF80) -> 1 | E80: 0 | F80: =F79 -> 0.1203287671 | G80: =G79 -> 0.24 | H80: 0.24 | I80: 0.24 | J80: 0.1596712329 | K80: 0 | L80: 0 | M80: 0 | N80: 0 | O80: 0 | P80: 0 | Q80: 0 | R80: 0 | S80: 0 | T80: 0 | U80: 0 | V80: 0 | W80: 0 | X80: 0 | Y80: 0 | Z80: 0 | AA80: 0 | AB80: 0 | AC80: 0 | AD80: 0 | AE80: 0 | AF80: 0 | AG80: 0 | AH80: 0 | AI80: 0 | AJ80: 0 | AK80: 0 | AL80: 0 | AM80: 0 | AN80: 0 | AO80: 0 | AP80: 0 | AQ80: 0 | AR80: 0 | AS80: 0 | AT80: 0 | AU80: 0 | AV80: 0 | AW80: 0 | AX80: 0 | AY80: 0 | AZ80: 0 | BA80: 0 | BB80: 0 | BC80: 0 | BD80: 0 | BE80: 0 | BF80: 0 | BG80: 0 | BH80: 0 | BI80: 0 | BJ80: 0 | BK80: 0 | BL80: 0 | BM80: 0 | BN80: 0 | BO80: 0 | BP80: 0
A83: Scenario | C83: ='Input Sponsor'!E3 -> Sponsor Case | E83: No Operation During Construction
C84: ='Input Sponsor'!F3 -> Base Case | E84: Operation During Construction
C85: ='Input Sponsor'!G3 -> Worst Case
A86: Yes | C86: 2
A87: No
A89: Rand
A90: M Rand | C90: 2

Sheet Opex (hidden)
A1: Operations Sheet
C3: Year | F3: =Work!F2 -> 2020 | G3: =Work!G2 -> 2021 | H3: =Work!H2 -> 2022 | I3: =Work!I2 -> 2023 | J3: =Work!J2 -> 2024 | K3: =Work!K2 -> 2025 | L3: =Work!L2 -> 2026 | M3: =Work!M2 -> 2027 | N3: =Work!N2 -> 2028 | O3: =Work!O2 -> 2029 | P3: =Work!P2 -> 2030 | Q3: =Work!Q2 -> 2031 | R3: =Work!R2 -> 2032 | S3: =Work!S2 -> 2033 | T3: =Work!T2 -> 2034 | U3: =Work!U2 -> 2035 | V3: =Work!V2 -> 2036 | W3: =Work!W2 -> 2037 | X3: =Work!X2 -> 2038 | Y3: =Work!Y2 -> 2039 | Z3: =Work!Z2 -> 2040 | AA3: =Work!AA2 -> 2041 | AB3: =Work!AB2 -> 2042 | AC3: =Work!AC2 -> 2043 | AD3: =Work!AD2 -> 2044 | AE3: =Work!AE2 -> 2045 | AF3: =Work!AF2 -> 2046 | AG3: =Work!AG2 -> 2047 | AH3: =Work!AH2 -> 2048 | AI3: =Work!AI2 -> 2049 | AJ3: =Work!AJ2 -> 2050 | AK3: =Work!AK2 -> 2051 | AL3: =Work!AL2 -> 2052 | AM3: =Work!AM2 -> 2053 | AN3: =Work!AN2 -> 2054 | AO3: =Work!AO2 -> 2055 | AP3: =Work!AP2 -> 2056 | AQ3: =Work!AQ2 -> 2057 | AR3: =Work!AR2 -> 2058 | AS3: =Work!AS2 -> 2059 | AT3: =Work!AT2 -> 2060 | AU3: =Work!AU2 -> 2061 | AV3: =Work!AV2 -> 2062 | AW3: =Work!AW2 -> 2063 | AX3: =Work!AX2 -> 2064 | AY3: =Work!AY2 -> 2065 | AZ3: =Work!AZ2 -> 2066 | BA3: =Work!BA2 -> 2067 | BB3: =Work!BB2 -> 2068 | BC3: =Work!BC2 -> 2069
F4: =Work!F3 -> 2020-07-01 | G4: =Work!G3 -> 2021-01-01 | H4: =Work!H3 -> 2022-01-01 | I4: =Work!I3 -> 2023-01-01 | J4: =Work!J3 -> 2024-01-01 | K4: =Work!K3 -> 2025-01-01 | L4: =Work!L3 -> 2026-01-01 | M4: =Work!M3 -> 2027-01-01 | N4: =Work!N3 -> 2028-01-01 | O4: =Work!O3 -> 2029-01-01 | P4: =Work!P3 -> 2030-01-01 | Q4: =Work!Q3 -> 2031-01-01 | R4: =Work!R3 -> 2032-01-01 | S4: =Work!S3 -> 2033-01-01 | T4: =Work!T3 -> 2034-01-01 | U4: =Work!U3 -> 2035-01-01 | V4: =Work!V3 -> 2036-01-01 | W4: =Work!W3 -> 2037-01-01 | X4: =Work!X3 -> 2038-01-01 | Y4: =Work!Y3 -> 2039-01-01 | Z4: =Work!Z3 -> 2040-01-01 | AA4: =Work!AA3 -> 2041-01-01 | AB4: =Work!AB3 -> 2042-01-01 | AC4: =Work!AC3 -> 2043-01-01 | AD4: =Work!AD3 -> 2044-01-01 | AE4: =Work!AE3 -> 2045-01-01 | AF4: =Work!AF3 -> 2046-01-01 | AG4: =Work!AG3 -> 2047-01-01 | AH4: =Work!AH3 -> 2048-01-01 | AI4: =Work!AI3 -> 2049-01-01 | AJ4: =Work!AJ3 -> 2050-01-01 | AK4: =Work!AK3 -> 2051-01-01 | AL4: =Work!AL3 -> 2052-01-01 | AM4: =Work!AM3 -> 2053-01-01 | AN4: =Work!AN3 -> 2054-01-01 | AO4: =Work!AO3 -> 2055-01-01 | AP4: =Work!AP3 -> 2056-01-01 | AQ4: =Work!AQ3 -> 2057-01-01 | AR4: =Work!AR3 -> 2058-01-01 | AS4: =Work!AS3 -> 2059-01-01 | AT4: =Work!AT3 -> 2060-01-01 | AU4: =Work!AU3 -> 2061-01-01 | AV4: =Work!AV3 -> 2062-01-01 | AW4: =Work!AW3 -> 2063-01-01 | AX4: =Work!AX3 -> 2064-01-01 | AY4: =Work!AY3 -> 2065-01-01 | AZ4: =Work!AZ3 -> 2066-01-01 | BA4: =Work!BA3 -> 2067-01-01 | BB4: =Work!BB3 -> 2068-01-01 | BC4: =Work!BC3 -> 2069-01-01
E5: Pre-Period | F5: to | G5: to | H5: to | I5: to | J5: to | K5: to | L5: to | M5: to | N5: to | O5: to | P5: to | Q5: to | R5: to | S5: to | T5: to | U5: to | V5: to | W5: to | X5: to | Y5: to | Z5: to | AA5: to | AB5: to | AC5: to | AD5: to | AE5: to | AF5: to | AG5: to | AH5: to | AI5: to | AJ5: to | AK5: to | AL5: to | AM5: to | AN5: to | AO5: to | AP5: to | AQ5: to | AR5: to | AS5: to | AT5: to | AU5: to | AV5: to | AW5: to | AX5: to | AY5: to | AZ5: to | BA5: to | BB5: to | BC5: to
F6: =Work!F5 -> 2020-12-31 | G6: =Work!G5 -> 2021-12-31 | H6: =Work!H5 -> 2022-12-31 | I6: =Work!I5 -> 2023-12-31 | J6: =Work!J5 -> 2024-12-31 | K6: =Work!K5 -> 2025-12-31 | L6: =Work!L5 -> 2026-12-31 | M6: =Work!M5 -> 2027-12-31 | N6: =Work!N5 -> 2028-12-31 | O6: =Work!O5 -> 2029-12-31 | P6: =Work!P5 -> 2030-12-31 | Q6: =Work!Q5 -> 2031-12-31 | R6: =Work!R5 -> 2032-12-31 | S6: =Work!S5 -> 2033-12-31 | T6: =Work!T5 -> 2034-12-31 | U6: =Work!U5 -> 2035-12-31 | V6: =Work!V5 -> 2036-12-31 | W6: =Work!W5 -> 2037-12-31 | X6: =Work!X5 -> 2038-12-31 | Y6: =Work!Y5 -> 2039-12-31 | Z6: =Work!Z5 -> 2040-12-31 | AA6: =Work!AA5 -> 2041-12-31 | AB6: =Work!AB5 -> 2042-12-31 | AC6: =Work!AC5 -> 2043-12-31 | AD6: =Work!AD5 -> 2044-12-31 | AE6: =Work!AE5 -> 2045-12-31 | AF6: =Work!AF5 -> 2046-12-31 | AG6: =Work!AG5 -> 2047-12-31 | AH6: =Work!AH5 -> 2048-12-31 | AI6: =Work!AI5 -> 2049-12-31 | AJ6: =Work!AJ5 -> 2050-12-31 | AK6: =Work!AK5 -> 2051-12-31 | AL6: =Work!AL5 -> 2052-12-31 | AM6: =Work!AM5 -> 2053-12-31 | AN6: =Work!AN5 -> 2054-12-31 | AO6: =Work!AO5 -> 2055-12-31 | AP6: =Work!AP5 -> 2056-12-31 | AQ6: =Work!AQ5 -> 2057-12-31 | AR6: =Work!AR5 -> 2058-12-31 | AS6: =Work!AS5 -> 2059-12-31 | AT6: =Work!AT5 -> 2060-12-31 | AU6: =Work!AU5 -> 2061-12-31 | AV6: =Work!AV5 -> 2062-12-31 | AW6: =Work!AW5 -> 2063-12-31 | AX6: =Work!AX5 -> 2064-12-31 | AY6: =Work!AY5 -> 2065-12-31 | AZ6: =Work!AZ5 -> 2066-12-31 | BA6: =Work!BA5 -> 2067-12-31 | BB6: =Work!BB5 -> 2068-12-31 | BC6: =Work!BC5 -> 2069-12-31
A7: ="Revenue "&'Input Sponsor'!A14 -> Revenue [Source Revenue 1]
A8: Installed Capacity [%] | F8: =INDEX(Work!$F77:'Work'!$CA78,Work!$C$77,Work!F$23)*Work!F54 -> 0.1203287671 | G8: =INDEX(Work!$F77:'Work'!$CA78,Work!$C$77,Work!G$23)*Work!G54 -> 0.3603287671 | H8: =INDEX(Work!$F77:'Work'!$CA78,Work!$C$77,Work!H$23)*Work!H54 -> 0.6003287671 | I8: =INDEX(Work!$F77:'Work'!$CA78,Work!$C$77,Work!I$23)*Work!I54 -> 0.8403287671 | J8: =INDEX(Work!$F77:'Work'!$CA78,Work!$C$77,Work!J$23)*Work!J54 -> 1 | K8: =INDEX(Work!$F77:'Work'!$CA78,Work!$C$77,Work!K$23)*Work!K54 -> 1 | L8: =INDEX(Work!$F77:'Work'!$CA78,Work!$C$77,Work!L$23)*Work!L54 -> 1 | M8: =INDEX(Work!$F77:'Work'!$CA78,Work!$C$77,Work!M$23)*Work!M54 -> 1 | N8: =INDEX(Work!$F77:'Work'!$CA78,Work!$C$77,Work!N$23)*Work!N54 -> 1 | O8: =INDEX(Work!$F77:'Work'!$CA78,Work!$C$77,Work!O$23)*Work!O54 -> 1 | P8: =INDEX(Work!$F77:'Work'!$CA78,Work!$C$77,Work!P$23)*Work!P54 -> 1 | Q8: =INDEX(Work!$F77:'Work'!$CA78,Work!$C$77,Work!Q$23)*Work!Q54 -> 1 | R8: =INDEX(Work!$F77:'Work'!$CA78,Work!$C$77,Work!R$23)*Work!R54 -> 1 | S8: =INDEX(Work!$F77:'Work'!$CA78,Work!$C$77,Work!S$23)*Work!S54 -> 1 | T8: =INDEX(Work!$F77:'Work'!$CA78,Work!$C$77,Work!T$23)*Work!T54 -> 1 | U8: =INDEX(Work!$F77:'Work'!$CA78,Work!$C$77,Work!U$23)*Work!U54 -> 1 | V8: =INDEX(Work!$F77:'Work'!$CA78,Work!$C$77,Work!V$23)*Work!V54 -> 1 | W8: =INDEX(Work!$F77:'Work'!$CA78,Work!$C$77,Work!W$23)*Work!W54 -> 1 | X8: =INDEX(Work!$F77:'Work'!$CA78,Work!$C$77,Work!X$23)*Work!X54 -> 1 | Y8: =INDEX(Work!$F77:'Work'!$CA78,Work!$C$77,Work!Y$23)*Work!Y54 -> 1 | Z8: =INDEX(Work!$F77:'Work'!$CA78,Work!$C$77,Work!Z$23)*Work!Z54 -> 1 | AA8: =INDEX(Work!$F77:'Work'!$CA78,Work!$C$77,Work!AA$23)*Work!AA54 -> 1 | AB8: =INDEX(Work!$F77:'Work'!$CA78,Work!$C$77,Work!AB$23)*Work!AB54 -> 1 | AC8: =INDEX(Work!$F77:'Work'!$CA78,Work!$C$77,Work!AC$23)*Work!AC54 -> 1 | AD8: =INDEX(Work!$F77:'Work'!$CA78,Work!$C$77,Work!AD$23)*Work!AD54 -> 1 | AE8: =INDEX(Work!$F77:'Work'!$CA78,Work!$C$77,Work!AE$23)*Work!AE54 -> 1 | AF8: =INDEX(Work!$F77:'Work'!$CA78,Work!$C$77,Work!AF$23)*Work!AF54 -> 1 | AG8: =INDEX(Work!$F77:'Work'!$CA78,Work!$C$77,Work!AG$23)*Work!AG54 -> 1 | AH8: =INDEX(Work!$F77:'Work'!$CA78,Work!$C$77,Work!AH$23)*Work!AH54 -> 1 | AI8: =INDEX(Work!$F77:'Work'!$CA78,Work!$C$77,Work!AI$23)*Work!AI54 -> 1 | AJ8: =INDEX(Work!$F77:'Work'!$CA78,Work!$C$77,Work!AJ$23)*Work!AJ54 -> 1 | AK8: =INDEX(Work!$F77:'Work'!$CA78,Work!$C$77,Work!AK$23)*Work!AK54 -> 1 | AL8: =INDEX(Work!$F77:'Work'!$CA78,Work!$C$77,Work!AL$23)*Work!AL54 -> 1 | AM8: =INDEX(Work!$F77:'Work'!$CA78,Work!$C$77,Work!AM$23)*Work!AM54 -> 1 | AN8: =INDEX(Work!$F77:'Work'!$CA78,Work!$C$77,Work!AN$23)*Work!AN54 -> 1 | AO8: =INDEX(Work!$F77:'Work'!$CA78,Work!$C$77,Work!AO$23)*Work!AO54 -> 1 | AP8: =INDEX(Work!$F77:'Work'!$CA78,Work!$C$77,Work!AP$23)*Work!AP54 -> 1 | AQ8: =INDEX(Work!$F77:'Work'!$CA78,Work!$C$77,Work!AQ$23)*Work!AQ54 -> 1 | AR8: =INDEX(Work!$F77:'Work'!$CA78,Work!$C$77,Work!AR$23)*Work!AR54 -> 1 | AS8: =INDEX(Work!$F77:'Work'!$CA78,Work!$C$77,Work!AS$23)*Work!AS54 -> 1 | AT8: =INDEX(Work!$F77:'Work'!$CA78,Work!$C$77,Work!AT$23)*Work!AT54 -> 1 | AU8: =INDEX(Work!$F77:'Work'!$CA78,Work!$C$77,Work!AU$23)*Work!AU54 -> 1 | AV8: =INDEX(Work!$F77:'Work'!$CA78,Work!$C$77,Work!AV$23)*Work!AV54 -> 1 | AW8: =INDEX(Work!$F77:'Work'!$CA78,Work!$C$77,Work!AW$23)*Work!AW54 -> 1 | AX8: =INDEX(Work!$F77:'Work'!$CA78,Work!$C$77,Work!AX$23)*Work!AX54 -> 1 | AY8: =INDEX(Work!$F77:'Work'!$CA78,Work!$C$77,Work!AY$23)*Work!AY54 -> 0 | AZ8: =INDEX(Work!$F77:'Work'!$CA78,Work!$C$77,Work!AZ$23)*Work!AZ54 -> 0 | BA8: =INDEX(Work!$F77:'Work'!$CA78,Work!$C$77,Work!BA$23)*Work!BA54 -> 0 | BB8: =INDEX(Work!$F77:'Work'!$CA78,Work!$C$77,Work!BB$23)*Work!BB54 -> 0 | BC8: =INDEX(Work!$F77:'Work'!$CA78,Work!$C$77,Work!BC$23)*Work!BC54 -> 0
A9: Production Value | C9: =MAX(F9:BC9) -> 200000 | F9: =Work!F10*(E8+F8)/2*'Input Sponsor'!$C$15*Work!F54 -> 6032.921749 | G9: =Work!G10*(F8+G8)/2*'Input Sponsor'!$C$15*Work!G54 -> 48065.75342 | H9: =Work!H10*(G8+H8)/2*'Input Sponsor'!$C$15*Work!H54 -> 96065.75342 | I9: =Work!I10*(H8+I8)/2*'Input Sponsor'!$C$15*Work!I54 -> 144065.7534 | J9: =Work!J10*(I8+J8)/2*'Input Sponsor'!$C$15*Work!J54 -> 184032.8767 | K9: =Work!K10*(J8+K8)/2*'Input Sponsor'!$C$15*Work!K54 -> 200000 | L9: =Work!L10*(K8+L8)/2*'Input Sponsor'!$C$15*Work!L54 -> 200000 | M9: =Work!M10*(L8+M8)/2*'Input Sponsor'!$C$15*Work!M54 -> 200000 | N9: =Work!N10*(M8+N8)/2*'Input Sponsor'!$C$15*Work!N54 -> 200000 | O9: =Work!O10*(N8+O8)/2*'Input Sponsor'!$C$15*Work!O54 -> 200000 | P9: =Work!P10*(O8+P8)/2*'Input Sponsor'!$C$15*Work!P54 -> 200000 | Q9: =Work!Q10*(P8+Q8)/2*'Input Sponsor'!$C$15*Work!Q54 -> 200000 | R9: =Work!R10*(Q8+R8)/2*'Input Sponsor'!$C$15*Work!R54 -> 200000 | S9: =Work!S10*(R8+S8)/2*'Input Sponsor'!$C$15*Work!S54 -> 200000 | T9: =Work!T10*(S8+T8)/2*'Input Sponsor'!$C$15*Work!T54 -> 200000 | U9: =Work!U10*(T8+U8)/2*'Input Sponsor'!$C$15*Work!U54 -> 200000 | V9: =Work!V10*(U8+V8)/2*'Input Sponsor'!$C$15*Work!V54 -> 200000 | W9: =Work!W10*(V8+W8)/2*'Input Sponsor'!$C$15*Work!W54 -> 200000 | X9: =Work!X10*(W8+X8)/2*'Input Sponsor'!$C$15*Work!X54 -> 200000 | Y9: =Work!Y10*(X8+Y8)/2*'Input Sponsor'!$C$15*Work!Y54 -> 200000 | Z9: =Work!Z10*(Y8+Z8)/2*'Input Sponsor'!$C$15*Work!Z54 -> 200000 | AA9: =Work!AA10*(Z8+AA8)/2*'Input Sponsor'!$C$15*Work!AA54 -> 200000 | AB9: =Work!AB10*(AA8+AB8)/2*'Input Sponsor'!$C$15*Work!AB54 -> 200000 | AC9: =Work!AC10*(AB8+AC8)/2*'Input Sponsor'!$C$15*Work!AC54 -> 200000 | AD9: =Work!AD10*(AC8+AD8)/2*'Input Sponsor'!$C$15*Work!AD54 -> 200000 | AE9: =Work!AE10*(AD8+AE8)/2*'Input Sponsor'!$C$15*Work!AE54 -> 200000 | AF9: =Work!AF10*(AE8+AF8)/2*'Input Sponsor'!$C$15*Work!AF54 -> 200000 | AG9: =Work!AG10*(AF8+AG8)/2*'Input Sponsor'!$C$15*Work!AG54 -> 200000 | AH9: =Work!AH10*(AG8+AH8)/2*'Input Sponsor'!$C$15*Work!AH54 -> 200000 | AI9: =Work!AI10*(AH8+AI8)/2*'Input Sponsor'!$C$15*Work!AI54 -> 200000 | AJ9: =Work!AJ10*(AI8+AJ8)/2*'Input Sponsor'!$C$15*Work!AJ54 -> 200000 | AK9: =Work!AK10*(AJ8+AK8)/2*'Input Sponsor'!$C$15*Work!AK54 -> 200000 | AL9: =Work!AL10*(AK8+AL8)/2*'Input Sponsor'!$C$15*Work!AL54 -> 200000 | AM9: =Work!AM10*(AL8+AM8)/2*'Input Sponsor'!$C$15*Work!AM54 -> 200000 | AN9: =Work!AN10*(AM8+AN8)/2*'Input Sponsor'!$C$15*Work!AN54 -> 200000 | AO9: =Work!AO10*(AN8+AO8)/2*'Input Sponsor'!$C$15*Work!AO54 -> 200000 | AP9: =Work!AP10*(AO8+AP8)/2*'Input Sponsor'!$C$15*Work!AP54 -> 200000 | AQ9: =Work!AQ10*(AP8+AQ8)/2*'Input Sponsor'!$C$15*Work!AQ54 -> 200000 | AR9: =Work!AR10*(AQ8+AR8)/2*'Input Sponsor'!$C$15*Work!AR54 -> 200000 | AS9: =Work!AS10*(AR8+AS8)/2*'Input Sponsor'!$C$15*Work!AS54 -> 200000 | AT9: =Work!AT10*(AS8+AT8)/2*'Input Sponsor'!$C$15*Work!AT54 -> 200000 | AU9: =Work!AU10*(AT8+AU8)/2*'Input Sponsor'!$C$15*Work!AU54 -> 200000 | AV9: =Work!AV10*(AU8+AV8)/2*'Input Sponsor'!$C$15*Work!AV54 -> 200000 | AW9: =Work!AW10*(AV8+AW8)/2*'Input Sponsor'!$C$15*Work!AW54 -> 200000 | AX9: =Work!AX10*(AW8+AX8)/2*'Input Sponsor'!$C$15*Work!AX54 -> 200000 | AY9: =Work!AY10*(AX8+AY8)/2*'Input Sponsor'!$C$15*Work!AY54 -> 0 | AZ9: =Work!AZ10*(AY8+AZ8)/2*'Input Sponsor'!$C$15*Work!AZ54 -> 0 | BA9: =Work!BA10*(AZ8+BA8)/2*'Input Sponsor'!$C$15*Work!BA54 -> 0 | BB9: =Work!BB10*(BA8+BB8)/2*'Input Sponsor'!$C$15*Work!BB54 -> 0 | BC9: =Work!BC10*(BB8+BC8)/2*'Input Sponsor'!$C$15*Work!BC54 -> 0
A10: Unit Price | C10: =AVERAGE(F10:BC10) -> 0.03243506369 | F10: ='Input Sponsor'!$C$17*Work!F65 -> 0.007838150712 | G10: ='Input Sponsor'!$C$17*Work!G65 -> 0.008133559335 | H10: ='Input Sponsor'!$C$17*Work!H65 -> 0.008540237302 | I10: ='Input Sponsor'!$C$17*Work!I65 -> 0.008967249167 | J10: ='Input Sponsor'!$C$17*Work!J65 -> 0.009415611625 | K10: ='Input Sponsor'!$C$17*Work!K65 -> 0.009886392206 | L10: ='Input Sponsor'!$C$17*Work!L65 -> 0.01038071182 | M10: ='Input Sponsor'!$C$17*Work!M65 -> 0.01089974741 | N10: ='Input Sponsor'!$C$17*Work!N65 -> 0.01144473478 | O10: ='Input Sponsor'!$C$17*Work!O65 -> 0.01201697152 | P10: ='Input Sponsor'!$C$17*Work!P65 -> 0.01261782009 | Q10: ='Input Sponsor'!$C$17*Work!Q65 -> 0.0132487111 | R10: ='Input Sponsor'!$C$17*Work!R65 -> 0.01391114665 | S10: ='Input Sponsor'!$C$17*Work!S65 -> 0.01460670398 | T10: ='Input Sponsor'!$C$17*Work!T65 -> 0.01533703918 | U10: ='Input Sponsor'!$C$17*Work!U65 -> 0.01610389114 | V10: ='Input Sponsor'!$C$17*Work!V65 -> 0.0169090857 | W10: ='Input Sponsor'!$C$17*Work!W65 -> 0.01775453999 | X10: ='Input Sponsor'!$C$17*Work!X65 -> 0.01864226698 | Y10: ='Input Sponsor'!$C$17*Work!Y65 -> 0.01957438033 | Z10: ='Input Sponsor'!$C$17*Work!Z65 -> 0.02055309935 | AA10: ='Input Sponsor'!$C$17*Work!AA65 -> 0.02158075432 | AB10: ='Input Sponsor'!$C$17*Work!AB65 -> 0.02265979203 | AC10: ='Input Sponsor'!$C$17*Work!AC65 -> 0.02379278164 | AD10: ='Input Sponsor'!$C$17*Work!AD65 -> 0.02498242072 | AE10: ='Input Sponsor'!$C$17*Work!AE65 -> 0.02623154175 | AF10: ='Input Sponsor'!$C$17*Work!AF65 -> 0.02754311884 | AG10: ='Input Sponsor'!$C$17*Work!AG65 -> 0.02892027478 | AH10: ='Input Sponsor'!$C$17*Work!AH65 -> 0.03036628852 | AI10: ='Input Sponsor'!$C$17*Work!AI65 -> 0.03188460295 | AJ10: ='Input Sponsor'!$C$17*Work!AJ65 -> 0.0334788331 | AK10: ='Input Sponsor'!$C$17*Work!AK65 -> 0.03515277475 | AL10: ='Input Sponsor'!$C$17*Work!AL65 -> 0.03691041349 | AM10: ='Input Sponsor'!$C$17*Work!AM65 -> 0.03875593416 | AN10: ='Input Sponsor'!$C$17*Work!AN65 -> 0.04069373087 | AO10: ='Input Sponsor'!$C$17*Work!AO65 -> 0.04272841741 | AP10: ='Input Sponsor'!$C$17*Work!AP65 -> 0.04486483828 | AQ10: ='Input Sponsor'!$C$17*Work!AQ65 -> 0.0471080802 | AR10: ='Input Sponsor'!$C$17*Work!AR65 -> 0.04946348421 | AS10: ='Input Sponsor'!$C$17*Work!AS65 -> 0.05193665842 | AT10: ='Input Sponsor'!$C$17*Work!AT65 -> 0.05453349134 | AU10: ='Input Sponsor'!$C$17*Work!AU65 -> 0.05726016591 | AV10: ='Input Sponsor'!$C$17*Work!AV65 -> 0.0601231742 | AW10: ='Input Sponsor'!$C$17*Work!AW65 -> 0.06312933291 | AX10: ='Input Sponsor'!$C$17*Work!AX65 -> 0.06628579956 | AY10: ='Input Sponsor'!$C$17*Work!AY65 -> 0.06960008954 | AZ10: ='Input Sponsor'!$C$17*Work!AZ65 -> 0.07308009401 | BA10: ='Input Sponsor'!$C$17*Work!BA65 -> 0.07673409871 | BB10: ='Input Sponsor'!$C$17*Work!BB65 -> 0.08057080365 | BC10: ='Input Sponsor'!$C$17*Work!BC65 -> 0.08459934383
A11: =A7 -> Revenue [Source Revenue 1] | C11: =SUM(E11:BL11) -> 194510.4815 | F11: =F9*F10*(1-'Input Sponsor'!$C$16) -> 37.82955992 | G11: =G9*G10*(1-'Input Sponsor'!$C$16) -> 312.756526 | H11: =H9*H10*(1-'Input Sponsor'!$C$16) -> 656.3394646 | I11: =I9*I10*(1-'Input Sponsor'!$C$16) -> 1033.498806 | J11: =J9*J10*(1-'Input Sponsor'!$C$16) -> 1386.225675 | K11: =K9*K10*(1-'Input Sponsor'!$C$16) -> 1581.822753 | L11: =L9*L10*(1-'Input Sponsor'!$C$16) -> 1660.913891 | M11: =M9*M10*(1-'Input Sponsor'!$C$16) -> 1743.959585 | N11: =N9*N10*(1-'Input Sponsor'!$C$16) -> 1831.157564 | O11: =O9*O10*(1-'Input Sponsor'!$C$16) -> 1922.715443 | P11: =P9*P10*(1-'Input Sponsor'!$C$16) -> 2018.851215 | Q11: =Q9*Q10*(1-'Input Sponsor'!$C$16) -> 2119.793776 | R11: =R9*R10*(1-'Input Sponsor'!$C$16) -> 2225.783464 | S11: =S9*S10*(1-'Input Sponsor'!$C$16) -> 2337.072638 | T11: =T9*T10*(1-'Input Sponsor'!$C$16) -> 2453.926269 | U11: =U9*U10*(1-'Input Sponsor'!$C$16) -> 2576.622583 | V11: =V9*V10*(1-'Input Sponsor'!$C$16) -> 2705.453712 | W11: =W9*W10*(1-'Input Sponsor'!$C$16) -> 2840.726398 | X11: =X9*X10*(1-'Input Sponsor'!$C$16) -> 2982.762718 | Y11: =Y9*Y10*(1-'Input Sponsor'!$C$16) -> 3131.900853 | Z11: =Z9*Z10*(1-'Input Sponsor'!$C$16) -> 3288.495896 | AA11: =AA9*AA10*(1-'Input Sponsor'!$C$16) -> 3452.920691 | AB11: =AB9*AB10*(1-'Input Sponsor'!$C$16) -> 3625.566725 | AC11: =AC9*AC10*(1-'Input Sponsor'!$C$16) -> 3806.845062 | AD11: =AD9*AD10*(1-'Input Sponsor'!$C$16) -> 3997.187315 | AE11: =AE9*AE10*(1-'Input Sponsor'!$C$16) -> 4197.046681 | AF11: =AF9*AF10*(1-'Input Sponsor'!$C$16) -> 4406.899015 | AG11: =AG9*AG10*(1-'Input Sponsor'!$C$16) -> 4627.243965 | AH11: =AH9*AH10*(1-'Input Sponsor'!$C$16) -> 4858.606164 | AI11: =AI9*AI10*(1-'Input Sponsor'!$C$16) -> 5101.536472 | AJ11: =AJ9*AJ10*(1-'Input Sponsor'!$C$16) -> 5356.613295 | AK11: =AK9*AK10*(1-'Input Sponsor'!$C$16) -> 5624.44396 | AL11: =AL9*AL10*(1-'Input Sponsor'!$C$16) -> 5905.666158 | AM11: =AM9*AM10*(1-'Input Sponsor'!$C$16) -> 6200.949466 | AN11: =AN9*AN10*(1-'Input Sponsor'!$C$16) -> 6510.996939 | AO11: =AO9*AO10*(1-'Input Sponsor'!$C$16) -> 6836.546786 | AP11: =AP9*AP10*(1-'Input Sponsor'!$C$16) -> 7178.374126 | AQ11: =AQ9*AQ10*(1-'Input Sponsor'!$C$16) -> 7537.292832 | AR11: =AR9*AR10*(1-'Input Sponsor'!$C$16) -> 7914.157473 | AS11: =AS9*AS10*(1-'Input Sponsor'!$C$16) -> 8309.865347 | AT11: =AT9*AT10*(1-'Input Sponsor'!$C$16) -> 8725.358614 | AU11: =AU9*AU10*(1-'Input Sponsor'!$C$16) -> 9161.626545 | AV11: =AV9*AV10*(1-'Input Sponsor'!$C$16) -> 9619.707872 | AW11: =AW9*AW10*(1-'Input Sponsor'!$C$16) -> 10100.69327 | AX11: =AX9*AX10*(1-'Input Sponsor'!$C$16) -> 10605.72793 | AY11: =AY9*AY10*(1-'Input Sponsor'!$C$16) -> 0 | AZ11: =AZ9*AZ10*(1-'Input Sponsor'!$C$16) -> 0 | BA11: =BA9*BA10*(1-'Input Sponsor'!$C$16) -> 0 | BB11: =BB9*BB10*(1-'Input Sponsor'!$C$16) -> 0 | BC11: =BC9*BC10*(1-'Input Sponsor'!$C$16) -> 0
A12: ="Revenue "&'Input Sponsor'!A18 -> Revenue [Source Revenue 2]
A13: Installed Capacity [%] | F13: =INDEX(Work!$F77:'Work'!$CA78,Work!$C$77,Work!F$23)*Work!F54 -> 0.1203287671 | G13: =INDEX(Work!$F77:'Work'!$CA78,Work!$C$77,Work!G$23)*Work!G54 -> 0.3603287671 | H13: =INDEX(Work!$F77:'Work'!$CA78,Work!$C$77,Work!H$23)*Work!H54 -> 0.6003287671 | I13: =INDEX(Work!$F77:'Work'!$CA78,Work!$C$77,Work!I$23)*Work!I54 -> 0.8403287671 | J13: =INDEX(Work!$F77:'Work'!$CA78,Work!$C$77,Work!J$23)*Work!J54 -> 1 | K13: =INDEX(Work!$F77:'Work'!$CA78,Work!$C$77,Work!K$23)*Work!K54 -> 1 | L13: =INDEX(Work!$F77:'Work'!$CA78,Work!$C$77,Work!L$23)*Work!L54 -> 1 | M13: =INDEX(Work!$F77:'Work'!$CA78,Work!$C$77,Work!M$23)*Work!M54 -> 1 | N13: =INDEX(Work!$F77:'Work'!$CA78,Work!$C$77,Work!N$23)*Work!N54 -> 1 | O13: =INDEX(Work!$F77:'Work'!$CA78,Work!$C$77,Work!O$23)*Work!O54 -> 1 | P13: =INDEX(Work!$F77:'Work'!$CA78,Work!$C$77,Work!P$23)*Work!P54 -> 1 | Q13: =INDEX(Work!$F77:'Work'!$CA78,Work!$C$77,Work!Q$23)*Work!Q54 -> 1 | R13: =INDEX(Work!$F77:'Work'!$CA78,Work!$C$77,Work!R$23)*Work!R54 -> 1 | S13: =INDEX(Work!$F77:'Work'!$CA78,Work!$C$77,Work!S$23)*Work!S54 -> 1 | T13: =INDEX(Work!$F77:'Work'!$CA78,Work!$C$77,Work!T$23)*Work!T54 -> 1 | U13: =INDEX(Work!$F77:'Work'!$CA78,Work!$C$77,Work!U$23)*Work!U54 -> 1 | V13: =INDEX(Work!$F77:'Work'!$CA78,Work!$C$77,Work!V$23)*Work!V54 -> 1 | W13: =INDEX(Work!$F77:'Work'!$CA78,Work!$C$77,Work!W$23)*Work!W54 -> 1 | X13: =INDEX(Work!$F77:'Work'!$CA78,Work!$C$77,Work!X$23)*Work!X54 -> 1 | Y13: =INDEX(Work!$F77:'Work'!$CA78,Work!$C$77,Work!Y$23)*Work!Y54 -> 1 | Z13: =INDEX(Work!$F77:'Work'!$CA78,Work!$C$77,Work!Z$23)*Work!Z54 -> 1 | AA13: =INDEX(Work!$F77:'Work'!$CA78,Work!$C$77,Work!AA$23)*Work!AA54 -> 1 | AB13: =INDEX(Work!$F77:'Work'!$CA78,Work!$C$77,Work!AB$23)*Work!AB54 -> 1 | AC13: =INDEX(Work!$F77:'Work'!$CA78,Work!$C$77,Work!AC$23)*Work!AC54 -> 1 | AD13: =INDEX(Work!$F77:'Work'!$CA78,Work!$C$77,Work!AD$23)*Work!AD54 -> 1 | AE13: =INDEX(Work!$F77:'Work'!$CA78,Work!$C$77,Work!AE$23)*Work!AE54 -> 1 | AF13: =INDEX(Work!$F77:'Work'!$CA78,Work!$C$77,Work!AF$23)*Work!AF54 -> 1 | AG13: =INDEX(Work!$F77:'Work'!$CA78,Work!$C$77,Work!AG$23)*Work!AG54 -> 1 | AH13: =INDEX(Work!$F77:'Work'!$CA78,Work!$C$77,Work!AH$23)*Work!AH54 -> 1 | AI13: =INDEX(Work!$F77:'Work'!$CA78,Work!$C$77,Work!AI$23)*Work!AI54 -> 1 | AJ13: =INDEX(Work!$F77:'Work'!$CA78,Work!$C$77,Work!AJ$23)*Work!AJ54 -> 1 | AK13: =INDEX(Work!$F77:'Work'!$CA78,Work!$C$77,Work!AK$23)*Work!AK54 -> 1 | AL13: =INDEX(Work!$F77:'Work'!$CA78,Work!$C$77,Work!AL$23)*Work!AL54 -> 1 | AM13: =INDEX(Work!$F77:'Work'!$CA78,Work!$C$77,Work!AM$23)*Work!AM54 -> 1 | AN13: =INDEX(Work!$F77:'Work'!$CA78,Work!$C$77,Work!AN$23)*Work!AN54 -> 1 | AO13: =INDEX(Work!$F77:'Work'!$CA78,Work!$C$77,Work!AO$23)*Work!AO54 -> 1 | AP13: =INDEX(Work!$F77:'Work'!$CA78,Work!$C$77,Work!AP$23)*Work!AP54 -> 1 | AQ13: =INDEX(Work!$F77:'Work'!$CA78,Work!$C$77,Work!AQ$23)*Work!AQ54 -> 1 | AR13: =INDEX(Work!$F77:'Work'!$CA78,Work!$C$77,Work!AR$23)*Work!AR54 -> 1 | AS13: =INDEX(Work!$F77:'Work'!$CA78,Work!$C$77,Work!AS$23)*Work!AS54 -> 1 | AT13: =INDEX(Work!$F77:'Work'!$CA78,Work!$C$77,Work!AT$23)*Work!AT54 -> 1 | AU13: =INDEX(Work!$F77:'Work'!$CA78,Work!$C$77,Work!AU$23)*Work!AU54 -> 1 | AV13: =INDEX(Work!$F77:'Work'!$CA78,Work!$C$77,Work!AV$23)*Work!AV54 -> 1 | AW13: =INDEX(Work!$F77:'Work'!$CA78,Work!$C$77,Work!AW$23)*Work!AW54 -> 1 | AX13: =INDEX(Work!$F77:'Work'!$CA78,Work!$C$77,Work!AX$23)*Work!AX54 -> 1 | AY13: =INDEX(Work!$F77:'Work'!$CA78,Work!$C$77,Work!AY$23)*Work!AY54 -> 0 | AZ13: =INDEX(Work!$F77:'Work'!$CA78,Work!$C$77,Work!AZ$23)*Work!AZ54 -> 0 | BA13: =INDEX(Work!$F77:'Work'!$CA78,Work!$C$77,Work!BA$23)*Work!BA54 -> 0 | BB13: =INDEX(Work!$F77:'Work'!$CA78,Work!$C$77,Work!BB$23)*Work!BB54 -> 0 | BC13: =INDEX(Work!$F77:'Work'!$CA78,Work!$C$77,Work!BC$23)*Work!BC54 -> 0
A14: Production Value | C14: =MAX(F14:BC14) -> 4000 | F14: ='Input Sponsor'!$C$19*(F13+E13)/2*Work!F10*Work!F54 -> 120.658435 | G14: ='Input Sponsor'!$C$19*(G13+F13)/2*Work!G10*Work!G54 -> 961.3150685 | H14: ='Input Sponsor'!$C$19*(H13+G13)/2*Work!H10*Work!H54 -> 1921.315068 | I14: ='Input Sponsor'!$C$19*(I13+H13)/2*Work!I10*Work!I54 -> 2881.315068 | J14: ='Input Sponsor'!$C$19*(J13+I13)/2*Work!J10*Work!J54 -> 3680.657534 | K14: ='Input Sponsor'!$C$19*(K13+J13)/2*Work!K10*Work!K54 -> 4000 | L14: ='Input Sponsor'!$C$19*(L13+K13)/2*Work!L10*Work!L54 -> 4000 | M14: ='Input Sponsor'!$C$19*(M13+L13)/2*Work!M10*Work!M54 -> 4000 | N14: ='Input Sponsor'!$C$19*(N13+M13)/2*Work!N10*Work!N54 -> 4000 | O14: ='Input Sponsor'!$C$19*(O13+N13)/2*Work!O10*Work!O54 -> 4000 | P14: ='Input Sponsor'!$C$19*(P13+O13)/2*Work!P10*Work!P54 -> 4000 | Q14: ='Input Sponsor'!$C$19*(Q13+P13)/2*Work!Q10*Work!Q54 -> 4000 | R14: ='Input Sponsor'!$C$19*(R13+Q13)/2*Work!R10*Work!R54 -> 4000 | S14: ='Input Sponsor'!$C$19*(S13+R13)/2*Work!S10*Work!S54 -> 4000 | T14: ='Input Sponsor'!$C$19*(T13+S13)/2*Work!T10*Work!T54 -> 4000 | U14: ='Input Sponsor'!$C$19*(U13+T13)/2*Work!U10*Work!U54 -> 4000 | V14: ='Input Sponsor'!$C$19*(V13+U13)/2*Work!V10*Work!V54 -> 4000 | W14: ='Input Sponsor'!$C$19*(W13+V13)/2*Work!W10*Work!W54 -> 4000 | X14: ='Input Sponsor'!$C$19*(X13+W13)/2*Work!X10*Work!X54 -> 4000 | Y14: ='Input Sponsor'!$C$19*(Y13+X13)/2*Work!Y10*Work!Y54 -> 4000 | Z14: ='Input Sponsor'!$C$19*(Z13+Y13)/2*Work!Z10*Work!Z54 -> 4000 | AA14: ='Input Sponsor'!$C$19*(AA13+Z13)/2*Work!AA10*Work!AA54 -> 4000 | AB14: ='Input Sponsor'!$C$19*(AB13+AA13)/2*Work!AB10*Work!AB54 -> 4000 | AC14: ='Input Sponsor'!$C$19*(AC13+AB13)/2*Work!AC10*Work!AC54 -> 4000 | AD14: ='Input Sponsor'!$C$19*(AD13+AC13)/2*Work!AD10*Work!AD54 -> 4000 | AE14: ='Input Sponsor'!$C$19*(AE13+AD13)/2*Work!AE10*Work!AE54 -> 4000 | AF14: ='Input Sponsor'!$C$19*(AF13+AE13)/2*Work!AF10*Work!AF54 -> 4000 | AG14: ='Input Sponsor'!$C$19*(AG13+AF13)/2*Work!AG10*Work!AG54 -> 4000 | AH14: ='Input Sponsor'!$C$19*(AH13+AG13)/2*Work!AH10*Work!AH54 -> 4000 | AI14: ='Input Sponsor'!$C$19*(AI13+AH13)/2*Work!AI10*Work!AI54 -> 4000 | AJ14: ='Input Sponsor'!$C$19*(AJ13+AI13)/2*Work!AJ10*Work!AJ54 -> 4000 | AK14: ='Input Sponsor'!$C$19*(AK13+AJ13)/2*Work!AK10*Work!AK54 -> 4000 | AL14: ='Input Sponsor'!$C$19*(AL13+AK13)/2*Work!AL10*Work!AL54 -> 4000 | AM14: ='Input Sponsor'!$C$19*(AM13+AL13)/2*Work!AM10*Work!AM54 -> 4000 | AN14: ='Input Sponsor'!$C$19*(AN13+AM13)/2*Work!AN10*Work!AN54 -> 4000 | AO14: ='Input Sponsor'!$C$19*(AO13+AN13)/2*Work!AO10*Work!AO54 -> 4000 | AP14: ='Input Sponsor'!$C$19*(AP13+AO13)/2*Work!AP10*Work!AP54 -> 4000 | AQ14: ='Input Sponsor'!$C$19*(AQ13+AP13)/2*Work!AQ10*Work!AQ54 -> 4000 | AR14: ='Input Sponsor'!$C$19*(AR13+AQ13)/2*Work!AR10*Work!AR54 -> 4000 | AS14: ='Input Sponsor'!$C$19*(AS13+AR13)/2*Work!AS10*Work!AS54 -> 4000 | AT14: ='Input Sponsor'!$C$19*(AT13+AS13)/2*Work!AT10*Work!AT54 -> 4000 | AU14: ='Input Sponsor'!$C$19*(AU13+AT13)/2*Work!AU10*Work!AU54 -> 4000 | AV14: ='Input Sponsor'!$C$19*(AV13+AU13)/2*Work!AV10*Work!AV54 -> 4000 | AW14: ='Input Sponsor'!$C$19*(AW13+AV13)/2*Work!AW10*Work!AW54 -> 4000 | AX14: ='Input Sponsor'!$C$19*(AX13+AW13)/2*Work!AX10*Work!AX54 -> 4000 | AY14: ='Input Sponsor'!$C$19*(AY13+AX13)/2*Work!AY10*Work!AY54 -> 0 | AZ14: ='Input Sponsor'!$C$19*(AZ13+AY13)/2*Work!AZ10*Work!AZ54 -> 0 | BA14: ='Input Sponsor'!$C$19*(BA13+AZ13)/2*Work!BA10*Work!BA54 -> 0 | BB14: ='Input Sponsor'!$C$19*(BB13+BA13)/2*Work!BB10*Work!BB54 -> 0 | BC14: ='Input Sponsor'!$C$19*(BC13+BB13)/2*Work!BC10*Work!BC54 -> 0
A15: Unit Price | C15: =AVERAGE(F15:BC15) -> 5.897284307e-05 | F15: ='Input Sponsor'!$C$21*Work!F65 -> 1.425118311e-05 | G15: ='Input Sponsor'!$C$21*Work!G65 -> 1.47882897e-05 | H15: ='Input Sponsor'!$C$21*Work!H65 -> 1.552770418e-05 | I15: ='Input Sponsor'!$C$21*Work!I65 -> 1.630408939e-05 | J15: ='Input Sponsor'!$C$21*Work!J65 -> 1.711929386e-05 | K15: ='Input Sponsor'!$C$21*Work!K65 -> 1.797525856e-05 | L15: ='Input Sponsor'!$C$21*Work!L65 -> 1.887402148e-05 | M15: ='Input Sponsor'!$C$21*Work!M65 -> 1.981772256e-05 | N15: ='Input Sponsor'!$C$21*Work!N65 -> 2.080860869e-05 | O15: ='Input Sponsor'!$C$21*Work!O65 -> 2.184903912e-05 | P15: ='Input Sponsor'!$C$21*Work!P65 -> 2.294149108e-05 | Q15: ='Input Sponsor'!$C$21*Work!Q65 -> 2.408856563e-05 | R15: ='Input Sponsor'!$C$21*Work!R65 -> 2.529299391e-05 | S15: ='Input Sponsor'!$C$21*Work!S65 -> 2.655764361e-05 | T15: ='Input Sponsor'!$C$21*Work!T65 -> 2.788552579e-05 | U15: ='Input Sponsor'!$C$21*Work!U65 -> 2.927980208e-05 | V15: ='Input Sponsor'!$C$21*Work!V65 -> 3.074379218e-05 | W15: ='Input Sponsor'!$C$21*Work!W65 -> 3.228098179e-05 | X15: ='Input Sponsor'!$C$21*Work!X65 -> 3.389503088e-05 | Y15: ='Input Sponsor'!$C$21*Work!Y65 -> 3.558978243e-05 | Z15: ='Input Sponsor'!$C$21*Work!Z65 -> 3.736927155e-05 | AA15: ='Input Sponsor'!$C$21*Work!AA65 -> 3.923773512e-05 | AB15: ='Input Sponsor'!$C$21*Work!AB65 -> 4.119962188e-05 | AC15: ='Input Sponsor'!$C$21*Work!AC65 -> 4.325960297e-05 | AD15: ='Input Sponsor'!$C$21*Work!AD65 -> 4.542258312e-05 | AE15: ='Input Sponsor'!$C$21*Work!AE65 -> 4.769371228e-05 | AF15: ='Input Sponsor'!$C$21*Work!AF65 -> 5.007839789e-05 | AG15: ='Input Sponsor'!$C$21*Work!AG65 -> 5.258231779e-05 | AH15: ='Input Sponsor'!$C$21*Work!AH65 -> 5.521143368e-05 | AI15: ='Input Sponsor'!$C$21*Work!AI65 -> 5.797200536e-05 | AJ15: ='Input Sponsor'!$C$21*Work!AJ65 -> 6.087060563e-05 | AK15: ='Input Sponsor'!$C$21*Work!AK65 -> 6.391413591e-05 | AL15: ='Input Sponsor'!$C$21*Work!AL65 -> 6.710984271e-05 | AM15: ='Input Sponsor'!$C$21*Work!AM65 -> 7.046533484e-05 | AN15: ='Input Sponsor'!$C$21*Work!AN65 -> 7.398860158e-05 | AO15: ='Input Sponsor'!$C$21*Work!AO65 -> 7.768803166e-05 | AP15: ='Input Sponsor'!$C$21*Work!AP65 -> 8.157243324e-05 | AQ15: ='Input Sponsor'!$C$21*Work!AQ65 -> 8.565105491e-05 | AR15: ='Input Sponsor'!$C$21*Work!AR65 -> 8.993360765e-05 | AS15: ='Input Sponsor'!$C$21*Work!AS65 -> 9.443028803e-05 | AT15: ='Input Sponsor'!$C$21*Work!AT65 -> 9.915180244e-05 | AU15: ='Input Sponsor'!$C$21*Work!AU65 -> 0.0001041093926 | AV15: ='Input Sponsor'!$C$21*Work!AV65 -> 0.0001093148622 | AW15: ='Input Sponsor'!$C$21*Work!AW65 -> 0.0001147806053 | AX15: ='Input Sponsor'!$C$21*Work!AX65 -> 0.0001205196356 | AY15: ='Input Sponsor'!$C$21*Work!AY65 -> 0.0001265456173 | AZ15: ='Input Sponsor'!$C$21*Work!AZ65 -> 0.0001328728982 | BA15: ='Input Sponsor'!$C$21*Work!BA65 -> 0.0001395165431 | BB15: ='Input Sponsor'!$C$21*Work!BB65 -> 0.0001464923703 | BC15: ='Input Sponsor'!$C$21*Work!BC65 -> 0.0001538169888
A16: Revenue | C16: =SUM(E16:BL16) -> 8.399316246 | F16: =F14*F15*(1-'Input Sponsor'!$C$20) -> 0.001633549178 | G16: =G14*G15*(1-'Input Sponsor'!$C$20) -> 0.01350539544 | H16: =H14*H15*(1-'Input Sponsor'!$C$20) -> 0.02834193143 | I16: =I14*I15*(1-'Input Sponsor'!$C$20) -> 0.04462835753 | J16: =J14*J15*(1-'Input Sponsor'!$C$20) -> 0.05985974504 | K16: =K14*K15*(1-'Input Sponsor'!$C$20) -> 0.06830598252 | L16: =L14*L15*(1-'Input Sponsor'!$C$20) -> 0.07172128164 | M16: =M14*M15*(1-'Input Sponsor'!$C$20) -> 0.07530734572 | N16: =N14*N15*(1-'Input Sponsor'!$C$20) -> 0.07907271301 | O16: =O14*O15*(1-'Input Sponsor'!$C$20) -> 0.08302634866 | P16: =P14*P15*(1-'Input Sponsor'!$C$20) -> 0.08717766609 | Q16: =Q14*Q15*(1-'Input Sponsor'!$C$20) -> 0.0915365494 | R16: =R14*R15*(1-'Input Sponsor'!$C$20) -> 0.09611337687 | S16: =S14*S15*(1-'Input Sponsor'!$C$20) -> 0.1009190457 | T16: =T14*T15*(1-'Input Sponsor'!$C$20) -> 0.105964998 | U16: =U14*U15*(1-'Input Sponsor'!$C$20) -> 0.1112632479 | V16: =V14*V15*(1-'Input Sponsor'!$C$20) -> 0.1168264103 | W16: =W14*W15*(1-'Input Sponsor'!$C$20) -> 0.1226677308 | X16: =X14*X15*(1-'Input Sponsor'!$C$20) -> 0.1288011173 | Y16: =Y14*Y15*(1-'Input Sponsor'!$C$20) -> 0.1352411732 | Z16: =Z14*Z15*(1-'Input Sponsor'!$C$20) -> 0.1420032319 | AA16: =AA14*AA15*(1-'Input Sponsor'!$C$20) -> 0.1491033935 | AB16: =AB14*AB15*(1-'Input Sponsor'!$C$20) -> 0.1565585631 | AC16: =AC14*AC15*(1-'Input Sponsor'!$C$20) -> 0.1643864913 | AD16: =AD14*AD15*(1-'Input Sponsor'!$C$20) -> 0.1726058159 | AE16: =AE14*AE15*(1-'Input Sponsor'!$C$20) -> 0.1812361067 | AF16: =AF14*AF15*(1-'Input Sponsor'!$C$20) -> 0.190297912 | AG16: =AG14*AG15*(1-'Input Sponsor'!$C$20) -> 0.1998128076 | AH16: =AH14*AH15*(1-'Input Sponsor'!$C$20) -> 0.209803448 | AI16: =AI14*AI15*(1-'Input Sponsor'!$C$20) -> 0.2202936204 | AJ16: =AJ14*AJ15*(1-'Input Sponsor'!$C$20) -> 0.2313083014 | AK16: =AK14*AK15*(1-'Input Sponsor'!$C$20) -> 0.2428737165 | AL16: =AL14*AL15*(1-'Input Sponsor'!$C$20) -> 0.2550174023 | AM16: =AM14*AM15*(1-'Input Sponsor'!$C$20) -> 0.2677682724 | AN16: =AN14*AN15*(1-'Input Sponsor'!$C$20) -> 0.281156686 | AO16: =AO14*AO15*(1-'Input Sponsor'!$C$20) -> 0.2952145203 | AP16: =AP14*AP15*(1-'Input Sponsor'!$C$20) -> 0.3099752463 | AQ16: =AQ14*AQ15*(1-'Input Sponsor'!$C$20) -> 0.3254740086 | AR16: =AR14*AR15*(1-'Input Sponsor'!$C$20) -> 0.3417477091 | AS16: =AS14*AS15*(1-'Input Sponsor'!$C$20) -> 0.3588350945 | AT16: =AT14*AT15*(1-'Input Sponsor'!$C$20) -> 0.3767768493 | AU16: =AU14*AU15*(1-'Input Sponsor'!$C$20) -> 0.3956156917 | AV16: =AV14*AV15*(1-'Input Sponsor'!$C$20) -> 0.4153964763 | AW16: =AW14*AW15*(1-'Input Sponsor'!$C$20) -> 0.4361663001 | AX16: =AX14*AX15*(1-'Input Sponsor'!$C$20) -> 0.4579746151 | AY16: =AY14*AY15*(1-'Input Sponsor'!$C$20) -> 0 | AZ16: =AZ14*AZ15*(1-'Input Sponsor'!$C$20) -> 0 | BA16: =BA14*BA15*(1-'Input Sponsor'!$C$20) -> 0 | BB16: =BB14*BB15*(1-'Input Sponsor'!$C$20) -> 0 | BC16: =BC14*BC15*(1-'Input Sponsor'!$C$20) -> 0
A17: ="Revenue "&'Input Sponsor'!A22 -> Revenue [Source Revenue 3]
A18: Installed Capacity [%] | F18: =INDEX(Work!$F77:'Work'!$CA78,Work!$C$77,Work!F$23)*Work!F54 -> 0.1203287671 | G18: =INDEX(Work!$F77:'Work'!$CA78,Work!$C$77,Work!G$23)*Work!G54 -> 0.3603287671 | H18: =INDEX(Work!$F77:'Work'!$CA78,Work!$C$77,Work!H$23)*Work!H54 -> 0.6003287671 | I18: =INDEX(Work!$F77:'Work'!$CA78,Work!$C$77,Work!I$23)*Work!I54 -> 0.8403287671 | J18: =INDEX(Work!$F77:'Work'!$CA78,Work!$C$77,Work!J$23)*Work!J54 -> 1 | K18: =INDEX(Work!$F77:'Work'!$CA78,Work!$C$77,Work!K$23)*Work!K54 -> 1 | L18: =INDEX(Work!$F77:'Work'!$CA78,Work!$C$77,Work!L$23)*Work!L54 -> 1 | M18: =INDEX(Work!$F77:'Work'!$CA78,Work!$C$77,Work!M$23)*Work!M54 -> 1 | N18: =INDEX(Work!$F77:'Work'!$CA78,Work!$C$77,Work!N$23)*Work!N54 -> 1 | O18: =INDEX(Work!$F77:'Work'!$CA78,Work!$C$77,Work!O$23)*Work!O54 -> 1 | P18: =INDEX(Work!$F77:'Work'!$CA78,Work!$C$77,Work!P$23)*Work!P54 -> 1 | Q18: =INDEX(Work!$F77:'Work'!$CA78,Work!$C$77,Work!Q$23)*Work!Q54 -> 1 | R18: =INDEX(Work!$F77:'Work'!$CA78,Work!$C$77,Work!R$23)*Work!R54 -> 1 | S18: =INDEX(Work!$F77:'Work'!$CA78,Work!$C$77,Work!S$23)*Work!S54 -> 1 | T18: =INDEX(Work!$F77:'Work'!$CA78,Work!$C$77,Work!T$23)*Work!T54 -> 1 | U18: =INDEX(Work!$F77:'Work'!$CA78,Work!$C$77,Work!U$23)*Work!U54 -> 1 | V18: =INDEX(Work!$F77:'Work'!$CA78,Work!$C$77,Work!V$23)*Work!V54 -> 1 | W18: =INDEX(Work!$F77:'Work'!$CA78,Work!$C$77,Work!W$23)*Work!W54 -> 1 | X18: =INDEX(Work!$F77:'Work'!$CA78,Work!$C$77,Work!X$23)*Work!X54 -> 1 | Y18: =INDEX(Work!$F77:'Work'!$CA78,Work!$C$77,Work!Y$23)*Work!Y54 -> 1 | Z18: =INDEX(Work!$F77:'Work'!$CA78,Work!$C$77,Work!Z$23)*Work!Z54 -> 1 | AA18: =INDEX(Work!$F77:'Work'!$CA78,Work!$C$77,Work!AA$23)*Work!AA54 -> 1 | AB18: =INDEX(Work!$F77:'Work'!$CA78,Work!$C$77,Work!AB$23)*Work!AB54 -> 1 | AC18: =INDEX(Work!$F77:'Work'!$CA78,Work!$C$77,Work!AC$23)*Work!AC54 -> 1 | AD18: =INDEX(Work!$F77:'Work'!$CA78,Work!$C$77,Work!AD$23)*Work!AD54 -> 1 | AE18: =INDEX(Work!$F77:'Work'!$CA78,Work!$C$77,Work!AE$23)*Work!AE54 -> 1 | AF18: =INDEX(Work!$F77:'Work'!$CA78,Work!$C$77,Work!AF$23)*Work!AF54 -> 1 | AG18: =INDEX(Work!$F77:'Work'!$CA78,Work!$C$77,Work!AG$23)*Work!AG54 -> 1 | AH18: =INDEX(Work!$F77:'Work'!$CA78,Work!$C$77,Work!AH$23)*Work!AH54 -> 1 | AI18: =INDEX(Work!$F77:'Work'!$CA78,Work!$C$77,Work!AI$23)*Work!AI54 -> 1 | AJ18: =INDEX(Work!$F77:'Work'!$CA78,Work!$C$77,Work!AJ$23)*Work!AJ54 -> 1 | AK18: =INDEX(Work!$F77:'Work'!$CA78,Work!$C$77,Work!AK$23)*Work!AK54 -> 1 | AL18: =INDEX(Work!$F77:'Work'!$CA78,Work!$C$77,Work!AL$23)*Work!AL54 -> 1 | AM18: =INDEX(Work!$F77:'Work'!$CA78,Work!$C$77,Work!AM$23)*Work!AM54 -> 1 | AN18: =INDEX(Work!$F77:'Work'!$CA78,Work!$C$77,Work!AN$23)*Work!AN54 -> 1 | AO18: =INDEX(Work!$F77:'Work'!$CA78,Work!$C$77,Work!AO$23)*Work!AO54 -> 1 | AP18: =INDEX(Work!$F77:'Work'!$CA78,Work!$C$77,Work!AP$23)*Work!AP54 -> 1 | AQ18: =INDEX(Work!$F77:'Work'!$CA78,Work!$C$77,Work!AQ$23)*Work!AQ54 -> 1 | AR18: =INDEX(Work!$F77:'Work'!$CA78,Work!$C$77,Work!AR$23)*Work!AR54 -> 1 | AS18: =INDEX(Work!$F77:'Work'!$CA78,Work!$C$77,Work!AS$23)*Work!AS54 -> 1 | AT18: =INDEX(Work!$F77:'Work'!$CA78,Work!$C$77,Work!AT$23)*Work!AT54 -> 1 | AU18: =INDEX(Work!$F77:'Work'!$CA78,Work!$C$77,Work!AU$23)*Work!AU54 -> 1 | AV18: =INDEX(Work!$F77:'Work'!$CA78,Work!$C$77,Work!AV$23)*Work!AV54 -> 1 | AW18: =INDEX(Work!$F77:'Work'!$CA78,Work!$C$77,Work!AW$23)*Work!AW54 -> 1 | AX18: =INDEX(Work!$F77:'Work'!$CA78,Work!$C$77,Work!AX$23)*Work!AX54 -> 1 | AY18: =INDEX(Work!$F77:'Work'!$CA78,Work!$C$77,Work!AY$23)*Work!AY54 -> 0 | AZ18: =INDEX(Work!$F77:'Work'!$CA78,Work!$C$77,Work!AZ$23)*Work!AZ54 -> 0 | BA18: =INDEX(Work!$F77:'Work'!$CA78,Work!$C$77,Work!BA$23)*Work!BA54 -> 0 | BB18: =INDEX(Work!$F77:'Work'!$CA78,Work!$C$77,Work!BB$23)*Work!BB54 -> 0 | BC18: =INDEX(Work!$F77:'Work'!$CA78,Work!$C$77,Work!BC$23)*Work!BC54 -> 0
A19: Production Value | C19: =MAX(F19:BC19) -> 10000 | F19: =(F18+E18)/2*'Input Sponsor'!$C$23*Work!F10*Work!F54 -> 301.6460874 | G19: =(G18+F18)/2*'Input Sponsor'!$C$23*Work!G10*Work!G54 -> 2403.287671 | H19: =(H18+G18)/2*'Input Sponsor'!$C$23*Work!H10*Work!H54 -> 4803.287671 | I19: =(I18+H18)/2*'Input Sponsor'!$C$23*Work!I10*Work!I54 -> 7203.287671 | J19: =(J18+I18)/2*'Input Sponsor'!$C$23*Work!J10*Work!J54 -> 9201.643836 | K19: =(K18+J18)/2*'Input Sponsor'!$C$23*Work!K10*Work!K54 -> 10000 | L19: =(L18+K18)/2*'Input Sponsor'!$C$23*Work!L10*Work!L54 -> 10000 | M19: =(M18+L18)/2*'Input Sponsor'!$C$23*Work!M10*Work!M54 -> 10000 | N19: =(N18+M18)/2*'Input Sponsor'!$C$23*Work!N10*Work!N54 -> 10000 | O19: =(O18+N18)/2*'Input Sponsor'!$C$23*Work!O10*Work!O54 -> 10000 | P19: =(P18+O18)/2*'Input Sponsor'!$C$23*Work!P10*Work!P54 -> 10000 | Q19: =(Q18+P18)/2*'Input Sponsor'!$C$23*Work!Q10*Work!Q54 -> 10000 | R19: =(R18+Q18)/2*'Input Sponsor'!$C$23*Work!R10*Work!R54 -> 10000 | S19: =(S18+R18)/2*'Input Sponsor'!$C$23*Work!S10*Work!S54 -> 10000 | T19: =(T18+S18)/2*'Input Sponsor'!$C$23*Work!T10*Work!T54 -> 10000 | U19: =(U18+T18)/2*'Input Sponsor'!$C$23*Work!U10*Work!U54 -> 10000 | V19: =(V18+U18)/2*'Input Sponsor'!$C$23*Work!V10*Work!V54 -> 10000 | W19: =(W18+V18)/2*'Input Sponsor'!$C$23*Work!W10*Work!W54 -> 10000 | X19: =(X18+W18)/2*'Input Sponsor'!$C$23*Work!X10*Work!X54 -> 10000 | Y19: =(Y18+X18)/2*'Input Sponsor'!$C$23*Work!Y10*Work!Y54 -> 10000 | Z19: =(Z18+Y18)/2*'Input Sponsor'!$C$23*Work!Z10*Work!Z54 -> 10000 | AA19: =(AA18+Z18)/2*'Input Sponsor'!$C$23*Work!AA10*Work!AA54 -> 10000 | AB19: =(AB18+AA18)/2*'Input Sponsor'!$C$23*Work!AB10*Work!AB54 -> 10000 | AC19: =(AC18+AB18)/2*'Input Sponsor'!$C$23*Work!AC10*Work!AC54 -> 10000 | AD19: =(AD18+AC18)/2*'Input Sponsor'!$C$23*Work!AD10*Work!AD54 -> 10000 | AE19: =(AE18+AD18)/2*'Input Sponsor'!$C$23*Work!AE10*Work!AE54 -> 10000 | AF19: =(AF18+AE18)/2*'Input Sponsor'!$C$23*Work!AF10*Work!AF54 -> 10000 | AG19: =(AG18+AF18)/2*'Input Sponsor'!$C$23*Work!AG10*Work!AG54 -> 10000 | AH19: =(AH18+AG18)/2*'Input Sponsor'!$C$23*Work!AH10*Work!AH54 -> 10000 | AI19: =(AI18+AH18)/2*'Input Sponsor'!$C$23*Work!AI10*Work!AI54 -> 10000 | AJ19: =(AJ18+AI18)/2*'Input Sponsor'!$C$23*Work!AJ10*Work!AJ54 -> 10000 | AK19: =(AK18+AJ18)/2*'Input Sponsor'!$C$23*Work!AK10*Work!AK54 -> 10000 | AL19: =(AL18+AK18)/2*'Input Sponsor'!$C$23*Work!AL10*Work!AL54 -> 10000 | AM19: =(AM18+AL18)/2*'Input Sponsor'!$C$23*Work!AM10*Work!AM54 -> 10000 | AN19: =(AN18+AM18)/2*'Input Sponsor'!$C$23*Work!AN10*Work!AN54 -> 10000 | AO19: =(AO18+AN18)/2*'Input Sponsor'!$C$23*Work!AO10*Work!AO54 -> 10000 | AP19: =(AP18+AO18)/2*'Input Sponsor'!$C$23*Work!AP10*Work!AP54 -> 10000 | AQ19: =(AQ18+AP18)/2*'Input Sponsor'!$C$23*Work!AQ10*Work!AQ54 -> 10000 | AR19: =(AR18+AQ18)/2*'Input Sponsor'!$C$23*Work!AR10*Work!AR54 -> 10000 | AS19: =(AS18+AR18)/2*'Input Sponsor'!$C$23*Work!AS10*Work!AS54 -> 10000 | AT19: =(AT18+AS18)/2*'Input Sponsor'!$C$23*Work!AT10*Work!AT54 -> 10000 | AU19: =(AU18+AT18)/2*'Input Sponsor'!$C$23*Work!AU10*Work!AU54 -> 10000 | AV19: =(AV18+AU18)/2*'Input Sponsor'!$C$23*Work!AV10*Work!AV54 -> 10000 | AW19: =(AW18+AV18)/2*'Input Sponsor'!$C$23*Work!AW10*Work!AW54 -> 10000 | AX19: =(AX18+AW18)/2*'Input Sponsor'!$C$23*Work!AX10*Work!AX54 -> 10000 | AY19: =(AY18+AX18)/2*'Input Sponsor'!$C$23*Work!AY10*Work!AY54 -> 0 | AZ19: =(AZ18+AY18)/2*'Input Sponsor'!$C$23*Work!AZ10*Work!AZ54 -> 0 | BA19: =(BA18+AZ18)/2*'Input Sponsor'!$C$23*Work!BA10*Work!BA54 -> 0 | BB19: =(BB18+BA18)/2*'Input Sponsor'!$C$23*Work!BB10*Work!BB54 -> 0 | BC19: =(BC18+BB18)/2*'Input Sponsor'!$C$23*Work!BC10*Work!BC54 -> 0
A20: Unit Price | C20: =AVERAGE(F20:BC20) -> 2.948642154e-05 | F20: ='Input Sponsor'!$C$25*Work!F65 -> 7.125591557e-06 | G20: ='Input Sponsor'!$C$25*Work!G65 -> 7.39414485e-06 | H20: ='Input Sponsor'!$C$25*Work!H65 -> 7.763852092e-06 | I20: ='Input Sponsor'!$C$25*Work!I65 -> 8.152044697e-06 | J20: ='Input Sponsor'!$C$25*Work!J65 -> 8.559646932e-06 | K20: ='Input Sponsor'!$C$25*Work!K65 -> 8.987629278e-06 | L20: ='Input Sponsor'!$C$25*Work!L65 -> 9.437010742e-06 | M20: ='Input Sponsor'!$C$25*Work!M65 -> 9.90886128e-06 | N20: ='Input Sponsor'!$C$25*Work!N65 -> 1.040430434e-05 | O20: ='Input Sponsor'!$C$25*Work!O65 -> 1.092451956e-05 | P20: ='Input Sponsor'!$C$25*Work!P65 -> 1.147074554e-05 | Q20: ='Input Sponsor'!$C$25*Work!Q65 -> 1.204428282e-05 | R20: ='Input Sponsor'!$C$25*Work!R65 -> 1.264649696e-05 | S20: ='Input Sponsor'!$C$25*Work!S65 -> 1.32788218e-05 | T20: ='Input Sponsor'!$C$25*Work!T65 -> 1.394276289e-05 | U20: ='Input Sponsor'!$C$25*Work!U65 -> 1.463990104e-05 | V20: ='Input Sponsor'!$C$25*Work!V65 -> 1.537189609e-05 | W20: ='Input Sponsor'!$C$25*Work!W65 -> 1.61404909e-05 | X20: ='Input Sponsor'!$C$25*Work!X65 -> 1.694751544e-05 | Y20: ='Input Sponsor'!$C$25*Work!Y65 -> 1.779489121e-05 | Z20: ='Input Sponsor'!$C$25*Work!Z65 -> 1.868463577e-05 | AA20: ='Input Sponsor'!$C$25*Work!AA65 -> 1.961886756e-05 | AB20: ='Input Sponsor'!$C$25*Work!AB65 -> 2.059981094e-05 | AC20: ='Input Sponsor'!$C$25*Work!AC65 -> 2.162980149e-05 | AD20: ='Input Sponsor'!$C$25*Work!AD65 -> 2.271129156e-05 | AE20: ='Input Sponsor'!$C$25*Work!AE65 -> 2.384685614e-05 | AF20: ='Input Sponsor'!$C$25*Work!AF65 -> 2.503919895e-05 | AG20: ='Input Sponsor'!$C$25*Work!AG65 -> 2.629115889e-05 | AH20: ='Input Sponsor'!$C$25*Work!AH65 -> 2.760571684e-05 | AI20: ='Input Sponsor'!$C$25*Work!AI65 -> 2.898600268e-05 | AJ20: ='Input Sponsor'!$C$25*Work!AJ65 -> 3.043530281e-05 | AK20: ='Input Sponsor'!$C$25*Work!AK65 -> 3.195706795e-05 | AL20: ='Input Sponsor'!$C$25*Work!AL65 -> 3.355492135e-05 | AM20: ='Input Sponsor'!$C$25*Work!AM65 -> 3.523266742e-05 | AN20: ='Input Sponsor'!$C$25*Work!AN65 -> 3.699430079e-05 | AO20: ='Input Sponsor'!$C$25*Work!AO65 -> 3.884401583e-05 | AP20: ='Input Sponsor'!$C$25*Work!AP65 -> 4.078621662e-05 | AQ20: ='Input Sponsor'!$C$25*Work!AQ65 -> 4.282552745e-05 | AR20: ='Input Sponsor'!$C$25*Work!AR65 -> 4.496680383e-05 | AS20: ='Input Sponsor'!$C$25*Work!AS65 -> 4.721514402e-05 | AT20: ='Input Sponsor'!$C$25*Work!AT65 -> 4.957590122e-05 | AU20: ='Input Sponsor'!$C$25*Work!AU65 -> 5.205469628e-05 | AV20: ='Input Sponsor'!$C$25*Work!AV65 -> 5.465743109e-05 | AW20: ='Input Sponsor'!$C$25*Work!AW65 -> 5.739030265e-05 | AX20: ='Input Sponsor'!$C$25*Work!AX65 -> 6.025981778e-05 | AY20: ='Input Sponsor'!$C$25*Work!AY65 -> 6.327280867e-05 | AZ20: ='Input Sponsor'!$C$25*Work!AZ65 -> 6.64364491e-05 | BA20: ='Input Sponsor'!$C$25*Work!BA65 -> 6.975827156e-05 | BB20: ='Input Sponsor'!$C$25*Work!BB65 -> 7.324618514e-05 | BC20: ='Input Sponsor'!$C$25*Work!BC65 -> 7.690849439e-05
A21: Revenue | C21: =SUM(E21:BL21) -> 10.49914531 | F21: =(F19*F20)*(1-'Input Sponsor'!$C$24) -> 0.002041936473 | G21: =(G19*G20)*(1-'Input Sponsor'!$C$24) -> 0.0168817443 | H21: =(H19*H20)*(1-'Input Sponsor'!$C$24) -> 0.03542741428 | I21: =(I19*I20)*(1-'Input Sponsor'!$C$24) -> 0.05578544691 | J21: =(J19*J20)*(1-'Input Sponsor'!$C$24) -> 0.0748246813 | K21: =(K19*K20)*(1-'Input Sponsor'!$C$24) -> 0.08538247815 | L21: =(L19*L20)*(1-'Input Sponsor'!$C$24) -> 0.08965160205 | M21: =(M19*M20)*(1-'Input Sponsor'!$C$24) -> 0.09413418216 | N21: =(N19*N20)*(1-'Input Sponsor'!$C$24) -> 0.09884089126 | O21: =(O19*O20)*(1-'Input Sponsor'!$C$24) -> 0.1037829358 | P21: =(P19*P20)*(1-'Input Sponsor'!$C$24) -> 0.1089720826 | Q21: =(Q19*Q20)*(1-'Input Sponsor'!$C$24) -> 0.1144206867 | R21: =(R19*R20)*(1-'Input Sponsor'!$C$24) -> 0.1201417211 | S21: =(S19*S20)*(1-'Input Sponsor'!$C$24) -> 0.1261488071 | T21: =(T19*T20)*(1-'Input Sponsor'!$C$24) -> 0.1324562475 | U21: =(U19*U20)*(1-'Input Sponsor'!$C$24) -> 0.1390790599 | V21: =(V19*V20)*(1-'Input Sponsor'!$C$24) -> 0.1460330129 | W21: =(W19*W20)*(1-'Input Sponsor'!$C$24) -> 0.1533346635 | X21: =(X19*X20)*(1-'Input Sponsor'!$C$24) -> 0.1610013967 | Y21: =(Y19*Y20)*(1-'Input Sponsor'!$C$24) -> 0.1690514665 | Z21: =(Z19*Z20)*(1-'Input Sponsor'!$C$24) -> 0.1775040398 | AA21: =(AA19*AA20)*(1-'Input Sponsor'!$C$24) -> 0.1863792418 | AB21: =(AB19*AB20)*(1-'Input Sponsor'!$C$24) -> 0.1956982039 | AC21: =(AC19*AC20)*(1-'Input Sponsor'!$C$24) -> 0.2054831141 | AD21: =(AD19*AD20)*(1-'Input Sponsor'!$C$24) -> 0.2157572698 | AE21: =(AE19*AE20)*(1-'Input Sponsor'!$C$24) -> 0.2265451333 | AF21: =(AF19*AF20)*(1-'Input Sponsor'!$C$24) -> 0.23787239 | AG21: =(AG19*AG20)*(1-'Input Sponsor'!$C$24) -> 0.2497660095 | AH21: =(AH19*AH20)*(1-'Input Sponsor'!$C$24) -> 0.26225431 | AI21: =(AI19*AI20)*(1-'Input Sponsor'!$C$24) -> 0.2753670255 | AJ21: =(AJ19*AJ20)*(1-'Input Sponsor'!$C$24) -> 0.2891353767 | AK21: =(AK19*AK20)*(1-'Input Sponsor'!$C$24) -> 0.3035921456 | AL21: =(AL19*AL20)*(1-'Input Sponsor'!$C$24) -> 0.3187717528 | AM21: =(AM19*AM20)*(1-'Input Sponsor'!$C$24) -> 0.3347103405 | AN21: =(AN19*AN20)*(1-'Input Sponsor'!$C$24) -> 0.3514458575 | AO21: =(AO19*AO20)*(1-'Input Sponsor'!$C$24) -> 0.3690181504 | AP21: =(AP19*AP20)*(1-'Input Sponsor'!$C$24) -> 0.3874690579 | AQ21: =(AQ19*AQ20)*(1-'Input Sponsor'!$C$24) -> 0.4068425108 | AR21: =(AR19*AR20)*(1-'Input Sponsor'!$C$24) -> 0.4271846363 | AS21: =(AS19*AS20)*(1-'Input Sponsor'!$C$24) -> 0.4485438682 | AT21: =(AT19*AT20)*(1-'Input Sponsor'!$C$24) -> 0.4709710616 | AU21: =(AU19*AU20)*(1-'Input Sponsor'!$C$24) -> 0.4945196147 | AV21: =(AV19*AV20)*(1-'Input Sponsor'!$C$24) -> 0.5192455954 | AW21: =(AW19*AW20)*(1-'Input Sponsor'!$C$24) -> 0.5452078752 | AX21: =(AX19*AX20)*(1-'Input Sponsor'!$C$24) -> 0.5724682689 | AY21: =(AY19*AY20)*(1-'Input Sponsor'!$C$24) -> 0 | AZ21: =(AZ19*AZ20)*(1-'Input Sponsor'!$C$24) -> 0 | BA21: =(BA19*BA20)*(1-'Input Sponsor'!$C$24) -> 0 | BB21: =(BB19*BB20)*(1-'Input Sponsor'!$C$24) -> 0 | BC21: =(BC19*BC20)*(1-'Input Sponsor'!$C$24) -> 0
A22: Total Operating Revenue | C22: =C11+C21+C16 -> 194529.3799 | F22: =F21+F16+F11 -> 37.83323541 | G22: 312.7869131 | H22: 656.403234 | I22: 1033.59922 | J22: 1386.360359 | K22: 1581.976441 | L22: 1661.075264 | M22: 1744.129027 | N22: 1831.335478 | O22: 1922.902252 | P22: 2019.047365 | Q22: 2119.999733 | R22: 2225.999719 | S22: 2337.299705 | T22: 2454.164691 | U22: 2576.872925 | V22: 2705.716571 | W22: 2841.0024 | X22: 2983.05252 | Y22: 3132.205146 | Z22: 3288.815403 | AA22: 3453.256174 | AB22: 3625.918982 | AC22: 3807.214931 | AD22: 3997.575678 | AE22: 4197.454462 | AF22: 4407.327185 | AG22: 4627.693544 | AH22: 4859.078221 | AI22: 5102.032132 | AJ22: 5357.133739 | AK22: 5624.990426 | AL22: =AL21+AL16+AL11 -> 5906.239947 | AM22: 6201.551945 | AN22: 6511.629542 | AO22: 6837.211019 | AP22: 7179.07157 | AQ22: 7538.025148 | AR22: 7914.926406 | AS22: 8310.672726 | AT22: 8726.206362 | AU22: 9162.51668 | AV22: 9620.642514 | AW22: 10101.67464 | AX22: 10606.75837 | AY22: 0 | AZ22: 0 | BA22: 0 | BB22: 0 | BC22: 0
A23: Ouptut Volume | F23: =F11/F10+F16/F15+F21/F20 -> 5227.526695 | G23: 41648.97534 | H23: 83240.97534 | I23: 124832.9753 | J23: 159464.4877 | K23: 173300 | L23: 173300 | M23: 173300 | N23: 173300 | O23: 173300 | P23: 173300 | Q23: 173300 | R23: 173300 | S23: 173300 | T23: 173300 | U23: 173300 | V23: 173300 | W23: 173300 | X23: 173300 | Y23: 173300 | Z23: 173300 | AA23: 173300 | AB23: 173300 | AC23: 173300 | AD23: 173300 | AE23: 173300 | AF23: 173300 | AG23: 173300 | AH23: 173300 | AI23: 173300 | AJ23: 173300 | AK23: 173300 | AL23: =AL11/AL10+AL16/AL15+AL21/AL20 -> 173300 | AM23: 173300 | AN23: 173300 | AO23: 173300 | AP23: 173300 | AQ23: 173300 | AR23: 173300 | AS23: 173300 | AT23: 173300 | AU23: 173300 | AV23: 173300 | AW23: 173300 | AX23: 173300 | AY23: 0 | AZ23: 0 | BA23: 0 | BB23: 0 | BC23: 0
A24: Costs
A25: ='Input Sponsor'!A28 -> Variable Costs
A26: ='Input Sponsor'!A29 -> Operation & Maintenance | C26: =SUM(E26:BC26) -> 219556.0027 | F26: ='Input Sponsor'!$C$29*F$8*Work!F$65*Work!F$54*Work!F$10 -> 85.11650983 | G26: ='Input Sponsor'!$C$29*G$8*Work!G$65*Work!G$54*Work!G$10 -> 527.5359733 | H26: ='Input Sponsor'!$C$29*H$8*Work!H$65*Work!H$54*Work!H$10 -> 922.8510234 | I26: ='Input Sponsor'!$C$29*I$8*Work!I$65*Work!I$54*Work!I$10 -> 1356.378739 | J26: ='Input Sponsor'!$C$29*J$8*Work!J$65*Work!J$54*Work!J$10 -> 1694.810093 | K26: ='Input Sponsor'!$C$29*K$8*Work!K$65*Work!K$54*Work!K$10 -> 1779.550597 | L26: ='Input Sponsor'!$C$29*L$8*Work!L$65*Work!L$54*Work!L$10 -> 1868.528127 | M26: ='Input Sponsor'!$C$29*M$8*Work!M$65*Work!M$54*Work!M$10 -> 1961.954533 | N26: ='Input Sponsor'!$C$29*N$8*Work!N$65*Work!N$54*Work!N$10 -> 2060.05226 | O26: ='Input Sponsor'!$C$29*O$8*Work!O$65*Work!O$54*Work!O$10 -> 2163.054873 | P26: ='Input Sponsor'!$C$29*P$8*Work!P$65*Work!P$54*Work!P$10 -> 2271.207617 | Q26: ='Input Sponsor'!$C$29*Q$8*Work!Q$65*Work!Q$54*Work!Q$10 -> 2384.767997 | R26: ='Input Sponsor'!$C$29*R$8*Work!R$65*Work!R$54*Work!R$10 -> 2504.006397 | S26: ='Input Sponsor'!$C$29*S$8*Work!S$65*Work!S$54*Work!S$10 -> 2629.206717 | T26: ='Input Sponsor'!$C$29*T$8*Work!T$65*Work!T$54*Work!T$10 -> 2760.667053 | U26: ='Input Sponsor'!$C$29*U$8*Work!U$65*Work!U$54*Work!U$10 -> 2898.700406 | V26: ='Input Sponsor'!$C$29*V$8*Work!V$65*Work!V$54*Work!V$10 -> 3043.635426 | W26: ='Input Sponsor'!$C$29*W$8*Work!W$65*Work!W$54*Work!W$10 -> 3195.817197 | X26: ='Input Sponsor'!$C$29*X$8*Work!X$65*Work!X$54*Work!X$10 -> 3355.608057 | Y26: ='Input Sponsor'!$C$29*Y$8*Work!Y$65*Work!Y$54*Work!Y$10 -> 3523.38846 | Z26: ='Input Sponsor'!$C$29*Z$8*Work!Z$65*Work!Z$54*Work!Z$10 -> 3699.557883 | AA26: ='Input Sponsor'!$C$29*AA$8*Work!AA$65*Work!AA$54*Work!AA$10 -> 3884.535777 | AB26: ='Input Sponsor'!$C$29*AB$8*Work!AB$65*Work!AB$54*Work!AB$10 -> 4078.762566 | AC26: ='Input Sponsor'!$C$29*AC$8*Work!AC$65*Work!AC$54*Work!AC$10 -> 4282.700694 | AD26: ='Input Sponsor'!$C$29*AD$8*Work!AD$65*Work!AD$54*Work!AD$10 -> 4496.835729 | AE26: ='Input Sponsor'!$C$29*AE$8*Work!AE$65*Work!AE$54*Work!AE$10 -> 4721.677516 | AF26: ='Input Sponsor'!$C$29*AF$8*Work!AF$65*Work!AF$54*Work!AF$10 -> 4957.761391 | AG26: ='Input Sponsor'!$C$29*AG$8*Work!AG$65*Work!AG$54*Work!AG$10 -> 5205.649461 | AH26: ='Input Sponsor'!$C$29*AH$8*Work!AH$65*Work!AH$54*Work!AH$10 -> 5465.931934 | AI26: ='Input Sponsor'!$C$29*AI$8*Work!AI$65*Work!AI$54*Work!AI$10 -> 5739.228531 | AJ26: ='Input Sponsor'!$C$29*AJ$8*Work!AJ$65*Work!AJ$54*Work!AJ$10 -> 6026.189957 | AK26: ='Input Sponsor'!$C$29*AK$8*Work!AK$65*Work!AK$54*Work!AK$10 -> 6327.499455 | AL26: ='Input Sponsor'!$C$29*AL$8*Work!AL$65*Work!AL$54*Work!AL$10 -> 6643.874428 | AM26: ='Input Sponsor'!$C$29*AM$8*Work!AM$65*Work!AM$54*Work!AM$10 -> 6976.068149 | AN26: ='Input Sponsor'!$C$29*AN$8*Work!AN$65*Work!AN$54*Work!AN$10 -> 7324.871557 | AO26: ='Input Sponsor'!$C$29*AO$8*Work!AO$65*Work!AO$54*Work!AO$10 -> 7691.115134 | AP26: ='Input Sponsor'!$C$29*AP$8*Work!AP$65*Work!AP$54*Work!AP$10 -> 8075.670891 | AQ26: ='Input Sponsor'!$C$29*AQ$8*Work!AQ$65*Work!AQ$54*Work!AQ$10 -> 8479.454436 | AR26: ='Input Sponsor'!$C$29*AR$8*Work!AR$65*Work!AR$54*Work!AR$10 -> 8903.427158 | AS26: ='Input Sponsor'!$C$29*AS$8*Work!AS$65*Work!AS$54*Work!AS$10 -> 9348.598515 | AT26: ='Input Sponsor'!$C$29*AT$8*Work!AT$65*Work!AT$54*Work!AT$10 -> 9816.028441 | AU26: ='Input Sponsor'!$C$29*AU$8*Work!AU$65*Work!AU$54*Work!AU$10 -> 10306.82986 | AV26: ='Input Sponsor'!$C$29*AV$8*Work!AV$65*Work!AV$54*Work!AV$10 -> 10822.17136 | AW26: ='Input Sponsor'!$C$29*AW$8*Work!AW$65*Work!AW$54*Work!AW$10 -> 11363.27992 | AX26: ='Input Sponsor'!$C$29*AX$8*Work!AX$65*Work!AX$54*Work!AX$10 -> 11931.44392 | AY26: ='Input Sponsor'!$C$29*AY$8*Work!AY$65*Work!AY$54*Work!AY$10 -> 0 | AZ26: ='Input Sponsor'!$C$29*AZ$8*Work!AZ$65*Work!AZ$54*Work!AZ$10 -> 0 | BA26: ='Input Sponsor'!$C$29*BA$8*Work!BA$65*Work!BA$54*Work!BA$10 -> 0 | BB26: ='Input Sponsor'!$C$29*BB$8*Work!BB$65*Work!BB$54*Work!BB$10 -> 0 | BC26: ='Input Sponsor'!$C$29*BC$8*Work!BC$65*Work!BC$54*Work!BC$10 -> 0
A27: ='Input Sponsor'!A30 -> Machinery & Equipment | C27: =SUM(E27:BC27) -> 665.3212204 | F27: ='Input Sponsor'!$C$30*F$8*Work!F$65*Work!F$54*Work!F$10 -> 0.2579288177 | G27: ='Input Sponsor'!$C$30*G$8*Work!G$65*Work!G$54*Work!G$10 -> 1.598593859 | H27: ='Input Sponsor'!$C$30*H$8*Work!H$65*Work!H$54*Work!H$10 -> 2.796518253 | I27: ='Input Sponsor'!$C$30*I$8*Work!I$65*Work!I$54*Work!I$10 -> 4.110238602 | J27: ='Input Sponsor'!$C$30*J$8*Work!J$65*Work!J$54*Work!J$10 -> 5.135788159 | K27: ='Input Sponsor'!$C$30*K$8*Work!K$65*Work!K$54*Work!K$10 -> 5.392577567 | L27: ='Input Sponsor'!$C$30*L$8*Work!L$65*Work!L$54*Work!L$10 -> 5.662206445 | M27: ='Input Sponsor'!$C$30*M$8*Work!M$65*Work!M$54*Work!M$10 -> 5.945316768 | N27: ='Input Sponsor'!$C$30*N$8*Work!N$65*Work!N$54*Work!N$10 -> 6.242582606 | O27: ='Input Sponsor'!$C$30*O$8*Work!O$65*Work!O$54*Work!O$10 -> 6.554711736 | P27: ='Input Sponsor'!$C$30*P$8*Work!P$65*Work!P$54*Work!P$10 -> 6.882447323 | Q27: ='Input Sponsor'!$C$30*Q$8*Work!Q$65*Work!Q$54*Work!Q$10 -> 7.226569689 | R27: ='Input Sponsor'!$C$30*R$8*Work!R$65*Work!R$54*Work!R$10 -> 7.587898174 | S27: ='Input Sponsor'!$C$30*S$8*Work!S$65*Work!S$54*Work!S$10 -> 7.967293083 | T27: ='Input Sponsor'!$C$30*T$8*Work!T$65*Work!T$54*Work!T$10 -> 8.365657737 | U27: ='Input Sponsor'!$C$30*U$8*Work!U$65*Work!U$54*Work!U$10 -> 8.783940624 | V27: ='Input Sponsor'!$C$30*V$8*Work!V$65*Work!V$54*Work!V$10 -> 9.223137655 | W27: ='Input Sponsor'!$C$30*W$8*Work!W$65*Work!W$54*Work!W$10 -> 9.684294537 | X27: ='Input Sponsor'!$C$30*X$8*Work!X$65*Work!X$54*Work!X$10 -> 10.16850926 | Y27: ='Input Sponsor'!$C$30*Y$8*Work!Y$65*Work!Y$54*Work!Y$10 -> 10.67693473 | Z27: ='Input Sponsor'!$C$30*Z$8*Work!Z$65*Work!Z$54*Work!Z$10 -> 11.21078146 | AA27: ='Input Sponsor'!$C$30*AA$8*Work!AA$65*Work!AA$54*Work!AA$10 -> 11.77132054 | AB27: ='Input Sponsor'!$C$30*AB$8*Work!AB$65*Work!AB$54*Work!AB$10 -> 12.35988656 | AC27: ='Input Sponsor'!$C$30*AC$8*Work!AC$65*Work!AC$54*Work!AC$10 -> 12.97788089 | AD27: ='Input Sponsor'!$C$30*AD$8*Work!AD$65*Work!AD$54*Work!AD$10 -> 13.62677494 | AE27: ='Input Sponsor'!$C$30*AE$8*Work!AE$65*Work!AE$54*Work!AE$10 -> 14.30811368 | AF27: ='Input Sponsor'!$C$30*AF$8*Work!AF$65*Work!AF$54*Work!AF$10 -> 15.02351937 | AG27: ='Input Sponsor'!$C$30*AG$8*Work!AG$65*Work!AG$54*Work!AG$10 -> 15.77469534 | AH27: ='Input Sponsor'!$C$30*AH$8*Work!AH$65*Work!AH$54*Work!AH$10 -> 16.5634301 | AI27: ='Input Sponsor'!$C$30*AI$8*Work!AI$65*Work!AI$54*Work!AI$10 -> 17.39160161 | AJ27: ='Input Sponsor'!$C$30*AJ$8*Work!AJ$65*Work!AJ$54*Work!AJ$10 -> 18.26118169 | AK27: ='Input Sponsor'!$C$30*AK$8*Work!AK$65*Work!AK$54*Work!AK$10 -> 19.17424077 | AL27: ='Input Sponsor'!$C$30*AL$8*Work!AL$65*Work!AL$54*Work!AL$10 -> 20.13295281 | AM27: ='Input Sponsor'!$C$30*AM$8*Work!AM$65*Work!AM$54*Work!AM$10 -> 21.13960045 | AN27: ='Input Sponsor'!$C$30*AN$8*Work!AN$65*Work!AN$54*Work!AN$10 -> 22.19658047 | AO27: ='Input Sponsor'!$C$30*AO$8*Work!AO$65*Work!AO$54*Work!AO$10 -> 23.3064095 | AP27: ='Input Sponsor'!$C$30*AP$8*Work!AP$65*Work!AP$54*Work!AP$10 -> 24.47172997 | AQ27: ='Input Sponsor'!$C$30*AQ$8*Work!AQ$65*Work!AQ$54*Work!AQ$10 -> 25.69531647 | AR27: ='Input Sponsor'!$C$30*AR$8*Work!AR$65*Work!AR$54*Work!AR$10 -> 26.9800823 | AS27: ='Input Sponsor'!$C$30*AS$8*Work!AS$65*Work!AS$54*Work!AS$10 -> 28.32908641 | AT27: ='Input Sponsor'!$C$30*AT$8*Work!AT$65*Work!AT$54*Work!AT$10 -> 29.74554073 | AU27: ='Input Sponsor'!$C$30*AU$8*Work!AU$65*Work!AU$54*Work!AU$10 -> 31.23281777 | AV27: ='Input Sponsor'!$C$30*AV$8*Work!AV$65*Work!AV$54*Work!AV$10 -> 32.79445866 | AW27: ='Input Sponsor'!$C$30*AW$8*Work!AW$65*Work!AW$54*Work!AW$10 -> 34.43418159 | AX27: ='Input Sponsor'!$C$30*AX$8*Work!AX$65*Work!AX$54*Work!AX$10 -> 36.15589067 | AY27: ='Input Sponsor'!$C$30*AY$8*Work!AY$65*Work!AY$54*Work!AY$10 -> 0 | AZ27: ='Input Sponsor'!$C$30*AZ$8*Work!AZ$65*Work!AZ$54*Work!AZ$10 -> 0 | BA27: ='Input Sponsor'!$C$30*BA$8*Work!BA$65*Work!BA$54*Work!BA$10 -> 0 | BB27: ='Input Sponsor'!$C$30*BB$8*Work!BB$65*Work!BB$54*Work!BB$10 -> 0 | BC27: ='Input Sponsor'!$C$30*BC$8*Work!BC$65*Work!BC$54*Work!BC$10 -> 0
A28: ='Input Sponsor'!A31 -> Utilities | C28: 2217.737401 | F28: ='Input Sponsor'!$C$31*F$8*Work!F$65*Work!F$54*Work!F$10 -> 0.8597627255 | G28: ='Input Sponsor'!$C$31*G$8*Work!G$65*Work!G$54*Work!G$10 -> 5.328646195 | H28: ='Input Sponsor'!$C$31*H$8*Work!H$65*Work!H$54*Work!H$10 -> 9.32172751 | I28: ='Input Sponsor'!$C$31*I$8*Work!I$65*Work!I$54*Work!I$10 -> 13.70079534 | J28: ='Input Sponsor'!$C$31*J$8*Work!J$65*Work!J$54*Work!J$10 -> 17.11929386 | K28: ='Input Sponsor'!$C$31*K$8*Work!K$65*Work!K$54*Work!K$10 -> 17.97525856 | L28: ='Input Sponsor'!$C$31*L$8*Work!L$65*Work!L$54*Work!L$10 -> 18.87402148 | M28: ='Input Sponsor'!$C$31*M$8*Work!M$65*Work!M$54*Work!M$10 -> 19.81772256 | N28: ='Input Sponsor'!$C$31*N$8*Work!N$65*Work!N$54*Work!N$10 -> 20.80860869 | O28: ='Input Sponsor'!$C$31*O$8*Work!O$65*Work!O$54*Work!O$10 -> 21.84903912 | P28: ='Input Sponsor'!$C$31*P$8*Work!P$65*Work!P$54*Work!P$10 -> 22.94149108 | Q28: ='Input Sponsor'!$C$31*Q$8*Work!Q$65*Work!Q$54*Work!Q$10 -> 24.08856563 | R28: ='Input Sponsor'!$C$31*R$8*Work!R$65*Work!R$54*Work!R$10 -> 25.29299391 | S28: ='Input Sponsor'!$C$31*S$8*Work!S$65*Work!S$54*Work!S$10 -> 26.55764361 | T28: ='Input Sponsor'!$C$31*T$8*Work!T$65*Work!T$54*Work!T$10 -> 27.88552579 | U28: ='Input Sponsor'!$C$31*U$8*Work!U$65*Work!U$54*Work!U$10 -> 29.27980208 | V28: ='Input Sponsor'!$C$31*V$8*Work!V$65*Work!V$54*Work!V$10 -> 30.74379218 | W28: ='Input Sponsor'!$C$31*W$8*Work!W$65*Work!W$54*Work!W$10 -> 32.28098179 | X28: ='Input Sponsor'!$C$31*X$8*Work!X$65*Work!X$54*Work!X$10 -> 33.89503088 | Y28: ='Input Sponsor'!$C$31*Y$8*Work!Y$65*Work!Y$54*Work!Y$10 -> 35.58978243 | Z28: ='Input Sponsor'!$C$31*Z$8*Work!Z$65*Work!Z$54*Work!Z$10 -> 37.36927155 | AA28: ='Input Sponsor'!$C$31*AA$8*Work!AA$65*Work!AA$54*Work!AA$10 -> 39.23773512 | AB28: ='Input Sponsor'!$C$31*AB$8*Work!AB$65*Work!AB$54*Work!AB$10 -> 41.19962188 | AC28: ='Input Sponsor'!$C$31*AC$8*Work!AC$65*Work!AC$54*Work!AC$10 -> 43.25960297 | AD28: ='Input Sponsor'!$C$31*AD$8*Work!AD$65*Work!AD$54*Work!AD$10 -> 45.42258312 | AE28: ='Input Sponsor'!$C$31*AE$8*Work!AE$65*Work!AE$54*Work!AE$10 -> 47.69371228 | AF28: ='Input Sponsor'!$C$31*AF$8*Work!AF$65*Work!AF$54*Work!AF$10 -> 50.07839789 | AG28: ='Input Sponsor'!$C$31*AG$8*Work!AG$65*Work!AG$54*Work!AG$10 -> 52.58231779 | AH28: ='Input Sponsor'!$C$31*AH$8*Work!AH$65*Work!AH$54*Work!AH$10 -> 55.21143368 | AI28: ='Input Sponsor'!$C$31*AI$8*Work!AI$65*Work!AI$54*Work!AI$10 -> 57.97200536 | AJ28: ='Input Sponsor'!$C$31*AJ$8*Work!AJ$65*Work!AJ$54*Work!AJ$10 -> 60.87060563 | AK28: ='Input Sponsor'!$C$31*AK$8*Work!AK$65*Work!AK$54*Work!AK$10 -> 63.91413591 | AL28: ='Input Sponsor'!$C$31*AL$8*Work!AL$65*Work!AL$54*Work!AL$10 -> 67.10984271 | AM28: ='Input Sponsor'!$C$31*AM$8*Work!AM$65*Work!AM$54*Work!AM$10 -> 70.46533484 | AN28: ='Input Sponsor'!$C$31*AN$8*Work!AN$65*Work!AN$54*Work!AN$10 -> 73.98860158 | AO28: ='Input Sponsor'!$C$31*AO$8*Work!AO$65*Work!AO$54*Work!AO$10 -> 77.68803166 | AP28: ='Input Sponsor'!$C$31*AP$8*Work!AP$65*Work!AP$54*Work!AP$10 -> 81.57243324 | AQ28: ='Input Sponsor'!$C$31*AQ$8*Work!AQ$65*Work!AQ$54*Work!AQ$10 -> 85.65105491 | AR28: ='Input Sponsor'!$C$31*AR$8*Work!AR$65*Work!AR$54*Work!AR$10 -> 89.93360765 | AS28: ='Input Sponsor'!$C$31*AS$8*Work!AS$65*Work!AS$54*Work!AS$10 -> 94.43028803 | AT28: ='Input Sponsor'!$C$31*AT$8*Work!AT$65*Work!AT$54*Work!AT$10 -> 99.15180244 | AU28: ='Input Sponsor'!$C$31*AU$8*Work!AU$65*Work!AU$54*Work!AU$10 -> 104.1093926 | AV28: ='Input Sponsor'!$C$31*AV$8*Work!AV$65*Work!AV$54*Work!AV$10 -> 109.3148622 | AW28: ='Input Sponsor'!$C$31*AW$8*Work!AW$65*Work!AW$54*Work!AW$10 -> 114.7806053 | AX28: ='Input Sponsor'!$C$31*AX$8*Work!AX$65*Work!AX$54*Work!AX$10 -> 120.5196356 | AY28: ='Input Sponsor'!$C$31*AY$8*Work!AY$65*Work!AY$54*Work!AY$10 -> 0 | AZ28: ='Input Sponsor'!$C$31*AZ$8*Work!AZ$65*Work!AZ$54*Work!AZ$10 -> 0 | BA28: ='Input Sponsor'!$C$31*BA$8*Work!BA$65*Work!BA$54*Work!BA$10 -> 0 | BB28: ='Input Sponsor'!$C$31*BB$8*Work!BB$65*Work!BB$54*Work!BB$10 -> 0 | BC28: ='Input Sponsor'!$C$31*BC$8*Work!BC$65*Work!BC$54*Work!BC$10 -> 0
A29: ='Input Sponsor'!A33 -> Fixed Costs
A30: ='Input Sponsor'!A34 -> Fixed Cost | C30: =SUM(E30:BL30) -> 221.7737401 | F30: ='Input Sponsor'!$C$34*Work!F54*Work!F65*Work!F10*F8 -> 0.08597627255 | G30: ='Input Sponsor'!$C$34*Work!G54*Work!G65*Work!G10*G8 -> 0.5328646195 | H30: ='Input Sponsor'!$C$34*Work!H54*Work!H65*Work!H10*H8 -> 0.932172751 | I30: ='Input Sponsor'!$C$34*Work!I54*Work!I65*Work!I10*I8 -> 1.370079534 | J30: ='Input Sponsor'!$C$34*Work!J54*Work!J65*Work!J10*J8 -> 1.711929386 | K30: ='Input Sponsor'!$C$34*Work!K54*Work!K65*Work!K10*K8 -> 1.797525856 | L30: ='Input Sponsor'!$C$34*Work!L54*Work!L65*Work!L10*L8 -> 1.887402148 | M30: ='Input Sponsor'!$C$34*Work!M54*Work!M65*Work!M10*M8 -> 1.981772256 | N30: ='Input Sponsor'!$C$34*Work!N54*Work!N65*Work!N10*N8 -> 2.080860869 | O30: ='Input Sponsor'!$C$34*Work!O54*Work!O65*Work!O10*O8 -> 2.184903912 | P30: ='Input Sponsor'!$C$34*Work!P54*Work!P65*Work!P10*P8 -> 2.294149108 | Q30: ='Input Sponsor'!$C$34*Work!Q54*Work!Q65*Work!Q10*Q8 -> 2.408856563 | R30: ='Input Sponsor'!$C$34*Work!R54*Work!R65*Work!R10*R8 -> 2.529299391 | S30: ='Input Sponsor'!$C$34*Work!S54*Work!S65*Work!S10*S8 -> 2.655764361 | T30: ='Input Sponsor'!$C$34*Work!T54*Work!T65*Work!T10*T8 -> 2.788552579 | U30: ='Input Sponsor'!$C$34*Work!U54*Work!U65*Work!U10*U8 -> 2.927980208 | V30: ='Input Sponsor'!$C$34*Work!V54*Work!V65*Work!V10*V8 -> 3.074379218 | W30: ='Input Sponsor'!$C$34*Work!W54*Work!W65*Work!W10*W8 -> 3.228098179 | X30: ='Input Sponsor'!$C$34*Work!X54*Work!X65*Work!X10*X8 -> 3.389503088 | Y30: ='Input Sponsor'!$C$34*Work!Y54*Work!Y65*Work!Y10*Y8 -> 3.558978243 | Z30: ='Input Sponsor'!$C$34*Work!Z54*Work!Z65*Work!Z10*Z8 -> 3.736927155 | AA30: ='Input Sponsor'!$C$34*Work!AA54*Work!AA65*Work!AA10*AA8 -> 3.923773512 | AB30: ='Input Sponsor'!$C$34*Work!AB54*Work!AB65*Work!AB10*AB8 -> 4.119962188 | AC30: ='Input Sponsor'!$C$34*Work!AC54*Work!AC65*Work!AC10*AC8 -> 4.325960297 | AD30: ='Input Sponsor'!$C$34*Work!AD54*Work!AD65*Work!AD10*AD8 -> 4.542258312 | AE30: ='Input Sponsor'!$C$34*Work!AE54*Work!AE65*Work!AE10*AE8 -> 4.769371228 | AF30: ='Input Sponsor'!$C$34*Work!AF54*Work!AF65*Work!AF10*AF8 -> 5.007839789 | AG30: ='Input Sponsor'!$C$34*Work!AG54*Work!AG65*Work!AG10*AG8 -> 5.258231779 | AH30: ='Input Sponsor'!$C$34*Work!AH54*Work!AH65*Work!AH10*AH8 -> 5.521143368 | AI30: ='Input Sponsor'!$C$34*Work!AI54*Work!AI65*Work!AI10*AI8 -> 5.797200536 | AJ30: ='Input Sponsor'!$C$34*Work!AJ54*Work!AJ65*Work!AJ10*AJ8 -> 6.087060563 | AK30: ='Input Sponsor'!$C$34*Work!AK54*Work!AK65*Work!AK10*AK8 -> 6.391413591 | AL30: ='Input Sponsor'!$C$34*Work!AL54*Work!AL65*Work!AL10*AL8 -> 6.710984271 | AM30: ='Input Sponsor'!$C$34*Work!AM54*Work!AM65*Work!AM10*AM8 -> 7.046533484 | AN30: ='Input Sponsor'!$C$34*Work!AN54*Work!AN65*Work!AN10*AN8 -> 7.398860158 | AO30: ='Input Sponsor'!$C$34*Work!AO54*Work!AO65*Work!AO10*AO8 -> 7.768803166 | AP30: ='Input Sponsor'!$C$34*Work!AP54*Work!AP65*Work!AP10*AP8 -> 8.157243324 | AQ30: ='Input Sponsor'!$C$34*Work!AQ54*Work!AQ65*Work!AQ10*AQ8 -> 8.565105491 | AR30: ='Input Sponsor'!$C$34*Work!AR54*Work!AR65*Work!AR10*AR8 -> 8.993360765 | AS30: ='Input Sponsor'!$C$34*Work!AS54*Work!AS65*Work!AS10*AS8 -> 9.443028803 | AT30: ='Input Sponsor'!$C$34*Work!AT54*Work!AT65*Work!AT10*AT8 -> 9.915180244 | AU30: ='Input Sponsor'!$C$34*Work!AU54*Work!AU65*Work!AU10*AU8 -> 10.41093926 | AV30: ='Input Sponsor'!$C$34*Work!AV54*Work!AV65*Work!AV10*AV8 -> 10.93148622 | AW30: ='Input Sponsor'!$C$34*Work!AW54*Work!AW65*Work!AW10*AW8 -> 11.47806053 | AX30: ='Input Sponsor'!$C$34*Work!AX54*Work!AX65*Work!AX10*AX8 -> 12.05196356 | AY30: ='Input Sponsor'!$C$34*Work!AY54*Work!AY65*Work!AY10*AY8 -> 0 | AZ30: ='Input Sponsor'!$C$34*Work!AZ54*Work!AZ65*Work!AZ10*AZ8 -> 0 | BA30: ='Input Sponsor'!$C$34*Work!BA54*Work!BA65*Work!BA10*BA8 -> 0 | BB30: ='Input Sponsor'!$C$34*Work!BB54*Work!BB65*Work!BB10*BB8 -> 0 | BC30: ='Input Sponsor'!$C$34*Work!BC54*Work!BC65*Work!BC10*BC8 -> 0
A31: ='Input Sponsor'!A35 -> Insurance Cost | C31: =SUM(E31:BL31) -> 221.7737401 | F31: ='Input Sponsor'!$C$35*Work!F54*Work!F65*Work!F10*F8 -> 0.08597627255 | G31: ='Input Sponsor'!$C$35*Work!G54*Work!G65*Work!G10*G8 -> 0.5328646195 | H31: ='Input Sponsor'!$C$35*Work!H54*Work!H65*Work!H10*H8 -> 0.932172751 | I31: ='Input Sponsor'!$C$35*Work!I54*Work!I65*Work!I10*I8 -> 1.370079534 | J31: ='Input Sponsor'!$C$35*Work!J54*Work!J65*Work!J10*J8 -> 1.711929386 | K31: ='Input Sponsor'!$C$35*Work!K54*Work!K65*Work!K10*K8 -> 1.797525856 | L31: ='Input Sponsor'!$C$35*Work!L54*Work!L65*Work!L10*L8 -> 1.887402148 | M31: ='Input Sponsor'!$C$35*Work!M54*Work!M65*Work!M10*M8 -> 1.981772256 | N31: ='Input Sponsor'!$C$35*Work!N54*Work!N65*Work!N10*N8 -> 2.080860869 | O31: ='Input Sponsor'!$C$35*Work!O54*Work!O65*Work!O10*O8 -> 2.184903912 | P31: ='Input Sponsor'!$C$35*Work!P54*Work!P65*Work!P10*P8 -> 2.294149108 | Q31: ='Input Sponsor'!$C$35*Work!Q54*Work!Q65*Work!Q10*Q8 -> 2.408856563 | R31: ='Input Sponsor'!$C$35*Work!R54*Work!R65*Work!R10*R8 -> 2.529299391 | S31: ='Input Sponsor'!$C$35*Work!S54*Work!S65*Work!S10*S8 -> 2.655764361 | T31: ='Input Sponsor'!$C$35*Work!T54*Work!T65*Work!T10*T8 -> 2.788552579 | U31: ='Input Sponsor'!$C$35*Work!U54*Work!U65*Work!U10*U8 -> 2.927980208 | V31: ='Input Sponsor'!$C$35*Work!V54*Work!V65*Work!V10*V8 -> 3.074379218 | W31: ='Input Sponsor'!$C$35*Work!W54*Work!W65*Work!W10*W8 -> 3.228098179 | X31: ='Input Sponsor'!$C$35*Work!X54*Work!X65*Work!X10*X8 -> 3.389503088 | Y31: ='Input Sponsor'!$C$35*Work!Y54*Work!Y65*Work!Y10*Y8 -> 3.558978243 | Z31: ='Input Sponsor'!$C$35*Work!Z54*Work!Z65*Work!Z10*Z8 -> 3.736927155 | AA31: ='Input Sponsor'!$C$35*Work!AA54*Work!AA65*Work!AA10*AA8 -> 3.923773512 | AB31: ='Input Sponsor'!$C$35*Work!AB54*Work!AB65*Work!AB10*AB8 -> 4.119962188 | AC31: ='Input Sponsor'!$C$35*Work!AC54*Work!AC65*Work!AC10*AC8 -> 4.325960297 | AD31: ='Input Sponsor'!$C$35*Work!AD54*Work!AD65*Work!AD10*AD8 -> 4.542258312 | AE31: ='Input Sponsor'!$C$35*Work!AE54*Work!AE65*Work!AE10*AE8 -> 4.769371228 | AF31: ='Input Sponsor'!$C$35*Work!AF54*Work!AF65*Work!AF10*AF8 -> 5.007839789 | AG31: ='Input Sponsor'!$C$35*Work!AG54*Work!AG65*Work!AG10*AG8 -> 5.258231779 | AH31: ='Input Sponsor'!$C$35*Work!AH54*Work!AH65*Work!AH10*AH8 -> 5.521143368 | AI31: ='Input Sponsor'!$C$35*Work!AI54*Work!AI65*Work!AI10*AI8 -> 5.797200536 | AJ31: ='Input Sponsor'!$C$35*Work!AJ54*Work!AJ65*Work!AJ10*AJ8 -> 6.087060563 | AK31: ='Input Sponsor'!$C$35*Work!AK54*Work!AK65*Work!AK10*AK8 -> 6.391413591 | AL31: ='Input Sponsor'!$C$35*Work!AL54*Work!AL65*Work!AL10*AL8 -> 6.710984271 | AM31: ='Input Sponsor'!$C$35*Work!AM54*Work!AM65*Work!AM10*AM8 -> 7.046533484 | AN31: ='Input Sponsor'!$C$35*Work!AN54*Work!AN65*Work!AN10*AN8 -> 7.398860158 | AO31: ='Input Sponsor'!$C$35*Work!AO54*Work!AO65*Work!AO10*AO8 -> 7.768803166 | AP31: ='Input Sponsor'!$C$35*Work!AP54*Work!AP65*Work!AP10*AP8 -> 8.157243324 | AQ31: ='Input Sponsor'!$C$35*Work!AQ54*Work!AQ65*Work!AQ10*AQ8 -> 8.565105491 | AR31: ='Input Sponsor'!$C$35*Work!AR54*Work!AR65*Work!AR10*AR8 -> 8.993360765 | AS31: ='Input Sponsor'!$C$35*Work!AS54*Work!AS65*Work!AS10*AS8 -> 9.443028803 | AT31: ='Input Sponsor'!$C$35*Work!AT54*Work!AT65*Work!AT10*AT8 -> 9.915180244 | AU31: ='Input Sponsor'!$C$35*Work!AU54*Work!AU65*Work!AU10*AU8 -> 10.41093926 | AV31: ='Input Sponsor'!$C$35*Work!AV54*Work!AV65*Work!AV10*AV8 -> 10.93148622 | AW31: ='Input Sponsor'!$C$35*Work!AW54*Work!AW65*Work!AW10*AW8 -> 11.47806053 | AX31: ='Input Sponsor'!$C$35*Work!AX54*Work!AX65*Work!AX10*AX8 -> 12.05196356 | AY31: ='Input Sponsor'!$C$35*Work!AY54*Work!AY65*Work!AY10*AY8 -> 0 | AZ31: ='Input Sponsor'!$C$35*Work!AZ54*Work!AZ65*Work!AZ10*AZ8 -> 0 | BA31: ='Input Sponsor'!$C$35*Work!BA54*Work!BA65*Work!BA10*BA8 -> 0 | BB31: ='Input Sponsor'!$C$35*Work!BB54*Work!BB65*Work!BB10*BB8 -> 0 | BC31: ='Input Sponsor'!$C$35*Work!BC54*Work!BC65*Work!BC10*BC8 -> 0
A32: Total Operating Costs | C32: =SUM(E32:BL32) -> 222882.6088 | F32: =SUM(F26:F31) -> 86.40615391 | G32: 535.5289426 | H32: 936.8336147 | I32: 1376.929932 | J32: 1720.489033 | K32: 1806.513485 | L32: 1896.839159 | M32: 1991.681117 | N32: 2091.265173 | O32: 2195.828432 | P32: 2305.619853 | Q32: 2420.900846 | R32: 2541.945888 | S32: 2669.043183 | T32: 2802.495342 | U32: 2942.620109 | V32: 3089.751114 | W32: 3244.23867 | X32: 3406.450604 | Y32: 3576.773134 | Z32: 3755.61179 | AA32: 3943.39238 | AB32: 4140.561999 | AC32: 4347.590099 | AD32: 4564.969604 | AE32: 4793.218084 | AF32: 5032.878988 | AG32: 5284.522938 | AH32: 5548.749084 | AI32: 5826.186539 | AJ32: 6117.495866 | AK32: 6423.370659 | AL32: =SUM(AL26:AL31) -> 6744.539192 | AM32: 7081.766151 | AN32: 7435.854459 | AO32: 7807.647182 | AP32: 8198.029541 | AQ32: 8607.931018 | AR32: 9038.327569 | AS32: 9490.243948 | AT32: 9964.756145 | AU32: 10462.99395 | AV32: 10986.14365 | AW32: 11535.45083 | AX32: 12112.22337 | AY32: 0 | AZ32: 0 | BA32: 0 | BB32: 0 | BC32: 0
A33: Operating Balance | C33: =SUM(E33:BL33) -> -28353.22888 | F33: =F22-F32 -> -48.57291851 | G33: -222.7420295 | H33: -280.4303807 | I33: -343.3307119 | J33: -334.1286742 | K33: -224.5370435 | L33: -235.7638957 | M33: -247.5520905 | N33: -259.929695 | O33: -272.9261797 | P33: -286.5724887 | Q33: -300.9011132 | R33: -315.9461688 | S33: -331.7434773 | T33: -348.3306511 | U33: -365.7471837 | V33: -384.0345429 | W33: -403.23627 | X33: -423.3980835 | Y33: -444.5679877 | Z33: -466.7963871 | AA33: -490.1362064 | AB33: -514.6430167 | AC33: -540.3751676 | AD33: -567.3939259 | AE33: -595.7636222 | AF33: -625.5518034 | AG33: -656.8293935 | AH33: -689.6708632 | AI33: -724.1544064 | AJ33: -760.3621267 | AK33: -798.380233 | AL33: =AL22-AL32 -> -838.2992447 | AM33: -880.2142069 | AN33: -924.2249172 | AO33: -970.4361631 | AP33: -1018.957971 | AQ33: -1069.90587 | AR33: -1123.401163 | AS33: -1179.571221 | AT33: -1238.549783 | AU33: -1300.477272 | AV33: -1365.501135 | AW33: -1433.776192 | AX33: -1505.465002 | AY33: 0 | AZ33: 0 | BA33: 0 | BB33: 0 | BC33: 0
A34: Scheduled Maintenance | C34: =SUM(E34:BL34) -> 37270.61317 | F34: =Work!F60*Work!F71/Work!$E$71*'BUDGET STATEMENTS'!$C$13*'Input Sponsor'!$C$44 -> 0 | G34: =Work!G60*Work!G71/Work!$E$71*'BUDGET STATEMENTS'!$C$13*'Input Sponsor'!$C$44 -> 0 | H34: =Work!H60*Work!H71/Work!$E$71*'BUDGET STATEMENTS'!$C$13*'Input Sponsor'!$C$44 -> 0 | I34: =Work!I60*Work!I71/Work!$E$71*'BUDGET STATEMENTS'!$C$13*'Input Sponsor'!$C$44 -> 0 | J34: =Work!J60*Work!J71/Work!$E$71*'BUDGET STATEMENTS'!$C$13*'Input Sponsor'!$C$44 -> 0 | K34: =Work!K60*Work!K71/Work!$E$71*'BUDGET STATEMENTS'!$C$13*'Input Sponsor'!$C$44 -> 0 | L34: =Work!L60*Work!L71/Work!$E$71*'BUDGET STATEMENTS'!$C$13*'Input Sponsor'!$C$44 -> 0 | M34: =Work!M60*Work!M71/Work!$E$71*'BUDGET STATEMENTS'!$C$13*'Input Sponsor'!$C$44 -> 0 | N34: =Work!N60*Work!N71/Work!$E$71*'BUDGET STATEMENTS'!$C$13*'Input Sponsor'!$C$44 -> 0 | O34: =Work!O60*Work!O71/Work!$E$71*'BUDGET STATEMENTS'!$C$13*'Input Sponsor'!$C$44 -> 0 | P34: =Work!P60*Work!P71/Work!$E$71*'BUDGET STATEMENTS'!$C$13*'Input Sponsor'!$C$44 -> 0 | Q34: =Work!Q60*Work!Q71/Work!$E$71*'BUDGET STATEMENTS'!$C$13*'Input Sponsor'!$C$44 -> 2634.623715 | R34: =Work!R60*Work!R71/Work!$E$71*'BUDGET STATEMENTS'!$C$13*'Input Sponsor'!$C$44 -> 0 | S34: =Work!S60*Work!S71/Work!$E$71*'BUDGET STATEMENTS'!$C$13*'Input Sponsor'!$C$44 -> 0 | T34: =Work!T60*Work!T71/Work!$E$71*'BUDGET STATEMENTS'!$C$13*'Input Sponsor'!$C$44 -> 0 | U34: =Work!U60*Work!U71/Work!$E$71*'BUDGET STATEMENTS'!$C$13*'Input Sponsor'!$C$44 -> 0 | V34: =Work!V60*Work!V71/Work!$E$71*'BUDGET STATEMENTS'!$C$13*'Input Sponsor'!$C$44 -> 0 | W34: =Work!W60*Work!W71/Work!$E$71*'BUDGET STATEMENTS'!$C$13*'Input Sponsor'!$C$44 -> 0 | X34: =Work!X60*Work!X71/Work!$E$71*'BUDGET STATEMENTS'!$C$13*'Input Sponsor'!$C$44 -> 5134.136286 | Y34: =Work!Y60*Work!Y71/Work!$E$71*'BUDGET STATEMENTS'!$C$13*'Input Sponsor'!$C$44 -> 0 | Z34: =Work!Z60*Work!Z71/Work!$E$71*'BUDGET STATEMENTS'!$C$13*'Input Sponsor'!$C$44 -> 0 | AA34: =Work!AA60*Work!AA71/Work!$E$71*'BUDGET STATEMENTS'!$C$13*'Input Sponsor'!$C$44 -> 0 | AB34: =Work!AB60*Work!AB71/Work!$E$71*'BUDGET STATEMENTS'!$C$13*'Input Sponsor'!$C$44 -> 0 | AC34: =Work!AC60*Work!AC71/Work!$E$71*'BUDGET STATEMENTS'!$C$13*'Input Sponsor'!$C$44 -> 0 | AD34: =Work!AD60*Work!AD71/Work!$E$71*'BUDGET STATEMENTS'!$C$13*'Input Sponsor'!$C$44 -> 0 | AE34: =Work!AE60*Work!AE71/Work!$E$71*'BUDGET STATEMENTS'!$C$13*'Input Sponsor'!$C$44 -> 10004.97917 | AF34: =Work!AF60*Work!AF71/Work!$E$71*'BUDGET STATEMENTS'!$C$13*'Input Sponsor'!$C$44 -> 0 | AG34: =Work!AG60*Work!AG71/Work!$E$71*'BUDGET STATEMENTS'!$C$13*'Input Sponsor'!$C$44 -> 0 | AH34: =Work!AH60*Work!AH71/Work!$E$71*'BUDGET STATEMENTS'!$C$13*'Input Sponsor'!$C$44 -> 0 | AI34: =Work!AI60*Work!AI71/Work!$E$71*'BUDGET STATEMENTS'!$C$13*'Input Sponsor'!$C$44 -> 0 | AJ34: =Work!AJ60*Work!AJ71/Work!$E$71*'BUDGET STATEMENTS'!$C$13*'Input Sponsor'!$C$44 -> 0 | AK34: =Work!AK60*Work!AK71/Work!$E$71*'BUDGET STATEMENTS'!$C$13*'Input Sponsor'!$C$44 -> 0 | AL34: =Work!AL60*Work!AL71/Work!$E$71*'BUDGET STATEMENTS'!$C$13*'Input Sponsor'!$C$44 -> 19496.874 | AM34: =Work!AM60*Work!AM71/Work!$E$71*'BUDGET STATEMENTS'!$C$13*'Input Sponsor'!$C$44 -> 0 | AN34: =Work!AN60*Work!AN71/Work!$E$71*'BUDGET STATEMENTS'!$C$13*'Input Sponsor'!$C$44 -> 0 | AO34: =Work!AO60*Work!AO71/Work!$E$71*'BUDGET STATEMENTS'!$C$13*'Input Sponsor'!$C$44 -> 0 | AP34: =Work!AP60*Work!AP71/Work!$E$71*'BUDGET STATEMENTS'!$C$13*'Input Sponsor'!$C$44 -> 0 | AQ34: =Work!AQ60*Work!AQ71/Work!$E$71*'BUDGET STATEMENTS'!$C$13*'Input Sponsor'!$C$44 -> 0 | AR34: =Work!AR60*Work!AR71/Work!$E$71*'BUDGET STATEMENTS'!$C$13*'Input Sponsor'!$C$44 -> 0 | AS34: =Work!AS60*Work!AS71/Work!$E$71*'BUDGET STATEMENTS'!$C$13*'Input Sponsor'!$C$44 -> 0 | AT34: =Work!AT60*Work!AT71/Work!$E$71*'BUDGET STATEMENTS'!$C$13*'Input Sponsor'!$C$44 -> 0 | AU34: =Work!AU60*Work!AU71/Work!$E$71*'BUDGET STATEMENTS'!$C$13*'Input Sponsor'!$C$44 -> 0 | AV34: =Work!AV60*Work!AV71/Work!$E$71*'BUDGET STATEMENTS'!$C$13*'Input Sponsor'!$C$44 -> 0 | AW34: =Work!AW60*Work!AW71/Work!$E$71*'BUDGET STATEMENTS'!$C$13*'Input Sponsor'!$C$44 -> 0 | AX34: =Work!AX60*Work!AX71/Work!$E$71*'BUDGET STATEMENTS'!$C$13*'Input Sponsor'!$C$44 -> 0 | AY34: =Work!AY60*Work!AY71/Work!$E$71*'BUDGET STATEMENTS'!$C$13*'Input Sponsor'!$C$44 -> 0 | AZ34: =Work!AZ60*Work!AZ71/Work!$E$71*'BUDGET STATEMENTS'!$C$13*'Input Sponsor'!$C$44 -> 0 | BA34: =Work!BA60*Work!BA71/Work!$E$71*'BUDGET STATEMENTS'!$C$13*'Input Sponsor'!$C$44 -> 0 | BB34: =Work!BB60*Work!BB71/Work!$E$71*'BUDGET STATEMENTS'!$C$13*'Input Sponsor'!$C$44 -> 0 | BC34: =Work!BC60*Work!BC71/Work!$E$71*'BUDGET STATEMENTS'!$C$13*'Input Sponsor'!$C$44 -> 0

Sheet CF (hidden)
A1: Cash Flow Statement
C3: Year | F3: =Work!F2 -> 2020 | G3: =Work!G2 -> 2021 | H3: =Work!H2 -> 2022 | I3: =Work!I2 -> 2023 | J3: =Work!J2 -> 2024 | K3: =Work!K2 -> 2025 | L3: =Work!L2 -> 2026 | M3: =Work!M2 -> 2027 | N3: =Work!N2 -> 2028 | O3: =Work!O2 -> 2029 | P3: =Work!P2 -> 2030 | Q3: =Work!Q2 -> 2031 | R3: =Work!R2 -> 2032 | S3: =Work!S2 -> 2033 | T3: =Work!T2 -> 2034 | U3: =Work!U2 -> 2035 | V3: =Work!V2 -> 2036 | W3: =Work!W2 -> 2037 | X3: =Work!X2 -> 2038 | Y3: =Work!Y2 -> 2039 | Z3: =Work!Z2 -> 2040 | AA3: =Work!AA2 -> 2041 | AB3: =Work!AB2 -> 2042 | AC3: =Work!AC2 -> 2043 | AD3: =Work!AD2 -> 2044 | AE3: =Work!AE2 -> 2045 | AF3: =Work!AF2 -> 2046 | AG3: =Work!AG2 -> 2047 | AH3: =Work!AH2 -> 2048 | AI3: =Work!AI2 -> 2049 | AJ3: =Work!AJ2 -> 2050 | AK3: =Work!AK2 -> 2051 | AL3: =Work!AL2 -> 2052 | AM3: =Work!AM2 -> 2053 | AN3: =Work!AN2 -> 2054 | AO3: =Work!AO2 -> 2055 | AP3: =Work!AP2 -> 2056 | AQ3: =Work!AQ2 -> 2057 | AR3: =Work!AR2 -> 2058 | AS3: =Work!AS2 -> 2059 | AT3: =Work!AT2 -> 2060 | AU3: =Work!AU2 -> 2061 | AV3: =Work!AV2 -> 2062 | AW3: =Work!AW2 -> 2063 | AX3: =Work!AX2 -> 2064 | AY3: =Work!AY2 -> 2065 | AZ3: =Work!AZ2 -> 2066 | BA3: =Work!BA2 -> 2067 | BB3: =Work!BB2 -> 2068 | BC3: =Work!BC2 -> 2069
F4: =Work!F3 -> 2020-07-01 | G4: =Work!G3 -> 2021-01-01 | H4: =Work!H3 -> 2022-01-01 | I4: =Work!I3 -> 2023-01-01 | J4: =Work!J3 -> 2024-01-01 | K4: =Work!K3 -> 2025-01-01 | L4: =Work!L3 -> 2026-01-01 | M4: =Work!M3 -> 2027-01-01 | N4: =Work!N3 -> 2028-01-01 | O4: =Work!O3 -> 2029-01-01 | P4: =Work!P3 -> 2030-01-01 | Q4: =Work!Q3 -> 2031-01-01 | R4: =Work!R3 -> 2032-01-01 | S4: =Work!S3 -> 2033-01-01 | T4: =Work!T3 -> 2034-01-01 | U4: =Work!U3 -> 2035-01-01 | V4: =Work!V3 -> 2036-01-01 | W4: =Work!W3 -> 2037-01-01 | X4: =Work!X3 -> 2038-01-01 | Y4: =Work!Y3 -> 2039-01-01 | Z4: =Work!Z3 -> 2040-01-01 | AA4: =Work!AA3 -> 2041-01-01 | AB4: =Work!AB3 -> 2042-01-01 | AC4: =Work!AC3 -> 2043-01-01 | AD4: =Work!AD3 -> 2044-01-01 | AE4: =Work!AE3 -> 2045-01-01 | AF4: =Work!AF3 -> 2046-01-01 | AG4: =Work!AG3 -> 2047-01-01 | AH4: =Work!AH3 -> 2048-01-01 | AI4: =Work!AI3 -> 2049-01-01 | AJ4: =Work!AJ3 -> 2050-01-01 | AK4: =Work!AK3 -> 2051-01-01 | AL4: =Work!AL3 -> 2052-01-01 | AM4: =Work!AM3 -> 2053-01-01 | AN4: =Work!AN3 -> 2054-01-01 | AO4: =Work!AO3 -> 2055-01-01 | AP4: =Work!AP3 -> 2056-01-01 | AQ4: =Work!AQ3 -> 2057-01-01 | AR4: =Work!AR3 -> 2058-01-01 | AS4: =Work!AS3 -> 2059-01-01 | AT4: =Work!AT3 -> 2060-01-01 | AU4: =Work!AU3 -> 2061-01-01 | AV4: =Work!AV3 -> 2062-01-01 | AW4: =Work!AW3 -> 2063-01-01 | AX4: =Work!AX3 -> 2064-01-01 | AY4: =Work!AY3 -> 2065-01-01 | AZ4: =Work!AZ3 -> 2066-01-01 | BA4: =Work!BA3 -> 2067-01-01 | BB4: =Work!BB3 -> 2068-01-01 | BC4: =Work!BC3 -> 2069-01-01
E5: Pre-Period | F5: to | G5: to | H5: to | I5: to | J5: to | K5: to | L5: to | M5: to | N5: to | O5: to | P5: to | Q5: to | R5: to | S5: to | T5: to | U5: to | V5: to | W5: to | X5: to | Y5: to | Z5: to | AA5: to | AB5: to | AC5: to | AD5: to | AE5: to | AF5: to | AG5: to | AH5: to | AI5: to | AJ5: to | AK5: to | AL5: to | AM5: to | AN5: to | AO5: to | AP5: to | AQ5: to | AR5: to | AS5: to | AT5: to | AU5: to | AV5: to | AW5: to | AX5: to | AY5: to | AZ5: to | BA5: to | BB5: to | BC5: to
F6: =Work!F5 -> 2020-12-31 | G6: =Work!G5 -> 2021-12-31 | H6: =Work!H5 -> 2022-12-31 | I6: =Work!I5 -> 2023-12-31 | J6: =Work!J5 -> 2024-12-31 | K6: =Work!K5 -> 2025-12-31 | L6: =Work!L5 -> 2026-12-31 | M6: =Work!M5 -> 2027-12-31 | N6: =Work!N5 -> 2028-12-31 | O6: =Work!O5 -> 2029-12-31 | P6: =Work!P5 -> 2030-12-31 | Q6: =Work!Q5 -> 2031-12-31 | R6: =Work!R5 -> 2032-12-31 | S6: =Work!S5 -> 2033-12-31 | T6: =Work!T5 -> 2034-12-31 | U6: =Work!U5 -> 2035-12-31 | V6: =Work!V5 -> 2036-12-31 | W6: =Work!W5 -> 2037-12-31 | X6: =Work!X5 -> 2038-12-31 | Y6: =Work!Y5 -> 2039-12-31 | Z6: =Work!Z5 -> 2040-12-31 | AA6: =Work!AA5 -> 2041-12-31 | AB6: =Work!AB5 -> 2042-12-31 | AC6: =Work!AC5 -> 2043-12-31 | AD6: =Work!AD5 -> 2044-12-31 | AE6: =Work!AE5 -> 2045-12-31 | AF6: =Work!AF5 -> 2046-12-31 | AG6: =Work!AG5 -> 2047-12-31 | AH6: =Work!AH5 -> 2048-12-31 | AI6: =Work!AI5 -> 2049-12-31 | AJ6: =Work!AJ5 -> 2050-12-31 | AK6: =Work!AK5 -> 2051-12-31 | AL6: =Work!AL5 -> 2052-12-31 | AM6: =Work!AM5 -> 2053-12-31 | AN6: =Work!AN5 -> 2054-12-31 | AO6: =Work!AO5 -> 2055-12-31 | AP6: =Work!AP5 -> 2056-12-31 | AQ6: =Work!AQ5 -> 2057-12-31 | AR6: =Work!AR5 -> 2058-12-31 | AS6: =Work!AS5 -> 2059-12-31 | AT6: =Work!AT5 -> 2060-12-31 | AU6: =Work!AU5 -> 2061-12-31 | AV6: =Work!AV5 -> 2062-12-31 | AW6: =Work!AW5 -> 2063-12-31 | AX6: =Work!AX5 -> 2064-12-31 | AY6: =Work!AY5 -> 2065-12-31 | AZ6: =Work!AZ5 -> 2066-12-31 | BA6: =Work!BA5 -> 2067-12-31 | BB6: =Work!BB5 -> 2068-12-31 | BC6: =Work!BC5 -> 2069-12-31
A8: Total Revenues | C8: =SUM(F8:BC8) -> 194529.3799 | F8: =+Opex!F22 -> 37.83323541 | G8: =+Opex!G22 -> 312.7869131 | H8: =+Opex!H22 -> 656.403234 | I8: =+Opex!I22 -> 1033.59922 | J8: =+Opex!J22 -> 1386.360359 | K8: =+Opex!K22 -> 1581.976441 | L8: =+Opex!L22 -> 1661.075264 | M8: =+Opex!M22 -> 1744.129027 | N8: =+Opex!N22 -> 1831.335478 | O8: =+Opex!O22 -> 1922.902252 | P8: =+Opex!P22 -> 2019.047365 | Q8: =+Opex!Q22 -> 2119.999733 | R8: =+Opex!R22 -> 2225.999719 | S8: =+Opex!S22 -> 2337.299705 | T8: =+Opex!T22 -> 2454.164691 | U8: =+Opex!U22 -> 2576.872925 | V8: =+Opex!V22 -> 2705.716571 | W8: =+Opex!W22 -> 2841.0024 | X8: =+Opex!X22 -> 2983.05252 | Y8: =+Opex!Y22 -> 3132.205146 | Z8: =+Opex!Z22 -> 3288.815403 | AA8: =+Opex!AA22 -> 3453.256174 | AB8: =+Opex!AB22 -> 3625.918982 | AC8: =+Opex!AC22 -> 3807.214931 | AD8: =+Opex!AD22 -> 3997.575678 | AE8: =+Opex!AE22 -> 4197.454462 | AF8: =+Opex!AF22 -> 4407.327185 | AG8: =+Opex!AG22 -> 4627.693544 | AH8: =+Opex!AH22 -> 4859.078221 | AI8: =+Opex!AI22 -> 5102.032132 | AJ8: =+Opex!AJ22 -> 5357.133739 | AK8: =+Opex!AK22 -> 5624.990426 | AL8: =+Opex!AL22 -> 5906.239947 | AM8: =+Opex!AM22 -> 6201.551945 | AN8: =+Opex!AN22 -> 6511.629542 | AO8: =+Opex!AO22 -> 6837.211019 | AP8: =+Opex!AP22 -> 7179.07157 | AQ8: =+Opex!AQ22 -> 7538.025148 | AR8: =+Opex!AR22 -> 7914.926406 | AS8: =+Opex!AS22 -> 8310.672726 | AT8: =+Opex!AT22 -> 8726.206362 | AU8: =+Opex!AU22 -> 9162.51668 | AV8: =+Opex!AV22 -> 9620.642514 | AW8: =+Opex!AW22 -> 10101.67464 | AX8: =+Opex!AX22 -> 10606.75837 | AY8: =+Opex!AY22 -> 0 | AZ8: =+Opex!AZ22 -> 0 | BA8: =+Opex!BA22 -> 0 | BB8: =+Opex!BB22 -> 0 | BC8: =+Opex!BC22 -> 0
A9: Less Total Opex | C9: =SUM(F9:BC9) -> 222882.6088 | F9: =+Opex!F32 -> 86.40615391 | G9: =+Opex!G32 -> 535.5289426 | H9: =+Opex!H32 -> 936.8336147 | I9: =+Opex!I32 -> 1376.929932 | J9: =+Opex!J32 -> 1720.489033 | K9: =+Opex!K32 -> 1806.513485 | L9: =+Opex!L32 -> 1896.839159 | M9: =+Opex!M32 -> 1991.681117 | N9: =+Opex!N32 -> 2091.265173 | O9: =+Opex!O32 -> 2195.828432 | P9: =+Opex!P32 -> 2305.619853 | Q9: =+Opex!Q32 -> 2420.900846 | R9: =+Opex!R32 -> 2541.945888 | S9: =+Opex!S32 -> 2669.043183 | T9: =+Opex!T32 -> 2802.495342 | U9: =+Opex!U32 -> 2942.620109 | V9: =+Opex!V32 -> 3089.751114 | W9: =+Opex!W32 -> 3244.23867 | X9: =+Opex!X32 -> 3406.450604 | Y9: =+Opex!Y32 -> 3576.773134 | Z9: =+Opex!Z32 -> 3755.61179 | AA9: =+Opex!AA32 -> 3943.39238 | AB9: =+Opex!AB32 -> 4140.561999 | AC9: =+Opex!AC32 -> 4347.590099 | AD9: =+Opex!AD32 -> 4564.969604 | AE9: =+Opex!AE32 -> 4793.218084 | AF9: =+Opex!AF32 -> 5032.878988 | AG9: =+Opex!AG32 -> 5284.522938 | AH9: =+Opex!AH32 -> 5548.749084 | AI9: =+Opex!AI32 -> 5826.186539 | AJ9: =+Opex!AJ32 -> 6117.495866 | AK9: =+Opex!AK32 -> 6423.370659 | AL9: =+Opex!AL32 -> 6744.539192 | AM9: =+Opex!AM32 -> 7081.766151 | AN9: =+Opex!AN32 -> 7435.854459 | AO9: =+Opex!AO32 -> 7807.647182 | AP9: =+Opex!AP32 -> 8198.029541 | AQ9: =+Opex!AQ32 -> 8607.931018 | AR9: =+Opex!AR32 -> 9038.327569 | AS9: =+Opex!AS32 -> 9490.243948 | AT9: =+Opex!AT32 -> 9964.756145 | AU9: =+Opex!AU32 -> 10462.99395 | AV9: =+Opex!AV32 -> 10986.14365 | AW9: =+Opex!AW32 -> 11535.45083 | AX9: =+Opex!AX32 -> 12112.22337 | AY9: =+Opex!AY32 -> 0 | AZ9: =+Opex!AZ32 -> 0 | BA9: =+Opex!BA32 -> 0 | BB9: =+Opex!BB32 -> 0 | BC9: =+Opex!BC32 -> 0
A10: Operating Balance | C10: -28353.22888 | F10: =F8-F9 -> -48.57291851 | G10: =G8-G9 -> -222.7420295 | H10: -280.4303807 | I10: -343.3307119 | J10: -334.1286742 | K10: -224.5370435 | L10: -235.7638957 | M10: -247.5520905 | N10: -259.929695 | O10: -272.9261797 | P10: -286.5724887 | Q10: -300.9011132 | R10: -315.9461688 | S10: -331.7434773 | T10: -348.3306511 | U10: -365.7471837 | V10: -384.0345429 | W10: -403.23627 | X10: -423.3980835 | Y10: -444.5679877 | Z10: -466.7963871 | AA10: -490.1362064 | AB10: -514.6430167 | AC10: -540.3751676 | AD10: -567.3939259 | AE10: -595.7636222 | AF10: -625.5518034 | AG10: -656.8293935 | AH10: -689.6708632 | AI10: -724.1544064 | AJ10: -760.3621267 | AK10: -798.380233 | AL10: -838.2992447 | AM10: -880.2142069 | AN10: -924.2249172 | AO10: -970.4361631 | AP10: -1018.957971 | AQ10: -1069.90587 | AR10: -1123.401163 | AS10: -1179.571221 | AT10: -1238.549783 | AU10: -1300.477272 | AV10: -1365.501135 | AW10: -1433.776192 | AX10: -1505.465002 | AY10: 0 | AZ10: 0 | BA10: 0 | BB10: 0 | BC10: 0
A11: Less Capex | C11: 18424.10869 | F11: =Finance!F9 -> 1842.157366 | G11: =Finance!G9 -> 3952.308811 | H11: =Finance!H9 -> 4347.539692 | I11: =Finance!I9 -> 4782.293661 | J11: =Finance!J9 -> 3499.809156 | K11: =Finance!K9 -> 0 | L11: =Finance!L9 -> 0 | M11: =Finance!M9 -> 0 | N11: =Finance!N9 -> 0 | O11: =Finance!O9 -> 0 | P11: =Finance!P9 -> 0 | Q11: =Finance!Q9 -> 0 | R11: =Finance!R9 -> 0 | S11: =Finance!S9 -> 0 | T11: =Finance!T9 -> 0 | U11: =Finance!U9 -> 0 | V11: =Finance!V9 -> 0 | W11: =Finance!W9 -> 0 | X11: =Finance!X9 -> 0 | Y11: =Finance!Y9 -> 0 | Z11: =Finance!Z9 -> 0 | AA11: =Finance!AA9 -> 0 | AB11: =Finance!AB9 -> 0 | AC11: =Finance!AC9 -> 0 | AD11: =Finance!AD9 -> 0 | AE11: =Finance!AE9 -> 0 | AF11: =Finance!AF9 -> 0 | AG11: =Finance!AG9 -> 0 | AH11: =Finance!AH9 -> 0 | AI11: =Finance!AI9 -> 0 | AJ11: =Finance!AJ9 -> 0 | AK11: =Finance!AK9 -> 0 | AL11: =Finance!AL9 -> 0 | AM11: =Finance!AM9 -> 0 | AN11: =Finance!AN9 -> 0 | AO11: =Finance!AO9 -> 0 | AP11: =Finance!AP9 -> 0 | AQ11: =Finance!AQ9 -> 0 | AR11: =Finance!AR9 -> 0 | AS11: =Finance!AS9 -> 0 | AT11: =Finance!AT9 -> 0 | AU11: =Finance!AU9 -> 0 | AV11: =Finance!AV9 -> 0 | AW11: =Finance!AW9 -> 0 | AX11: =Finance!AX9 -> 0 | AY11: =Finance!AY9 -> 0 | AZ11: =Finance!AZ9 -> 0 | BA11: =Finance!BA9 -> 0 | BB11: =Finance!BB9 -> 0 | BC11: =Finance!BC9 -> 0
A12: Less Scheduled Maintenance | C12: 37270.61317 | F12: =Opex!F34 -> 0 | G12: =Opex!G34 -> 0 | H12: =Opex!H34 -> 0 | I12: =Opex!I34 -> 0 | J12: =Opex!J34 -> 0 | K12: =Opex!K34 -> 0 | L12: =Opex!L34 -> 0 | M12: =Opex!M34 -> 0 | N12: =Opex!N34 -> 0 | O12: =Opex!O34 -> 0 | P12: =Opex!P34 -> 0 | Q12: =Opex!Q34 -> 2634.623715 | R12: =Opex!R34 -> 0 | S12: =Opex!S34 -> 0 | T12: =Opex!T34 -> 0 | U12: =Opex!U34 -> 0 | V12: =Opex!V34 -> 0 | W12: =Opex!W34 -> 0 | X12: =Opex!X34 -> 5134.136286 | Y12: =Opex!Y34 -> 0 | Z12: =Opex!Z34 -> 0 | AA12: =Opex!AA34 -> 0 | AB12: =Opex!AB34 -> 0 | AC12: =Opex!AC34 -> 0 | AD12: =Opex!AD34 -> 0 | AE12: =Opex!AE34 -> 10004.97917 | AF12: =Opex!AF34 -> 0 | AG12: =Opex!AG34 -> 0 | AH12: =Opex!AH34 -> 0 | AI12: =Opex!AI34 -> 0 | AJ12: =Opex!AJ34 -> 0 | AK12: =Opex!AK34 -> 0 | AL12: =Opex!AL34 -> 19496.874 | AM12: =Opex!AM34 -> 0 | AN12: =Opex!AN34 -> 0 | AO12: =Opex!AO34 -> 0 | AP12: =Opex!AP34 -> 0 | AQ12: =Opex!AQ34 -> 0 | AR12: =Opex!AR34 -> 0 | AS12: =Opex!AS34 -> 0 | AT12: =Opex!AT34 -> 0 | AU12: =Opex!AU34 -> 0 | AV12: =Opex!AV34 -> 0 | AW12: =Opex!AW34 -> 0 | AX12: =Opex!AX34 -> 0 | AY12: =Opex!AY34 -> 0 | AZ12: =Opex!AZ34 -> 0 | BA12: =Opex!BA34 -> 0 | BB12: =Opex!BB34 -> 0 | BC12: =Opex!BC34 -> 0
A13: Less Corporate Tax | C13: 0 | F13: =Tax!F16 -> 0 | G13: =Tax!G16 -> 0 | H13: =Tax!H16 -> 0 | I13: =Tax!I16 -> 0 | J13: =Tax!J16 -> 0 | K13: =Tax!K16 -> 0 | L13: =Tax!L16 -> 0 | M13: =Tax!M16 -> 0 | N13: =Tax!N16 -> 0 | O13: =Tax!O16 -> 0 | P13: =Tax!P16 -> 0 | Q13: =Tax!Q16 -> 0 | R13: =Tax!R16 -> 0 | S13: =Tax!S16 -> 0 | T13: =Tax!T16 -> 0 | U13: =Tax!U16 -> 0 | V13: =Tax!V16 -> 0 | W13: =Tax!W16 -> 0 | X13: =Tax!X16 -> 0 | Y13: =Tax!Y16 -> 0 | Z13: =Tax!Z16 -> 0 | AA13: =Tax!AA16 -> 0 | AB13: =Tax!AB16 -> 0 | AC13: =Tax!AC16 -> 0 | AD13: =Tax!AD16 -> 0 | AE13: =Tax!AE16 -> 0 | AF13: =Tax!AF16 -> 0 | AG13: =Tax!AG16 -> 0 | AH13: =Tax!AH16 -> 0 | AI13: =Tax!AI16 -> 0 | AJ13: =Tax!AJ16 -> 0 | AK13: =Tax!AK16 -> 0 | AL13: =Tax!AL16 -> 0 | AM13: =Tax!AM16 -> 0 | AN13: =Tax!AN16 -> 0 | AO13: =Tax!AO16 -> 0 | AP13: =Tax!AP16 -> 0 | AQ13: =Tax!AQ16 -> 0 | AR13: =Tax!AR16 -> 0 | AS13: =Tax!AS16 -> 0 | AT13: =Tax!AT16 -> 0 | AU13: =Tax!AU16 -> 0 | AV13: =Tax!AV16 -> 0 | AW13: =Tax!AW16 -> 0 | AX13: =Tax!AX16 -> 0 | AY13: =Tax!AY16 -> 0 | AZ13: =Tax!AZ16 -> 0 | BA13: =Tax!BA16 -> 0 | BB13: =Tax!BB16 -> 0 | BC13: =Tax!BC16 -> 0
A14: Less Finance Charges on Debt | C14: 10018.2727 | F14: =+Finance!F39 -> 300.2739726 | G14: =+Finance!G39 -> 209.2002129 | H14: =+Finance!H39 -> 328.0627655 | I14: =+Finance!I39 -> 475.5144075 | J14: =+Finance!J39 -> 655.2213465 | K14: =+Finance!K39 -> 700 | L14: =+Finance!L39 -> 700 | M14: =+Finance!M39 -> 700 | N14: =+Finance!N39 -> 661.1111111 | O14: =+Finance!O39 -> 622.2222222 | P14: =+Finance!P39 -> 583.3333333 | Q14: =+Finance!Q39 -> 544.4444444 | R14: =+Finance!R39 -> 505.5555556 | S14: =+Finance!S39 -> 466.6666667 | T14: =+Finance!T39 -> 427.7777778 | U14: =+Finance!U39 -> 388.8888889 | V14: =+Finance!V39 -> 350 | W14: =+Finance!W39 -> 311.1111111 | X14: =+Finance!X39 -> 272.2222222 | Y14: =+Finance!Y39 -> 233.3333333 | Z14: =+Finance!Z39 -> 194.4444444 | AA14: =+Finance!AA39 -> 155.5555556 | AB14: =+Finance!AB39 -> 116.6666667 | AC14: =+Finance!AC39 -> 77.77777778 | AD14: =+Finance!AD39 -> 38.88888889 | AE14: =+Finance!AE39 -> 7.958078641e-14 | AF14: =+Finance!AF39 -> 7.958078641e-14 | AG14: =+Finance!AG39 -> 7.958078641e-14 | AH14: =+Finance!AH39 -> 7.958078641e-14 | AI14: =+Finance!AI39 -> 7.958078641e-14 | AJ14: =+Finance!AJ39 -> 7.958078641e-14 | AK14: =+Finance!AK39 -> 7.958078641e-14 | AL14: =+Finance!AL39 -> 7.958078641e-14 | AM14: =+Finance!AM39 -> 7.958078641e-14 | AN14: =+Finance!AN39 -> 7.958078641e-14 | AO14: =+Finance!AO39 -> 7.958078641e-14 | AP14: =+Finance!AP39 -> 7.958078641e-14 | AQ14: =+Finance!AQ39 -> 7.958078641e-14 | AR14: =+Finance!AR39 -> 7.958078641e-14 | AS14: =+Finance!AS39 -> 7.958078641e-14 | AT14: =+Finance!AT39 -> 7.958078641e-14 | AU14: =+Finance!AU39 -> 7.958078641e-14 | AV14: =+Finance!AV39 -> 7.958078641e-14 | AW14: =+Finance!AW39 -> 7.958078641e-14 | AX14: =+Finance!AX39 -> 7.958078641e-14 | AY14: =+Finance!AY39 -> 7.958078641e-14 | AZ14: =+Finance!AZ39 -> 7.958078641e-14 | BA14: =+Finance!BA39 -> 7.958078641e-14 | BB14: =+Finance!BB39 -> 7.958078641e-14 | BC14: =+Finance!BC39 -> 7.958078641e-14
A15: Less Principal Repayment | C15: 10000 | F15: =+Finance!F38 -> 0 | G15: =+Finance!G38 -> 0 | H15: =+Finance!H38 -> 0 | I15: =+Finance!I38 -> 0 | J15: =+Finance!J38 -> 0 | K15: =+Finance!K38 -> 0 | L15: =+Finance!L38 -> 0 | M15: =+Finance!M38 -> 555.5555556 | N15: =+Finance!N38 -> 555.5555556 | O15: =+Finance!O38 -> 555.5555556 | P15: =+Finance!P38 -> 555.5555556 | Q15: =+Finance!Q38 -> 555.5555556 | R15: =+Finance!R38 -> 555.5555556 | S15: =+Finance!S38 -> 555.5555556 | T15: =+Finance!T38 -> 555.5555556 | U15: =+Finance!U38 -> 555.5555556 | V15: =+Finance!V38 -> 555.5555556 | W15: =+Finance!W38 -> 555.5555556 | X15: =+Finance!X38 -> 555.5555556 | Y15: =+Finance!Y38 -> 555.5555556 | Z15: =+Finance!Z38 -> 555.5555556 | AA15: =+Finance!AA38 -> 555.5555556 | AB15: =+Finance!AB38 -> 555.5555556 | AC15: =+Finance!AC38 -> 555.5555556 | AD15: =+Finance!AD38 -> 555.5555556 | AE15: =+Finance!AE38 -> 0 | AF15: =+Finance!AF38 -> 0 | AG15: =+Finance!AG38 -> 0 | AH15: =+Finance!AH38 -> 0 | AI15: =+Finance!AI38 -> 0 | AJ15: =+Finance!AJ38 -> 0 | AK15: =+Finance!AK38 -> 0 | AL15: =+Finance!AL38 -> 0 | AM15: =+Finance!AM38 -> 0 | AN15: =+Finance!AN38 -> 0 | AO15: =+Finance!AO38 -> 0 | AP15: =+Finance!AP38 -> 0 | AQ15: =+Finance!AQ38 -> 0 | AR15: =+Finance!AR38 -> 0 | AS15: =+Finance!AS38 -> 0 | AT15: =+Finance!AT38 -> 0 | AU15: =+Finance!AU38 -> 0 | AV15: =+Finance!AV38 -> 0 | AW15: =+Finance!AW38 -> 0 | AX15: =+Finance!AX38 -> 0 | AY15: =+Finance!AY38 -> 0 | AZ15: =+Finance!AZ38 -> 0 | BA15: =+Finance!BA38 -> 0 | BB15: =+Finance!BB38 -> 0 | BC15: =+Finance!BC38 -> 0
A16: Net Cash Flow after Capex | C16: -104066.2234 | F16: =F10-SUM(F11:F15) -> -2191.004257 | G16: =G10-SUM(G11:G15) -> -4384.251053 | H16: -4956.032838 | I16: -5601.138781 | J16: -4489.159176 | K16: -924.5370435 | L16: -935.7638957 | M16: -1503.107646 | N16: -1476.596362 | O16: -1450.703958 | P16: -1425.461378 | Q16: -4035.524828 | R16: -1377.05728 | S16: -1353.965699 | T16: -1331.663984 | U16: -1310.191628 | V16: -1289.590098 | W16: -1269.902937 | X16: -6385.312147 | Y16: -1233.456877 | Z16: -1216.796387 | AA16: -1201.247318 | AB16: -1186.865239 | AC16: -1173.708501 | AD16: -1161.83837 | AE16: -10600.7428 | AF16: -625.5518034 | AG16: -656.8293935 | AH16: -689.6708632 | AI16: -724.1544064 | AJ16: -760.3621267 | AK16: -798.380233 | AL16: -20335.17324 | AM16: -880.2142069 | AN16: -924.2249172 | AO16: -970.4361631 | AP16: -1018.957971 | AQ16: -1069.90587 | AR16: -1123.401163 | AS16: -1179.571221 | AT16: -1238.549783 | AU16: -1300.477272 | AV16: -1365.501135 | AW16: -1433.776192 | AX16: -1505.465002 | AY16: -7.958078641e-14 | AZ16: -7.958078641e-14 | BA16: -7.958078641e-14 | BB16: -7.958078641e-14 | BC16: -7.958078641e-14
A17: ='Input Sponsor'!A64 -> Contributions covering Opex
A18: ='Input Sponsor'!A65 -> Department Baseline | C18: 47387.93909 | F18: =IF(F16<0,MIN(-F16,'Input Sponsor'!$C65*Work!F$66/Work!$E$66*Work!F$27*(1-Work!F$44)),0) -> 0 | G18: =IF(G16<0,MIN(-G16,'Input Sponsor'!$C65*Work!G$66/Work!$E$66*Work!G$27*(1-Work!G$44)),0) -> 0 | H18: =IF(H16<0,MIN(-H16,'Input Sponsor'!$C65*Work!H$66/Work!$E$66*Work!H$27*(1-Work!H$44)),0) -> 0 | I18: =IF(I16<0,MIN(-I16,'Input Sponsor'!$C65*Work!I$66/Work!$E$66*Work!I$27*(1-Work!I$44)),0) -> 0 | J18: =IF(J16<0,MIN(-J16,'Input Sponsor'!$C65*Work!J$66/Work!$E$66*Work!J$27*(1-Work!J$44)),0) -> 0 | K18: =IF(K16<0,MIN(-K16,'Input Sponsor'!$C65*Work!K$66/Work!$E$66*Work!K$27*(1-Work!K$44)),0) -> 867.7794828 | L18: =IF(L16<0,MIN(-L16,'Input Sponsor'!$C65*Work!L$66/Work!$E$66*Work!L$27*(1-Work!L$44)),0) -> 911.168457 | M18: =IF(M16<0,MIN(-M16,'Input Sponsor'!$C65*Work!M$66/Work!$E$66*Work!M$27*(1-Work!M$44)),0) -> 956.7268798 | N18: =IF(N16<0,MIN(-N16,'Input Sponsor'!$C65*Work!N$66/Work!$E$66*Work!N$27*(1-Work!N$44)),0) -> 1004.563224 | O18: =IF(O16<0,MIN(-O16,'Input Sponsor'!$C65*Work!O$66/Work!$E$66*Work!O$27*(1-Work!O$44)),0) -> 1054.791385 | P18: =IF(P16<0,MIN(-P16,'Input Sponsor'!$C65*Work!P$66/Work!$E$66*Work!P$27*(1-Work!P$44)),0) -> 1107.530954 | Q18: =IF(Q16<0,MIN(-Q16,'Input Sponsor'!$C65*Work!Q$66/Work!$E$66*Work!Q$27*(1-Work!Q$44)),0) -> 1162.907502 | R18: =IF(R16<0,MIN(-R16,'Input Sponsor'!$C65*Work!R$66/Work!$E$66*Work!R$27*(1-Work!R$44)),0) -> 1221.052877 | S18: =IF(S16<0,MIN(-S16,'Input Sponsor'!$C65*Work!S$66/Work!$E$66*Work!S$27*(1-Work!S$44)),0) -> 1282.105521 | T18: =IF(T16<0,MIN(-T16,'Input Sponsor'!$C65*Work!T$66/Work!$E$66*Work!T$27*(1-Work!T$44)),0) -> 1331.663984 | U18: =IF(U16<0,MIN(-U16,'Input Sponsor'!$C65*Work!U$66/Work!$E$66*Work!U$27*(1-Work!U$44)),0) -> 1310.191628 | V18: =IF(V16<0,MIN(-V16,'Input Sponsor'!$C65*Work!V$66/Work!$E$66*Work!V$27*(1-Work!V$44)),0) -> 1289.590098 | W18: =IF(W16<0,MIN(-W16,'Input Sponsor'!$C65*Work!W$66/Work!$E$66*Work!W$27*(1-Work!W$44)),0) -> 1269.902937 | X18: =IF(X16<0,MIN(-X16,'Input Sponsor'!$C65*Work!X$66/Work!$E$66*Work!X$27*(1-Work!X$44)),0) -> 1636.327637 | Y18: =IF(Y16<0,MIN(-Y16,'Input Sponsor'!$C65*Work!Y$66/Work!$E$66*Work!Y$27*(1-Work!Y$44)),0) -> 1233.456877 | Z18: =IF(Z16<0,MIN(-Z16,'Input Sponsor'!$C65*Work!Z$66/Work!$E$66*Work!Z$27*(1-Work!Z$44)),0) -> 1216.796387 | AA18: =IF(AA16<0,MIN(-AA16,'Input Sponsor'!$C65*Work!AA$66/Work!$E$66*Work!AA$27*(1-Work!AA$44)),0) -> 1201.247318 | AB18: =IF(AB16<0,MIN(-AB16,'Input Sponsor'!$C65*Work!AB$66/Work!$E$66*Work!AB$27*(1-Work!AB$44)),0) -> 1186.865239 | AC18: =IF(AC16<0,MIN(-AC16,'Input Sponsor'!$C65*Work!AC$66/Work!$E$66*Work!AC$27*(1-Work!AC$44)),0) -> 1173.708501 | AD18: =IF(AD16<0,MIN(-AD16,'Input Sponsor'!$C65*Work!AD$66/Work!$E$66*Work!AD$27*(1-Work!AD$44)),0) -> 1161.83837 | AE18: =IF(AE16<0,MIN(-AE16,'Input Sponsor'!$C65*Work!AE$66/Work!$E$66*Work!AE$27*(1-Work!AE$44)),0) -> 2302.47731 | AF18: =IF(AF16<0,MIN(-AF16,'Input Sponsor'!$C65*Work!AF$66/Work!$E$66*Work!AF$27*(1-Work!AF$44)),0) -> 625.5518034 | AG18: =IF(AG16<0,MIN(-AG16,'Input Sponsor'!$C65*Work!AG$66/Work!$E$66*Work!AG$27*(1-Work!AG$44)),0) -> 656.8293935 | AH18: =IF(AH16<0,MIN(-AH16,'Input Sponsor'!$C65*Work!AH$66/Work!$E$66*Work!AH$27*(1-Work!AH$44)),0) -> 689.6708632 | AI18: =IF(AI16<0,MIN(-AI16,'Input Sponsor'!$C65*Work!AI$66/Work!$E$66*Work!AI$27*(1-Work!AI$44)),0) -> 724.1544064 | AJ18: =IF(AJ16<0,MIN(-AJ16,'Input Sponsor'!$C65*Work!AJ$66/Work!$E$66*Work!AJ$27*(1-Work!AJ$44)),0) -> 760.3621267 | AK18: =IF(AK16<0,MIN(-AK16,'Input Sponsor'!$C65*Work!AK$66/Work!$E$66*Work!AK$27*(1-Work!AK$44)),0) -> 798.380233 | AL18: =IF(AL16<0,MIN(-AL16,'Input Sponsor'!$C65*Work!AL$66/Work!$E$66*Work!AL$27*(1-Work!AL$44)),0) -> 3239.816796 | AM18: =IF(AM16<0,MIN(-AM16,'Input Sponsor'!$C65*Work!AM$66/Work!$E$66*Work!AM$27*(1-Work!AM$44)),0) -> 880.2142069 | AN18: =IF(AN16<0,MIN(-AN16,'Input Sponsor'!$C65*Work!AN$66/Work!$E$66*Work!AN$27*(1-Work!AN$44)),0) -> 924.2249172 | AO18: =IF(AO16<0,MIN(-AO16,'Input Sponsor'!$C65*Work!AO$66/Work!$E$66*Work!AO$27*(1-Work!AO$44)),0) -> 970.4361631 | AP18: =IF(AP16<0,MIN(-AP16,'Input Sponsor'!$C65*Work!AP$66/Work!$E$66*Work!AP$27*(1-Work!AP$44)),0) -> 1018.957971 | AQ18: =IF(AQ16<0,MIN(-AQ16,'Input Sponsor'!$C65*Work!AQ$66/Work!$E$66*Work!AQ$27*(1-Work!AQ$44)),0) -> 1069.90587 | AR18: =IF(AR16<0,MIN(-AR16,'Input Sponsor'!$C65*Work!AR$66/Work!$E$66*Work!AR$27*(1-Work!AR$44)),0) -> 1123.401163 | AS18: =IF(AS16<0,MIN(-AS16,'Input Sponsor'!$C65*Work!AS$66/Work!$E$66*Work!AS$27*(1-Work!AS$44)),0) -> 1179.571221 | AT18: =IF(AT16<0,MIN(-AT16,'Input Sponsor'!$C65*Work!AT$66/Work!$E$66*Work!AT$27*(1-Work!AT$44)),0) -> 1238.549783 | AU18: =IF(AU16<0,MIN(-AU16,'Input Sponsor'!$C65*Work!AU$66/Work!$E$66*Work!AU$27*(1-Work!AU$44)),0) -> 1300.477272 | AV18: =IF(AV16<0,MIN(-AV16,'Input Sponsor'!$C65*Work!AV$66/Work!$E$66*Work!AV$27*(1-Work!AV$44)),0) -> 1365.501135 | AW18: =IF(AW16<0,MIN(-AW16,'Input Sponsor'!$C65*Work!AW$66/Work!$E$66*Work!AW$27*(1-Work!AW$44)),0) -> 1433.776192 | AX18: =IF(AX16<0,MIN(-AX16,'Input Sponsor'!$C65*Work!AX$66/Work!$E$66*Work!AX$27*(1-Work!AX$44)),0) -> 1505.465002 | AY18: =IF(AY16<0,MIN(-AY16,'Input Sponsor'!$C65*Work!AY$66/Work!$E$66*Work!AY$27*(1-Work!AY$44)),0) -> 0 | AZ18: =IF(AZ16<0,MIN(-AZ16,'Input Sponsor'!$C65*Work!AZ$66/Work!$E$66*Work!AZ$27*(1-Work!AZ$44)),0) -> 0 | BA18: =IF(BA16<0,MIN(-BA16,'Input Sponsor'!$C65*Work!BA$66/Work!$E$66*Work!BA$27*(1-Work!BA$44)),0) -> 0 | BB18: =IF(BB16<0,MIN(-BB16,'Input Sponsor'!$C65*Work!BB$66/Work!$E$66*Work!BB$27*(1-Work!BB$44)),0) -> 0 | BC18: =IF(BC16<0,MIN(-BC16,'Input Sponsor'!$C65*Work!BC$66/Work!$E$66*Work!BC$27*(1-Work!BC$44)),0) -> 0
A19: ='Input Sponsor'!A66 -> Provincial Grant | C19: 25.24837634 | F19: =IF(F16<0,MIN(-F16-F18,'Input Sponsor'!$C66*Work!F$66/Work!$E$66*Work!F$27*(1-Work!F$44)),0) -> 0 | G19: =IF(G16<0,MIN(-G16-G18,'Input Sponsor'!$C66*Work!G$66/Work!$E$66*Work!G$27*(1-Work!G$44)),0) -> 0 | H19: =IF(H16<0,MIN(-H16-H18,'Input Sponsor'!$C66*Work!H$66/Work!$E$66*Work!H$27*(1-Work!H$44)),0) -> 0 | I19: =IF(I16<0,MIN(-I16-I18,'Input Sponsor'!$C66*Work!I$66/Work!$E$66*Work!I$27*(1-Work!I$44)),0) -> 0 | J19: =IF(J16<0,MIN(-J16-J18,'Input Sponsor'!$C66*Work!J$66/Work!$E$66*Work!J$27*(1-Work!J$44)),0) -> 0 | K19: =IF(K16<0,MIN(-K16-K18,'Input Sponsor'!$C66*Work!K$66/Work!$E$66*Work!K$27*(1-Work!K$44)),0) -> 1.308276018 | L19: =IF(L16<0,MIN(-L16-L18,'Input Sponsor'!$C66*Work!L$66/Work!$E$66*Work!L$27*(1-Work!L$44)),0) -> 1.373689819 | M19: =IF(M16<0,MIN(-M16-M18,'Input Sponsor'!$C66*Work!M$66/Work!$E$66*Work!M$27*(1-Work!M$44)),0) -> 1.44237431 | N19: =IF(N16<0,MIN(-N16-N18,'Input Sponsor'!$C66*Work!N$66/Work!$E$66*Work!N$27*(1-Work!N$44)),0) -> 1.514493025 | O19: =IF(O16<0,MIN(-O16-O18,'Input Sponsor'!$C66*Work!O$66/Work!$E$66*Work!O$27*(1-Work!O$44)),0) -> 1.590217677 | P19: =IF(P16<0,MIN(-P16-P18,'Input Sponsor'!$C66*Work!P$66/Work!$E$66*Work!P$27*(1-Work!P$44)),0) -> 1.669728561 | Q19: =IF(Q16<0,MIN(-Q16-Q18,'Input Sponsor'!$C66*Work!Q$66/Work!$E$66*Work!Q$27*(1-Work!Q$44)),0) -> 1.753214989 | R19: =IF(R16<0,MIN(-R16-R18,'Input Sponsor'!$C66*Work!R$66/Work!$E$66*Work!R$27*(1-Work!R$44)),0) -> 1.840875738 | S19: =IF(S16<0,MIN(-S16-S18,'Input Sponsor'!$C66*Work!S$66/Work!$E$66*Work!S$27*(1-Work!S$44)),0) -> 1.932919525 | T19: =IF(T16<0,MIN(-T16-T18,'Input Sponsor'!$C66*Work!T$66/Work!$E$66*Work!T$27*(1-Work!T$44)),0) -> 0 | U19: =IF(U16<0,MIN(-U16-U18,'Input Sponsor'!$C66*Work!U$66/Work!$E$66*Work!U$27*(1-Work!U$44)),0) -> 0 | V19: =IF(V16<0,MIN(-V16-V18,'Input Sponsor'!$C66*Work!V$66/Work!$E$66*Work!V$27*(1-Work!V$44)),0) -> 0 | W19: =IF(W16<0,MIN(-W16-W18,'Input Sponsor'!$C66*Work!W$66/Work!$E$66*Work!W$27*(1-Work!W$44)),0) -> 0 | X19: =IF(X16<0,MIN(-X16-X18,'Input Sponsor'!$C66*Work!X$66/Work!$E$66*Work!X$27*(1-Work!X$44)),0) -> 2.466949551 | Y19: =IF(Y16<0,MIN(-Y16-Y18,'Input Sponsor'!$C66*Work!Y$66/Work!$E$66*Work!Y$27*(1-Work!Y$44)),0) -> 0 | Z19: =IF(Z16<0,MIN(-Z16-Z18,'Input Sponsor'!$C66*Work!Z$66/Work!$E$66*Work!Z$27*(1-Work!Z$44)),0) -> 0 | AA19: =IF(AA16<0,MIN(-AA16-AA18,'Input Sponsor'!$C66*Work!AA$66/Work!$E$66*Work!AA$27*(1-Work!AA$44)),0) -> 0 | AB19: =IF(AB16<0,MIN(-AB16-AB18,'Input Sponsor'!$C66*Work!AB$66/Work!$E$66*Work!AB$27*(1-Work!AB$44)),0) -> 0 | AC19: =IF(AC16<0,MIN(-AC16-AC18,'Input Sponsor'!$C66*Work!AC$66/Work!$E$66*Work!AC$27*(1-Work!AC$44)),0) -> 0 | AD19: =IF(AD16<0,MIN(-AD16-AD18,'Input Sponsor'!$C66*Work!AD$66/Work!$E$66*Work!AD$27*(1-Work!AD$44)),0) -> 0 | AE19: =IF(AE16<0,MIN(-AE16-AE18,'Input Sponsor'!$C66*Work!AE$66/Work!$E$66*Work!AE$27*(1-Work!AE$44)),0) -> 3.471245757 | AF19: =IF(AF16<0,MIN(-AF16-AF18,'Input Sponsor'!$C66*Work!AF$66/Work!$E$66*Work!AF$27*(1-Work!AF$44)),0) -> 0 | AG19: =IF(AG16<0,MIN(-AG16-AG18,'Input Sponsor'!$C66*Work!AG$66/Work!$E$66*Work!AG$27*(1-Work!AG$44)),0) -> 0 | AH19: =IF(AH16<0,MIN(-AH16-AH18,'Input Sponsor'!$C66*Work!AH$66/Work!$E$66*Work!AH$27*(1-Work!AH$44)),0) -> 0 | AI19: =IF(AI16<0,MIN(-AI16-AI18,'Input Sponsor'!$C66*Work!AI$66/Work!$E$66*Work!AI$27*(1-Work!AI$44)),0) -> 0 | AJ19: =IF(AJ16<0,MIN(-AJ16-AJ18,'Input Sponsor'!$C66*Work!AJ$66/Work!$E$66*Work!AJ$27*(1-Work!AJ$44)),0) -> 0 | AK19: =IF(AK16<0,MIN(-AK16-AK18,'Input Sponsor'!$C66*Work!AK$66/Work!$E$66*Work!AK$27*(1-Work!AK$44)),0) -> 0 | AL19: =IF(AL16<0,MIN(-AL16-AL18,'Input Sponsor'!$C66*Work!AL$66/Work!$E$66*Work!AL$27*(1-Work!AL$44)),0) -> 4.884391371 | AM19: =IF(AM16<0,MIN(-AM16-AM18,'Input Sponsor'!$C66*Work!AM$66/Work!$E$66*Work!AM$27*(1-Work!AM$44)),0) -> 0 | AN19: =IF(AN16<0,MIN(-AN16-AN18,'Input Sponsor'!$C66*Work!AN$66/Work!$E$66*Work!AN$27*(1-Work!AN$44)),0) -> 0 | AO19: =IF(AO16<0,MIN(-AO16-AO18,'Input Sponsor'!$C66*Work!AO$66/Work!$E$66*Work!AO$27*(1-Work!AO$44)),0) -> 0 | AP19: =IF(AP16<0,MIN(-AP16-AP18,'Input Sponsor'!$C66*Work!AP$66/Work!$E$66*Work!AP$27*(1-Work!AP$44)),0) -> 0 | AQ19: =IF(AQ16<0,MIN(-AQ16-AQ18,'Input Sponsor'!$C66*Work!AQ$66/Work!$E$66*Work!AQ$27*(1-Work!AQ$44)),0) -> 0 | AR19: =IF(AR16<0,MIN(-AR16-AR18,'Input Sponsor'!$C66*Work!AR$66/Work!$E$66*Work!AR$27*(1-Work!AR$44)),0) -> 0 | AS19: =IF(AS16<0,MIN(-AS16-AS18,'Input Sponsor'!$C66*Work!AS$66/Work!$E$66*Work!AS$27*(1-Work!AS$44)),0) -> 0 | AT19: =IF(AT16<0,MIN(-AT16-AT18,'Input Sponsor'!$C66*Work!AT$66/Work!$E$66*Work!AT$27*(1-Work!AT$44)),0) -> 0 | AU19: =IF(AU16<0,MIN(-AU16-AU18,'Input Sponsor'!$C66*Work!AU$66/Work!$E$66*Work!AU$27*(1-Work!AU$44)),0) -> 0 | AV19: =IF(AV16<0,MIN(-AV16-AV18,'Input Sponsor'!$C66*Work!AV$66/Work!$E$66*Work!AV$27*(1-Work!AV$44)),0) -> 0 | AW19: =IF(AW16<0,MIN(-AW16-AW18,'Input Sponsor'!$C66*Work!AW$66/Work!$E$66*Work!AW$27*(1-Work!AW$44)),0) -> 0 | AX19: =IF(AX16<0,MIN(-AX16-AX18,'Input Sponsor'!$C66*Work!AX$66/Work!$E$66*Work!AX$27*(1-Work!AX$44)),0) -> 0 | AY19: =IF(AY16<0,MIN(-AY16-AY18,'Input Sponsor'!$C66*Work!AY$66/Work!$E$66*Work!AY$27*(1-Work!AY$44)),0) -> 0 | AZ19: =IF(AZ16<0,MIN(-AZ16-AZ18,'Input Sponsor'!$C66*Work!AZ$66/Work!$E$66*Work!AZ$27*(1-Work!AZ$44)),0) -> 0 | BA19: =IF(BA16<0,MIN(-BA16-BA18,'Input Sponsor'!$C66*Work!BA$66/Work!$E$66*Work!BA$27*(1-Work!BA$44)),0) -> 0 | BB19: =IF(BB16<0,MIN(-BB16-BB18,'Input Sponsor'!$C66*Work!BB$66/Work!$E$66*Work!BB$27*(1-Work!BB$44)),0) -> 0 | BC19: =IF(BC16<0,MIN(-BC16-BC18,'Input Sponsor'!$C66*Work!BC$66/Work!$E$66*Work!BC$27*(1-Work!BC$44)),0) -> 0
A20: ='Input Sponsor'!A67 -> Provincial Treasury Instruction | C20: 25.24837634 | F20: =IF(F16<0,MIN(-F16-F18-F19,'Input Sponsor'!$C67*Work!F$66/Work!$E$66*Work!F$27*(1-Work!F$44)),0) -> 0 | G20: =IF(G16<0,MIN(-G16-G18-G19,'Input Sponsor'!$C67*Work!G$66/Work!$E$66*Work!G$27*(1-Work!G$44)),0) -> 0 | H20: =IF(H16<0,MIN(-H16-H18-H19,'Input Sponsor'!$C67*Work!H$66/Work!$E$66*Work!H$27*(1-Work!H$44)),0) -> 0 | I20: =IF(I16<0,MIN(-I16-I18-I19,'Input Sponsor'!$C67*Work!I$66/Work!$E$66*Work!I$27*(1-Work!I$44)),0) -> 0 | J20: =IF(J16<0,MIN(-J16-J18-J19,'Input Sponsor'!$C67*Work!J$66/Work!$E$66*Work!J$27*(1-Work!J$44)),0) -> 0 | K20: =IF(K16<0,MIN(-K16-K18-K19,'Input Sponsor'!$C67*Work!K$66/Work!$E$66*Work!K$27*(1-Work!K$44)),0) -> 1.308276018 | L20: =IF(L16<0,MIN(-L16-L18-L19,'Input Sponsor'!$C67*Work!L$66/Work!$E$66*Work!L$27*(1-Work!L$44)),0) -> 1.373689819 | M20: =IF(M16<0,MIN(-M16-M18-M19,'Input Sponsor'!$C67*Work!M$66/Work!$E$66*Work!M$27*(1-Work!M$44)),0) -> 1.44237431 | N20: =IF(N16<0,MIN(-N16-N18-N19,'Input Sponsor'!$C67*Work!N$66/Work!$E$66*Work!N$27*(1-Work!N$44)),0) -> 1.514493025 | O20: =IF(O16<0,MIN(-O16-O18-O19,'Input Sponsor'!$C67*Work!O$66/Work!$E$66*Work!O$27*(1-Work!O$44)),0) -> 1.590217677 | P20: =IF(P16<0,MIN(-P16-P18-P19,'Input Sponsor'!$C67*Work!P$66/Work!$E$66*Work!P$27*(1-Work!P$44)),0) -> 1.669728561 | Q20: =IF(Q16<0,MIN(-Q16-Q18-Q19,'Input Sponsor'!$C67*Work!Q$66/Work!$E$66*Work!Q$27*(1-Work!Q$44)),0) -> 1.753214989 | R20: =IF(R16<0,MIN(-R16-R18-R19,'Input Sponsor'!$C67*Work!R$66/Work!$E$66*Work!R$27*(1-Work!R$44)),0) -> 1.840875738 | S20: =IF(S16<0,MIN(-S16-S18-S19,'Input Sponsor'!$C67*Work!S$66/Work!$E$66*Work!S$27*(1-Work!S$44)),0) -> 1.932919525 | T20: =IF(T16<0,MIN(-T16-T18-T19,'Input Sponsor'!$C67*Work!T$66/Work!$E$66*Work!T$27*(1-Work!T$44)),0) -> 0 | U20: =IF(U16<0,MIN(-U16-U18-U19,'Input Sponsor'!$C67*Work!U$66/Work!$E$66*Work!U$27*(1-Work!U$44)),0) -> 0 | V20: =IF(V16<0,MIN(-V16-V18-V19,'Input Sponsor'!$C67*Work!V$66/Work!$E$66*Work!V$27*(1-Work!V$44)),0) -> 0 | W20: =IF(W16<0,MIN(-W16-W18-W19,'Input Sponsor'!$C67*Work!W$66/Work!$E$66*Work!W$27*(1-Work!W$44)),0) -> 0 | X20: =IF(X16<0,MIN(-X16-X18-X19,'Input Sponsor'!$C67*Work!X$66/Work!$E$66*Work!X$27*(1-Work!X$44)),0) -> 2.466949551 | Y20: =IF(Y16<0,MIN(-Y16-Y18-Y19,'Input Sponsor'!$C67*Work!Y$66/Work!$E$66*Work!Y$27*(1-Work!Y$44)),0) -> 0 | Z20: =IF(Z16<0,MIN(-Z16-Z18-Z19,'Input Sponsor'!$C67*Work!Z$66/Work!$E$66*Work!Z$27*(1-Work!Z$44)),0) -> 0 | AA20: =IF(AA16<0,MIN(-AA16-AA18-AA19,'Input Sponsor'!$C67*Work!AA$66/Work!$E$66*Work!AA$27*(1-Work!AA$44)),0) -> 0 | AB20: =IF(AB16<0,MIN(-AB16-AB18-AB19,'Input Sponsor'!$C67*Work!AB$66/Work!$E$66*Work!AB$27*(1-Work!AB$44)),0) -> 0 | AC20: =IF(AC16<0,MIN(-AC16-AC18-AC19,'Input Sponsor'!$C67*Work!AC$66/Work!$E$66*Work!AC$27*(1-Work!AC$44)),0) -> 0 | AD20: =IF(AD16<0,MIN(-AD16-AD18-AD19,'Input Sponsor'!$C67*Work!AD$66/Work!$E$66*Work!AD$27*(1-Work!AD$44)),0) -> 0 | AE20: =IF(AE16<0,MIN(-AE16-AE18-AE19,'Input Sponsor'!$C67*Work!AE$66/Work!$E$66*Work!AE$27*(1-Work!AE$44)),0) -> 3.471245757 | AF20: =IF(AF16<0,MIN(-AF16-AF18-AF19,'Input Sponsor'!$C67*Work!AF$66/Work!$E$66*Work!AF$27*(1-Work!AF$44)),0) -> 0 | AG20: =IF(AG16<0,MIN(-AG16-AG18-AG19,'Input Sponsor'!$C67*Work!AG$66/Work!$E$66*Work!AG$27*(1-Work!AG$44)),0) -> 0 | AH20: =IF(AH16<0,MIN(-AH16-AH18-AH19,'Input Sponsor'!$C67*Work!AH$66/Work!$E$66*Work!AH$27*(1-Work!AH$44)),0) -> 0 | AI20: =IF(AI16<0,MIN(-AI16-AI18-AI19,'Input Sponsor'!$C67*Work!AI$66/Work!$E$66*Work!AI$27*(1-Work!AI$44)),0) -> 0 | AJ20: =IF(AJ16<0,MIN(-AJ16-AJ18-AJ19,'Input Sponsor'!$C67*Work!AJ$66/Work!$E$66*Work!AJ$27*(1-Work!AJ$44)),0) -> 0 | AK20: =IF(AK16<0,MIN(-AK16-AK18-AK19,'Input Sponsor'!$C67*Work!AK$66/Work!$E$66*Work!AK$27*(1-Work!AK$44)),0) -> 0 | AL20: =IF(AL16<0,MIN(-AL16-AL18-AL19,'Input Sponsor'!$C67*Work!AL$66/Work!$E$66*Work!AL$27*(1-Work!AL$44)),0) -> 4.884391371 | AM20: =IF(AM16<0,MIN(-AM16-AM18-AM19,'Input Sponsor'!$C67*Work!AM$66/Work!$E$66*Work!AM$27*(1-Work!AM$44)),0) -> 0 | AN20: =IF(AN16<0,MIN(-AN16-AN18-AN19,'Input Sponsor'!$C67*Work!AN$66/Work!$E$66*Work!AN$27*(1-Work!AN$44)),0) -> 0 | AO20: =IF(AO16<0,MIN(-AO16-AO18-AO19,'Input Sponsor'!$C67*Work!AO$66/Work!$E$66*Work!AO$27*(1-Work!AO$44)),0) -> 0 | AP20: =IF(AP16<0,MIN(-AP16-AP18-AP19,'Input Sponsor'!$C67*Work!AP$66/Work!$E$66*Work!AP$27*(1-Work!AP$44)),0) -> 0 | AQ20: =IF(AQ16<0,MIN(-AQ16-AQ18-AQ19,'Input Sponsor'!$C67*Work!AQ$66/Work!$E$66*Work!AQ$27*(1-Work!AQ$44)),0) -> 0 | AR20: =IF(AR16<0,MIN(-AR16-AR18-AR19,'Input Sponsor'!$C67*Work!AR$66/Work!$E$66*Work!AR$27*(1-Work!AR$44)),0) -> 0 | AS20: =IF(AS16<0,MIN(-AS16-AS18-AS19,'Input Sponsor'!$C67*Work!AS$66/Work!$E$66*Work!AS$27*(1-Work!AS$44)),0) -> 0 | AT20: =IF(AT16<0,MIN(-AT16-AT18-AT19,'Input Sponsor'!$C67*Work!AT$66/Work!$E$66*Work!AT$27*(1-Work!AT$44)),0) -> 0 | AU20: =IF(AU16<0,MIN(-AU16-AU18-AU19,'Input Sponsor'!$C67*Work!AU$66/Work!$E$66*Work!AU$27*(1-Work!AU$44)),0) -> 0 | AV20: =IF(AV16<0,MIN(-AV16-AV18-AV19,'Input Sponsor'!$C67*Work!AV$66/Work!$E$66*Work!AV$27*(1-Work!AV$44)),0) -> 0 | AW20: =IF(AW16<0,MIN(-AW16-AW18-AW19,'Input Sponsor'!$C67*Work!AW$66/Work!$E$66*Work!AW$27*(1-Work!AW$44)),0) -> 0 | AX20: =IF(AX16<0,MIN(-AX16-AX18-AX19,'Input Sponsor'!$C67*Work!AX$66/Work!$E$66*Work!AX$27*(1-Work!AX$44)),0) -> 0 | AY20: =IF(AY16<0,MIN(-AY16-AY18-AY19,'Input Sponsor'!$C67*Work!AY$66/Work!$E$66*Work!AY$27*(1-Work!AY$44)),0) -> 0 | AZ20: =IF(AZ16<0,MIN(-AZ16-AZ18-AZ19,'Input Sponsor'!$C67*Work!AZ$66/Work!$E$66*Work!AZ$27*(1-Work!AZ$44)),0) -> 0 | BA20: =IF(BA16<0,MIN(-BA16-BA18-BA19,'Input Sponsor'!$C67*Work!BA$66/Work!$E$66*Work!BA$27*(1-Work!BA$44)),0) -> 0 | BB20: =IF(BB16<0,MIN(-BB16-BB18-BB19,'Input Sponsor'!$C67*Work!BB$66/Work!$E$66*Work!BB$27*(1-Work!BB$44)),0) -> 0 | BC20: =IF(BC16<0,MIN(-BC16-BC18-BC19,'Input Sponsor'!$C67*Work!BC$66/Work!$E$66*Work!BC$27*(1-Work!BC$44)),0) -> 0
A21: ='Input Sponsor'!A68 -> Municipal Grant | C21: 25.24837634 | F21: =IF(F16<0,MIN(-F16-F18-F19-F20,'Input Sponsor'!$C68*Work!F$66/Work!$E$66*Work!F$27*(1-Work!F$44)),0) -> 0 | G21: =IF(G16<0,MIN(-G16-G18-G19-G20,'Input Sponsor'!$C68*Work!G$66/Work!$E$66*Work!G$27*(1-Work!G$44)),0) -> 0 | H21: =IF(H16<0,MIN(-H16-H18-H19-H20,'Input Sponsor'!$C68*Work!H$66/Work!$E$66*Work!H$27*(1-Work!H$44)),0) -> 0 | I21: =IF(I16<0,MIN(-I16-I18-I19-I20,'Input Sponsor'!$C68*Work!I$66/Work!$E$66*Work!I$27*(1-Work!I$44)),0) -> 0 | J21: =IF(J16<0,MIN(-J16-J18-J19-J20,'Input Sponsor'!$C68*Work!J$66/Work!$E$66*Work!J$27*(1-Work!J$44)),0) -> 0 | K21: =IF(K16<0,MIN(-K16-K18-K19-K20,'Input Sponsor'!$C68*Work!K$66/Work!$E$66*Work!K$27*(1-Work!K$44)),0) -> 1.308276018 | L21: =IF(L16<0,MIN(-L16-L18-L19-L20,'Input Sponsor'!$C68*Work!L$66/Work!$E$66*Work!L$27*(1-Work!L$44)),0) -> 1.373689819 | M21: =IF(M16<0,MIN(-M16-M18-M19-M20,'Input Sponsor'!$C68*Work!M$66/Work!$E$66*Work!M$27*(1-Work!M$44)),0) -> 1.44237431 | N21: =IF(N16<0,MIN(-N16-N18-N19-N20,'Input Sponsor'!$C68*Work!N$66/Work!$E$66*Work!N$27*(1-Work!N$44)),0) -> 1.514493025 | O21: =IF(O16<0,MIN(-O16-O18-O19-O20,'Input Sponsor'!$C68*Work!O$66/Work!$E$66*Work!O$27*(1-Work!O$44)),0) -> 1.590217677 | P21: =IF(P16<0,MIN(-P16-P18-P19-P20,'Input Sponsor'!$C68*Work!P$66/Work!$E$66*Work!P$27*(1-Work!P$44)),0) -> 1.669728561 | Q21: =IF(Q16<0,MIN(-Q16-Q18-Q19-Q20,'Input Sponsor'!$C68*Work!Q$66/Work!$E$66*Work!Q$27*(1-Work!Q$44)),0) -> 1.753214989 | R21: =IF(R16<0,MIN(-R16-R18-R19-R20,'Input Sponsor'!$C68*Work!R$66/Work!$E$66*Work!R$27*(1-Work!R$44)),0) -> 1.840875738 | S21: =IF(S16<0,MIN(-S16-S18-S19-S20,'Input Sponsor'!$C68*Work!S$66/Work!$E$66*Work!S$27*(1-Work!S$44)),0) -> 1.932919525 | T21: =IF(T16<0,MIN(-T16-T18-T19-T20,'Input Sponsor'!$C68*Work!T$66/Work!$E$66*Work!T$27*(1-Work!T$44)),0) -> 0 | U21: =IF(U16<0,MIN(-U16-U18-U19-U20,'Input Sponsor'!$C68*Work!U$66/Work!$E$66*Work!U$27*(1-Work!U$44)),0) -> 0 | V21: =IF(V16<0,MIN(-V16-V18-V19-V20,'Input Sponsor'!$C68*Work!V$66/Work!$E$66*Work!V$27*(1-Work!V$44)),0) -> 0 | W21: =IF(W16<0,MIN(-W16-W18-W19-W20,'Input Sponsor'!$C68*Work!W$66/Work!$E$66*Work!W$27*(1-Work!W$44)),0) -> 0 | X21: =IF(X16<0,MIN(-X16-X18-X19-X20,'Input Sponsor'!$C68*Work!X$66/Work!$E$66*Work!X$27*(1-Work!X$44)),0) -> 2.466949551 | Y21: =IF(Y16<0,MIN(-Y16-Y18-Y19-Y20,'Input Sponsor'!$C68*Work!Y$66/Work!$E$66*Work!Y$27*(1-Work!Y$44)),0) -> 0 | Z21: =IF(Z16<0,MIN(-Z16-Z18-Z19-Z20,'Input Sponsor'!$C68*Work!Z$66/Work!$E$66*Work!Z$27*(1-Work!Z$44)),0) -> 0 | AA21: =IF(AA16<0,MIN(-AA16-AA18-AA19-AA20,'Input Sponsor'!$C68*Work!AA$66/Work!$E$66*Work!AA$27*(1-Work!AA$44)),0) -> 0 | AB21: =IF(AB16<0,MIN(-AB16-AB18-AB19-AB20,'Input Sponsor'!$C68*Work!AB$66/Work!$E$66*Work!AB$27*(1-Work!AB$44)),0) -> 0 | AC21: =IF(AC16<0,MIN(-AC16-AC18-AC19-AC20,'Input Sponsor'!$C68*Work!AC$66/Work!$E$66*Work!AC$27*(1-Work!AC$44)),0) -> 0 | AD21: =IF(AD16<0,MIN(-AD16-AD18-AD19-AD20,'Input Sponsor'!$C68*Work!AD$66/Work!$E$66*Work!AD$27*(1-Work!AD$44)),0) -> 0 | AE21: =IF(AE16<0,MIN(-AE16-AE18-AE19-AE20,'Input Sponsor'!$C68*Work!AE$66/Work!$E$66*Work!AE$27*(1-Work!AE$44)),0) -> 3.471245757 | AF21: =IF(AF16<0,MIN(-AF16-AF18-AF19-AF20,'Input Sponsor'!$C68*Work!AF$66/Work!$E$66*Work!AF$27*(1-Work!AF$44)),0) -> 0 | AG21: =IF(AG16<0,MIN(-AG16-AG18-AG19-AG20,'Input Sponsor'!$C68*Work!AG$66/Work!$E$66*Work!AG$27*(1-Work!AG$44)),0) -> 0 | AH21: =IF(AH16<0,MIN(-AH16-AH18-AH19-AH20,'Input Sponsor'!$C68*Work!AH$66/Work!$E$66*Work!AH$27*(1-Work!AH$44)),0) -> 0 | AI21: =IF(AI16<0,MIN(-AI16-AI18-AI19-AI20,'Input Sponsor'!$C68*Work!AI$66/Work!$E$66*Work!AI$27*(1-Work!AI$44)),0) -> 0 | AJ21: =IF(AJ16<0,MIN(-AJ16-AJ18-AJ19-AJ20,'Input Sponsor'!$C68*Work!AJ$66/Work!$E$66*Work!AJ$27*(1-Work!AJ$44)),0) -> 0 | AK21: =IF(AK16<0,MIN(-AK16-AK18-AK19-AK20,'Input Sponsor'!$C68*Work!AK$66/Work!$E$66*Work!AK$27*(1-Work!AK$44)),0) -> 0 | AL21: =IF(AL16<0,MIN(-AL16-AL18-AL19-AL20,'Input Sponsor'!$C68*Work!AL$66/Work!$E$66*Work!AL$27*(1-Work!AL$44)),0) -> 4.884391371 | AM21: =IF(AM16<0,MIN(-AM16-AM18-AM19-AM20,'Input Sponsor'!$C68*Work!AM$66/Work!$E$66*Work!AM$27*(1-Work!AM$44)),0) -> 0 | AN21: =IF(AN16<0,MIN(-AN16-AN18-AN19-AN20,'Input Sponsor'!$C68*Work!AN$66/Work!$E$66*Work!AN$27*(1-Work!AN$44)),0) -> 0 | AO21: =IF(AO16<0,MIN(-AO16-AO18-AO19-AO20,'Input Sponsor'!$C68*Work!AO$66/Work!$E$66*Work!AO$27*(1-Work!AO$44)),0) -> 0 | AP21: =IF(AP16<0,MIN(-AP16-AP18-AP19-AP20,'Input Sponsor'!$C68*Work!AP$66/Work!$E$66*Work!AP$27*(1-Work!AP$44)),0) -> 0 | AQ21: =IF(AQ16<0,MIN(-AQ16-AQ18-AQ19-AQ20,'Input Sponsor'!$C68*Work!AQ$66/Work!$E$66*Work!AQ$27*(1-Work!AQ$44)),0) -> 0 | AR21: =IF(AR16<0,MIN(-AR16-AR18-AR19-AR20,'Input Sponsor'!$C68*Work!AR$66/Work!$E$66*Work!AR$27*(1-Work!AR$44)),0) -> 0 | AS21: =IF(AS16<0,MIN(-AS16-AS18-AS19-AS20,'Input Sponsor'!$C68*Work!AS$66/Work!$E$66*Work!AS$27*(1-Work!AS$44)),0) -> 0 | AT21: =IF(AT16<0,MIN(-AT16-AT18-AT19-AT20,'Input Sponsor'!$C68*Work!AT$66/Work!$E$66*Work!AT$27*(1-Work!AT$44)),0) -> 0 | AU21: =IF(AU16<0,MIN(-AU16-AU18-AU19-AU20,'Input Sponsor'!$C68*Work!AU$66/Work!$E$66*Work!AU$27*(1-Work!AU$44)),0) -> 0 | AV21: =IF(AV16<0,MIN(-AV16-AV18-AV19-AV20,'Input Sponsor'!$C68*Work!AV$66/Work!$E$66*Work!AV$27*(1-Work!AV$44)),0) -> 0 | AW21: =IF(AW16<0,MIN(-AW16-AW18-AW19-AW20,'Input Sponsor'!$C68*Work!AW$66/Work!$E$66*Work!AW$27*(1-Work!AW$44)),0) -> 0 | AX21: =IF(AX16<0,MIN(-AX16-AX18-AX19-AX20,'Input Sponsor'!$C68*Work!AX$66/Work!$E$66*Work!AX$27*(1-Work!AX$44)),0) -> 0 | AY21: =IF(AY16<0,MIN(-AY16-AY18-AY19-AY20,'Input Sponsor'!$C68*Work!AY$66/Work!$E$66*Work!AY$27*(1-Work!AY$44)),0) -> 0 | AZ21: =IF(AZ16<0,MIN(-AZ16-AZ18-AZ19-AZ20,'Input Sponsor'!$C68*Work!AZ$66/Work!$E$66*Work!AZ$27*(1-Work!AZ$44)),0) -> 0 | BA21: =IF(BA16<0,MIN(-BA16-BA18-BA19-BA20,'Input Sponsor'!$C68*Work!BA$66/Work!$E$66*Work!BA$27*(1-Work!BA$44)),0) -> 0 | BB21: =IF(BB16<0,MIN(-BB16-BB18-BB19-BB20,'Input Sponsor'!$C68*Work!BB$66/Work!$E$66*Work!BB$27*(1-Work!BB$44)),0) -> 0 | BC21: =IF(BC16<0,MIN(-BC16-BC18-BC19-BC20,'Input Sponsor'!$C68*Work!BC$66/Work!$E$66*Work!BC$27*(1-Work!BC$44)),0) -> 0
A22: ='Input Sponsor'!A69 -> Municipal Council Funds | C22: 25.24837634 | F22: =IF(F16<0,MIN(-F16-F18-F19-F20-F21,'Input Sponsor'!$C69*Work!F$66/Work!$E$66*Work!F$27*(1-Work!F$44)),0) -> 0 | G22: =IF(G16<0,MIN(-G16-G18-G19-G20-G21,'Input Sponsor'!$C69*Work!G$66/Work!$E$66*Work!G$27*(1-Work!G$44)),0) -> 0 | H22: =IF(H16<0,MIN(-H16-H18-H19-H20-H21,'Input Sponsor'!$C69*Work!H$66/Work!$E$66*Work!H$27*(1-Work!H$44)),0) -> 0 | I22: =IF(I16<0,MIN(-I16-I18-I19-I20-I21,'Input Sponsor'!$C69*Work!I$66/Work!$E$66*Work!I$27*(1-Work!I$44)),0) -> 0 | J22: =IF(J16<0,MIN(-J16-J18-J19-J20-J21,'Input Sponsor'!$C69*Work!J$66/Work!$E$66*Work!J$27*(1-Work!J$44)),0) -> 0 | K22: =IF(K16<0,MIN(-K16-K18-K19-K20-K21,'Input Sponsor'!$C69*Work!K$66/Work!$E$66*Work!K$27*(1-Work!K$44)),0) -> 1.308276018 | L22: =IF(L16<0,MIN(-L16-L18-L19-L20-L21,'Input Sponsor'!$C69*Work!L$66/Work!$E$66*Work!L$27*(1-Work!L$44)),0) -> 1.373689819 | M22: =IF(M16<0,MIN(-M16-M18-M19-M20-M21,'Input Sponsor'!$C69*Work!M$66/Work!$E$66*Work!M$27*(1-Work!M$44)),0) -> 1.44237431 | N22: =IF(N16<0,MIN(-N16-N18-N19-N20-N21,'Input Sponsor'!$C69*Work!N$66/Work!$E$66*Work!N$27*(1-Work!N$44)),0) -> 1.514493025 | O22: =IF(O16<0,MIN(-O16-O18-O19-O20-O21,'Input Sponsor'!$C69*Work!O$66/Work!$E$66*Work!O$27*(1-Work!O$44)),0) -> 1.590217677 | P22: =IF(P16<0,MIN(-P16-P18-P19-P20-P21,'Input Sponsor'!$C69*Work!P$66/Work!$E$66*Work!P$27*(1-Work!P$44)),0) -> 1.669728561 | Q22: =IF(Q16<0,MIN(-Q16-Q18-Q19-Q20-Q21,'Input Sponsor'!$C69*Work!Q$66/Work!$E$66*Work!Q$27*(1-Work!Q$44)),0) -> 1.753214989 | R22: =IF(R16<0,MIN(-R16-R18-R19-R20-R21,'Input Sponsor'!$C69*Work!R$66/Work!$E$66*Work!R$27*(1-Work!R$44)),0) -> 1.840875738 | S22: =IF(S16<0,MIN(-S16-S18-S19-S20-S21,'Input Sponsor'!$C69*Work!S$66/Work!$E$66*Work!S$27*(1-Work!S$44)),0) -> 1.932919525 | T22: =IF(T16<0,MIN(-T16-T18-T19-T20-T21,'Input Sponsor'!$C69*Work!T$66/Work!$E$66*Work!T$27*(1-Work!T$44)),0) -> 0 | U22: =IF(U16<0,MIN(-U16-U18-U19-U20-U21,'Input Sponsor'!$C69*Work!U$66/Work!$E$66*Work!U$27*(1-Work!U$44)),0) -> 0 | V22: =IF(V16<0,MIN(-V16-V18-V19-V20-V21,'Input Sponsor'!$C69*Work!V$66/Work!$E$66*Work!V$27*(1-Work!V$44)),0) -> 0 | W22: =IF(W16<0,MIN(-W16-W18-W19-W20-W21,'Input Sponsor'!$C69*Work!W$66/Work!$E$66*Work!W$27*(1-Work!W$44)),0) -> 0 | X22: =IF(X16<0,MIN(-X16-X18-X19-X20-X21,'Input Sponsor'!$C69*Work!X$66/Work!$E$66*Work!X$27*(1-Work!X$44)),0) -> 2.466949551 | Y22: =IF(Y16<0,MIN(-Y16-Y18-Y19-Y20-Y21,'Input Sponsor'!$C69*Work!Y$66/Work!$E$66*Work!Y$27*(1-Work!Y$44)),0) -> 0 | Z22: =IF(Z16<0,MIN(-Z16-Z18-Z19-Z20-Z21,'Input Sponsor'!$C69*Work!Z$66/Work!$E$66*Work!Z$27*(1-Work!Z$44)),0) -> 0 | AA22: =IF(AA16<0,MIN(-AA16-AA18-AA19-AA20-AA21,'Input Sponsor'!$C69*Work!AA$66/Work!$E$66*Work!AA$27*(1-Work!AA$44)),0) -> 0 | AB22: =IF(AB16<0,MIN(-AB16-AB18-AB19-AB20-AB21,'Input Sponsor'!$C69*Work!AB$66/Work!$E$66*Work!AB$27*(1-Work!AB$44)),0) -> 0 | AC22: =IF(AC16<0,MIN(-AC16-AC18-AC19-AC20-AC21,'Input Sponsor'!$C69*Work!AC$66/Work!$E$66*Work!AC$27*(1-Work!AC$44)),0) -> 0 | AD22: =IF(AD16<0,MIN(-AD16-AD18-AD19-AD20-AD21,'Input Sponsor'!$C69*Work!AD$66/Work!$E$66*Work!AD$27*(1-Work!AD$44)),0) -> 0 | AE22: =IF(AE16<0,MIN(-AE16-AE18-AE19-AE20-AE21,'Input Sponsor'!$C69*Work!AE$66/Work!$E$66*Work!AE$27*(1-Work!AE$44)),0) -> 3.471245757 | AF22: =IF(AF16<0,MIN(-AF16-AF18-AF19-AF20-AF21,'Input Sponsor'!$C69*Work!AF$66/Work!$E$66*Work!AF$27*(1-Work!AF$44)),0) -> 0 | AG22: =IF(AG16<0,MIN(-AG16-AG18-AG19-AG20-AG21,'Input Sponsor'!$C69*Work!AG$66/Work!$E$66*Work!AG$27*(1-Work!AG$44)),0) -> 0 | AH22: =IF(AH16<0,MIN(-AH16-AH18-AH19-AH20-AH21,'Input Sponsor'!$C69*Work!AH$66/Work!$E$66*Work!AH$27*(1-Work!AH$44)),0) -> 0 | AI22: =IF(AI16<0,MIN(-AI16-AI18-AI19-AI20-AI21,'Input Sponsor'!$C69*Work!AI$66/Work!$E$66*Work!AI$27*(1-Work!AI$44)),0) -> 0 | AJ22: =IF(AJ16<0,MIN(-AJ16-AJ18-AJ19-AJ20-AJ21,'Input Sponsor'!$C69*Work!AJ$66/Work!$E$66*Work!AJ$27*(1-Work!AJ$44)),0) -> 0 | AK22: =IF(AK16<0,MIN(-AK16-AK18-AK19-AK20-AK21,'Input Sponsor'!$C69*Work!AK$66/Work!$E$66*Work!AK$27*(1-Work!AK$44)),0) -> 0 | AL22: =IF(AL16<0,MIN(-AL16-AL18-AL19-AL20-AL21,'Input Sponsor'!$C69*Work!AL$66/Work!$E$66*Work!AL$27*(1-Work!AL$44)),0) -> 4.884391371 | AM22: =IF(AM16<0,MIN(-AM16-AM18-AM19-AM20-AM21,'Input Sponsor'!$C69*Work!AM$66/Work!$E$66*Work!AM$27*(1-Work!AM$44)),0) -> 0 | AN22: =IF(AN16<0,MIN(-AN16-AN18-AN19-AN20-AN21,'Input Sponsor'!$C69*Work!AN$66/Work!$E$66*Work!AN$27*(1-Work!AN$44)),0) -> 0 | AO22: =IF(AO16<0,MIN(-AO16-AO18-AO19-AO20-AO21,'Input Sponsor'!$C69*Work!AO$66/Work!$E$66*Work!AO$27*(1-Work!AO$44)),0) -> 0 | AP22: =IF(AP16<0,MIN(-AP16-AP18-AP19-AP20-AP21,'Input Sponsor'!$C69*Work!AP$66/Work!$E$66*Work!AP$27*(1-Work!AP$44)),0) -> 0 | AQ22: =IF(AQ16<0,MIN(-AQ16-AQ18-AQ19-AQ20-AQ21,'Input Sponsor'!$C69*Work!AQ$66/Work!$E$66*Work!AQ$27*(1-Work!AQ$44)),0) -> 0 | AR22: =IF(AR16<0,MIN(-AR16-AR18-AR19-AR20-AR21,'Input Sponsor'!$C69*Work!AR$66/Work!$E$66*Work!AR$27*(1-Work!AR$44)),0) -> 0 | AS22: =IF(AS16<0,MIN(-AS16-AS18-AS19-AS20-AS21,'Input Sponsor'!$C69*Work!AS$66/Work!$E$66*Work!AS$27*(1-Work!AS$44)),0) -> 0 | AT22: =IF(AT16<0,MIN(-AT16-AT18-AT19-AT20-AT21,'Input Sponsor'!$C69*Work!AT$66/Work!$E$66*Work!AT$27*(1-Work!AT$44)),0) -> 0 | AU22: =IF(AU16<0,MIN(-AU16-AU18-AU19-AU20-AU21,'Input Sponsor'!$C69*Work!AU$66/Work!$E$66*Work!AU$27*(1-Work!AU$44)),0) -> 0 | AV22: =IF(AV16<0,MIN(-AV16-AV18-AV19-AV20-AV21,'Input Sponsor'!$C69*Work!AV$66/Work!$E$66*Work!AV$27*(1-Work!AV$44)),0) -> 0 | AW22: =IF(AW16<0,MIN(-AW16-AW18-AW19-AW20-AW21,'Input Sponsor'!$C69*Work!AW$66/Work!$E$66*Work!AW$27*(1-Work!AW$44)),0) -> 0 | AX22: =IF(AX16<0,MIN(-AX16-AX18-AX19-AX20-AX21,'Input Sponsor'!$C69*Work!AX$66/Work!$E$66*Work!AX$27*(1-Work!AX$44)),0) -> 0 | AY22: =IF(AY16<0,MIN(-AY16-AY18-AY19-AY20-AY21,'Input Sponsor'!$C69*Work!AY$66/Work!$E$66*Work!AY$27*(1-Work!AY$44)),0) -> 0 | AZ22: =IF(AZ16<0,MIN(-AZ16-AZ18-AZ19-AZ20-AZ21,'Input Sponsor'!$C69*Work!AZ$66/Work!$E$66*Work!AZ$27*(1-Work!AZ$44)),0) -> 0 | BA22: =IF(BA16<0,MIN(-BA16-BA18-BA19-BA20-BA21,'Input Sponsor'!$C69*Work!BA$66/Work!$E$66*Work!BA$27*(1-Work!BA$44)),0) -> 0 | BB22: =IF(BB16<0,MIN(-BB16-BB18-BB19-BB20-BB21,'Input Sponsor'!$C69*Work!BB$66/Work!$E$66*Work!BB$27*(1-Work!BB$44)),0) -> 0 | BC22: =IF(BC16<0,MIN(-BC16-BC18-BC19-BC20-BC21,'Input Sponsor'!$C69*Work!BC$66/Work!$E$66*Work!BC$27*(1-Work!BC$44)),0) -> 0
A23: ='Input Sponsor'!A70 -> Levy | C23: 25.24837634 | F23: =IF(F16<0,MIN(-F16-F18-F19-F20-F21-F22,'Input Sponsor'!$C70*Work!F$66/Work!$E$66*Work!F$27*(1-Work!F$44)),0) -> 0 | G23: =IF(G16<0,MIN(-G16-G18-G19-G20-G21-G22,'Input Sponsor'!$C70*Work!G$66/Work!$E$66*Work!G$27*(1-Work!G$44)),0) -> 0 | H23: =IF(H16<0,MIN(-H16-H18-H19-H20-H21-H22,'Input Sponsor'!$C70*Work!H$66/Work!$E$66*Work!H$27*(1-Work!H$44)),0) -> 0 | I23: =IF(I16<0,MIN(-I16-I18-I19-I20-I21-I22,'Input Sponsor'!$C70*Work!I$66/Work!$E$66*Work!I$27*(1-Work!I$44)),0) -> 0 | J23: =IF(J16<0,MIN(-J16-J18-J19-J20-J21-J22,'Input Sponsor'!$C70*Work!J$66/Work!$E$66*Work!J$27*(1-Work!J$44)),0) -> 0 | K23: =IF(K16<0,MIN(-K16-K18-K19-K20-K21-K22,'Input Sponsor'!$C70*Work!K$66/Work!$E$66*Work!K$27*(1-Work!K$44)),0) -> 1.308276018 | L23: =IF(L16<0,MIN(-L16-L18-L19-L20-L21-L22,'Input Sponsor'!$C70*Work!L$66/Work!$E$66*Work!L$27*(1-Work!L$44)),0) -> 1.373689819 | M23: =IF(M16<0,MIN(-M16-M18-M19-M20-M21-M22,'Input Sponsor'!$C70*Work!M$66/Work!$E$66*Work!M$27*(1-Work!M$44)),0) -> 1.44237431 | N23: =IF(N16<0,MIN(-N16-N18-N19-N20-N21-N22,'Input Sponsor'!$C70*Work!N$66/Work!$E$66*Work!N$27*(1-Work!N$44)),0) -> 1.514493025 | O23: =IF(O16<0,MIN(-O16-O18-O19-O20-O21-O22,'Input Sponsor'!$C70*Work!O$66/Work!$E$66*Work!O$27*(1-Work!O$44)),0) -> 1.590217677 | P23: =IF(P16<0,MIN(-P16-P18-P19-P20-P21-P22,'Input Sponsor'!$C70*Work!P$66/Work!$E$66*Work!P$27*(1-Work!P$44)),0) -> 1.669728561 | Q23: =IF(Q16<0,MIN(-Q16-Q18-Q19-Q20-Q21-Q22,'Input Sponsor'!$C70*Work!Q$66/Work!$E$66*Work!Q$27*(1-Work!Q$44)),0) -> 1.753214989 | R23: =IF(R16<0,MIN(-R16-R18-R19-R20-R21-R22,'Input Sponsor'!$C70*Work!R$66/Work!$E$66*Work!R$27*(1-Work!R$44)),0) -> 1.840875738 | S23: =IF(S16<0,MIN(-S16-S18-S19-S20-S21-S22,'Input Sponsor'!$C70*Work!S$66/Work!$E$66*Work!S$27*(1-Work!S$44)),0) -> 1.932919525 | T23: =IF(T16<0,MIN(-T16-T18-T19-T20-T21-T22,'Input Sponsor'!$C70*Work!T$66/Work!$E$66*Work!T$27*(1-Work!T$44)),0) -> 0 | U23: =IF(U16<0,MIN(-U16-U18-U19-U20-U21-U22,'Input Sponsor'!$C70*Work!U$66/Work!$E$66*Work!U$27*(1-Work!U$44)),0) -> 0 | V23: =IF(V16<0,MIN(-V16-V18-V19-V20-V21-V22,'Input Sponsor'!$C70*Work!V$66/Work!$E$66*Work!V$27*(1-Work!V$44)),0) -> 0 | W23: =IF(W16<0,MIN(-W16-W18-W19-W20-W21-W22,'Input Sponsor'!$C70*Work!W$66/Work!$E$66*Work!W$27*(1-Work!W$44)),0) -> 0 | X23: =IF(X16<0,MIN(-X16-X18-X19-X20-X21-X22,'Input Sponsor'!$C70*Work!X$66/Work!$E$66*Work!X$27*(1-Work!X$44)),0) -> 2.466949551 | Y23: =IF(Y16<0,MIN(-Y16-Y18-Y19-Y20-Y21-Y22,'Input Sponsor'!$C70*Work!Y$66/Work!$E$66*Work!Y$27*(1-Work!Y$44)),0) -> 0 | Z23: =IF(Z16<0,MIN(-Z16-Z18-Z19-Z20-Z21-Z22,'Input Sponsor'!$C70*Work!Z$66/Work!$E$66*Work!Z$27*(1-Work!Z$44)),0) -> 0 | AA23: =IF(AA16<0,MIN(-AA16-AA18-AA19-AA20-AA21-AA22,'Input Sponsor'!$C70*Work!AA$66/Work!$E$66*Work!AA$27*(1-Work!AA$44)),0) -> 0 | AB23: =IF(AB16<0,MIN(-AB16-AB18-AB19-AB20-AB21-AB22,'Input Sponsor'!$C70*Work!AB$66/Work!$E$66*Work!AB$27*(1-Work!AB$44)),0) -> 0 | AC23: =IF(AC16<0,MIN(-AC16-AC18-AC19-AC20-AC21-AC22,'Input Sponsor'!$C70*Work!AC$66/Work!$E$66*Work!AC$27*(1-Work!AC$44)),0) -> 0 | AD23: =IF(AD16<0,MIN(-AD16-AD18-AD19-AD20-AD21-AD22,'Input Sponsor'!$C70*Work!AD$66/Work!$E$66*Work!AD$27*(1-Work!AD$44)),0) -> 0 | AE23: =IF(AE16<0,MIN(-AE16-AE18-AE19-AE20-AE21-AE22,'Input Sponsor'!$C70*Work!AE$66/Work!$E$66*Work!AE$27*(1-Work!AE$44)),0) -> 3.471245757 | AF23: =IF(AF16<0,MIN(-AF16-AF18-AF19-AF20-AF21-AF22,'Input Sponsor'!$C70*Work!AF$66/Work!$E$66*Work!AF$27*(1-Work!AF$44)),0) -> 0 | AG23: =IF(AG16<0,MIN(-AG16-AG18-AG19-AG20-AG21-AG22,'Input Sponsor'!$C70*Work!AG$66/Work!$E$66*Work!AG$27*(1-Work!AG$44)),0) -> 0 | AH23: =IF(AH16<0,MIN(-AH16-AH18-AH19-AH20-AH21-AH22,'Input Sponsor'!$C70*Work!AH$66/Work!$E$66*Work!AH$27*(1-Work!AH$44)),0) -> 0 | AI23: =IF(AI16<0,MIN(-AI16-AI18-AI19-AI20-AI21-AI22,'Input Sponsor'!$C70*Work!AI$66/Work!$E$66*Work!AI$27*(1-Work!AI$44)),0) -> 0 | AJ23: =IF(AJ16<0,MIN(-AJ16-AJ18-AJ19-AJ20-AJ21-AJ22,'Input Sponsor'!$C70*Work!AJ$66/Work!$E$66*Work!AJ$27*(1-Work!AJ$44)),0) -> 0 | AK23: =IF(AK16<0,MIN(-AK16-AK18-AK19-AK20-AK21-AK22,'Input Sponsor'!$C70*Work!AK$66/Work!$E$66*Work!AK$27*(1-Work!AK$44)),0) -> 0 | AL23: =IF(AL16<0,MIN(-AL16-AL18-AL19-AL20-AL21-AL22,'Input Sponsor'!$C70*Work!AL$66/Work!$E$66*Work!AL$27*(1-Work!AL$44)),0) -> 4.884391371 | AM23: =IF(AM16<0,MIN(-AM16-AM18-AM19-AM20-AM21-AM22,'Input Sponsor'!$C70*Work!AM$66/Work!$E$66*Work!AM$27*(1-Work!AM$44)),0) -> 0 | AN23: =IF(AN16<0,MIN(-AN16-AN18-AN19-AN20-AN21-AN22,'Input Sponsor'!$C70*Work!AN$66/Work!$E$66*Work!AN$27*(1-Work!AN$44)),0) -> 0 | AO23: =IF(AO16<0,MIN(-AO16-AO18-AO19-AO20-AO21-AO22,'Input Sponsor'!$C70*Work!AO$66/Work!$E$66*Work!AO$27*(1-Work!AO$44)),0) -> 0 | AP23: =IF(AP16<0,MIN(-AP16-AP18-AP19-AP20-AP21-AP22,'Input Sponsor'!$C70*Work!AP$66/Work!$E$66*Work!AP$27*(1-Work!AP$44)),0) -> 0 | AQ23: =IF(AQ16<0,MIN(-AQ16-AQ18-AQ19-AQ20-AQ21-AQ22,'Input Sponsor'!$C70*Work!AQ$66/Work!$E$66*Work!AQ$27*(1-Work!AQ$44)),0) -> 0 | AR23: =IF(AR16<0,MIN(-AR16-AR18-AR19-AR20-AR21-AR22,'Input Sponsor'!$C70*Work!AR$66/Work!$E$66*Work!AR$27*(1-Work!AR$44)),0) -> 0 | AS23: =IF(AS16<0,MIN(-AS16-AS18-AS19-AS20-AS21-AS22,'Input Sponsor'!$C70*Work!AS$66/Work!$E$66*Work!AS$27*(1-Work!AS$44)),0) -> 0 | AT23: =IF(AT16<0,MIN(-AT16-AT18-AT19-AT20-AT21-AT22,'Input Sponsor'!$C70*Work!AT$66/Work!$E$66*Work!AT$27*(1-Work!AT$44)),0) -> 0 | AU23: =IF(AU16<0,MIN(-AU16-AU18-AU19-AU20-AU21-AU22,'Input Sponsor'!$C70*Work!AU$66/Work!$E$66*Work!AU$27*(1-Work!AU$44)),0) -> 0 | AV23: =IF(AV16<0,MIN(-AV16-AV18-AV19-AV20-AV21-AV22,'Input Sponsor'!$C70*Work!AV$66/Work!$E$66*Work!AV$27*(1-Work!AV$44)),0) -> 0 | AW23: =IF(AW16<0,MIN(-AW16-AW18-AW19-AW20-AW21-AW22,'Input Sponsor'!$C70*Work!AW$66/Work!$E$66*Work!AW$27*(1-Work!AW$44)),0) -> 0 | AX23: =IF(AX16<0,MIN(-AX16-AX18-AX19-AX20-AX21-AX22,'Input Sponsor'!$C70*Work!AX$66/Work!$E$66*Work!AX$27*(1-Work!AX$44)),0) -> 0 | AY23: =IF(AY16<0,MIN(-AY16-AY18-AY19-AY20-AY21-AY22,'Input Sponsor'!$C70*Work!AY$66/Work!$E$66*Work!AY$27*(1-Work!AY$44)),0) -> 0 | AZ23: =IF(AZ16<0,MIN(-AZ16-AZ18-AZ19-AZ20-AZ21-AZ22,'Input Sponsor'!$C70*Work!AZ$66/Work!$E$66*Work!AZ$27*(1-Work!AZ$44)),0) -> 0 | BA23: =IF(BA16<0,MIN(-BA16-BA18-BA19-BA20-BA21-BA22,'Input Sponsor'!$C70*Work!BA$66/Work!$E$66*Work!BA$27*(1-Work!BA$44)),0) -> 0 | BB23: =IF(BB16<0,MIN(-BB16-BB18-BB19-BB20-BB21-BB22,'Input Sponsor'!$C70*Work!BB$66/Work!$E$66*Work!BB$27*(1-Work!BB$44)),0) -> 0 | BC23: =IF(BC16<0,MIN(-BC16-BC18-BC19-BC20-BC21-BC22,'Input Sponsor'!$C70*Work!BC$66/Work!$E$66*Work!BC$27*(1-Work!BC$44)),0) -> 0
A24: Total Contributions covering Opex | C24: 47514.18097 | F24: =SUM(F18:F23) -> 0 | G24: =SUM(G18:G23) -> 0 | H24: 0 | I24: 0 | J24: 0 | K24: 874.3208629 | L24: 918.036906 | M24: 963.9387513 | N24: 1012.135689 | O24: 1062.742473 | P24: 1115.879597 | Q24: 1171.673577 | R24: 1230.257256 | S24: 1291.770119 | T24: 1331.663984 | U24: 1310.191628 | V24: 1289.590098 | W24: 1269.902937 | X24: 1648.662385 | Y24: 1233.456877 | Z24: 1216.796387 | AA24: 1201.247318 | AB24: 1186.865239 | AC24: 1173.708501 | AD24: 1161.83837 | AE24: 2319.833539 | AF24: 625.5518034 | AG24: 656.8293935 | AH24: 689.6708632 | AI24: 724.1544064 | AJ24: 760.3621267 | AK24: 798.380233 | AL24: 3264.238753 | AM24: 880.2142069 | AN24: 924.2249172 | AO24: 970.4361631 | AP24: 1018.957971 | AQ24: 1069.90587 | AR24: 1123.401163 | AS24: 1179.571221 | AT24: 1238.549783 | AU24: 1300.477272 | AV24: 1365.501135 | AW24: 1433.776192 | AX24: 1505.465002 | AY24: 0 | AZ24: 0 | BA24: 0 | BB24: 0 | BC24: 0
A25: Net Cash Flow after Contribution covering Opex | C25: -56552.04247 | F25: =F16+F24 -> -2191.004257 | G25: =G16+G24 -> -4384.251053 | H25: -4956.032838 | I25: -5601.138781 | J25: -4489.159176 | K25: -50.2161806 | L25: -17.72698963 | M25: -539.1688947 | N25: -464.4606727 | O25: -387.9614841 | P25: -309.5817806 | Q25: -2863.851251 | R25: -146.8000242 | S25: -62.19558096 | T25: 0 | U25: 0 | V25: 0 | W25: 0 | X25: -4736.649762 | Y25: 0 | Z25: 0 | AA25: 0 | AB25: 0 | AC25: 0 | AD25: 0 | AE25: -8280.909256 | AF25: 0 | AG25: 0 | AH25: 0 | AI25: 0 | AJ25: 0 | AK25: 0 | AL25: -17070.93449 | AM25: 0 | AN25: 0 | AO25: 0 | AP25: 0 | AQ25: 0 | AR25: 0 | AS25: 0 | AT25: 0 | AU25: 0 | AV25: 0 | AW25: 0 | AX25: 0 | AY25: -7.958078641e-14 | AZ25: -7.958078641e-14 | BA25: -7.958078641e-14 | BB25: -7.958078641e-14 | BC25: -7.958078641e-14
A26: ='Input Sponsor'!A48 -> Contributions covering Capex
A27: ='Input Sponsor'!A49 -> Department Baseline | C27: 10000 | F27: =Finance!F20 -> 2000 | G27: =Finance!G20 -> 2000 | H27: =Finance!H20 -> 2000 | I27: =Finance!I20 -> 2000 | J27: =Finance!J20 -> 2000 | K27: =Finance!K20 -> 0 | L27: =Finance!L20 -> 0 | M27: =Finance!M20 -> 0 | N27: =Finance!N20 -> 0 | O27: =Finance!O20 -> 0 | P27: =Finance!P20 -> 0 | Q27: =Finance!Q20 -> 0 | R27: =Finance!R20 -> 0 | S27: =Finance!S20 -> 0 | T27: =Finance!T20 -> 0 | U27: =Finance!U20 -> 0 | V27: =Finance!V20 -> 0 | W27: =Finance!W20 -> 0 | X27: =Finance!X20 -> 0 | Y27: =Finance!Y20 -> 0 | Z27: =Finance!Z20 -> 0 | AA27: =Finance!AA20 -> 0 | AB27: =Finance!AB20 -> 0 | AC27: =Finance!AC20 -> 0 | AD27: =Finance!AD20 -> 0 | AE27: =Finance!AE20 -> 0 | AF27: =Finance!AF20 -> 0 | AG27: =Finance!AG20 -> 0 | AH27: =Finance!AH20 -> 0 | AI27: =Finance!AI20 -> 0 | AJ27: =Finance!AJ20 -> 0 | AK27: =Finance!AK20 -> 0 | AL27: =Finance!AL20 -> 0 | AM27: =Finance!AM20 -> 0 | AN27: =Finance!AN20 -> 0 | AO27: =Finance!AO20 -> 0 | AP27: =Finance!AP20 -> 0 | AQ27: =Finance!AQ20 -> 0 | AR27: =Finance!AR20 -> 0 | AS27: =Finance!AS20 -> 0 | AT27: =Finance!AT20 -> 0 | AU27: =Finance!AU20 -> 0 | AV27: =Finance!AV20 -> 0 | AW27: =Finance!AW20 -> 0 | AX27: =Finance!AX20 -> 0 | AY27: =Finance!AY20 -> 0 | AZ27: =Finance!AZ20 -> 0 | BA27: =Finance!BA20 -> 0 | BB27: =Finance!BB20 -> 0 | BC27: =Finance!BC20 -> 0
A28: ='Input Sponsor'!A50 -> External Organisation Grant | C28: 5 | F28: =Finance!F21 -> 1 | G28: =Finance!G21 -> 1 | H28: =Finance!H21 -> 1 | I28: =Finance!I21 -> 1 | J28: =Finance!J21 -> 1 | K28: =Finance!K21 -> 0 | L28: =Finance!L21 -> 0 | M28: =Finance!M21 -> 0 | N28: =Finance!N21 -> 0 | O28: =Finance!O21 -> 0 | P28: =Finance!P21 -> 0 | Q28: =Finance!Q21 -> 0 | R28: =Finance!R21 -> 0 | S28: =Finance!S21 -> 0 | T28: =Finance!T21 -> 0 | U28: =Finance!U21 -> 0 | V28: =Finance!V21 -> 0 | W28: =Finance!W21 -> 0 | X28: =Finance!X21 -> 0 | Y28: =Finance!Y21 -> 0 | Z28: =Finance!Z21 -> 0 | AA28: =Finance!AA21 -> 0 | AB28: =Finance!AB21 -> 0 | AC28: =Finance!AC21 -> 0 | AD28: =Finance!AD21 -> 0 | AE28: =Finance!AE21 -> 0 | AF28: =Finance!AF21 -> 0 | AG28: =Finance!AG21 -> 0 | AH28: =Finance!AH21 -> 0 | AI28: =Finance!AI21 -> 0 | AJ28: =Finance!AJ21 -> 0 | AK28: =Finance!AK21 -> 0 | AL28: =Finance!AL21 -> 0 | AM28: =Finance!AM21 -> 0 | AN28: =Finance!AN21 -> 0 | AO28: =Finance!AO21 -> 0 | AP28: =Finance!AP21 -> 0 | AQ28: =Finance!AQ21 -> 0 | AR28: =Finance!AR21 -> 0 | AS28: =Finance!AS21 -> 0 | AT28: =Finance!AT21 -> 0 | AU28: =Finance!AU21 -> 0 | AV28: =Finance!AV21 -> 0 | AW28: =Finance!AW21 -> 0 | AX28: =Finance!AX21 -> 0 | AY28: =Finance!AY21 -> 0 | AZ28: =Finance!AZ21 -> 0 | BA28: =Finance!BA21 -> 0 | BB28: =Finance!BB21 -> 0 | BC28: =Finance!BC21 -> 0
A29: ='Input Sponsor'!A51 -> Capex Grant | C29: 25 | F29: =Finance!F22 -> 5 | G29: =Finance!G22 -> 5 | H29: =Finance!H22 -> 5 | I29: =Finance!I22 -> 5 | J29: =Finance!J22 -> 5 | K29: =Finance!K22 -> 0 | L29: =Finance!L22 -> 0 | M29: =Finance!M22 -> 0 | N29: =Finance!N22 -> 0 | O29: =Finance!O22 -> 0 | P29: =Finance!P22 -> 0 | Q29: =Finance!Q22 -> 0 | R29: =Finance!R22 -> 0 | S29: =Finance!S22 -> 0 | T29: =Finance!T22 -> 0 | U29: =Finance!U22 -> 0 | V29: =Finance!V22 -> 0 | W29: =Finance!W22 -> 0 | X29: =Finance!X22 -> 0 | Y29: =Finance!Y22 -> 0 | Z29: =Finance!Z22 -> 0 | AA29: =Finance!AA22 -> 0 | AB29: =Finance!AB22 -> 0 | AC29: =Finance!AC22 -> 0 | AD29: =Finance!AD22 -> 0 | AE29: =Finance!AE22 -> 0 | AF29: =Finance!AF22 -> 0 | AG29: =Finance!AG22 -> 0 | AH29: =Finance!AH22 -> 0 | AI29: =Finance!AI22 -> 0 | AJ29: =Finance!AJ22 -> 0 | AK29: =Finance!AK22 -> 0 | AL29: =Finance!AL22 -> 0 | AM29: =Finance!AM22 -> 0 | AN29: =Finance!AN22 -> 0 | AO29: =Finance!AO22 -> 0 | AP29: =Finance!AP22 -> 0 | AQ29: =Finance!AQ22 -> 0 | AR29: =Finance!AR22 -> 0 | AS29: =Finance!AS22 -> 0 | AT29: =Finance!AT22 -> 0 | AU29: =Finance!AU22 -> 0 | AV29: =Finance!AV22 -> 0 | AW29: =Finance!AW22 -> 0 | AX29: =Finance!AX22 -> 0 | AY29: =Finance!AY22 -> 0 | AZ29: =Finance!AZ22 -> 0 | BA29: =Finance!BA22 -> 0 | BB29: =Finance!BB22 -> 0 | BC29: =Finance!BC22 -> 0
A30: ='Input Sponsor'!A52 -> Provincial Treasury Instruction | C30: 5 | F30: =Finance!F23 -> 1 | G30: =Finance!G23 -> 1 | H30: =Finance!H23 -> 1 | I30: =Finance!I23 -> 1 | J30: =Finance!J23 -> 1 | K30: =Finance!K23 -> 0 | L30: =Finance!L23 -> 0 | M30: =Finance!M23 -> 0 | N30: =Finance!N23 -> 0 | O30: =Finance!O23 -> 0 | P30: =Finance!P23 -> 0 | Q30: =Finance!Q23 -> 0 | R30: =Finance!R23 -> 0 | S30: =Finance!S23 -> 0 | T30: =Finance!T23 -> 0 | U30: =Finance!U23 -> 0 | V30: =Finance!V23 -> 0 | W30: =Finance!W23 -> 0 | X30: =Finance!X23 -> 0 | Y30: =Finance!Y23 -> 0 | Z30: =Finance!Z23 -> 0 | AA30: =Finance!AA23 -> 0 | AB30: =Finance!AB23 -> 0 | AC30: =Finance!AC23 -> 0 | AD30: =Finance!AD23 -> 0 | AE30: =Finance!AE23 -> 0 | AF30: =Finance!AF23 -> 0 | AG30: =Finance!AG23 -> 0 | AH30: =Finance!AH23 -> 0 | AI30: =Finance!AI23 -> 0 | AJ30: =Finance!AJ23 -> 0 | AK30: =Finance!AK23 -> 0 | AL30: =Finance!AL23 -> 0 | AM30: =Finance!AM23 -> 0 | AN30: =Finance!AN23 -> 0 | AO30: =Finance!AO23 -> 0 | AP30: =Finance!AP23 -> 0 | AQ30: =Finance!AQ23 -> 0 | AR30: =Finance!AR23 -> 0 | AS30: =Finance!AS23 -> 0 | AT30: =Finance!AT23 -> 0 | AU30: =Finance!AU23 -> 0 | AV30: =Finance!AV23 -> 0 | AW30: =Finance!AW23 -> 0 | AX30: =Finance!AX23 -> 0 | AY30: =Finance!AY23 -> 0 | AZ30: =Finance!AZ23 -> 0 | BA30: =Finance!BA23 -> 0 | BB30: =Finance!BB23 -> 0 | BC30: =Finance!BC23 -> 0
A31: Total Contributons covering Capex | C31: 10035 | F31: =SUM(F27:F30) -> 2007 | G31: =SUM(G27:G30) -> 2007 | H31: 2007 | I31: 2007 | J31: 2007 | K31: 0 | L31: 0 | M31: 0 | N31: 0 | O31: 0 | P31: 0 | Q31: 0 | R31: 0 | S31: 0 | T31: 0 | U31: 0 | V31: 0 | W31: 0 | X31: 0 | Y31: 0 | Z31: 0 | AA31: 0 | AB31: 0 | AC31: 0 | AD31: 0 | AE31: 0 | AF31: 0 | AG31: 0 | AH31: 0 | AI31: 0 | AJ31: 0 | AK31: 0 | AL31: 0 | AM31: 0 | AN31: 0 | AO31: 0 | AP31: 0 | AQ31: 0 | AR31: 0 | AS31: 0 | AT31: 0 | AU31: 0 | AV31: 0 | AW31: 0 | AX31: 0 | AY31: 0 | AZ31: 0 | BA31: 0 | BB31: 0 | BC31: 0
A32: Total Net Cash Flow before Debt | C32: -46517.04247 | F32: =F25+F31 -> -184.0042574 | G32: =G25+G31 -> -2377.251053 | H32: -2949.032838 | I32: -3594.138781 | J32: -2482.159176 | K32: -50.2161806 | L32: -17.72698963 | M32: -539.1688947 | N32: -464.4606727 | O32: -387.9614841 | P32: -309.5817806 | Q32: -2863.851251 | R32: -146.8000242 | S32: -62.19558096 | T32: 0 | U32: 0 | V32: 0 | W32: 0 | X32: -4736.649762 | Y32: 0 | Z32: 0 | AA32: 0 | AB32: 0 | AC32: 0 | AD32: 0 | AE32: -8280.909256 | AF32: 0 | AG32: 0 | AH32: 0 | AI32: 0 | AJ32: 0 | AK32: 0 | AL32: -17070.93449 | AM32: 0 | AN32: 0 | AO32: 0 | AP32: 0 | AQ32: 0 | AR32: 0 | AS32: 0 | AT32: 0 | AU32: 0 | AV32: 0 | AW32: 0 | AX32: 0 | AY32: -7.958078641e-14 | AZ32: -7.958078641e-14 | BA32: -7.958078641e-14 | BB32: -7.958078641e-14 | BC32: -7.958078641e-14
A33: Debt drawdown | C33: 10000 | F33: =Finance!F29 -> 184.0042574 | G33: =Finance!G29 -> 2377.251053 | H33: =Finance!H29 -> 2949.032838 | I33: =Finance!I29 -> 3594.138781 | J33: =Finance!J29 -> 895.57307 | K33: =Finance!K29 -> 0 | L33: =Finance!L29 -> 0 | M33: =Finance!M29 -> 0 | N33: =Finance!N29 -> 0 | O33: =Finance!O29 -> 0 | P33: =Finance!P29 -> 0 | Q33: =Finance!Q29 -> 0 | R33: =Finance!R29 -> 0 | S33: =Finance!S29 -> 0 | T33: =Finance!T29 -> 0 | U33: =Finance!U29 -> 0 | V33: =Finance!V29 -> 0 | W33: =Finance!W29 -> 0 | X33: =Finance!X29 -> 0 | Y33: =Finance!Y29 -> 0 | Z33: =Finance!Z29 -> 0 | AA33: =Finance!AA29 -> 0 | AB33: =Finance!AB29 -> 0 | AC33: =Finance!AC29 -> 0 | AD33: =Finance!AD29 -> 0 | AE33: =Finance!AE29 -> 0 | AF33: =Finance!AF29 -> 0 | AG33: =Finance!AG29 -> 0 | AH33: =Finance!AH29 -> 0 | AI33: =Finance!AI29 -> 0 | AJ33: =Finance!AJ29 -> 0 | AK33: =Finance!AK29 -> 0 | AL33: =Finance!AL29 -> 0 | AM33: =Finance!AM29 -> 0 | AN33: =Finance!AN29 -> 0 | AO33: =Finance!AO29 -> 0 | AP33: =Finance!AP29 -> 0 | AQ33: =Finance!AQ29 -> 0 | AR33: =Finance!AR29 -> 0 | AS33: =Finance!AS29 -> 0 | AT33: =Finance!AT29 -> 0 | AU33: =Finance!AU29 -> 0 | AV33: =Finance!AV29 -> 0 | AW33: =Finance!AW29 -> 0 | AX33: =Finance!AX29 -> 0 | AY33: =Finance!AY29 -> 0 | AZ33: =Finance!AZ29 -> 0 | BA33: =Finance!BA29 -> 0 | BB33: =Finance!BB29 -> 0 | BC33: =Finance!BC29 -> 0
A34: BFI Funding required | C34: 36517.04247 | F34: =IF(F32+F33<0,-(F32+F33),0) -> 0 | G34: =IF(G32+G33<0,-(G32+G33),0) -> 0 | H34: 0 | I34: 0 | J34: 1586.586106 | K34: 50.2161806 | L34: 17.72698963 | M34: 539.1688947 | N34: 464.4606727 | O34: 387.9614841 | P34: 309.5817806 | Q34: 2863.851251 | R34: 146.8000242 | S34: 62.19558096 | T34: 0 | U34: 0 | V34: 0 | W34: 0 | X34: 4736.649762 | Y34: 0 | Z34: 0 | AA34: 0 | AB34: 0 | AC34: 0 | AD34: 0 | AE34: 8280.909256 | AF34: 0 | AG34: 0 | AH34: 0 | AI34: 0 | AJ34: 0 | AK34: 0 | AL34: 17070.93449 | AM34: 0 | AN34: 0 | AO34: 0 | AP34: 0 | AQ34: 0 | AR34: 0 | AS34: 0 | AT34: 0 | AU34: 0 | AV34: 0 | AW34: 0 | AX34: 0 | AY34: 7.958078641e-14 | AZ34: 7.958078641e-14 | BA34: 7.958078641e-14 | BB34: 7.958078641e-14 | BC34: 7.958078641e-14
A36: Contingent Liability Statement
A37: Contingent Liability | C37: =MAX(F37:BC37) -> 5000 | F37: ='Input Sponsor'!$C$56*Finance!F31 -> 92.00212872 | G37: ='Input Sponsor'!$C$56*Finance!G31 -> 1280.627655 | H37: ='Input Sponsor'!$C$56*Finance!H31 -> 2755.144075 | I37: ='Input Sponsor'!$C$56*Finance!I31 -> 4552.213465 | J37: ='Input Sponsor'!$C$56*Finance!J31 -> 5000 | K37: ='Input Sponsor'!$C$56*Finance!K31 -> 5000 | L37: ='Input Sponsor'!$C$56*Finance!L31 -> 5000 | M37: ='Input Sponsor'!$C$56*Finance!M31 -> 4722.222222 | N37: ='Input Sponsor'!$C$56*Finance!N31 -> 4444.444444 | O37: ='Input Sponsor'!$C$56*Finance!O31 -> 4166.666667 | P37: ='Input Sponsor'!$C$56*Finance!P31 -> 3888.888889 | Q37: ='Input Sponsor'!$C$56*Finance!Q31 -> 3611.111111 | R37: ='Input Sponsor'!$C$56*Finance!R31 -> 3333.333333 | S37: ='Input Sponsor'!$C$56*Finance!S31 -> 3055.555556 | T37: ='Input Sponsor'!$C$56*Finance!T31 -> 2777.777778 | U37: ='Input Sponsor'!$C$56*Finance!U31 -> 2500 | V37: ='Input Sponsor'!$C$56*Finance!V31 -> 2222.222222 | W37: ='Input Sponsor'!$C$56*Finance!W31 -> 1944.444444 | X37: ='Input Sponsor'!$C$56*Finance!X31 -> 1666.666667 | Y37: ='Input Sponsor'!$C$56*Finance!Y31 -> 1388.888889 | Z37: ='Input Sponsor'!$C$56*Finance!Z31 -> 1111.111111 | AA37: ='Input Sponsor'!$C$56*Finance!AA31 -> 833.3333333 | AB37: ='Input Sponsor'!$C$56*Finance!AB31 -> 555.5555556 | AC37: ='Input Sponsor'!$C$56*Finance!AC31 -> 277.7777778 | AD37: ='Input Sponsor'!$C$56*Finance!AD31 -> 5.684341886e-13 | AE37: ='Input Sponsor'!$C$56*Finance!AE31 -> 5.684341886e-13 | AF37: ='Input Sponsor'!$C$56*Finance!AF31 -> 5.684341886e-13 | AG37: ='Input Sponsor'!$C$56*Finance!AG31 -> 5.684341886e-13 | AH37: ='Input Sponsor'!$C$56*Finance!AH31 -> 5.684341886e-13 | AI37: ='Input Sponsor'!$C$56*Finance!AI31 -> 5.684341886e-13 | AJ37: ='Input Sponsor'!$C$56*Finance!AJ31 -> 5.684341886e-13 | AK37: ='Input Sponsor'!$C$56*Finance!AK31 -> 5.684341886e-13 | AL37: ='Input Sponsor'!$C$56*Finance!AL31 -> 5.684341886e-13 | AM37: ='Input Sponsor'!$C$56*Finance!AM31 -> 5.684341886e-13 | AN37: ='Input Sponsor'!$C$56*Finance!AN31 -> 5.684341886e-13 | AO37: ='Input Sponsor'!$C$56*Finance!AO31 -> 5.684341886e-13 | AP37: ='Input Sponsor'!$C$56*Finance!AP31 -> 5.684341886e-13 | AQ37: ='Input Sponsor'!$C$56*Finance!AQ31 -> 5.684341886e-13 | AR37: ='Input Sponsor'!$C$56*Finance!AR31 -> 5.684341886e-13 | AS37: ='Input Sponsor'!$C$56*Finance!AS31 -> 5.684341886e-13 | AT37: ='Input Sponsor'!$C$56*Finance!AT31 -> 5.684341886e-13 | AU37: ='Input Sponsor'!$C$56*Finance!AU31 -> 5.684341886e-13 | AV37: ='Input Sponsor'!$C$56*Finance!AV31 -> 5.684341886e-13 | AW37: ='Input Sponsor'!$C$56*Finance!AW31 -> 5.684341886e-13 | AX37: ='Input Sponsor'!$C$56*Finance!AX31 -> 5.684341886e-13 | AY37: ='Input Sponsor'!$C$56*Finance!AY31 -> 5.684341886e-13 | AZ37: ='Input Sponsor'!$C$56*Finance!AZ31 -> 5.684341886e-13 | BA37: ='Input Sponsor'!$C$56*Finance!BA31 -> 5.684341886e-13 | BB37: ='Input Sponsor'!$C$56*Finance!BB31 -> 5.684341886e-13 | BC37: ='Input Sponsor'!$C$56*Finance!BC31 -> 5.684341886e-13

Sheet Tax (hidden)
A1: Tax Sheet
C3: Year | F3: =Work!F2 -> 2020 | G3: =Work!G2 -> 2021 | H3: =Work!H2 -> 2022 | I3: =Work!I2 -> 2023 | J3: =Work!J2 -> 2024 | K3: =Work!K2 -> 2025 | L3: =Work!L2 -> 2026 | M3: =Work!M2 -> 2027 | N3: =Work!N2 -> 2028 | O3: =Work!O2 -> 2029 | P3: =Work!P2 -> 2030 | Q3: =Work!Q2 -> 2031 | R3: =Work!R2 -> 2032 | S3: =Work!S2 -> 2033 | T3: =Work!T2 -> 2034 | U3: =Work!U2 -> 2035 | V3: =Work!V2 -> 2036 | W3: =Work!W2 -> 2037 | X3: =Work!X2 -> 2038 | Y3: =Work!Y2 -> 2039 | Z3: =Work!Z2 -> 2040 | AA3: =Work!AA2 -> 2041 | AB3: =Work!AB2 -> 2042 | AC3: =Work!AC2 -> 2043 | AD3: =Work!AD2 -> 2044 | AE3: =Work!AE2 -> 2045 | AF3: =Work!AF2 -> 2046 | AG3: =Work!AG2 -> 2047 | AH3: =Work!AH2 -> 2048 | AI3: =Work!AI2 -> 2049 | AJ3: =Work!AJ2 -> 2050 | AK3: =Work!AK2 -> 2051 | AL3: =Work!AL2 -> 2052 | AM3: =Work!AM2 -> 2053 | AN3: =Work!AN2 -> 2054 | AO3: =Work!AO2 -> 2055 | AP3: =Work!AP2 -> 2056 | AQ3: =Work!AQ2 -> 2057 | AR3: =Work!AR2 -> 2058 | AS3: =Work!AS2 -> 2059 | AT3: =Work!AT2 -> 2060 | AU3: =Work!AU2 -> 2061 | AV3: =Work!AV2 -> 2062 | AW3: =Work!AW2 -> 2063 | AX3: =Work!AX2 -> 2064 | AY3: =Work!AY2 -> 2065 | AZ3: =Work!AZ2 -> 2066 | BA3: =Work!BA2 -> 2067 | BB3: =Work!BB2 -> 2068 | BC3: =Work!BC2 -> 2069
F4: =Work!F3 -> 2020-07-01 | G4: =Work!G3 -> 2021-01-01 | H4: =Work!H3 -> 2022-01-01 | I4: =Work!I3 -> 2023-01-01 | J4: =Work!J3 -> 2024-01-01 | K4: =Work!K3 -> 2025-01-01 | L4: =Work!L3 -> 2026-01-01 | M4: =Work!M3 -> 2027-01-01 | N4: =Work!N3 -> 2028-01-01 | O4: =Work!O3 -> 2029-01-01 | P4: =Work!P3 -> 2030-01-01 | Q4: =Work!Q3 -> 2031-01-01 | R4: =Work!R3 -> 2032-01-01 | S4: =Work!S3 -> 2033-01-01 | T4: =Work!T3 -> 2034-01-01 | U4: =Work!U3 -> 2035-01-01 | V4: =Work!V3 -> 2036-01-01 | W4: =Work!W3 -> 2037-01-01 | X4: =Work!X3 -> 2038-01-01 | Y4: =Work!Y3 -> 2039-01-01 | Z4: =Work!Z3 -> 2040-01-01 | AA4: =Work!AA3 -> 2041-01-01 | AB4: =Work!AB3 -> 2042-01-01 | AC4: =Work!AC3 -> 2043-01-01 | AD4: =Work!AD3 -> 2044-01-01 | AE4: =Work!AE3 -> 2045-01-01 | AF4: =Work!AF3 -> 2046-01-01 | AG4: =Work!AG3 -> 2047-01-01 | AH4: =Work!AH3 -> 2048-01-01 | AI4: =Work!AI3 -> 2049-01-01 | AJ4: =Work!AJ3 -> 2050-01-01 | AK4: =Work!AK3 -> 2051-01-01 | AL4: =Work!AL3 -> 2052-01-01 | AM4: =Work!AM3 -> 2053-01-01 | AN4: =Work!AN3 -> 2054-01-01 | AO4: =Work!AO3 -> 2055-01-01 | AP4: =Work!AP3 -> 2056-01-01 | AQ4: =Work!AQ3 -> 2057-01-01 | AR4: =Work!AR3 -> 2058-01-01 | AS4: =Work!AS3 -> 2059-01-01 | AT4: =Work!AT3 -> 2060-01-01 | AU4: =Work!AU3 -> 2061-01-01 | AV4: =Work!AV3 -> 2062-01-01 | AW4: =Work!AW3 -> 2063-01-01 | AX4: =Work!AX3 -> 2064-01-01 | AY4: =Work!AY3 -> 2065-01-01 | AZ4: =Work!AZ3 -> 2066-01-01 | BA4: =Work!BA3 -> 2067-01-01 | BB4: =Work!BB3 -> 2068-01-01 | BC4: =Work!BC3 -> 2069-01-01
E5: Pre-Period | F5: to | G5: to | H5: to | I5: to | J5: to | K5: to | L5: to | M5: to | N5: to | O5: to | P5: to | Q5: to | R5: to | S5: to | T5: to | U5: to | V5: to | W5: to | X5: to | Y5: to | Z5: to | AA5: to | AB5: to | AC5: to | AD5: to | AE5: to | AF5: to | AG5: to | AH5: to | AI5: to | AJ5: to | AK5: to | AL5: to | AM5: to | AN5: to | AO5: to | AP5: to | AQ5: to | AR5: to | AS5: to | AT5: to | AU5: to | AV5: to | AW5: to | AX5: to | AY5: to | AZ5: to | BA5: to | BB5: to | BC5: to
F6: =Work!F5 -> 2020-12-31 | G6: =Work!G5 -> 2021-12-31 | H6: =Work!H5 -> 2022-12-31 | I6: =Work!I5 -> 2023-12-31 | J6: =Work!J5 -> 2024-12-31 | K6: =Work!K5 -> 2025-12-31 | L6: =Work!L5 -> 2026-12-31 | M6: =Work!M5 -> 2027-12-31 | N6: =Work!N5 -> 2028-12-31 | O6: =Work!O5 -> 2029-12-31 | P6: =Work!P5 -> 2030-12-31 | Q6: =Work!Q5 -> 2031-12-31 | R6: =Work!R5 -> 2032-12-31 | S6: =Work!S5 -> 2033-12-31 | T6: =Work!T5 -> 2034-12-31 | U6: =Work!U5 -> 2035-12-31 | V6: =Work!V5 -> 2036-12-31 | W6: =Work!W5 -> 2037-12-31 | X6: =Work!X5 -> 2038-12-31 | Y6: =Work!Y5 -> 2039-12-31 | Z6: =Work!Z5 -> 2040-12-31 | AA6: =Work!AA5 -> 2041-12-31 | AB6: =Work!AB5 -> 2042-12-31 | AC6: =Work!AC5 -> 2043-12-31 | AD6: =Work!AD5 -> 2044-12-31 | AE6: =Work!AE5 -> 2045-12-31 | AF6: =Work!AF5 -> 2046-12-31 | AG6: =Work!AG5 -> 2047-12-31 | AH6: =Work!AH5 -> 2048-12-31 | AI6: =Work!AI5 -> 2049-12-31 | AJ6: =Work!AJ5 -> 2050-12-31 | AK6: =Work!AK5 -> 2051-12-31 | AL6: =Work!AL5 -> 2052-12-31 | AM6: =Work!AM5 -> 2053-12-31 | AN6: =Work!AN5 -> 2054-12-31 | AO6: =Work!AO5 -> 2055-12-31 | AP6: =Work!AP5 -> 2056-12-31 | AQ6: =Work!AQ5 -> 2057-12-31 | AR6: =Work!AR5 -> 2058-12-31 | AS6: =Work!AS5 -> 2059-12-31 | AT6: =Work!AT5 -> 2060-12-31 | AU6: =Work!AU5 -> 2061-12-31 | AV6: =Work!AV5 -> 2062-12-31 | AW6: =Work!AW5 -> 2063-12-31 | AX6: =Work!AX5 -> 2064-12-31 | AY6: =Work!AY5 -> 2065-12-31 | AZ6: =Work!AZ5 -> 2066-12-31 | BA6: =Work!BA5 -> 2067-12-31 | BB6: =Work!BB5 -> 2068-12-31 | BC6: =Work!BC5 -> 2069-12-31
A7: Benefits Tax
A9: =Opex!A33 -> Operating Balance | C9: =SUM(F9:BC9) -> -28353.22888 | F9: =Opex!F33 -> -48.57291851 | G9: =Opex!G33 -> -222.7420295 | H9: =Opex!H33 -> -280.4303807 | I9: =Opex!I33 -> -343.3307119 | J9: =Opex!J33 -> -334.1286742 | K9: =Opex!K33 -> -224.5370435 | L9: =Opex!L33 -> -235.7638957 | M9: =Opex!M33 -> -247.5520905 | N9: =Opex!N33 -> -259.929695 | O9: =Opex!O33 -> -272.9261797 | P9: =Opex!P33 -> -286.5724887 | Q9: =Opex!Q33 -> -300.9011132 | R9: =Opex!R33 -> -315.9461688 | S9: =Opex!S33 -> -331.7434773 | T9: =Opex!T33 -> -348.3306511 | U9: =Opex!U33 -> -365.7471837 | V9: =Opex!V33 -> -384.0345429 | W9: =Opex!W33 -> -403.23627 | X9: =Opex!X33 -> -423.3980835 | Y9: =Opex!Y33 -> -444.5679877 | Z9: =Opex!Z33 -> -466.7963871 | AA9: =Opex!AA33 -> -490.1362064 | AB9: =Opex!AB33 -> -514.6430167 | AC9: =Opex!AC33 -> -540.3751676 | AD9: =Opex!AD33 -> -567.3939259 | AE9: =Opex!AE33 -> -595.7636222 | AF9: =Opex!AF33 -> -625.5518034 | AG9: =Opex!AG33 -> -656.8293935 | AH9: =Opex!AH33 -> -689.6708632 | AI9: =Opex!AI33 -> -724.1544064 | AJ9: =Opex!AJ33 -> -760.3621267 | AK9: =Opex!AK33 -> -798.380233 | AL9: =Opex!AL33 -> -838.2992447 | AM9: =Opex!AM33 -> -880.2142069 | AN9: =Opex!AN33 -> -924.2249172 | AO9: =Opex!AO33 -> -970.4361631 | AP9: =Opex!AP33 -> -1018.957971 | AQ9: =Opex!AQ33 -> -1069.90587 | AR9: =Opex!AR33 -> -1123.401163 | AS9: =Opex!AS33 -> -1179.571221 | AT9: =Opex!AT33 -> -1238.549783 | AU9: =Opex!AU33 -> -1300.477272 | AV9: =Opex!AV33 -> -1365.501135 | AW9: =Opex!AW33 -> -1433.776192 | AX9: =Opex!AX33 -> -1505.465002 | AY9: =Opex!AY33 -> 0 | AZ9: =Opex!AZ33 -> 0 | BA9: =Opex!BA33 -> 0 | BB9: =Opex!BB33 -> 0 | BC9: =Opex!BC33 -> 0
A10: =CF!A12 -> Less Scheduled Maintenance | C10: =SUM(F10:BC10) -> 37270.61317 | F10: =CF!F12 -> 0 | G10: =CF!G12 -> 0 | H10: =CF!H12 -> 0 | I10: =CF!I12 -> 0 | J10: =CF!J12 -> 0 | K10: =CF!K12 -> 0 | L10: =CF!L12 -> 0 | M10: =CF!M12 -> 0 | N10: =CF!N12 -> 0 | O10: =CF!O12 -> 0 | P10: =CF!P12 -> 0 | Q10: =CF!Q12 -> 2634.623715 | R10: =CF!R12 -> 0 | S10: =CF!S12 -> 0 | T10: =CF!T12 -> 0 | U10: =CF!U12 -> 0 | V10: =CF!V12 -> 0 | W10: =CF!W12 -> 0 | X10: =CF!X12 -> 5134.136286 | Y10: =CF!Y12 -> 0 | Z10: =CF!Z12 -> 0 | AA10: =CF!AA12 -> 0 | AB10: =CF!AB12 -> 0 | AC10: =CF!AC12 -> 0 | AD10: =CF!AD12 -> 0 | AE10: =CF!AE12 -> 10004.97917 | AF10: =CF!AF12 -> 0 | AG10: =CF!AG12 -> 0 | AH10: =CF!AH12 -> 0 | AI10: =CF!AI12 -> 0 | AJ10: =CF!AJ12 -> 0 | AK10: =CF!AK12 -> 0 | AL10: =CF!AL12 -> 19496.874 | AM10: =CF!AM12 -> 0 | AN10: =CF!AN12 -> 0 | AO10: =CF!AO12 -> 0 | AP10: =CF!AP12 -> 0 | AQ10: =CF!AQ12 -> 0 | AR10: =CF!AR12 -> 0 | AS10: =CF!AS12 -> 0 | AT10: =CF!AT12 -> 0 | AU10: =CF!AU12 -> 0 | AV10: =CF!AV12 -> 0 | AW10: =CF!AW12 -> 0 | AX10: =CF!AX12 -> 0 | AY10: =CF!AY12 -> 0 | AZ10: =CF!AZ12 -> 0 | BA10: =CF!BA12 -> 0 | BB10: =CF!BB12 -> 0 | BC10: =CF!BC12 -> 0
A11: ='BUDGET STATEMENTS'!A34 -> Finance Charges on Debt | C11: 8050 | F11: ='BUDGET STATEMENTS'!F34 -> 0 | G11: ='BUDGET STATEMENTS'!G34 -> 0 | H11: ='BUDGET STATEMENTS'!H34 -> 0 | I11: ='BUDGET STATEMENTS'!I34 -> 0 | J11: ='BUDGET STATEMENTS'!J34 -> 0 | K11: ='BUDGET STATEMENTS'!K34 -> 700 | L11: ='BUDGET STATEMENTS'!L34 -> 700 | M11: ='BUDGET STATEMENTS'!M34 -> 700 | N11: ='BUDGET STATEMENTS'!N34 -> 661.1111111 | O11: ='BUDGET STATEMENTS'!O34 -> 622.2222222 | P11: ='BUDGET STATEMENTS'!P34 -> 583.3333333 | Q11: ='BUDGET STATEMENTS'!Q34 -> 544.4444444 | R11: ='BUDGET STATEMENTS'!R34 -> 505.5555556 | S11: ='BUDGET STATEMENTS'!S34 -> 466.6666667 | T11: ='BUDGET STATEMENTS'!T34 -> 427.7777778 | U11: ='BUDGET STATEMENTS'!U34 -> 388.8888889 | V11: ='BUDGET STATEMENTS'!V34 -> 350 | W11: ='BUDGET STATEMENTS'!W34 -> 311.1111111 | X11: ='BUDGET STATEMENTS'!X34 -> 272.2222222 | Y11: ='BUDGET STATEMENTS'!Y34 -> 233.3333333 | Z11: ='BUDGET STATEMENTS'!Z34 -> 194.4444444 | AA11: ='BUDGET STATEMENTS'!AA34 -> 155.5555556 | AB11: ='BUDGET STATEMENTS'!AB34 -> 116.6666667 | AC11: ='BUDGET STATEMENTS'!AC34 -> 77.77777778 | AD11: ='BUDGET STATEMENTS'!AD34 -> 38.88888889 | AE11: ='BUDGET STATEMENTS'!AE34 -> 7.958078641e-14 | AF11: ='BUDGET STATEMENTS'!AF34 -> 7.958078641e-14 | AG11: ='BUDGET STATEMENTS'!AG34 -> 7.958078641e-14 | AH11: ='BUDGET STATEMENTS'!AH34 -> 7.958078641e-14 | AI11: ='BUDGET STATEMENTS'!AI34 -> 7.958078641e-14 | AJ11: ='BUDGET STATEMENTS'!AJ34 -> 7.958078641e-14 | AK11: ='BUDGET STATEMENTS'!AK34 -> 7.958078641e-14 | AL11: ='BUDGET STATEMENTS'!AL34 -> 7.958078641e-14 | AM11: ='BUDGET STATEMENTS'!AM34 -> 7.958078641e-14 | AN11: ='BUDGET STATEMENTS'!AN34 -> 7.958078641e-14 | AO11: ='BUDGET STATEMENTS'!AO34 -> 7.958078641e-14 | AP11: ='BUDGET STATEMENTS'!AP34 -> 7.958078641e-14 | AQ11: ='BUDGET STATEMENTS'!AQ34 -> 7.958078641e-14 | AR11: ='BUDGET STATEMENTS'!AR34 -> 7.958078641e-14 | AS11: ='BUDGET STATEMENTS'!AS34 -> 7.958078641e-14 | AT11: ='BUDGET STATEMENTS'!AT34 -> 7.958078641e-14 | AU11: ='BUDGET STATEMENTS'!AU34 -> 7.958078641e-14 | AV11: ='BUDGET STATEMENTS'!AV34 -> 7.958078641e-14 | AW11: ='BUDGET STATEMENTS'!AW34 -> 7.958078641e-14 | AX11: ='BUDGET STATEMENTS'!AX34 -> 7.958078641e-14 | AY11: ='BUDGET STATEMENTS'!AY34 -> 7.958078641e-14 | AZ11: ='BUDGET STATEMENTS'!AZ34 -> 7.958078641e-14 | BA11: ='BUDGET STATEMENTS'!BA34 -> 7.958078641e-14 | BB11: ='BUDGET STATEMENTS'!BB34 -> 7.958078641e-14 | BC11: ='BUDGET STATEMENTS'!BC34 -> 7.958078641e-14
A12: Depreciation | C12: 20392.38139 | F12: ='BUDGET STATEMENTS'!F21 -> 0 | G12: ='BUDGET STATEMENTS'!G21 -> 0 | H12: ='BUDGET STATEMENTS'!H21 -> 0 | I12: ='BUDGET STATEMENTS'!I21 -> 0 | J12: ='BUDGET STATEMENTS'!J21 -> 0 | K12: ='BUDGET STATEMENTS'!K21 -> 1019.61907 | L12: ='BUDGET STATEMENTS'!L21 -> 1019.61907 | M12: ='BUDGET STATEMENTS'!M21 -> 1019.61907 | N12: ='BUDGET STATEMENTS'!N21 -> 1019.61907 | O12: ='BUDGET STATEMENTS'!O21 -> 1019.61907 | P12: ='BUDGET STATEMENTS'!P21 -> 1019.61907 | Q12: ='BUDGET STATEMENTS'!Q21 -> 1019.61907 | R12: ='BUDGET STATEMENTS'!R21 -> 1019.61907 | S12: ='BUDGET STATEMENTS'!S21 -> 1019.61907 | T12: ='BUDGET STATEMENTS'!T21 -> 1019.61907 | U12: ='BUDGET STATEMENTS'!U21 -> 1019.61907 | V12: ='BUDGET STATEMENTS'!V21 -> 1019.61907 | W12: ='BUDGET STATEMENTS'!W21 -> 1019.61907 | X12: ='BUDGET STATEMENTS'!X21 -> 1019.61907 | Y12: ='BUDGET STATEMENTS'!Y21 -> 1019.61907 | Z12: ='BUDGET STATEMENTS'!Z21 -> 1019.61907 | AA12: ='BUDGET STATEMENTS'!AA21 -> 1019.61907 | AB12: ='BUDGET STATEMENTS'!AB21 -> 1019.61907 | AC12: ='BUDGET STATEMENTS'!AC21 -> 1019.61907 | AD12: ='BUDGET STATEMENTS'!AD21 -> 1019.61907 | AE12: ='BUDGET STATEMENTS'!AE21 -> 0 | AF12: ='BUDGET STATEMENTS'!AF21 -> 0 | AG12: ='BUDGET STATEMENTS'!AG21 -> 0 | AH12: ='BUDGET STATEMENTS'!AH21 -> 0 | AI12: ='BUDGET STATEMENTS'!AI21 -> 0 | AJ12: ='BUDGET STATEMENTS'!AJ21 -> 0 | AK12: ='BUDGET STATEMENTS'!AK21 -> 0 | AL12: ='BUDGET STATEMENTS'!AL21 -> 0 | AM12: ='BUDGET STATEMENTS'!AM21 -> 0 | AN12: ='BUDGET STATEMENTS'!AN21 -> 0 | AO12: ='BUDGET STATEMENTS'!AO21 -> 0 | AP12: ='BUDGET STATEMENTS'!AP21 -> 0 | AQ12: ='BUDGET STATEMENTS'!AQ21 -> 0 | AR12: ='BUDGET STATEMENTS'!AR21 -> 0 | AS12: ='BUDGET STATEMENTS'!AS21 -> 0 | AT12: ='BUDGET STATEMENTS'!AT21 -> 0 | AU12: ='BUDGET STATEMENTS'!AU21 -> 0 | AV12: ='BUDGET STATEMENTS'!AV21 -> 0 | AW12: ='BUDGET STATEMENTS'!AW21 -> 0 | AX12: ='BUDGET STATEMENTS'!AX21 -> 0 | AY12: ='BUDGET STATEMENTS'!AY21 -> 0 | AZ12: ='BUDGET STATEMENTS'!AZ21 -> 0 | BA12: ='BUDGET STATEMENTS'!BA21 -> 0 | BB12: ='BUDGET STATEMENTS'!BB21 -> 0 | BC12: ='BUDGET STATEMENTS'!BC21 -> 0
A13: Earnings before Tax | C13: =SUM(F13:BJ13) -> -56795.61027 | F13: =F9-SUM(F10:F12) -> -48.57291851 | G13: =G9-G11-G12 -> -222.7420295 | H13: -280.4303807 | I13: -343.3307119 | J13: -334.1286742 | K13: -1944.156113 | L13: -1955.382965 | M13: -1967.17116 | N13: -1940.659876 | O13: -1914.767472 | P13: -1889.524892 | Q13: -1864.964627 | R13: -1841.120794 | S13: -1818.029213 | T13: -1795.727498 | U13: -1774.255142 | V13: -1753.653612 | W13: -1733.966451 | X13: -1715.239375 | Y13: -1697.520391 | Z13: -1680.859901 | AA13: -1665.310832 | AB13: -1650.928753 | AC13: -1637.772015 | AD13: -1625.901884 | AE13: -595.7636222 | AF13: -625.5518034 | AG13: -656.8293935 | AH13: -689.6708632 | AI13: -724.1544064 | AJ13: -760.3621267 | AK13: -798.380233 | AL13: -838.2992447 | AM13: =AM9-AM11-AM12 -> -880.2142069 | AN13: -924.2249172 | AO13: -970.4361631 | AP13: -1018.957971 | AQ13: -1069.90587 | AR13: -1123.401163 | AS13: -1179.571221 | AT13: -1238.549783 | AU13: -1300.477272 | AV13: -1365.501135 | AW13: -1433.776192 | AX13: -1505.465002 | AY13: -7.958078641e-14 | AZ13: -7.958078641e-14 | BA13: -7.958078641e-14 | BB13: -7.958078641e-14 | BC13: -7.958078641e-14
A14: Loss carried forward (if figure <0) | F14: =MIN(0,E14+F13) -> -48.57291851 | G14: -271.314948 | H14: -551.7453288 | I14: -895.0760407 | J14: -1229.204715 | K14: -3173.360828 | L14: -5128.743793 | M14: -7095.914953 | N14: -9036.574829 | O14: -10951.3423 | P14: -12840.86719 | Q14: -14705.83182 | R14: -16546.95261 | S14: -18364.98183 | T14: -20160.70933 | U14: -21934.96447 | V14: -23688.61808 | W14: -25422.58453 | X14: -27137.82391 | Y14: -28835.3443 | Z14: -30516.2042 | AA14: -32181.51503 | AB14: -33832.44378 | AC14: -35470.2158 | AD14: -37096.11768 | AE14: -37691.8813 | AF14: -38317.43311 | AG14: -38974.2625 | AH14: -39663.93336 | AI14: -40388.08777 | AJ14: -41148.4499 | AK14: -41946.83013 | AL14: =MIN(0,AK14+AL13) -> -42785.12937 | AM14: -43665.34358 | AN14: -44589.5685 | AO14: -45560.00466 | AP14: -46578.96263 | AQ14: -47648.8685 | AR14: -48772.26967 | AS14: -49951.84089 | AT14: -51190.39067 | AU14: -52490.86794 | AV14: -53856.36908 | AW14: -55290.14527 | AX14: -56795.61027 | AY14: -56795.61027 | AZ14: -56795.61027 | BA14: -56795.61027 | BB14: -56795.61027 | BC14: -56795.61027
A15: Basis for Tax Payments | C15: =SUM(F15:BJ15) -> 0 | F15: =MAX(0,F13+E14) -> 0 | G15: 0 | H15: 0 | I15: 0 | J15: 0 | K15: 0 | L15: 0 | M15: 0 | N15: 0 | O15: 0 | P15: 0 | Q15: 0 | R15: 0 | S15: 0 | T15: 0 | U15: 0 | V15: 0 | W15: 0 | X15: 0 | Y15: 0 | Z15: 0 | AA15: 0 | AB15: 0 | AC15: 0 | AD15: 0 | AE15: 0 | AF15: 0 | AG15: 0 | AH15: 0 | AI15: 0 | AJ15: 0 | AK15: 0 | AL15: =MAX(0,AL13+AK14) -> 0 | AM15: 0 | AN15: 0 | AO15: 0 | AP15: 0 | AQ15: 0 | AR15: 0 | AS15: 0 | AT15: 0 | AU15: 0 | AV15: 0 | AW15: 0 | AX15: 0 | AY15: 0 | AZ15: 0 | BA15: 0 | BB15: 0 | BC15: 0
A16: Tax payable | C16: =SUM(F16:BJ16) -> 0 | F16: =F15*'Input Sponsor'!$C$73 -> 0 | G16: =G15*'Input Sponsor'!$C$73 -> 0 | H16: =H15*'Input Sponsor'!$C$73 -> 0 | I16: =I15*'Input Sponsor'!$C$73 -> 0 | J16: =J15*'Input Sponsor'!$C$73 -> 0 | K16: =K15*'Input Sponsor'!$C$73 -> 0 | L16: =L15*'Input Sponsor'!$C$73 -> 0 | M16: =M15*'Input Sponsor'!$C$73 -> 0 | N16: =N15*'Input Sponsor'!$C$73 -> 0 | O16: =O15*'Input Sponsor'!$C$73 -> 0 | P16: =P15*'Input Sponsor'!$C$73 -> 0 | Q16: =Q15*'Input Sponsor'!$C$73 -> 0 | R16: =R15*'Input Sponsor'!$C$73 -> 0 | S16: =S15*'Input Sponsor'!$C$73 -> 0 | T16: =T15*'Input Sponsor'!$C$73 -> 0 | U16: =U15*'Input Sponsor'!$C$73 -> 0 | V16: =V15*'Input Sponsor'!$C$73 -> 0 | W16: =W15*'Input Sponsor'!$C$73 -> 0 | X16: =X15*'Input Sponsor'!$C$73 -> 0 | Y16: =Y15*'Input Sponsor'!$C$73 -> 0 | Z16: =Z15*'Input Sponsor'!$C$73 -> 0 | AA16: =AA15*'Input Sponsor'!$C$73 -> 0 | AB16: =AB15*'Input Sponsor'!$C$73 -> 0 | AC16: =AC15*'Input Sponsor'!$C$73 -> 0 | AD16: =AD15*'Input Sponsor'!$C$73 -> 0 | AE16: =AE15*'Input Sponsor'!$C$73 -> 0 | AF16: =AF15*'Input Sponsor'!$C$73 -> 0 | AG16: =AG15*'Input Sponsor'!$C$73 -> 0 | AH16: =AH15*'Input Sponsor'!$C$73 -> 0 | AI16: =AI15*'Input Sponsor'!$C$73 -> 0 | AJ16: =AJ15*'Input Sponsor'!$C$73 -> 0 | AK16: =AK15*'Input Sponsor'!$C$73 -> 0 | AL16: =AL15*'Input Sponsor'!$C$73 -> 0 | AM16: =AM15*'Input Sponsor'!$C$73 -> 0 | AN16: =AN15*'Input Sponsor'!$C$73 -> 0 | AO16: =AO15*'Input Sponsor'!$C$73 -> 0 | AP16: =AP15*'Input Sponsor'!$C$73 -> 0 | AQ16: =AQ15*'Input Sponsor'!$C$73 -> 0 | AR16: =AR15*'Input Sponsor'!$C$73 -> 0 | AS16: =AS15*'Input Sponsor'!$C$73 -> 0 | AT16: =AT15*'Input Sponsor'!$C$73 -> 0 | AU16: =AU15*'Input Sponsor'!$C$73 -> 0 | AV16: =AV15*'Input Sponsor'!$C$73 -> 0 | AW16: =AW15*'Input Sponsor'!$C$73 -> 0 | AX16: =AX15*'Input Sponsor'!$C$73 -> 0 | AY16: =AY15*'Input Sponsor'!$C$73 -> 0 | AZ16: =AZ15*'Input Sponsor'!$C$73 -> 0 | BA16: =BA15*'Input Sponsor'!$C$73 -> 0 | BB16: =BB15*'Input Sponsor'!$C$73 -> 0 | BC16: =BC15*'Input Sponsor'!$C$73 -> 0

Sheet Finance (hidden)
A1: Finance Sheet
C3: Year | F3: =Work!F2 -> 2020 | G3: =Work!G2 -> 2021 | H3: =Work!H2 -> 2022 | I3: =Work!I2 -> 2023 | J3: =Work!J2 -> 2024 | K3: =Work!K2 -> 2025 | L3: =Work!L2 -> 2026 | M3: =Work!M2 -> 2027 | N3: =Work!N2 -> 2028 | O3: =Work!O2 -> 2029 | P3: =Work!P2 -> 2030 | Q3: =Work!Q2 -> 2031 | R3: =Work!R2 -> 2032 | S3: =Work!S2 -> 2033 | T3: =Work!T2 -> 2034 | U3: =Work!U2 -> 2035 | V3: =Work!V2 -> 2036 | W3: =Work!W2 -> 2037 | X3: =Work!X2 -> 2038 | Y3: =Work!Y2 -> 2039 | Z3: =Work!Z2 -> 2040 | AA3: =Work!AA2 -> 2041 | AB3: =Work!AB2 -> 2042 | AC3: =Work!AC2 -> 2043 | AD3: =Work!AD2 -> 2044 | AE3: =Work!AE2 -> 2045 | AF3: =Work!AF2 -> 2046 | AG3: =Work!AG2 -> 2047 | AH3: =Work!AH2 -> 2048 | AI3: =Work!AI2 -> 2049 | AJ3: =Work!AJ2 -> 2050 | AK3: =Work!AK2 -> 2051 | AL3: =Work!AL2 -> 2052 | AM3: =Work!AM2 -> 2053 | AN3: =Work!AN2 -> 2054 | AO3: =Work!AO2 -> 2055 | AP3: =Work!AP2 -> 2056 | AQ3: =Work!AQ2 -> 2057 | AR3: =Work!AR2 -> 2058 | AS3: =Work!AS2 -> 2059 | AT3: =Work!AT2 -> 2060 | AU3: =Work!AU2 -> 2061 | AV3: =Work!AV2 -> 2062 | AW3: =Work!AW2 -> 2063 | AX3: =Work!AX2 -> 2064 | AY3: =Work!AY2 -> 2065 | AZ3: =Work!AZ2 -> 2066 | BA3: =Work!BA2 -> 2067 | BB3: =Work!BB2 -> 2068 | BC3: =Work!BC2 -> 2069
F4: =Work!F3 -> 2020-07-01 | G4: =Work!G3 -> 2021-01-01 | H4: =Work!H3 -> 2022-01-01 | I4: =Work!I3 -> 2023-01-01 | J4: =Work!J3 -> 2024-01-01 | K4: =Work!K3 -> 2025-01-01 | L4: =Work!L3 -> 2026-01-01 | M4: =Work!M3 -> 2027-01-01 | N4: =Work!N3 -> 2028-01-01 | O4: =Work!O3 -> 2029-01-01 | P4: =Work!P3 -> 2030-01-01 | Q4: =Work!Q3 -> 2031-01-01 | R4: =Work!R3 -> 2032-01-01 | S4: =Work!S3 -> 2033-01-01 | T4: =Work!T3 -> 2034-01-01 | U4: =Work!U3 -> 2035-01-01 | V4: =Work!V3 -> 2036-01-01 | W4: =Work!W3 -> 2037-01-01 | X4: =Work!X3 -> 2038-01-01 | Y4: =Work!Y3 -> 2039-01-01 | Z4: =Work!Z3 -> 2040-01-01 | AA4: =Work!AA3 -> 2041-01-01 | AB4: =Work!AB3 -> 2042-01-01 | AC4: =Work!AC3 -> 2043-01-01 | AD4: =Work!AD3 -> 2044-01-01 | AE4: =Work!AE3 -> 2045-01-01 | AF4: =Work!AF3 -> 2046-01-01 | AG4: =Work!AG3 -> 2047-01-01 | AH4: =Work!AH3 -> 2048-01-01 | AI4: =Work!AI3 -> 2049-01-01 | AJ4: =Work!AJ3 -> 2050-01-01 | AK4: =Work!AK3 -> 2051-01-01 | AL4: =Work!AL3 -> 2052-01-01 | AM4: =Work!AM3 -> 2053-01-01 | AN4: =Work!AN3 -> 2054-01-01 | AO4: =Work!AO3 -> 2055-01-01 | AP4: =Work!AP3 -> 2056-01-01 | AQ4: =Work!AQ3 -> 2057-01-01 | AR4: =Work!AR3 -> 2058-01-01 | AS4: =Work!AS3 -> 2059-01-01 | AT4: =Work!AT3 -> 2060-01-01 | AU4: =Work!AU3 -> 2061-01-01 | AV4: =Work!AV3 -> 2062-01-01 | AW4: =Work!AW3 -> 2063-01-01 | AX4: =Work!AX3 -> 2064-01-01 | AY4: =Work!AY3 -> 2065-01-01 | AZ4: =Work!AZ3 -> 2066-01-01 | BA4: =Work!BA3 -> 2067-01-01 | BB4: =Work!BB3 -> 2068-01-01 | BC4: =Work!BC3 -> 2069-01-01
E5: Pre-Period | F5: to | G5: to | H5: to | I5: to | J5: to | K5: to | L5: to | M5: to | N5: to | O5: to | P5: to | Q5: to | R5: to | S5: to | T5: to | U5: to | V5: to | W5: to | X5: to | Y5: to | Z5: to | AA5: to | AB5: to | AC5: to | AD5: to | AE5: to | AF5: to | AG5: to | AH5: to | AI5: to | AJ5: to | AK5: to | AL5: to | AM5: to | AN5: to | AO5: to | AP5: to | AQ5: to | AR5: to | AS5: to | AT5: to | AU5: to | AV5: to | AW5: to | AX5: to | AY5: to | AZ5: to | BA5: to | BB5: to | BC5: to
F6: =Work!F5 -> 2020-12-31 | G6: =Work!G5 -> 2021-12-31 | H6: =Work!H5 -> 2022-12-31 | I6: =Work!I5 -> 2023-12-31 | J6: =Work!J5 -> 2024-12-31 | K6: =Work!K5 -> 2025-12-31 | L6: =Work!L5 -> 2026-12-31 | M6: =Work!M5 -> 2027-12-31 | N6: =Work!N5 -> 2028-12-31 | O6: =Work!O5 -> 2029-12-31 | P6: =Work!P5 -> 2030-12-31 | Q6: =Work!Q5 -> 2031-12-31 | R6: =Work!R5 -> 2032-12-31 | S6: =Work!S5 -> 2033-12-31 | T6: =Work!T5 -> 2034-12-31 | U6: =Work!U5 -> 2035-12-31 | V6: =Work!V5 -> 2036-12-31 | W6: =Work!W5 -> 2037-12-31 | X6: =Work!X5 -> 2038-12-31 | Y6: =Work!Y5 -> 2039-12-31 | Z6: =Work!Z5 -> 2040-12-31 | AA6: =Work!AA5 -> 2041-12-31 | AB6: =Work!AB5 -> 2042-12-31 | AC6: =Work!AC5 -> 2043-12-31 | AD6: =Work!AD5 -> 2044-12-31 | AE6: =Work!AE5 -> 2045-12-31 | AF6: =Work!AF5 -> 2046-12-31 | AG6: =Work!AG5 -> 2047-12-31 | AH6: =Work!AH5 -> 2048-12-31 | AI6: =Work!AI5 -> 2049-12-31 | AJ6: =Work!AJ5 -> 2050-12-31 | AK6: =Work!AK5 -> 2051-12-31 | AL6: =Work!AL5 -> 2052-12-31 | AM6: =Work!AM5 -> 2053-12-31 | AN6: =Work!AN5 -> 2054-12-31 | AO6: =Work!AO5 -> 2055-12-31 | AP6: =Work!AP5 -> 2056-12-31 | AQ6: =Work!AQ5 -> 2057-12-31 | AR6: =Work!AR5 -> 2058-12-31 | AS6: =Work!AS5 -> 2059-12-31 | AT6: =Work!AT5 -> 2060-12-31 | AU6: =Work!AU5 -> 2061-12-31 | AV6: =Work!AV5 -> 2062-12-31 | AW6: =Work!AW5 -> 2063-12-31 | AX6: =Work!AX5 -> 2064-12-31 | AY6: =Work!AY5 -> 2065-12-31 | AZ6: =Work!AZ5 -> 2066-12-31 | BA6: =Work!BA5 -> 2067-12-31 | BB6: =Work!BB5 -> 2068-12-31 | BC6: =Work!BC5 -> 2069-12-31
A8: Funding Requirement
A9: ='BUDGET STATEMENTS'!A13 -> Total Capex | C9: =SUM(E9:BC9) -> 18424.10869 | F9: ='BUDGET STATEMENTS'!F13 -> 1842.157366 | G9: ='BUDGET STATEMENTS'!G13 -> 3952.308811 | H9: ='BUDGET STATEMENTS'!H13 -> 4347.539692 | I9: ='BUDGET STATEMENTS'!I13 -> 4782.293661 | J9: ='BUDGET STATEMENTS'!J13 -> 3499.809156 | K9: ='BUDGET STATEMENTS'!K13 -> 0 | L9: ='BUDGET STATEMENTS'!L13 -> 0 | M9: ='BUDGET STATEMENTS'!M13 -> 0 | N9: ='BUDGET STATEMENTS'!N13 -> 0 | O9: ='BUDGET STATEMENTS'!O13 -> 0 | P9: ='BUDGET STATEMENTS'!P13 -> 0 | Q9: ='BUDGET STATEMENTS'!Q13 -> 0 | R9: ='BUDGET STATEMENTS'!R13 -> 0 | S9: ='BUDGET STATEMENTS'!S13 -> 0 | T9: ='BUDGET STATEMENTS'!T13 -> 0 | U9: ='BUDGET STATEMENTS'!U13 -> 0 | V9: ='BUDGET STATEMENTS'!V13 -> 0 | W9: ='BUDGET STATEMENTS'!W13 -> 0 | X9: ='BUDGET STATEMENTS'!X13 -> 0 | Y9: ='BUDGET STATEMENTS'!Y13 -> 0 | Z9: ='BUDGET STATEMENTS'!Z13 -> 0 | AA9: ='BUDGET STATEMENTS'!AA13 -> 0 | AB9: ='BUDGET STATEMENTS'!AB13 -> 0 | AC9: ='BUDGET STATEMENTS'!AC13 -> 0 | AD9: ='BUDGET STATEMENTS'!AD13 -> 0 | AE9: ='BUDGET STATEMENTS'!AE13 -> 0 | AF9: ='BUDGET STATEMENTS'!AF13 -> 0 | AG9: ='BUDGET STATEMENTS'!AG13 -> 0 | AH9: ='BUDGET STATEMENTS'!AH13 -> 0 | AI9: ='BUDGET STATEMENTS'!AI13 -> 0 | AJ9: ='BUDGET STATEMENTS'!AJ13 -> 0 | AK9: ='BUDGET STATEMENTS'!AK13 -> 0 | AL9: ='BUDGET STATEMENTS'!AL13 -> 0 | AM9: ='BUDGET STATEMENTS'!AM13 -> 0 | AN9: ='BUDGET STATEMENTS'!AN13 -> 0 | AO9: ='BUDGET STATEMENTS'!AO13 -> 0 | AP9: ='BUDGET STATEMENTS'!AP13 -> 0 | AQ9: ='BUDGET STATEMENTS'!AQ13 -> 0 | AR9: ='BUDGET STATEMENTS'!AR13 -> 0 | AS9: ='BUDGET STATEMENTS'!AS13 -> 0 | AT9: ='BUDGET STATEMENTS'!AT13 -> 0 | AU9: ='BUDGET STATEMENTS'!AU13 -> 0 | AV9: ='BUDGET STATEMENTS'!AV13 -> 0 | AW9: ='BUDGET STATEMENTS'!AW13 -> 0 | AX9: ='BUDGET STATEMENTS'!AX13 -> 0 | AY9: ='BUDGET STATEMENTS'!AY13 -> 0 | AZ9: ='BUDGET STATEMENTS'!AZ13 -> 0 | BA9: ='BUDGET STATEMENTS'!BA13 -> 0 | BB9: ='BUDGET STATEMENTS'!BB13 -> 0 | BC9: ='BUDGET STATEMENTS'!BC13 -> 0
A10: Arranging Fee | C10: =SUM(E10:BC10) -> 200 | F10: ='Input Sponsor'!$C$60*'Input Sponsor'!$C$55*Work!F16 -> 200 | G10: ='Input Sponsor'!$C$60*'Input Sponsor'!$C$55*Work!G16 -> 0 | H10: ='Input Sponsor'!$C$60*'Input Sponsor'!$C$55*Work!H16 -> 0 | I10: ='Input Sponsor'!$C$60*'Input Sponsor'!$C$55*Work!I16 -> 0 | J10: ='Input Sponsor'!$C$60*'Input Sponsor'!$C$55*Work!J16 -> 0 | K10: ='Input Sponsor'!$C$60*'Input Sponsor'!$C$55*Work!K16 -> 0 | L10: ='Input Sponsor'!$C$60*'Input Sponsor'!$C$55*Work!L16 -> 0 | M10: ='Input Sponsor'!$C$60*'Input Sponsor'!$C$55*Work!M16 -> 0 | N10: ='Input Sponsor'!$C$60*'Input Sponsor'!$C$55*Work!N16 -> 0 | O10: ='Input Sponsor'!$C$60*'Input Sponsor'!$C$55*Work!O16 -> 0 | P10: ='Input Sponsor'!$C$60*'Input Sponsor'!$C$55*Work!P16 -> 0 | Q10: ='Input Sponsor'!$C$60*'Input Sponsor'!$C$55*Work!Q16 -> 0 | R10: ='Input Sponsor'!$C$60*'Input Sponsor'!$C$55*Work!R16 -> 0 | S10: ='Input Sponsor'!$C$60*'Input Sponsor'!$C$55*Work!S16 -> 0 | T10: ='Input Sponsor'!$C$60*'Input Sponsor'!$C$55*Work!T16 -> 0 | U10: ='Input Sponsor'!$C$60*'Input Sponsor'!$C$55*Work!U16 -> 0 | V10: ='Input Sponsor'!$C$60*'Input Sponsor'!$C$55*Work!V16 -> 0 | W10: ='Input Sponsor'!$C$60*'Input Sponsor'!$C$55*Work!W16 -> 0 | X10: ='Input Sponsor'!$C$60*'Input Sponsor'!$C$55*Work!X16 -> 0 | Y10: ='Input Sponsor'!$C$60*'Input Sponsor'!$C$55*Work!Y16 -> 0 | Z10: ='Input Sponsor'!$C$60*'Input Sponsor'!$C$55*Work!Z16 -> 0 | AA10: ='Input Sponsor'!$C$60*'Input Sponsor'!$C$55*Work!AA16 -> 0 | AB10: ='Input Sponsor'!$C$60*'Input Sponsor'!$C$55*Work!AB16 -> 0 | AC10: ='Input Sponsor'!$C$60*'Input Sponsor'!$C$55*Work!AC16 -> 0 | AD10: ='Input Sponsor'!$C$60*'Input Sponsor'!$C$55*Work!AD16 -> 0 | AE10: ='Input Sponsor'!$C$60*'Input Sponsor'!$C$55*Work!AE16 -> 0 | AF10: ='Input Sponsor'!$C$60*'Input Sponsor'!$C$55*Work!AF16 -> 0 | AG10: ='Input Sponsor'!$C$60*'Input Sponsor'!$C$55*Work!AG16 -> 0 | AH10: ='Input Sponsor'!$C$60*'Input Sponsor'!$C$55*Work!AH16 -> 0 | AI10: ='Input Sponsor'!$C$60*'Input Sponsor'!$C$55*Work!AI16 -> 0 | AJ10: ='Input Sponsor'!$C$60*'Input Sponsor'!$C$55*Work!AJ16 -> 0 | AK10: ='Input Sponsor'!$C$60*'Input Sponsor'!$C$55*Work!AK16 -> 0 | AL10: ='Input Sponsor'!$C$60*'Input Sponsor'!$C$55*Work!AL16 -> 0 | AM10: ='Input Sponsor'!$C$60*'Input Sponsor'!$C$55*Work!AM16 -> 0 | AN10: ='Input Sponsor'!$C$60*'Input Sponsor'!$C$55*Work!AN16 -> 0 | AO10: ='Input Sponsor'!$C$60*'Input Sponsor'!$C$55*Work!AO16 -> 0 | AP10: ='Input Sponsor'!$C$60*'Input Sponsor'!$C$55*Work!AP16 -> 0 | AQ10: ='Input Sponsor'!$C$60*'Input Sponsor'!$C$55*Work!AQ16 -> 0 | AR10: ='Input Sponsor'!$C$60*'Input Sponsor'!$C$55*Work!AR16 -> 0 | AS10: ='Input Sponsor'!$C$60*'Input Sponsor'!$C$55*Work!AS16 -> 0 | AT10: ='Input Sponsor'!$C$60*'Input Sponsor'!$C$55*Work!AT16 -> 0 | AU10: ='Input Sponsor'!$C$60*'Input Sponsor'!$C$55*Work!AU16 -> 0 | AV10: ='Input Sponsor'!$C$60*'Input Sponsor'!$C$55*Work!AV16 -> 0 | AW10: ='Input Sponsor'!$C$60*'Input Sponsor'!$C$55*Work!AW16 -> 0 | AX10: ='Input Sponsor'!$C$60*'Input Sponsor'!$C$55*Work!AX16 -> 0 | AY10: ='Input Sponsor'!$C$60*'Input Sponsor'!$C$55*Work!AY16 -> 0 | AZ10: ='Input Sponsor'!$C$60*'Input Sponsor'!$C$55*Work!AZ16 -> 0 | BA10: ='Input Sponsor'!$C$60*'Input Sponsor'!$C$55*Work!BA16 -> 0 | BB10: ='Input Sponsor'!$C$60*'Input Sponsor'!$C$55*Work!BB16 -> 0 | BC10: ='Input Sponsor'!$C$60*'Input Sponsor'!$C$55*Work!BC16 -> 0
A11: Interests | C11: =SUM(E11:BC11) -> 9265.198225 | F11: =E31*'Input Sponsor'!$C$59*Work!F10 -> 0 | G11: =F31*'Input Sponsor'!$C$59*Work!G10 -> 12.88029802 | H11: =G31*'Input Sponsor'!$C$59*Work!H10 -> 179.2878718 | I11: =H31*'Input Sponsor'!$C$59*Work!I10 -> 385.7201704 | J11: =I31*'Input Sponsor'!$C$59*Work!J10 -> 637.3098851 | K11: =J31*'Input Sponsor'!$C$59*Work!K10 -> 700 | L11: =K31*'Input Sponsor'!$C$59*Work!L10 -> 700 | M11: =L31*'Input Sponsor'!$C$59*Work!M10 -> 700 | N11: =M31*'Input Sponsor'!$C$59*Work!N10 -> 661.1111111 | O11: =N31*'Input Sponsor'!$C$59*Work!O10 -> 622.2222222 | P11: =O31*'Input Sponsor'!$C$59*Work!P10 -> 583.3333333 | Q11: =P31*'Input Sponsor'!$C$59*Work!Q10 -> 544.4444444 | R11: =Q31*'Input Sponsor'!$C$59*Work!R10 -> 505.5555556 | S11: =R31*'Input Sponsor'!$C$59*Work!S10 -> 466.6666667 | T11: =S31*'Input Sponsor'!$C$59*Work!T10 -> 427.7777778 | U11: =T31*'Input Sponsor'!$C$59*Work!U10 -> 388.8888889 | V11: =U31*'Input Sponsor'!$C$59*Work!V10 -> 350 | W11: =V31*'Input Sponsor'!$C$59*Work!W10 -> 311.1111111 | X11: =W31*'Input Sponsor'!$C$59*Work!X10 -> 272.2222222 | Y11: =X31*'Input Sponsor'!$C$59*Work!Y10 -> 233.3333333 | Z11: =Y31*'Input Sponsor'!$C$59*Work!Z10 -> 194.4444444 | AA11: =Z31*'Input Sponsor'!$C$59*Work!AA10 -> 155.5555556 | AB11: =AA31*'Input Sponsor'!$C$59*Work!AB10 -> 116.6666667 | AC11: =AB31*'Input Sponsor'!$C$59*Work!AC10 -> 77.77777778 | AD11: =AC31*'Input Sponsor'!$C$59*Work!AD10 -> 38.88888889 | AE11: =AD31*'Input Sponsor'!$C$59*Work!AE10 -> 7.958078641e-14 | AF11: =AE31*'Input Sponsor'!$C$59*Work!AF10 -> 7.958078641e-14 | AG11: =AF31*'Input Sponsor'!$C$59*Work!AG10 -> 7.958078641e-14 | AH11: =AG31*'Input Sponsor'!$C$59*Work!AH10 -> 7.958078641e-14 | AI11: =AH31*'Input Sponsor'!$C$59*Work!AI10 -> 7.958078641e-14 | AJ11: =AI31*'Input Sponsor'!$C$59*Work!AJ10 -> 7.958078641e-14 | AK11: =AJ31*'Input Sponsor'!$C$59*Work!AK10 -> 7.958078641e-14 | AL11: =AK31*'Input Sponsor'!$C$59*Work!AL10 -> 7.958078641e-14 | AM11: =AL31*'Input Sponsor'!$C$59*Work!AM10 -> 7.958078641e-14 | AN11: =AM31*'Input Sponsor'!$C$59*Work!AN10 -> 7.958078641e-14 | AO11: =AN31*'Input Sponsor'!$C$59*Work!AO10 -> 7.958078641e-14 | AP11: =AO31*'Input Sponsor'!$C$59*Work!AP10 -> 7.958078641e-14 | AQ11: =AP31*'Input Sponsor'!$C$59*Work!AQ10 -> 7.958078641e-14 | AR11: =AQ31*'Input Sponsor'!$C$59*Work!AR10 -> 7.958078641e-14 | AS11: =AR31*'Input Sponsor'!$C$59*Work!AS10 -> 7.958078641e-14 | AT11: =AS31*'Input Sponsor'!$C$59*Work!AT10 -> 7.958078641e-14 | AU11: =AT31*'Input Sponsor'!$C$59*Work!AU10 -> 7.958078641e-14 | AV11: =AU31*'Input Sponsor'!$C$59*Work!AV10 -> 7.958078641e-14 | AW11: =AV31*'Input Sponsor'!$C$59*Work!AW10 -> 7.958078641e-14 | AX11: =AW31*'Input Sponsor'!$C$59*Work!AX10 -> 7.958078641e-14 | AY11: =AX31*'Input Sponsor'!$C$59*Work!AY10 -> 7.958078641e-14 | AZ11: =AY31*'Input Sponsor'!$C$59*Work!AZ10 -> 7.958078641e-14 | BA11: =AZ31*'Input Sponsor'!$C$59*Work!BA10 -> 7.958078641e-14 | BB11: =BA31*'Input Sponsor'!$C$59*Work!BB10 -> 7.958078641e-14 | BC11: =BB31*'Input Sponsor'!$C$59*Work!BC10 -> 7.958078641e-14
A12: Commitment Fee | C12: 553.0744796 | F12: =('Input Sponsor'!$C$55-E31)*'Input Sponsor'!$C$61*Work!F53*Work!F10 -> 100.2739726 | G12: =('Input Sponsor'!$C$55-F31)*'Input Sponsor'!$C$61*Work!G53*Work!G10 -> 196.3199149 | H12: =('Input Sponsor'!$C$55-G31)*'Input Sponsor'!$C$61*Work!H53*Work!H10 -> 148.7748938 | I12: =('Input Sponsor'!$C$55-H31)*'Input Sponsor'!$C$61*Work!I53*Work!I10 -> 89.79423701 | J12: =('Input Sponsor'!$C$55-I31)*'Input Sponsor'!$C$61*Work!J53*Work!J10 -> 17.9114614 | K12: =('Input Sponsor'!$C$55-J31)*'Input Sponsor'!$C$61*Work!K53*Work!K10 -> 0 | L12: =('Input Sponsor'!$C$55-K31)*'Input Sponsor'!$C$61*Work!L53*Work!L10 -> 0 | M12: =('Input Sponsor'!$C$55-L31)*'Input Sponsor'!$C$61*Work!M53*Work!M10 -> 0 | N12: =('Input Sponsor'!$C$55-M31)*'Input Sponsor'!$C$61*Work!N53*Work!N10 -> 0 | O12: =('Input Sponsor'!$C$55-N31)*'Input Sponsor'!$C$61*Work!O53*Work!O10 -> 0 | P12: =('Input Sponsor'!$C$55-O31)*'Input Sponsor'!$C$61*Work!P53*Work!P10 -> 0 | Q12: =('Input Sponsor'!$C$55-P31)*'Input Sponsor'!$C$61*Work!Q53*Work!Q10 -> 0 | R12: =('Input Sponsor'!$C$55-Q31)*'Input Sponsor'!$C$61*Work!R53*Work!R10 -> 0 | S12: =('Input Sponsor'!$C$55-R31)*'Input Sponsor'!$C$61*Work!S53*Work!S10 -> 0 | T12: =('Input Sponsor'!$C$55-S31)*'Input Sponsor'!$C$61*Work!T53*Work!T10 -> 0 | U12: =('Input Sponsor'!$C$55-T31)*'Input Sponsor'!$C$61*Work!U53*Work!U10 -> 0 | V12: =('Input Sponsor'!$C$55-U31)*'Input Sponsor'!$C$61*Work!V53*Work!V10 -> 0 | W12: =('Input Sponsor'!$C$55-V31)*'Input Sponsor'!$C$61*Work!W53*Work!W10 -> 0 | X12: =('Input Sponsor'!$C$55-W31)*'Input Sponsor'!$C$61*Work!X53*Work!X10 -> 0 | Y12: =('Input Sponsor'!$C$55-X31)*'Input Sponsor'!$C$61*Work!Y53*Work!Y10 -> 0 | Z12: =('Input Sponsor'!$C$55-Y31)*'Input Sponsor'!$C$61*Work!Z53*Work!Z10 -> 0 | AA12: =('Input Sponsor'!$C$55-Z31)*'Input Sponsor'!$C$61*Work!AA53*Work!AA10 -> 0 | AB12: =('Input Sponsor'!$C$55-AA31)*'Input Sponsor'!$C$61*Work!AB53*Work!AB10 -> 0 | AC12: =('Input Sponsor'!$C$55-AB31)*'Input Sponsor'!$C$61*Work!AC53*Work!AC10 -> 0 | AD12: =('Input Sponsor'!$C$55-AC31)*'Input Sponsor'!$C$61*Work!AD53*Work!AD10 -> 0 | AE12: =('Input Sponsor'!$C$55-AD31)*'Input Sponsor'!$C$61*Work!AE53*Work!AE10 -> 0 | AF12: =('Input Sponsor'!$C$55-AE31)*'Input Sponsor'!$C$61*Work!AF53*Work!AF10 -> 0 | AG12: =('Input Sponsor'!$C$55-AF31)*'Input Sponsor'!$C$61*Work!AG53*Work!AG10 -> 0 | AH12: =('Input Sponsor'!$C$55-AG31)*'Input Sponsor'!$C$61*Work!AH53*Work!AH10 -> 0 | AI12: =('Input Sponsor'!$C$55-AH31)*'Input Sponsor'!$C$61*Work!AI53*Work!AI10 -> 0 | AJ12: =('Input Sponsor'!$C$55-AI31)*'Input Sponsor'!$C$61*Work!AJ53*Work!AJ10 -> 0 | AK12: =('Input Sponsor'!$C$55-AJ31)*'Input Sponsor'!$C$61*Work!AK53*Work!AK10 -> 0 | AL12: =('Input Sponsor'!$C$55-AK31)*'Input Sponsor'!$C$61*Work!AL53*Work!AL10 -> 0 | AM12: =('Input Sponsor'!$C$55-AL31)*'Input Sponsor'!$C$61*Work!AM53*Work!AM10 -> 0 | AN12: =('Input Sponsor'!$C$55-AM31)*'Input Sponsor'!$C$61*Work!AN53*Work!AN10 -> 0 | AO12: =('Input Sponsor'!$C$55-AN31)*'Input Sponsor'!$C$61*Work!AO53*Work!AO10 -> 0 | AP12: =('Input Sponsor'!$C$55-AO31)*'Input Sponsor'!$C$61*Work!AP53*Work!AP10 -> 0 | AQ12: =('Input Sponsor'!$C$55-AP31)*'Input Sponsor'!$C$61*Work!AQ53*Work!AQ10 -> 0 | AR12: =('Input Sponsor'!$C$55-AQ31)*'Input Sponsor'!$C$61*Work!AR53*Work!AR10 -> 0 | AS12: =('Input Sponsor'!$C$55-AR31)*'Input Sponsor'!$C$61*Work!AS53*Work!AS10 -> 0 | AT12: =('Input Sponsor'!$C$55-AS31)*'Input Sponsor'!$C$61*Work!AT53*Work!AT10 -> 0 | AU12: =('Input Sponsor'!$C$55-AT31)*'Input Sponsor'!$C$61*Work!AU53*Work!AU10 -> 0 | AV12: =('Input Sponsor'!$C$55-AU31)*'Input Sponsor'!$C$61*Work!AV53*Work!AV10 -> 0 | AW12: =('Input Sponsor'!$C$55-AV31)*'Input Sponsor'!$C$61*Work!AW53*Work!AW10 -> 0 | AX12: =('Input Sponsor'!$C$55-AW31)*'Input Sponsor'!$C$61*Work!AX53*Work!AX10 -> 0 | AY12: =('Input Sponsor'!$C$55-AX31)*'Input Sponsor'!$C$61*Work!AY53*Work!AY10 -> 0 | AZ12: =('Input Sponsor'!$C$55-AY31)*'Input Sponsor'!$C$61*Work!AZ53*Work!AZ10 -> 0 | BA12: =('Input Sponsor'!$C$55-AZ31)*'Input Sponsor'!$C$61*Work!BA53*Work!BA10 -> 0 | BB12: =('Input Sponsor'!$C$55-BA31)*'Input Sponsor'!$C$61*Work!BB53*Work!BB10 -> 0 | BC12: =('Input Sponsor'!$C$55-BB31)*'Input Sponsor'!$C$61*Work!BC53*Work!BC10 -> 0
A13: Finance Charges on Debt | C13: =SUM(F13:BC13) -> 1968.272705 | F13: =SUM(F10:F12 )* Work!F53 -> 300.2739726 | G13: =SUM(G10:G12 )* Work!G53 -> 209.2002129 | H13: =SUM(H10:H12 )* Work!H53 -> 328.0627655 | I13: =SUM(I10:I12 )* Work!I53 -> 475.5144075 | J13: =SUM(J10:J12 )* Work!J53 -> 655.2213465 | K13: =SUM(K10:K12 )* Work!K53 -> 0 | L13: =SUM(L10:L12 )* Work!L53 -> 0 | M13: =SUM(M10:M12 )* Work!M53 -> 0 | N13: =SUM(N10:N12 )* Work!N53 -> 0 | O13: =SUM(O10:O12 )* Work!O53 -> 0 | P13: =SUM(P10:P12 )* Work!P53 -> 0 | Q13: =SUM(Q10:Q12 )* Work!Q53 -> 0 | R13: =SUM(R10:R12 )* Work!R53 -> 0 | S13: =SUM(S10:S12 )* Work!S53 -> 0 | T13: =SUM(T10:T12 )* Work!T53 -> 0 | U13: =SUM(U10:U12 )* Work!U53 -> 0 | V13: =SUM(V10:V12 )* Work!V53 -> 0 | W13: =SUM(W10:W12 )* Work!W53 -> 0 | X13: =SUM(X10:X12 )* Work!X53 -> 0 | Y13: =SUM(Y10:Y12 )* Work!Y53 -> 0 | Z13: =SUM(Z10:Z12 )* Work!Z53 -> 0 | AA13: =SUM(AA10:AA12 )* Work!AA53 -> 0 | AB13: =SUM(AB10:AB12 )* Work!AB53 -> 0 | AC13: =SUM(AC10:AC12 )* Work!AC53 -> 0 | AD13: =SUM(AD10:AD12 )* Work!AD53 -> 0 | AE13: =SUM(AE10:AE12 )* Work!AE53 -> 0 | AF13: =SUM(AF10:AF12 )* Work!AF53 -> 0 | AG13: =SUM(AG10:AG12 )* Work!AG53 -> 0 | AH13: =SUM(AH10:AH12 )* Work!AH53 -> 0 | AI13: =SUM(AI10:AI12 )* Work!AI53 -> 0 | AJ13: =SUM(AJ10:AJ12 )* Work!AJ53 -> 0 | AK13: =SUM(AK10:AK12 )* Work!AK53 -> 0 | AL13: =SUM(AL10:AL12 )* Work!AL53 -> 0 | AM13: =SUM(AM10:AM12 )* Work!AM53 -> 0 | AN13: =SUM(AN10:AN12 )* Work!AN53 -> 0 | AO13: =SUM(AO10:AO12 )* Work!AO53 -> 0 | AP13: =SUM(AP10:AP12 )* Work!AP53 -> 0 | AQ13: =SUM(AQ10:AQ12 )* Work!AQ53 -> 0 | AR13: =SUM(AR10:AR12 )* Work!AR53 -> 0 | AS13: =SUM(AS10:AS12 )* Work!AS53 -> 0 | AT13: =SUM(AT10:AT12 )* Work!AT53 -> 0 | AU13: =SUM(AU10:AU12 )* Work!AU53 -> 0 | AV13: =SUM(AV10:AV12 )* Work!AV53 -> 0 | AW13: =SUM(AW10:AW12 )* Work!AW53 -> 0 | AX13: =SUM(AX10:AX12 )* Work!AX53 -> 0 | AY13: =SUM(AY10:AY12 )* Work!AY53 -> 0 | AZ13: =SUM(AZ10:AZ12 )* Work!AZ53 -> 0 | BA13: =SUM(BA10:BA12 )* Work!BA53 -> 0 | BB13: =SUM(BB10:BB12 )* Work!BB53 -> 0 | BC13: =SUM(BC10:BC12 )* Work!BC53 -> 0
A14: =Opex!A33 -> Operating Balance | C14: =SUM(E14:BC14) -> -1229.204715 | F14: =Opex!F33*Work!F53 -> -48.57291851 | G14: =Opex!G33*Work!G53 -> -222.7420295 | H14: =Opex!H33*Work!H53 -> -280.4303807 | I14: =Opex!I33*Work!I53 -> -343.3307119 | J14: =Opex!J33*Work!J53 -> -334.1286742 | K14: =Opex!K33*Work!K53 -> 0 | L14: =Opex!L33*Work!L53 -> 0 | M14: =Opex!M33*Work!M53 -> 0 | N14: =Opex!N33*Work!N53 -> 0 | O14: =Opex!O33*Work!O53 -> 0 | P14: =Opex!P33*Work!P53 -> 0 | Q14: =Opex!Q33*Work!Q53 -> 0 | R14: =Opex!R33*Work!R53 -> 0 | S14: =Opex!S33*Work!S53 -> 0 | T14: =Opex!T33*Work!T53 -> 0 | U14: =Opex!U33*Work!U53 -> 0 | V14: =Opex!V33*Work!V53 -> 0 | W14: =Opex!W33*Work!W53 -> 0 | X14: =Opex!X33*Work!X53 -> 0 | Y14: =Opex!Y33*Work!Y53 -> 0 | Z14: =Opex!Z33*Work!Z53 -> 0 | AA14: =Opex!AA33*Work!AA53 -> 0 | AB14: =Opex!AB33*Work!AB53 -> 0 | AC14: =Opex!AC33*Work!AC53 -> 0 | AD14: =Opex!AD33*Work!AD53 -> 0 | AE14: =Opex!AE33*Work!AE53 -> 0 | AF14: =Opex!AF33*Work!AF53 -> 0 | AG14: =Opex!AG33*Work!AG53 -> 0 | AH14: =Opex!AH33*Work!AH53 -> 0 | AI14: =Opex!AI33*Work!AI53 -> 0 | AJ14: =Opex!AJ33*Work!AJ53 -> 0 | AK14: =Opex!AK33*Work!AK53 -> 0 | AL14: =Opex!AL33*Work!AL53 -> 0 | AM14: =Opex!AM33*Work!AM53 -> 0 | AN14: =Opex!AN33*Work!AN53 -> 0 | AO14: =Opex!AO33*Work!AO53 -> 0 | AP14: =Opex!AP33*Work!AP53 -> 0 | AQ14: =Opex!AQ33*Work!AQ53 -> 0 | AR14: =Opex!AR33*Work!AR53 -> 0 | AS14: =Opex!AS33*Work!AS53 -> 0 | AT14: =Opex!AT33*Work!AT53 -> 0 | AU14: =Opex!AU33*Work!AU53 -> 0 | AV14: =Opex!AV33*Work!AV53 -> 0 | AW14: =Opex!AW33*Work!AW53 -> 0 | AX14: =Opex!AX33*Work!AX53 -> 0 | AY14: =Opex!AY33*Work!AY53 -> 0 | AZ14: =Opex!AZ33*Work!AZ53 -> 0 | BA14: =Opex!BA33*Work!BA53 -> 0 | BB14: =Opex!BB33*Work!BB53 -> 0 | BC14: =Opex!BC33*Work!BC53 -> 0
A15: Coporate Tax | C15: =SUM(E15:BC15) -> 0 | F15: =Tax!F16 -> 0 | G15: =Tax!G16 -> 0 | H15: =Tax!H16 -> 0 | I15: =Tax!I16 -> 0 | J15: =Tax!J16 -> 0 | K15: =Tax!K16 -> 0 | L15: =Tax!L16 -> 0 | M15: =Tax!M16 -> 0 | N15: =Tax!N16 -> 0 | O15: =Tax!O16 -> 0 | P15: =Tax!P16 -> 0 | Q15: =Tax!Q16 -> 0 | R15: =Tax!R16 -> 0 | S15: =Tax!S16 -> 0 | T15: =Tax!T16 -> 0 | U15: =Tax!U16 -> 0 | V15: =Tax!V16 -> 0 | W15: =Tax!W16 -> 0 | X15: =Tax!X16 -> 0 | Y15: =Tax!Y16 -> 0 | Z15: =Tax!Z16 -> 0 | AA15: =Tax!AA16 -> 0 | AB15: =Tax!AB16 -> 0 | AC15: =Tax!AC16 -> 0 | AD15: =Tax!AD16 -> 0 | AE15: =Tax!AE16 -> 0 | AF15: =Tax!AF16 -> 0 | AG15: =Tax!AG16 -> 0 | AH15: =Tax!AH16 -> 0 | AI15: =Tax!AI16 -> 0 | AJ15: =Tax!AJ16 -> 0 | AK15: =Tax!AK16 -> 0 | AL15: =Tax!AL16 -> 0 | AM15: =Tax!AM16 -> 0 | AN15: =Tax!AN16 -> 0 | AO15: =Tax!AO16 -> 0 | AP15: =Tax!AP16 -> 0 | AQ15: =Tax!AQ16 -> 0 | AR15: =Tax!AR16 -> 0 | AS15: =Tax!AS16 -> 0 | AT15: =Tax!AT16 -> 0 | AU15: =Tax!AU16 -> 0 | AV15: =Tax!AV16 -> 0 | AW15: =Tax!AW16 -> 0 | AX15: =Tax!AX16 -> 0 | AY15: =Tax!AY16 -> 0 | AZ15: =Tax!AZ16 -> 0 | BA15: =Tax!BA16 -> 0 | BB15: =Tax!BB16 -> 0 | BC15: =Tax!BC16 -> 0
A16: Funding Requirement for Capex | C16: =SUM(E16:BC16) -> 21621.58611 | F16: =MAX(0,F9+F13-F14+F15) -> 2191.004257 | G16: =MAX(0,G9+G13-G14+G15) -> 4384.251053 | H16: 4956.032838 | I16: 5601.138781 | J16: 4489.159176 | K16: 0 | L16: 0 | M16: 0 | N16: 0 | O16: 0 | P16: 0 | Q16: 0 | R16: 0 | S16: 0 | T16: 0 | U16: 0 | V16: 0 | W16: 0 | X16: 0 | Y16: 0 | Z16: 0 | AA16: 0 | AB16: 0 | AC16: 0 | AD16: 0 | AE16: 0 | AF16: 0 | AG16: 0 | AH16: 0 | AI16: 0 | AJ16: 0 | AK16: 0 | AL16: 0 | AM16: 0 | AN16: 0 | AO16: 0 | AP16: 0 | AQ16: 0 | AR16: 0 | AS16: 0 | AT16: 0 | AU16: 0 | AV16: 0 | AW16: 0 | AX16: 0 | AY16: 0 | AZ16: 0 | BA16: 0 | BB16: 0 | BC16: 0
A18: Drawdowns on Grant and Debt
A19: ='Input Sponsor'!A48 -> Contributions covering Capex
A20: ='Input Sponsor'!A49 -> Department Baseline | C20: =SUM(E20:BC20) -> 10000 | F20: =MIN(F$16,'Input Sponsor'!$C$49*(1-Work!F$27)) -> 2000 | G20: =MIN(G$16,'Input Sponsor'!$C$49*(1-Work!G$27)) -> 2000 | H20: =MIN(H$16,'Input Sponsor'!$C$49*(1-Work!H$27)) -> 2000 | I20: =MIN(I$16,'Input Sponsor'!$C$49*(1-Work!I$27)) -> 2000 | J20: =MIN(J$16,'Input Sponsor'!$C$49*(1-Work!J$27)) -> 2000 | K20: =MIN(K$16,'Input Sponsor'!$C$49*(1-Work!K$27)) -> 0 | L20: =MIN(L$16,'Input Sponsor'!$C$49*(1-Work!L$27)) -> 0 | M20: =MIN(M$16,'Input Sponsor'!$C$49*(1-Work!M$27)) -> 0 | N20: =MIN(N$16,'Input Sponsor'!$C$49*(1-Work!N$27)) -> 0 | O20: =MIN(O$16,'Input Sponsor'!$C$49*(1-Work!O$27)) -> 0 | P20: =MIN(P$16,'Input Sponsor'!$C$49*(1-Work!P$27)) -> 0 | Q20: =MIN(Q$16,'Input Sponsor'!$C$49*(1-Work!Q$27)) -> 0 | R20: =MIN(R$16,'Input Sponsor'!$C$49*(1-Work!R$27)) -> 0 | S20: =MIN(S$16,'Input Sponsor'!$C$49*(1-Work!S$27)) -> 0 | T20: =MIN(T$16,'Input Sponsor'!$C$49*(1-Work!T$27)) -> 0 | U20: =MIN(U$16,'Input Sponsor'!$C$49*(1-Work!U$27)) -> 0 | V20: =MIN(V$16,'Input Sponsor'!$C$49*(1-Work!V$27)) -> 0 | W20: =MIN(W$16,'Input Sponsor'!$C$49*(1-Work!W$27)) -> 0 | X20: =MIN(X$16,'Input Sponsor'!$C$49*(1-Work!X$27)) -> 0 | Y20: =MIN(Y$16,'Input Sponsor'!$C$49*(1-Work!Y$27)) -> 0 | Z20: =MIN(Z$16,'Input Sponsor'!$C$49*(1-Work!Z$27)) -> 0 | AA20: =MIN(AA$16,'Input Sponsor'!$C$49*(1-Work!AA$27)) -> 0 | AB20: =MIN(AB$16,'Input Sponsor'!$C$49*(1-Work!AB$27)) -> 0 | AC20: =MIN(AC$16,'Input Sponsor'!$C$49*(1-Work!AC$27)) -> 0 | AD20: =MIN(AD$16,'Input Sponsor'!$C$49*(1-Work!AD$27)) -> 0 | AE20: =MIN(AE$16,'Input Sponsor'!$C$49*(1-Work!AE$27)) -> 0 | AF20: =MIN(AF$16,'Input Sponsor'!$C$49*(1-Work!AF$27)) -> 0 | AG20: =MIN(AG$16,'Input Sponsor'!$C$49*(1-Work!AG$27)) -> 0 | AH20: =MIN(AH$16,'Input Sponsor'!$C$49*(1-Work!AH$27)) -> 0 | AI20: =MIN(AI$16,'Input Sponsor'!$C$49*(1-Work!AI$27)) -> 0 | AJ20: =MIN(AJ$16,'Input Sponsor'!$C$49*(1-Work!AJ$27)) -> 0 | AK20: =MIN(AK$16,'Input Sponsor'!$C$49*(1-Work!AK$27)) -> 0 | AL20: =MIN(AL$16,'Input Sponsor'!$C$49*(1-Work!AL$27)) -> 0 | AM20: =MIN(AM$16,'Input Sponsor'!$C$49*(1-Work!AM$27)) -> 0 | AN20: =MIN(AN$16,'Input Sponsor'!$C$49*(1-Work!AN$27)) -> 0 | AO20: =MIN(AO$16,'Input Sponsor'!$C$49*(1-Work!AO$27)) -> 0 | AP20: =MIN(AP$16,'Input Sponsor'!$C$49*(1-Work!AP$27)) -> 0 | AQ20: =MIN(AQ$16,'Input Sponsor'!$C$49*(1-Work!AQ$27)) -> 0 | AR20: =MIN(AR$16,'Input Sponsor'!$C$49*(1-Work!AR$27)) -> 0 | AS20: =MIN(AS$16,'Input Sponsor'!$C$49*(1-Work!AS$27)) -> 0 | AT20: =MIN(AT$16,'Input Sponsor'!$C$49*(1-Work!AT$27)) -> 0 | AU20: =MIN(AU$16,'Input Sponsor'!$C$49*(1-Work!AU$27)) -> 0 | AV20: =MIN(AV$16,'Input Sponsor'!$C$49*(1-Work!AV$27)) -> 0 | AW20: =MIN(AW$16,'Input Sponsor'!$C$49*(1-Work!AW$27)) -> 0 | AX20: =MIN(AX$16,'Input Sponsor'!$C$49*(1-Work!AX$27)) -> 0 | AY20: =MIN(AY$16,'Input Sponsor'!$C$49*(1-Work!AY$27)) -> 0 | AZ20: =MIN(AZ$16,'Input Sponsor'!$C$49*(1-Work!AZ$27)) -> 0 | BA20: =MIN(BA$16,'Input Sponsor'!$C$49*(1-Work!BA$27)) -> 0 | BB20: =MIN(BB$16,'Input Sponsor'!$C$49*(1-Work!BB$27)) -> 0 | BC20: =MIN(BC$16,'Input Sponsor'!$C$49*(1-Work!BC$27)) -> 0
A21: ='Input Sponsor'!A50 -> External Organisation Grant | C21: =SUM(E21:BC21) -> 5 | F21: =MIN((F$16-F20),'Input Sponsor'!$C$50*(1-Work!F$27)) -> 1 | G21: =MIN((G$16-G20),'Input Sponsor'!$C$50*(1-Work!G$27)) -> 1 | H21: =MIN((H$16-H20),'Input Sponsor'!$C$50*(1-Work!H$27)) -> 1 | I21: =MIN((I$16-I20),'Input Sponsor'!$C$50*(1-Work!I$27)) -> 1 | J21: =MIN((J$16-J20),'Input Sponsor'!$C$50*(1-Work!J$27)) -> 1 | K21: =MIN((K$16-K20),'Input Sponsor'!$C$50*(1-Work!K$27)) -> 0 | L21: =MIN((L$16-L20),'Input Sponsor'!$C$50*(1-Work!L$27)) -> 0 | M21: =MIN((M$16-M20),'Input Sponsor'!$C$50*(1-Work!M$27)) -> 0 | N21: =MIN((N$16-N20),'Input Sponsor'!$C$50*(1-Work!N$27)) -> 0 | O21: =MIN((O$16-O20),'Input Sponsor'!$C$50*(1-Work!O$27)) -> 0 | P21: =MIN((P$16-P20),'Input Sponsor'!$C$50*(1-Work!P$27)) -> 0 | Q21: =MIN((Q$16-Q20),'Input Sponsor'!$C$50*(1-Work!Q$27)) -> 0 | R21: =MIN((R$16-R20),'Input Sponsor'!$C$50*(1-Work!R$27)) -> 0 | S21: =MIN((S$16-S20),'Input Sponsor'!$C$50*(1-Work!S$27)) -> 0 | T21: =MIN((T$16-T20),'Input Sponsor'!$C$50*(1-Work!T$27)) -> 0 | U21: =MIN((U$16-U20),'Input Sponsor'!$C$50*(1-Work!U$27)) -> 0 | V21: =MIN((V$16-V20),'Input Sponsor'!$C$50*(1-Work!V$27)) -> 0 | W21: =MIN((W$16-W20),'Input Sponsor'!$C$50*(1-Work!W$27)) -> 0 | X21: =MIN((X$16-X20),'Input Sponsor'!$C$50*(1-Work!X$27)) -> 0 | Y21: =MIN((Y$16-Y20),'Input Sponsor'!$C$50*(1-Work!Y$27)) -> 0 | Z21: =MIN((Z$16-Z20),'Input Sponsor'!$C$50*(1-Work!Z$27)) -> 0 | AA21: =MIN((AA$16-AA20),'Input Sponsor'!$C$50*(1-Work!AA$27)) -> 0 | AB21: =MIN((AB$16-AB20),'Input Sponsor'!$C$50*(1-Work!AB$27)) -> 0 | AC21: =MIN((AC$16-AC20),'Input Sponsor'!$C$50*(1-Work!AC$27)) -> 0 | AD21: =MIN((AD$16-AD20),'Input Sponsor'!$C$50*(1-Work!AD$27)) -> 0 | AE21: =MIN((AE$16-AE20),'Input Sponsor'!$C$50*(1-Work!AE$27)) -> 0 | AF21: =MIN((AF$16-AF20),'Input Sponsor'!$C$50*(1-Work!AF$27)) -> 0 | AG21: =MIN((AG$16-AG20),'Input Sponsor'!$C$50*(1-Work!AG$27)) -> 0 | AH21: =MIN((AH$16-AH20),'Input Sponsor'!$C$50*(1-Work!AH$27)) -> 0 | AI21: =MIN((AI$16-AI20),'Input Sponsor'!$C$50*(1-Work!AI$27)) -> 0 | AJ21: =MIN((AJ$16-AJ20),'Input Sponsor'!$C$50*(1-Work!AJ$27)) -> 0 | AK21: =MIN((AK$16-AK20),'Input Sponsor'!$C$50*(1-Work!AK$27)) -> 0 | AL21: =MIN((AL$16-AL20),'Input Sponsor'!$C$50*(1-Work!AL$27)) -> 0 | AM21: =MIN((AM$16-AM20),'Input Sponsor'!$C$50*(1-Work!AM$27)) -> 0 | AN21: =MIN((AN$16-AN20),'Input Sponsor'!$C$50*(1-Work!AN$27)) -> 0 | AO21: =MIN((AO$16-AO20),'Input Sponsor'!$C$50*(1-Work!AO$27)) -> 0 | AP21: =MIN((AP$16-AP20),'Input Sponsor'!$C$50*(1-Work!AP$27)) -> 0 | AQ21: =MIN((AQ$16-AQ20),'Input Sponsor'!$C$50*(1-Work!AQ$27)) -> 0 | AR21: =MIN((AR$16-AR20),'Input Sponsor'!$C$50*(1-Work!AR$27)) -> 0 | AS21: =MIN((AS$16-AS20),'Input Sponsor'!$C$50*(1-Work!AS$27)) -> 0 | AT21: =MIN((AT$16-AT20),'Input Sponsor'!$C$50*(1-Work!AT$27)) -> 0 | AU21: =MIN((AU$16-AU20),'Input Sponsor'!$C$50*(1-Work!AU$27)) -> 0 | AV21: =MIN((AV$16-AV20),'Input Sponsor'!$C$50*(1-Work!AV$27)) -> 0 | AW21: =MIN((AW$16-AW20),'Input Sponsor'!$C$50*(1-Work!AW$27)) -> 0 | AX21: =MIN((AX$16-AX20),'Input Sponsor'!$C$50*(1-Work!AX$27)) -> 0 | AY21: =MIN((AY$16-AY20),'Input Sponsor'!$C$50*(1-Work!AY$27)) -> 0 | AZ21: =MIN((AZ$16-AZ20),'Input Sponsor'!$C$50*(1-Work!AZ$27)) -> 0 | BA21: =MIN((BA$16-BA20),'Input Sponsor'!$C$50*(1-Work!BA$27)) -> 0 | BB21: =MIN((BB$16-BB20),'Input Sponsor'!$C$50*(1-Work!BB$27)) -> 0 | BC21: =MIN((BC$16-BC20),'Input Sponsor'!$C$50*(1-Work!BC$27)) -> 0
A22: ='Input Sponsor'!A51 -> Capex Grant | C22: 25 | F22: =MIN((F$16-F20-F21),'Input Sponsor'!$C$51*(1-Work!F$27)) -> 5 | G22: =MIN((G$16-G20-G21),'Input Sponsor'!$C$51*(1-Work!G$27)) -> 5 | H22: =MIN((H$16-H20-H21),'Input Sponsor'!$C$51*(1-Work!H$27)) -> 5 | I22: =MIN((I$16-I20-I21),'Input Sponsor'!$C$51*(1-Work!I$27)) -> 5 | J22: =MIN((J$16-J20-J21),'Input Sponsor'!$C$51*(1-Work!J$27)) -> 5 | K22: =MIN((K$16-K20-K21),'Input Sponsor'!$C$51*(1-Work!K$27)) -> 0 | L22: =MIN((L$16-L20-L21),'Input Sponsor'!$C$51*(1-Work!L$27)) -> 0 | M22: =MIN((M$16-M20-M21),'Input Sponsor'!$C$51*(1-Work!M$27)) -> 0 | N22: =MIN((N$16-N20-N21),'Input Sponsor'!$C$51*(1-Work!N$27)) -> 0 | O22: =MIN((O$16-O20-O21),'Input Sponsor'!$C$51*(1-Work!O$27)) -> 0 | P22: =MIN((P$16-P20-P21),'Input Sponsor'!$C$51*(1-Work!P$27)) -> 0 | Q22: =MIN((Q$16-Q20-Q21),'Input Sponsor'!$C$51*(1-Work!Q$27)) -> 0 | R22: =MIN((R$16-R20-R21),'Input Sponsor'!$C$51*(1-Work!R$27)) -> 0 | S22: =MIN((S$16-S20-S21),'Input Sponsor'!$C$51*(1-Work!S$27)) -> 0 | T22: =MIN((T$16-T20-T21),'Input Sponsor'!$C$51*(1-Work!T$27)) -> 0 | U22: =MIN((U$16-U20-U21),'Input Sponsor'!$C$51*(1-Work!U$27)) -> 0 | V22: =MIN((V$16-V20-V21),'Input Sponsor'!$C$51*(1-Work!V$27)) -> 0 | W22: =MIN((W$16-W20-W21),'Input Sponsor'!$C$51*(1-Work!W$27)) -> 0 | X22: =MIN((X$16-X20-X21),'Input Sponsor'!$C$51*(1-Work!X$27)) -> 0 | Y22: =MIN((Y$16-Y20-Y21),'Input Sponsor'!$C$51*(1-Work!Y$27)) -> 0 | Z22: =MIN((Z$16-Z20-Z21),'Input Sponsor'!$C$51*(1-Work!Z$27)) -> 0 | AA22: =MIN((AA$16-AA20-AA21),'Input Sponsor'!$C$51*(1-Work!AA$27)) -> 0 | AB22: =MIN((AB$16-AB20-AB21),'Input Sponsor'!$C$51*(1-Work!AB$27)) -> 0 | AC22: =MIN((AC$16-AC20-AC21),'Input Sponsor'!$C$51*(1-Work!AC$27)) -> 0 | AD22: =MIN((AD$16-AD20-AD21),'Input Sponsor'!$C$51*(1-Work!AD$27)) -> 0 | AE22: =MIN((AE$16-AE20-AE21),'Input Sponsor'!$C$51*(1-Work!AE$27)) -> 0 | AF22: =MIN((AF$16-AF20-AF21),'Input Sponsor'!$C$51*(1-Work!AF$27)) -> 0 | AG22: =MIN((AG$16-AG20-AG21),'Input Sponsor'!$C$51*(1-Work!AG$27)) -> 0 | AH22: =MIN((AH$16-AH20-AH21),'Input Sponsor'!$C$51*(1-Work!AH$27)) -> 0 | AI22: =MIN((AI$16-AI20-AI21),'Input Sponsor'!$C$51*(1-Work!AI$27)) -> 0 | AJ22: =MIN((AJ$16-AJ20-AJ21),'Input Sponsor'!$C$51*(1-Work!AJ$27)) -> 0 | AK22: =MIN((AK$16-AK20-AK21),'Input Sponsor'!$C$51*(1-Work!AK$27)) -> 0 | AL22: =MIN((AL$16-AL20-AL21),'Input Sponsor'!$C$51*(1-Work!AL$27)) -> 0 | AM22: =MIN((AM$16-AM20-AM21),'Input Sponsor'!$C$51*(1-Work!AM$27)) -> 0 | AN22: =MIN((AN$16-AN20-AN21),'Input Sponsor'!$C$51*(1-Work!AN$27)) -> 0 | AO22: =MIN((AO$16-AO20-AO21),'Input Sponsor'!$C$51*(1-Work!AO$27)) -> 0 | AP22: =MIN((AP$16-AP20-AP21),'Input Sponsor'!$C$51*(1-Work!AP$27)) -> 0 | AQ22: =MIN((AQ$16-AQ20-AQ21),'Input Sponsor'!$C$51*(1-Work!AQ$27)) -> 0 | AR22: =MIN((AR$16-AR20-AR21),'Input Sponsor'!$C$51*(1-Work!AR$27)) -> 0 | AS22: =MIN((AS$16-AS20-AS21),'Input Sponsor'!$C$51*(1-Work!AS$27)) -> 0 | AT22: =MIN((AT$16-AT20-AT21),'Input Sponsor'!$C$51*(1-Work!AT$27)) -> 0 | AU22: =MIN((AU$16-AU20-AU21),'Input Sponsor'!$C$51*(1-Work!AU$27)) -> 0 | AV22: =MIN((AV$16-AV20-AV21),'Input Sponsor'!$C$51*(1-Work!AV$27)) -> 0 | AW22: =MIN((AW$16-AW20-AW21),'Input Sponsor'!$C$51*(1-Work!AW$27)) -> 0 | AX22: =MIN((AX$16-AX20-AX21),'Input Sponsor'!$C$51*(1-Work!AX$27)) -> 0 | AY22: =MIN((AY$16-AY20-AY21),'Input Sponsor'!$C$51*(1-Work!AY$27)) -> 0 | AZ22: =MIN((AZ$16-AZ20-AZ21),'Input Sponsor'!$C$51*(1-Work!AZ$27)) -> 0 | BA22: =MIN((BA$16-BA20-BA21),'Input Sponsor'!$C$51*(1-Work!BA$27)) -> 0 | BB22: =MIN((BB$16-BB20-BB21),'Input Sponsor'!$C$51*(1-Work!BB$27)) -> 0 | BC22: =MIN((BC$16-BC20-BC21),'Input Sponsor'!$C$51*(1-Work!BC$27)) -> 0
A23: ='Input Sponsor'!A52 -> Provincial Treasury Instruction | C23: 5 | F23: =MIN((F$16-F20-F21-F22),'Input Sponsor'!$C$52*(1-Work!F$27)) -> 1 | G23: =MIN((G$16-G20-G21-G22),'Input Sponsor'!$C$52*(1-Work!G$27)) -> 1 | H23: =MIN((H$16-H20-H21-H22),'Input Sponsor'!$C$52*(1-Work!H$27)) -> 1 | I23: =MIN((I$16-I20-I21-I22),'Input Sponsor'!$C$52*(1-Work!I$27)) -> 1 | J23: =MIN((J$16-J20-J21-J22),'Input Sponsor'!$C$52*(1-Work!J$27)) -> 1 | K23: =MIN((K$16-K20-K21-K22),'Input Sponsor'!$C$52*(1-Work!K$27)) -> 0 | L23: =MIN((L$16-L20-L21-L22),'Input Sponsor'!$C$52*(1-Work!L$27)) -> 0 | M23: =MIN((M$16-M20-M21-M22),'Input Sponsor'!$C$52*(1-Work!M$27)) -> 0 | N23: =MIN((N$16-N20-N21-N22),'Input Sponsor'!$C$52*(1-Work!N$27)) -> 0 | O23: =MIN((O$16-O20-O21-O22),'Input Sponsor'!$C$52*(1-Work!O$27)) -> 0 | P23: =MIN((P$16-P20-P21-P22),'Input Sponsor'!$C$52*(1-Work!P$27)) -> 0 | Q23: =MIN((Q$16-Q20-Q21-Q22),'Input Sponsor'!$C$52*(1-Work!Q$27)) -> 0 | R23: =MIN((R$16-R20-R21-R22),'Input Sponsor'!$C$52*(1-Work!R$27)) -> 0 | S23: =MIN((S$16-S20-S21-S22),'Input Sponsor'!$C$52*(1-Work!S$27)) -> 0 | T23: =MIN((T$16-T20-T21-T22),'Input Sponsor'!$C$52*(1-Work!T$27)) -> 0 | U23: =MIN((U$16-U20-U21-U22),'Input Sponsor'!$C$52*(1-Work!U$27)) -> 0 | V23: =MIN((V$16-V20-V21-V22),'Input Sponsor'!$C$52*(1-Work!V$27)) -> 0 | W23: =MIN((W$16-W20-W21-W22),'Input Sponsor'!$C$52*(1-Work!W$27)) -> 0 | X23: =MIN((X$16-X20-X21-X22),'Input Sponsor'!$C$52*(1-Work!X$27)) -> 0 | Y23: =MIN((Y$16-Y20-Y21-Y22),'Input Sponsor'!$C$52*(1-Work!Y$27)) -> 0 | Z23: =MIN((Z$16-Z20-Z21-Z22),'Input Sponsor'!$C$52*(1-Work!Z$27)) -> 0 | AA23: =MIN((AA$16-AA20-AA21-AA22),'Input Sponsor'!$C$52*(1-Work!AA$27)) -> 0 | AB23: =MIN((AB$16-AB20-AB21-AB22),'Input Sponsor'!$C$52*(1-Work!AB$27)) -> 0 | AC23: =MIN((AC$16-AC20-AC21-AC22),'Input Sponsor'!$C$52*(1-Work!AC$27)) -> 0 | AD23: =MIN((AD$16-AD20-AD21-AD22),'Input Sponsor'!$C$52*(1-Work!AD$27)) -> 0 | AE23: =MIN((AE$16-AE20-AE21-AE22),'Input Sponsor'!$C$52*(1-Work!AE$27)) -> 0 | AF23: =MIN((AF$16-AF20-AF21-AF22),'Input Sponsor'!$C$52*(1-Work!AF$27)) -> 0 | AG23: =MIN((AG$16-AG20-AG21-AG22),'Input Sponsor'!$C$52*(1-Work!AG$27)) -> 0 | AH23: =MIN((AH$16-AH20-AH21-AH22),'Input Sponsor'!$C$52*(1-Work!AH$27)) -> 0 | AI23: =MIN((AI$16-AI20-AI21-AI22),'Input Sponsor'!$C$52*(1-Work!AI$27)) -> 0 | AJ23: =MIN((AJ$16-AJ20-AJ21-AJ22),'Input Sponsor'!$C$52*(1-Work!AJ$27)) -> 0 | AK23: =MIN((AK$16-AK20-AK21-AK22),'Input Sponsor'!$C$52*(1-Work!AK$27)) -> 0 | AL23: =MIN((AL$16-AL20-AL21-AL22),'Input Sponsor'!$C$52*(1-Work!AL$27)) -> 0 | AM23: =MIN((AM$16-AM20-AM21-AM22),'Input Sponsor'!$C$52*(1-Work!AM$27)) -> 0 | AN23: =MIN((AN$16-AN20-AN21-AN22),'Input Sponsor'!$C$52*(1-Work!AN$27)) -> 0 | AO23: =MIN((AO$16-AO20-AO21-AO22),'Input Sponsor'!$C$52*(1-Work!AO$27)) -> 0 | AP23: =MIN((AP$16-AP20-AP21-AP22),'Input Sponsor'!$C$52*(1-Work!AP$27)) -> 0 | AQ23: =MIN((AQ$16-AQ20-AQ21-AQ22),'Input Sponsor'!$C$52*(1-Work!AQ$27)) -> 0 | AR23: =MIN((AR$16-AR20-AR21-AR22),'Input Sponsor'!$C$52*(1-Work!AR$27)) -> 0 | AS23: =MIN((AS$16-AS20-AS21-AS22),'Input Sponsor'!$C$52*(1-Work!AS$27)) -> 0 | AT23: =MIN((AT$16-AT20-AT21-AT22),'Input Sponsor'!$C$52*(1-Work!AT$27)) -> 0 | AU23: =MIN((AU$16-AU20-AU21-AU22),'Input Sponsor'!$C$52*(1-Work!AU$27)) -> 0 | AV23: =MIN((AV$16-AV20-AV21-AV22),'Input Sponsor'!$C$52*(1-Work!AV$27)) -> 0 | AW23: =MIN((AW$16-AW20-AW21-AW22),'Input Sponsor'!$C$52*(1-Work!AW$27)) -> 0 | AX23: =MIN((AX$16-AX20-AX21-AX22),'Input Sponsor'!$C$52*(1-Work!AX$27)) -> 0 | AY23: =MIN((AY$16-AY20-AY21-AY22),'Input Sponsor'!$C$52*(1-Work!AY$27)) -> 0 | AZ23: =MIN((AZ$16-AZ20-AZ21-AZ22),'Input Sponsor'!$C$52*(1-Work!AZ$27)) -> 0 | BA23: =MIN((BA$16-BA20-BA21-BA22),'Input Sponsor'!$C$52*(1-Work!BA$27)) -> 0 | BB23: =MIN((BB$16-BB20-BB21-BB22),'Input Sponsor'!$C$52*(1-Work!BB$27)) -> 0 | BC23: =MIN((BC$16-BC20-BC21-BC22),'Input Sponsor'!$C$52*(1-Work!BC$27)) -> 0
A24: Drawdown on Contributions for Capex | C24: =SUM(E24:BC24) -> 10035 | F24: =SUM(F20:F23) -> 2007 | G24: 2007 | H24: 2007 | I24: 2007 | J24: 2007 | K24: 0 | L24: 0 | M24: 0 | N24: 0 | O24: 0 | P24: 0 | Q24: 0 | R24: 0 | S24: 0 | T24: 0 | U24: 0 | V24: 0 | W24: 0 | X24: 0 | Y24: 0 | Z24: 0 | AA24: 0 | AB24: 0 | AC24: 0 | AD24: 0 | AE24: 0 | AF24: 0 | AG24: 0 | AH24: 0 | AI24: 0 | AJ24: 0 | AK24: 0 | AL24: 0 | AM24: 0 | AN24: 0 | AO24: 0 | AP24: 0 | AQ24: 0 | AR24: 0 | AS24: 0 | AT24: 0 | AU24: 0 | AV24: 0 | AW24: 0 | AX24: 0 | AY24: 0 | AZ24: 0 | BA24: 0 | BB24: 0 | BC24: 0
A25: Funding gap after Contribution | C25: =SUM(E25:BC25) -> 11586.58611 | F25: =F16-F24 -> 184.0042574 | G25: 2377.251053 | H25: 2949.032838 | I25: 3594.138781 | J25: 2482.159176 | K25: 0 | L25: 0 | M25: 0 | N25: 0 | O25: 0 | P25: 0 | Q25: 0 | R25: 0 | S25: 0 | T25: 0 | U25: 0 | V25: 0 | W25: 0 | X25: 0 | Y25: 0 | Z25: 0 | AA25: 0 | AB25: 0 | AC25: 0 | AD25: 0 | AE25: 0 | AF25: 0 | AG25: 0 | AH25: 0 | AI25: 0 | AJ25: 0 | AK25: 0 | AL25: =AL16-AL24 -> 0 | AM25: 0 | AN25: 0 | AO25: 0 | AP25: 0 | AQ25: 0 | AR25: 0 | AS25: 0 | AT25: 0 | AU25: 0 | AV25: 0 | AW25: 0 | AX25: 0 | AY25: 0 | AZ25: 0 | BA25: 0 | BB25: 0 | BC25: 0
A26: Private Debt
A27: Debt available | C27: =MAX(F27:BC27) -> 10000 | E27: ='Input Sponsor'!C55 -> 10000 | F27: =('Input Sponsor'!$C$55-F28)*Work!F53 -> 10000 | G27: =('Input Sponsor'!$C$55-G28)*Work!G53 -> 9815.995743 | H27: =('Input Sponsor'!$C$55-H28)*Work!H53 -> 7438.744689 | I27: =('Input Sponsor'!$C$55-I28)*Work!I53 -> 4489.711851 | J27: =('Input Sponsor'!$C$55-J28)*Work!J53 -> 895.57307 | K27: =('Input Sponsor'!$C$55-K28)*Work!K53 -> 0 | L27: =('Input Sponsor'!$C$55-L28)*Work!L53 -> 0 | M27: =('Input Sponsor'!$C$55-M28)*Work!M53 -> 0 | N27: =('Input Sponsor'!$C$55-N28)*Work!N53 -> 0 | O27: =('Input Sponsor'!$C$55-O28)*Work!O53 -> 0 | P27: =('Input Sponsor'!$C$55-P28)*Work!P53 -> 0 | Q27: =('Input Sponsor'!$C$55-Q28)*Work!Q53 -> 0 | R27: =('Input Sponsor'!$C$55-R28)*Work!R53 -> 0 | S27: =('Input Sponsor'!$C$55-S28)*Work!S53 -> 0 | T27: =('Input Sponsor'!$C$55-T28)*Work!T53 -> 0 | U27: =('Input Sponsor'!$C$55-U28)*Work!U53 -> 0 | V27: =('Input Sponsor'!$C$55-V28)*Work!V53 -> 0 | W27: =('Input Sponsor'!$C$55-W28)*Work!W53 -> 0 | X27: =('Input Sponsor'!$C$55-X28)*Work!X53 -> 0 | Y27: =('Input Sponsor'!$C$55-Y28)*Work!Y53 -> 0 | Z27: =('Input Sponsor'!$C$55-Z28)*Work!Z53 -> 0 | AA27: =('Input Sponsor'!$C$55-AA28)*Work!AA53 -> 0 | AB27: =('Input Sponsor'!$C$55-AB28)*Work!AB53 -> 0 | AC27: =('Input Sponsor'!$C$55-AC28)*Work!AC53 -> 0 | AD27: =('Input Sponsor'!$C$55-AD28)*Work!AD53 -> 0 | AE27: =('Input Sponsor'!$C$55-AE28)*Work!AE53 -> 0 | AF27: =('Input Sponsor'!$C$55-AF28)*Work!AF53 -> 0 | AG27: =('Input Sponsor'!$C$55-AG28)*Work!AG53 -> 0 | AH27: =('Input Sponsor'!$C$55-AH28)*Work!AH53 -> 0 | AI27: =('Input Sponsor'!$C$55-AI28)*Work!AI53 -> 0 | AJ27: =('Input Sponsor'!$C$55-AJ28)*Work!AJ53 -> 0 | AK27: =('Input Sponsor'!$C$55-AK28)*Work!AK53 -> 0 | AL27: =('Input Sponsor'!$C$55-AL28)*Work!AL53 -> 0 | AM27: =('Input Sponsor'!$C$55-AM28)*Work!AM53 -> 0 | AN27: =('Input Sponsor'!$C$55-AN28)*Work!AN53 -> 0 | AO27: =('Input Sponsor'!$C$55-AO28)*Work!AO53 -> 0 | AP27: =('Input Sponsor'!$C$55-AP28)*Work!AP53 -> 0 | AQ27: =('Input Sponsor'!$C$55-AQ28)*Work!AQ53 -> 0 | AR27: =('Input Sponsor'!$C$55-AR28)*Work!AR53 -> 0 | AS27: =('Input Sponsor'!$C$55-AS28)*Work!AS53 -> 0 | AT27: =('Input Sponsor'!$C$55-AT28)*Work!AT53 -> 0 | AU27: =('Input Sponsor'!$C$55-AU28)*Work!AU53 -> 0 | AV27: =('Input Sponsor'!$C$55-AV28)*Work!AV53 -> 0 | AW27: =('Input Sponsor'!$C$55-AW28)*Work!AW53 -> 0 | AX27: =('Input Sponsor'!$C$55-AX28)*Work!AX53 -> 0 | AY27: =('Input Sponsor'!$C$55-AY28)*Work!AY53 -> 0 | AZ27: =('Input Sponsor'!$C$55-AZ28)*Work!AZ53 -> 0 | BA27: =('Input Sponsor'!$C$55-BA28)*Work!BA53 -> 0 | BB27: =('Input Sponsor'!$C$55-BB28)*Work!BB53 -> 0 | BC27: =('Input Sponsor'!$C$55-BC28)*Work!BC53 -> 0
A28: Total Debt (Begining of Period) | C28: =MAX(F28:BC28) -> 10000 | F28: =E31 -> 0 | G28: =F31 -> 184.0042574 | H28: =G31 -> 2561.255311 | I28: 5510.288149 | J28: 9104.42693 | K28: 10000 | L28: 10000 | M28: 10000 | N28: 9444.444444 | O28: 8888.888889 | P28: 8333.333333 | Q28: 7777.777778 | R28: 7222.222222 | S28: 6666.666667 | T28: 6111.111111 | U28: 5555.555556 | V28: 5000 | W28: 4444.444444 | X28: 3888.888889 | Y28: 3333.333333 | Z28: 2777.777778 | AA28: 2222.222222 | AB28: 1666.666667 | AC28: 1111.111111 | AD28: 555.5555556 | AE28: 1.136868377e-12 | AF28: 1.136868377e-12 | AG28: 1.136868377e-12 | AH28: 1.136868377e-12 | AI28: 1.136868377e-12 | AJ28: 1.136868377e-12 | AK28: 1.136868377e-12 | AL28: 1.136868377e-12 | AM28: 1.136868377e-12 | AN28: 1.136868377e-12 | AO28: 1.136868377e-12 | AP28: 1.136868377e-12 | AQ28: 1.136868377e-12 | AR28: 1.136868377e-12 | AS28: 1.136868377e-12 | AT28: 1.136868377e-12 | AU28: 1.136868377e-12 | AV28: 1.136868377e-12 | AW28: 1.136868377e-12 | AX28: 1.136868377e-12 | AY28: 1.136868377e-12 | AZ28: 1.136868377e-12 | BA28: 1.136868377e-12 | BB28: 1.136868377e-12 | BC28: 1.136868377e-12
A29: Drawdown on Debt | C29: =SUM(F29:BC29) -> 10000 | F29: =MIN(F27,F25) -> 184.0042574 | G29: =MIN(G27,G25) -> 2377.251053 | H29: 2949.032838 | I29: 3594.138781 | J29: 895.57307 | K29: 0 | L29: 0 | M29: 0 | N29: 0 | O29: 0 | P29: 0 | Q29: 0 | R29: 0 | S29: 0 | T29: 0 | U29: 0 | V29: 0 | W29: 0 | X29: 0 | Y29: 0 | Z29: 0 | AA29: 0 | AB29: 0 | AC29: 0 | AD29: 0 | AE29: 0 | AF29: 0 | AG29: 0 | AH29: 0 | AI29: 0 | AJ29: 0 | AK29: 0 | AL29: 0 | AM29: 0 | AN29: 0 | AO29: 0 | AP29: 0 | AQ29: 0 | AR29: 0 | AS29: 0 | AT29: 0 | AU29: 0 | AV29: 0 | AW29: 0 | AX29: 0 | AY29: 0 | AZ29: 0 | BA29: 0 | BB29: 0 | BC29: 0
A30: Debt Amortization | C30: =SUM(F30:BC30) -> 10000 | F30: =F38 -> 0 | G30: =G38 -> 0 | H30: 0 | I30: 0 | J30: 0 | K30: 0 | L30: 0 | M30: 555.5555556 | N30: 555.5555556 | O30: 555.5555556 | P30: 555.5555556 | Q30: 555.5555556 | R30: 555.5555556 | S30: 555.5555556 | T30: 555.5555556 | U30: 555.5555556 | V30: 555.5555556 | W30: 555.5555556 | X30: 555.5555556 | Y30: 555.5555556 | Z30: 555.5555556 | AA30: 555.5555556 | AB30: 555.5555556 | AC30: 555.5555556 | AD30: 555.5555556 | AE30: 0 | AF30: 0 | AG30: 0 | AH30: 0 | AI30: 0 | AJ30: 0 | AK30: 0 | AL30: 0 | AM30: 0 | AN30: 0 | AO30: 0 | AP30: 0 | AQ30: 0 | AR30: 0 | AS30: 0 | AT30: 0 | AU30: 0 | AV30: 0 | AW30: 0 | AX30: 0 | AY30: 0 | AZ30: 0 | BA30: 0 | BB30: 0 | BC30: 0
A31: Total Debt (End of Period) | C31: =MAX(F31:BC31) -> 10000 | F31: =F28+F29-F30 -> 184.0042574 | G31: =G28+G29-G30 -> 2561.255311 | H31: 5510.288149 | I31: 9104.42693 | J31: 10000 | K31: 10000 | L31: 10000 | M31: 9444.444444 | N31: 8888.888889 | O31: 8333.333333 | P31: 7777.777778 | Q31: 7222.222222 | R31: 6666.666667 | S31: 6111.111111 | T31: 5555.555556 | U31: 5000 | V31: 4444.444444 | W31: 3888.888889 | X31: 3333.333333 | Y31: 2777.777778 | Z31: 2222.222222 | AA31: 1666.666667 | AB31: 1111.111111 | AC31: 555.5555556 | AD31: 1.136868377e-12 | AE31: 1.136868377e-12 | AF31: 1.136868377e-12 | AG31: 1.136868377e-12 | AH31: 1.136868377e-12 | AI31: 1.136868377e-12 | AJ31: 1.136868377e-12 | AK31: 1.136868377e-12 | AL31: 1.136868377e-12 | AM31: 1.136868377e-12 | AN31: 1.136868377e-12 | AO31: 1.136868377e-12 | AP31: 1.136868377e-12 | AQ31: 1.136868377e-12 | AR31: 1.136868377e-12 | AS31: 1.136868377e-12 | AT31: 1.136868377e-12 | AU31: 1.136868377e-12 | AV31: 1.136868377e-12 | AW31: 1.136868377e-12 | AX31: 1.136868377e-12 | AY31: 1.136868377e-12 | AZ31: 1.136868377e-12 | BA31: 1.136868377e-12 | BB31: 1.136868377e-12 | BC31: 1.136868377e-12
